Workbook

Sheet Menu
A4: ='Business Details'!B4 -> SEQ INTERIM REVENUE MONITORING - INFORMATION REQUIREMENT TEMPLATE
L8: Please note that the macro in the intermediate input sheets workbook uses the original filenames for both this templates workbook and itself. Therefore, if you wish to save this workbook under a different filename, please do so ONLY AFTER FILLING OUT THE TEMPLATES AND THE MACRO IN THE INTERMEDIATE INPUT SHEETS HAS BEEN RUN, otherwise the macro will not function properly. Please note that the revenue model should also be open before you save either this templates workbook or the intermediate input sheets under a different name, as the pricing model has links to both these workbooks.
AC29: =Allocation!$K$118 -> 0.869
AC30: =Allocation!$K$118 -> 0.869
AG44: =Allocation!$K$118 -> 0.869
AG45: =Allocation!$K$118 -> 0.869
AG46: =Allocation!$K$118 -> 0.869
AO49: =Allocation!$K$135 -> 0.839
AC70: =Allocation!$K$121 -> 0.895
AC71: =Allocation!$K$121 -> 0.895
AG102: =Allocation!$K$121 -> 0.895
AG103: =Allocation!$K$121 -> 0.895
AG104: =Allocation!$K$121 -> 0.895
AC111: =Allocation!$K$124 -> 1
AC112: =Allocation!$K$124 -> 1
AC152: =Allocation!$K$127 -> 1
AC153: =Allocation!$K$127 -> 1
AO155: =Allocation!$K$138 -> 0.844
AG160: =Allocation!$K$124 -> 1
AG161: =Allocation!$K$124 -> 1
AG162: =Allocation!$K$124 -> 1
AG182: =Allocation!K$118 -> 0.869
AC193: =Allocation!$K$130 -> 1
AC194: =Allocation!$K$130 -> 1
AG218: =Allocation!$K$127 -> 1
AG219: =Allocation!$K$127 -> 1
AG220: =Allocation!$K$127 -> 1
AO260: =Allocation!$K$141 -> 1
AG276: =Allocation!$K$130 -> 1
AG277: =Allocation!$K$130 -> 1
AG278: =Allocation!$K$130 -> 1
AO365: =Allocation!$K$144 -> 1
AO471: =Allocation!$K$147 -> 1
M666: =#REF! ->  | N666: =#REF! ->  | O666: =#REF! ->  | P666: =#REF! ->  | Q666: =#REF! ->  | R666: =#REF! ->  | S666: =#REF! ->  | T666: =#REF! ->  | U666: =#REF! ->  | V666: =#REF! ->  | W666: =#REF! ->  | X666: =#REF! -> 
AG667: =Allocation!K$121 -> 0.895
AG1151: =Allocation!K$124 -> 1
AG1636: =Allocation!K$127 -> 1
AG2121: =Allocation!K$130 -> 1

Sheet Format Guide
B5: ='Business Details'!B4 -> SEQ INTERIM REVENUE MONITORING - INFORMATION REQUIREMENT TEMPLATE
B6: FORMAT GUIDE
B8: PROJECT FILE: | E8: Information Requirement Template
B10: VERSION AND STATUS OF MODEL: | E10: Version 1.0
B12: DATE OF MODEL: | E12: =NOW() -> 2013-06-17T14:35:08.600
B19: SPREADSHEET FORMATTING PROTOCOLS
B21: Column headings | D21: 2010/11
B23: Hard coded cells (assumptions, data inputs, and value-copied cells) | D23: 15246 | F23: List Box
B25: Row formula different to others | D25: 100 | F25: Macro button (navigation)
B27: Calculated Cell | D27: 15246
B29: Sub-total | D29: 300.51 | AC29: =Allocation!$K$118 -> 0.869
AC30: =Allocation!$K$118 -> 0.869
B31: Total (eg maximum revenue requirement) | D31: 250.86
AG44: =Allocation!$K$118 -> 0.869
AG45: =Allocation!$K$118 -> 0.869
AG46: =Allocation!$K$118 -> 0.869
AO49: =Allocation!$K$135 -> 0.839
Q59: =Allocation!$K$118 -> 0.869 | R59: =Allocation!$K$118 -> 0.869 | S59: =Allocation!$K$121 -> 0.895 | T59: =Allocation!$K$127 -> 1 | U59: =Allocation!$K$127 -> 1 | V59: =Allocation!$K$130 -> 1
AC70: =Allocation!$K$121 -> 0.895
AC71: =Allocation!$K$121 -> 0.895
AG102: =Allocation!$K$121 -> 0.895
AG103: =Allocation!$K$121 -> 0.895
AG104: =Allocation!$K$121 -> 0.895
AC111: =Allocation!$K$124 -> 1
AC112: =Allocation!$K$124 -> 1
AC152: =Allocation!$K$127 -> 1
AC153: =Allocation!$K$127 -> 1
AO155: =Allocation!$K$138 -> 0.844
AG160: =Allocation!$K$124 -> 1
AG161: =Allocation!$K$124 -> 1
AG162: =Allocation!$K$124 -> 1
AG182: =Allocation!K$118 -> 0.869
AC193: =Allocation!$K$130 -> 1
AC194: =Allocation!$K$130 -> 1
AG218: =Allocation!$K$127 -> 1
AG219: =Allocation!$K$127 -> 1
AG220: =Allocation!$K$127 -> 1
AO260: =Allocation!$K$141 -> 1
AG276: =Allocation!$K$130 -> 1
AG277: =Allocation!$K$130 -> 1
AG278: =Allocation!$K$130 -> 1
AO365: =Allocation!$K$144 -> 1
AO471: =Allocation!$K$147 -> 1
M666: =#REF! ->  | N666: =#REF! ->  | O666: =#REF! ->  | P666: =#REF! ->  | Q666: =#REF! ->  | R666: =#REF! ->  | S666: =#REF! ->  | T666: =#REF! ->  | U666: =#REF! ->  | V666: =#REF! ->  | W666: =#REF! ->  | X666: =#REF! -> 
AG667: =Allocation!K$121 -> 0.895
AG1151: =Allocation!K$124 -> 1
AG1636: =Allocation!K$127 -> 1
AG2121: =Allocation!K$130 -> 1

Sheet Business Details
B4: SEQ INTERIM REVENUE MONITORING - INFORMATION REQUIREMENT TEMPLATE
B7: Business Details | I7: Supporting Documents
B9: Business name | D9: Queensland Urban Utilities
B11: Geographical areas
C12: 1 | D12: Brisbane
C13: 2 | D13: Ipswich
C14: 3 | D14: Lockyer Valley
C15: 4 | D15: Scenic Rim
C16: 5 | D16: Somerset
B18: Are additional geographic areas used? | G18: If yes, please provide supporting information.
B20: Analysis Years
B22: Period of information requirement | D22: Year ending 30 June:
C23: Start date | D23: 2009
C24: Smoothing Period - Start Year
C25: Smoothing Period - End year Year
C26: Reporting year | D26: 2014
B28: Indexation rates | E28: Year Ending 30 June:
E29: =StartDate -> 2009 | F29: =E29+1 -> 2010 | G29: =F29+1 -> 2011 | H29: =G29+1 -> 2012 | I29: =H29+1 -> 2013 | J29: =CONCATENATE(I29+1," onwards") -> 2014 onwards | K29: Supporting Documents | AC29: =Allocation!$K$118 -> 0.869
B30: Indexation rates | AC30: =Allocation!$K$118 -> 0.869
C31: Annual Indexation rate | D31: % pa | E31: 0.02 | F31: 0.032 | G31: 0.036 | H31: 0.013 | I31: 0.021 | J31: 0.025
B37: Asset Class Details | I37: Supporting Documents
B39: Asset classes
C40: 1 | D40: Reservoirs
C41: 2 | D41: Pump stations
C42: 3 | D42: Treatment
C43: 4 | D43: Associated telemetry and control systems
C44: 5 | D44: Meters | AG44: =Allocation!$K$118 -> 0.869
C45: 6 | D45: Billing systems | AG45: =Allocation!$K$118 -> 0.869
C46: 7 | D46: Corporate systems | AG46: =Allocation!$K$118 -> 0.869
C47: 8 | D47: Sundry property, plant and equipment
C48: 9 | D48: Land
C49: 10 | D49: Building other than infrastructure housing | AO49: =Allocation!$K$135 -> 0.839
C50: 11 | D50: Distribution infrastructure not included in another category
C51: 12 | D51: Support services
C52: 13 | D52: Mains
C53: 14 | D53: Establishment Costs
C54: 15 | D54: Unallocated cash contribution
Q59: =Allocation!$K$118 -> 0.869 | R59: =Allocation!$K$118 -> 0.869 | S59: =Allocation!$K$121 -> 0.895 | T59: =Allocation!$K$127 -> 1 | U59: =Allocation!$K$127 -> 1 | V59: =Allocation!$K$130 -> 1
AC70: =Allocation!$K$121 -> 0.895
AC71: =Allocation!$K$121 -> 0.895
AG102: =Allocation!$K$121 -> 0.895
AG103: =Allocation!$K$121 -> 0.895
AG104: =Allocation!$K$121 -> 0.895
AC111: =Allocation!$K$124 -> 1
AC112: =Allocation!$K$124 -> 1
AC152: =Allocation!$K$127 -> 1
AC153: =Allocation!$K$127 -> 1
AO155: =Allocation!$K$138 -> 0.844
AG160: =Allocation!$K$124 -> 1
AG161: =Allocation!$K$124 -> 1
AG162: =Allocation!$K$124 -> 1
AG182: =Allocation!K$118 -> 0.869
AC193: =Allocation!$K$130 -> 1
AC194: =Allocation!$K$130 -> 1
AG218: =Allocation!$K$127 -> 1
AG219: =Allocation!$K$127 -> 1
AG220: =Allocation!$K$127 -> 1
AO260: =Allocation!$K$141 -> 1
AG276: =Allocation!$K$130 -> 1
AG277: =Allocation!$K$130 -> 1
AG278: =Allocation!$K$130 -> 1
AO365: =Allocation!$K$144 -> 1
AO471: =Allocation!$K$147 -> 1
M666: =#REF! ->  | N666: =#REF! ->  | O666: =#REF! ->  | P666: =#REF! ->  | Q666: =#REF! ->  | R666: =#REF! ->  | S666: =#REF! ->  | T666: =#REF! ->  | U666: =#REF! ->  | V666: =#REF! ->  | W666: =#REF! ->  | X666: =#REF! -> 
AG667: =Allocation!K$121 -> 0.895
AG1151: =Allocation!K$124 -> 1
AG1636: =Allocation!K$127 -> 1
AG2121: =Allocation!K$130 -> 1

Sheet 3.3
B4: ='Business Details'!$B$4 -> SEQ INTERIM REVENUE MONITORING - INFORMATION REQUIREMENT TEMPLATE
B7: =CONCATENATE("Supporting Documents for ",'Business Details'!$D$9) -> Supporting Documents for Queensland Urban Utilities
B8: =CONCATENATE("Reporting year = ",AnalysisYear) -> Reporting year = 2014
F10: 0 | G10: 1 | H10: 2
J11: Supporting
J12: Documents
B14: Basis for preparation of historical information:
B16: [description of how historical data has been prepared]
B27: Basis for preparation of forecast information:
B29: [description of how forecast data has been prepared]
AO49: =Allocation!$K$135 -> 0.839
AO155: =Allocation!$K$138 -> 0.844
AO260: =Allocation!$K$141 -> 1
AO365: =Allocation!$K$144 -> 1
AO471: =Allocation!$K$147 -> 1
M666: =#REF! -> 

Sheet 5.1.1
B4: ='Business Details'!$B$4 -> SEQ INTERIM REVENUE MONITORING - INFORMATION REQUIREMENT TEMPLATE
B7: =CONCATENATE("Consolidated Statement for ",'Business Details'!$D$9) -> Consolidated Statement for Queensland Urban Utilities
B8: =CONCATENATE("Reporting year = ",AnalysisYear) -> Reporting year = 2014
F12: For Year Ending 30 June: | N12: =CONCATENATE("For Year Ending 30 June ",AnalysisYear,":") -> For Year Ending 30 June 2014:
C13: Account heading | F13: =StartDate -> 2009 | G13: =F13+1 -> 2010 | H13: 2011 | I13: 2012 | J13: 2013 | K13: 2014 | L13: 2015 | N13: Ledger Code | O13: Relevant Notes | P13: Supporting Documents
B14: all amounts in '$0000 | F14: V9 | G14: V9 | H14: V9 | I14: V9 | J14: V9 | K14: V9 | L14: V9
C15: Revenues | Q15: Dist | R15: Prod | S15: Item1 | T15: Sign | U15: Item2 | V15: sign | W15: Item3 | X15: Sign | Y15: Item4 | Z15: sign | AA15: Item5 | AB15: sign
C16: Revenue from services | E16: $'000 | F16: =(SUMIF(Datastore!$A:$A,$Q16&$R16&"|"&$S16&"|"&F$14&"|"&"FY"&RIGHT(F$13,2),Datastore!$G:$G)*$T16+SUMIF(Datastore!$A:$A,$Q16&$R16&"|"&$U16&"|"&F$14&"|"&"FY"&RIGHT(F$13,2),Datastore!$G:$G)*$V16+SUMIF(Datastore!$A:$A,$Q16&$R16&"|"&$W16&"|"&F$14&"|"&"FY"&RIGHT(F$13,2),Datastore!$G:$G)*$X16+SUMIF(Datastore!$A:$A,$Q16&$R16&"|"&$Y16&"|"&F$14&"|"&"FY"&RIGHT(F$13,2),Datastore!$G:$G)*$Z16+SUMIF(Datastore!$A:$A,$Q16&$R16&"|"&$AA16&"|"&F$14&"|"&"FY"&RIGHT(F$13,2),Datastore!$G:$G)*$AB16)/1000 -> 583247.4029 | G16: =(SUMIF(Datastore!$A:$A,$Q16&$R16&"|"&$S16&"|"&G$14&"|"&"FY"&RIGHT(G$13,2),Datastore!$G:$G)*$T16+SUMIF(Datastore!$A:$A,$Q16&$R16&"|"&$U16&"|"&G$14&"|"&"FY"&RIGHT(G$13,2),Datastore!$G:$G)*$V16+SUMIF(Datastore!$A:$A,$Q16&$R16&"|"&$W16&"|"&G$14&"|"&"FY"&RIGHT(G$13,2),Datastore!$G:$G)*$X16+SUMIF(Datastore!$A:$A,$Q16&$R16&"|"&$Y16&"|"&G$14&"|"&"FY"&RIGHT(G$13,2),Datastore!$G:$G)*$Z16+SUMIF(Datastore!$A:$A,$Q16&$R16&"|"&$AA16&"|"&G$14&"|"&"FY"&RIGHT(G$13,2),Datastore!$G:$G)*$AB16)/1000 -> 659666.5853 | H16: =(SUMIF(Datastore!$A:$A,$Q16&$R16&"|"&$S16&"|"&H$14&"|"&"FY"&RIGHT(H$13,2),Datastore!$G:$G)*$T16+SUMIF(Datastore!$A:$A,$Q16&$R16&"|"&$U16&"|"&H$14&"|"&"FY"&RIGHT(H$13,2),Datastore!$G:$G)*$V16+SUMIF(Datastore!$A:$A,$Q16&$R16&"|"&$W16&"|"&H$14&"|"&"FY"&RIGHT(H$13,2),Datastore!$G:$G)*$X16+SUMIF(Datastore!$A:$A,$Q16&$R16&"|"&$Y16&"|"&H$14&"|"&"FY"&RIGHT(H$13,2),Datastore!$G:$G)*$Z16+SUMIF(Datastore!$A:$A,$Q16&$R16&"|"&$AA16&"|"&H$14&"|"&"FY"&RIGHT(H$13,2),Datastore!$G:$G)*$AB16)/1000 -> 718278.5404 | I16: =(SUMIF(Datastore!$A:$A,$Q16&$R16&"|"&$S16&"|"&I$14&"|"&"FY"&RIGHT(I$13,2),Datastore!$G:$G)*$T16+SUMIF(Datastore!$A:$A,$Q16&$R16&"|"&$U16&"|"&I$14&"|"&"FY"&RIGHT(I$13,2),Datastore!$G:$G)*$V16+SUMIF(Datastore!$A:$A,$Q16&$R16&"|"&$W16&"|"&I$14&"|"&"FY"&RIGHT(I$13,2),Datastore!$G:$G)*$X16+SUMIF(Datastore!$A:$A,$Q16&$R16&"|"&$Y16&"|"&I$14&"|"&"FY"&RIGHT(I$13,2),Datastore!$G:$G)*$Z16+SUMIF(Datastore!$A:$A,$Q16&$R16&"|"&$AA16&"|"&I$14&"|"&"FY"&RIGHT(I$13,2),Datastore!$G:$G)*$AB16)/1000 -> 782596.9275 | J16: =(SUMIF(Datastore!$A:$A,$Q16&$R16&"|"&$S16&"|"&J$14&"|"&"FY"&RIGHT(J$13,2),Datastore!$G:$G)*$T16+SUMIF(Datastore!$A:$A,$Q16&$R16&"|"&$U16&"|"&J$14&"|"&"FY"&RIGHT(J$13,2),Datastore!$G:$G)*$V16+SUMIF(Datastore!$A:$A,$Q16&$R16&"|"&$W16&"|"&J$14&"|"&"FY"&RIGHT(J$13,2),Datastore!$G:$G)*$X16+SUMIF(Datastore!$A:$A,$Q16&$R16&"|"&$Y16&"|"&J$14&"|"&"FY"&RIGHT(J$13,2),Datastore!$G:$G)*$Z16+SUMIF(Datastore!$A:$A,$Q16&$R16&"|"&$AA16&"|"&J$14&"|"&"FY"&RIGHT(J$13,2),Datastore!$G:$G)*$AB16)/1000 -> 835665.7182 | K16: =(SUMIF(Datastore!$A:$A,$Q16&$R16&"|"&$S16&"|"&K$14&"|"&"FY"&RIGHT(K$13,2),Datastore!$G:$G)*$T16+SUMIF(Datastore!$A:$A,$Q16&$R16&"|"&$U16&"|"&K$14&"|"&"FY"&RIGHT(K$13,2),Datastore!$G:$G)*$V16+SUMIF(Datastore!$A:$A,$Q16&$R16&"|"&$W16&"|"&K$14&"|"&"FY"&RIGHT(K$13,2),Datastore!$G:$G)*$X16+SUMIF(Datastore!$A:$A,$Q16&$R16&"|"&$Y16&"|"&K$14&"|"&"FY"&RIGHT(K$13,2),Datastore!$G:$G)*$Z16+SUMIF(Datastore!$A:$A,$Q16&$R16&"|"&$AA16&"|"&K$14&"|"&"FY"&RIGHT(K$13,2),Datastore!$G:$G)*$AB16)/1000 -> 898356.9996 | L16: =(SUMIF(Datastore!$A:$A,$Q16&$R16&"|"&$S16&"|"&L$14&"|"&"FY"&RIGHT(L$13,2),Datastore!$G:$G)*$T16+SUMIF(Datastore!$A:$A,$Q16&$R16&"|"&$U16&"|"&L$14&"|"&"FY"&RIGHT(L$13,2),Datastore!$G:$G)*$V16+SUMIF(Datastore!$A:$A,$Q16&$R16&"|"&$W16&"|"&L$14&"|"&"FY"&RIGHT(L$13,2),Datastore!$G:$G)*$X16+SUMIF(Datastore!$A:$A,$Q16&$R16&"|"&$Y16&"|"&L$14&"|"&"FY"&RIGHT(L$13,2),Datastore!$G:$G)*$Z16+SUMIF(Datastore!$A:$A,$Q16&$R16&"|"&$AA16&"|"&L$14&"|"&"FY"&RIGHT(L$13,2),Datastore!$G:$G)*$AB16)/1000 -> 975510.3603 | Q16: ?? | R16: ? | S16: R* | T16: -1 | U16: RFIN | V16: 1 | W16: RC?? | X16: 1 | Y16: RNOT | Z16: 1 | AA16: x | AB16: 0
C17: Investment income | E17: $'000 | F17: =(SUMIF(Datastore!$A:$A,$Q17&$R17&"|"&$S17&"|"&F$14&"|"&"FY"&RIGHT(F$13,2),Datastore!$G:$G)*$T17+SUMIF(Datastore!$A:$A,$Q17&$R17&"|"&$U17&"|"&F$14&"|"&"FY"&RIGHT(F$13,2),Datastore!$G:$G)*$V17+SUMIF(Datastore!$A:$A,$Q17&$R17&"|"&$W17&"|"&F$14&"|"&"FY"&RIGHT(F$13,2),Datastore!$G:$G)*$X17+SUMIF(Datastore!$A:$A,$Q17&$R17&"|"&$Y17&"|"&F$14&"|"&"FY"&RIGHT(F$13,2),Datastore!$G:$G)*$Z17+SUMIF(Datastore!$A:$A,$Q17&$R17&"|"&$AA17&"|"&F$14&"|"&"FY"&RIGHT(F$13,2),Datastore!$G:$G)*$AB17)/1000 -> 600 | G17: =(SUMIF(Datastore!$A:$A,$Q17&$R17&"|"&$S17&"|"&G$14&"|"&"FY"&RIGHT(G$13,2),Datastore!$G:$G)*$T17+SUMIF(Datastore!$A:$A,$Q17&$R17&"|"&$U17&"|"&G$14&"|"&"FY"&RIGHT(G$13,2),Datastore!$G:$G)*$V17+SUMIF(Datastore!$A:$A,$Q17&$R17&"|"&$W17&"|"&G$14&"|"&"FY"&RIGHT(G$13,2),Datastore!$G:$G)*$X17+SUMIF(Datastore!$A:$A,$Q17&$R17&"|"&$Y17&"|"&G$14&"|"&"FY"&RIGHT(G$13,2),Datastore!$G:$G)*$Z17+SUMIF(Datastore!$A:$A,$Q17&$R17&"|"&$AA17&"|"&G$14&"|"&"FY"&RIGHT(G$13,2),Datastore!$G:$G)*$AB17)/1000 -> 499.88915 | H17: =(SUMIF(Datastore!$A:$A,$Q17&$R17&"|"&$S17&"|"&H$14&"|"&"FY"&RIGHT(H$13,2),Datastore!$G:$G)*$T17+SUMIF(Datastore!$A:$A,$Q17&$R17&"|"&$U17&"|"&H$14&"|"&"FY"&RIGHT(H$13,2),Datastore!$G:$G)*$V17+SUMIF(Datastore!$A:$A,$Q17&$R17&"|"&$W17&"|"&H$14&"|"&"FY"&RIGHT(H$13,2),Datastore!$G:$G)*$X17+SUMIF(Datastore!$A:$A,$Q17&$R17&"|"&$Y17&"|"&H$14&"|"&"FY"&RIGHT(H$13,2),Datastore!$G:$G)*$Z17+SUMIF(Datastore!$A:$A,$Q17&$R17&"|"&$AA17&"|"&H$14&"|"&"FY"&RIGHT(H$13,2),Datastore!$G:$G)*$AB17)/1000 -> 321.07604 | I17: =(SUMIF(Datastore!$A:$A,$Q17&$R17&"|"&$S17&"|"&I$14&"|"&"FY"&RIGHT(I$13,2),Datastore!$G:$G)*$T17+SUMIF(Datastore!$A:$A,$Q17&$R17&"|"&$U17&"|"&I$14&"|"&"FY"&RIGHT(I$13,2),Datastore!$G:$G)*$V17+SUMIF(Datastore!$A:$A,$Q17&$R17&"|"&$W17&"|"&I$14&"|"&"FY"&RIGHT(I$13,2),Datastore!$G:$G)*$X17+SUMIF(Datastore!$A:$A,$Q17&$R17&"|"&$Y17&"|"&I$14&"|"&"FY"&RIGHT(I$13,2),Datastore!$G:$G)*$Z17+SUMIF(Datastore!$A:$A,$Q17&$R17&"|"&$AA17&"|"&I$14&"|"&"FY"&RIGHT(I$13,2),Datastore!$G:$G)*$AB17)/1000 -> 680.5363 | J17: =(SUMIF(Datastore!$A:$A,$Q17&$R17&"|"&$S17&"|"&J$14&"|"&"FY"&RIGHT(J$13,2),Datastore!$G:$G)*$T17+SUMIF(Datastore!$A:$A,$Q17&$R17&"|"&$U17&"|"&J$14&"|"&"FY"&RIGHT(J$13,2),Datastore!$G:$G)*$V17+SUMIF(Datastore!$A:$A,$Q17&$R17&"|"&$W17&"|"&J$14&"|"&"FY"&RIGHT(J$13,2),Datastore!$G:$G)*$X17+SUMIF(Datastore!$A:$A,$Q17&$R17&"|"&$Y17&"|"&J$14&"|"&"FY"&RIGHT(J$13,2),Datastore!$G:$G)*$Z17+SUMIF(Datastore!$A:$A,$Q17&$R17&"|"&$AA17&"|"&J$14&"|"&"FY"&RIGHT(J$13,2),Datastore!$G:$G)*$AB17)/1000 -> 350 | K17: =(SUMIF(Datastore!$A:$A,$Q17&$R17&"|"&$S17&"|"&K$14&"|"&"FY"&RIGHT(K$13,2),Datastore!$G:$G)*$T17+SUMIF(Datastore!$A:$A,$Q17&$R17&"|"&$U17&"|"&K$14&"|"&"FY"&RIGHT(K$13,2),Datastore!$G:$G)*$V17+SUMIF(Datastore!$A:$A,$Q17&$R17&"|"&$W17&"|"&K$14&"|"&"FY"&RIGHT(K$13,2),Datastore!$G:$G)*$X17+SUMIF(Datastore!$A:$A,$Q17&$R17&"|"&$Y17&"|"&K$14&"|"&"FY"&RIGHT(K$13,2),Datastore!$G:$G)*$Z17+SUMIF(Datastore!$A:$A,$Q17&$R17&"|"&$AA17&"|"&K$14&"|"&"FY"&RIGHT(K$13,2),Datastore!$G:$G)*$AB17)/1000 -> 358.75 | L17: =(SUMIF(Datastore!$A:$A,$Q17&$R17&"|"&$S17&"|"&L$14&"|"&"FY"&RIGHT(L$13,2),Datastore!$G:$G)*$T17+SUMIF(Datastore!$A:$A,$Q17&$R17&"|"&$U17&"|"&L$14&"|"&"FY"&RIGHT(L$13,2),Datastore!$G:$G)*$V17+SUMIF(Datastore!$A:$A,$Q17&$R17&"|"&$W17&"|"&L$14&"|"&"FY"&RIGHT(L$13,2),Datastore!$G:$G)*$X17+SUMIF(Datastore!$A:$A,$Q17&$R17&"|"&$Y17&"|"&L$14&"|"&"FY"&RIGHT(L$13,2),Datastore!$G:$G)*$Z17+SUMIF(Datastore!$A:$A,$Q17&$R17&"|"&$AA17&"|"&L$14&"|"&"FY"&RIGHT(L$13,2),Datastore!$G:$G)*$AB17)/1000 -> 0 | Q17: ?? | R17: ? | S17: RFIN | T17: -1 | U17: x | V17: 0 | W17: x | X17: 0 | Y17: x | Z17: 0 | AA17: x | AB17: 0
C18: Net profit / (loss) from sale of regulatory assets | E18: $'000 | F18: =(SUMIF(Datastore!$A:$A,$Q18&$R18&"|"&$S18&"|"&F$14&"|"&"FY"&RIGHT(F$13,2),Datastore!$G:$G)*$T18+SUMIF(Datastore!$A:$A,$Q18&$R18&"|"&$U18&"|"&F$14&"|"&"FY"&RIGHT(F$13,2),Datastore!$G:$G)*$V18+SUMIF(Datastore!$A:$A,$Q18&$R18&"|"&$W18&"|"&F$14&"|"&"FY"&RIGHT(F$13,2),Datastore!$G:$G)*$X18+SUMIF(Datastore!$A:$A,$Q18&$R18&"|"&$Y18&"|"&F$14&"|"&"FY"&RIGHT(F$13,2),Datastore!$G:$G)*$Z18+SUMIF(Datastore!$A:$A,$Q18&$R18&"|"&$AA18&"|"&F$14&"|"&"FY"&RIGHT(F$13,2),Datastore!$G:$G)*$AB18)/1000 -> -10355.176 | G18: =(SUMIF(Datastore!$A:$A,$Q18&$R18&"|"&$S18&"|"&G$14&"|"&"FY"&RIGHT(G$13,2),Datastore!$G:$G)*$T18+SUMIF(Datastore!$A:$A,$Q18&$R18&"|"&$U18&"|"&G$14&"|"&"FY"&RIGHT(G$13,2),Datastore!$G:$G)*$V18+SUMIF(Datastore!$A:$A,$Q18&$R18&"|"&$W18&"|"&G$14&"|"&"FY"&RIGHT(G$13,2),Datastore!$G:$G)*$X18+SUMIF(Datastore!$A:$A,$Q18&$R18&"|"&$Y18&"|"&G$14&"|"&"FY"&RIGHT(G$13,2),Datastore!$G:$G)*$Z18+SUMIF(Datastore!$A:$A,$Q18&$R18&"|"&$AA18&"|"&G$14&"|"&"FY"&RIGHT(G$13,2),Datastore!$G:$G)*$AB18)/1000 -> -16706.4425 | H18: =24669+(SUMIF(Datastore!$A:$A,$Q18&$R18&"|"&$S18&"|"&H$14&"|"&"FY"&RIGHT(H$13,2),Datastore!$G:$G)*$T18+SUMIF(Datastore!$A:$A,$Q18&$R18&"|"&$U18&"|"&H$14&"|"&"FY"&RIGHT(H$13,2),Datastore!$G:$G)*$V18+SUMIF(Datastore!$A:$A,$Q18&$R18&"|"&$W18&"|"&H$14&"|"&"FY"&RIGHT(H$13,2),Datastore!$G:$G)*$X18+SUMIF(Datastore!$A:$A,$Q18&$R18&"|"&$Y18&"|"&H$14&"|"&"FY"&RIGHT(H$13,2),Datastore!$G:$G)*$Z18+SUMIF(Datastore!$A:$A,$Q18&$R18&"|"&$AA18&"|"&H$14&"|"&"FY"&RIGHT(H$13,2),Datastore!$G:$G)*$AB18)/1000 -> -5456.72693 | I18: =(SUMIF(Datastore!$A:$A,$Q18&$R18&"|"&$S18&"|"&I$14&"|"&"FY"&RIGHT(I$13,2),Datastore!$G:$G)*$T18+SUMIF(Datastore!$A:$A,$Q18&$R18&"|"&$U18&"|"&I$14&"|"&"FY"&RIGHT(I$13,2),Datastore!$G:$G)*$V18+SUMIF(Datastore!$A:$A,$Q18&$R18&"|"&$W18&"|"&I$14&"|"&"FY"&RIGHT(I$13,2),Datastore!$G:$G)*$X18+SUMIF(Datastore!$A:$A,$Q18&$R18&"|"&$Y18&"|"&I$14&"|"&"FY"&RIGHT(I$13,2),Datastore!$G:$G)*$Z18+SUMIF(Datastore!$A:$A,$Q18&$R18&"|"&$AA18&"|"&I$14&"|"&"FY"&RIGHT(I$13,2),Datastore!$G:$G)*$AB18)/1000 -> -6792.91964 | J18: =(SUMIF(Datastore!$A:$A,$Q18&$R18&"|"&$S18&"|"&J$14&"|"&"FY"&RIGHT(J$13,2),Datastore!$G:$G)*$T18+SUMIF(Datastore!$A:$A,$Q18&$R18&"|"&$U18&"|"&J$14&"|"&"FY"&RIGHT(J$13,2),Datastore!$G:$G)*$V18+SUMIF(Datastore!$A:$A,$Q18&$R18&"|"&$W18&"|"&J$14&"|"&"FY"&RIGHT(J$13,2),Datastore!$G:$G)*$X18+SUMIF(Datastore!$A:$A,$Q18&$R18&"|"&$Y18&"|"&J$14&"|"&"FY"&RIGHT(J$13,2),Datastore!$G:$G)*$Z18+SUMIF(Datastore!$A:$A,$Q18&$R18&"|"&$AA18&"|"&J$14&"|"&"FY"&RIGHT(J$13,2),Datastore!$G:$G)*$AB18)/1000 -> -4796 | K18: =(SUMIF(Datastore!$A:$A,$Q18&$R18&"|"&$S18&"|"&K$14&"|"&"FY"&RIGHT(K$13,2),Datastore!$G:$G)*$T18+SUMIF(Datastore!$A:$A,$Q18&$R18&"|"&$U18&"|"&K$14&"|"&"FY"&RIGHT(K$13,2),Datastore!$G:$G)*$V18+SUMIF(Datastore!$A:$A,$Q18&$R18&"|"&$W18&"|"&K$14&"|"&"FY"&RIGHT(K$13,2),Datastore!$G:$G)*$X18+SUMIF(Datastore!$A:$A,$Q18&$R18&"|"&$Y18&"|"&K$14&"|"&"FY"&RIGHT(K$13,2),Datastore!$G:$G)*$Z18+SUMIF(Datastore!$A:$A,$Q18&$R18&"|"&$AA18&"|"&K$14&"|"&"FY"&RIGHT(K$13,2),Datastore!$G:$G)*$AB18)/1000 -> -5850.8164 | L18: =(SUMIF(Datastore!$A:$A,$Q18&$R18&"|"&$S18&"|"&L$14&"|"&"FY"&RIGHT(L$13,2),Datastore!$G:$G)*$T18+SUMIF(Datastore!$A:$A,$Q18&$R18&"|"&$U18&"|"&L$14&"|"&"FY"&RIGHT(L$13,2),Datastore!$G:$G)*$V18+SUMIF(Datastore!$A:$A,$Q18&$R18&"|"&$W18&"|"&L$14&"|"&"FY"&RIGHT(L$13,2),Datastore!$G:$G)*$X18+SUMIF(Datastore!$A:$A,$Q18&$R18&"|"&$Y18&"|"&L$14&"|"&"FY"&RIGHT(L$13,2),Datastore!$G:$G)*$Z18+SUMIF(Datastore!$A:$A,$Q18&$R18&"|"&$AA18&"|"&L$14&"|"&"FY"&RIGHT(L$13,2),Datastore!$G:$G)*$AB18)/1000 -> -5997.087 | N18: Non flood loss on disposal | Q18: ?? | R18: ? | S18: ELOD | T18: -1 | U18: x | V18: 0 | W18: x | X18: 0 | Y18: x | Z18: 0 | AA18: x | AB18: 0
C19: Net profit / (loss) from sale of unregulated assets | F19: =(SUMIF(Datastore!$A:$A,$Q19&$R19&"|"&$S19&"|"&F$14&"|"&"FY"&RIGHT(F$13,2),Datastore!$G:$G)*$T19+SUMIF(Datastore!$A:$A,$Q19&$R19&"|"&$U19&"|"&F$14&"|"&"FY"&RIGHT(F$13,2),Datastore!$G:$G)*$V19+SUMIF(Datastore!$A:$A,$Q19&$R19&"|"&$W19&"|"&F$14&"|"&"FY"&RIGHT(F$13,2),Datastore!$G:$G)*$X19+SUMIF(Datastore!$A:$A,$Q19&$R19&"|"&$Y19&"|"&F$14&"|"&"FY"&RIGHT(F$13,2),Datastore!$G:$G)*$Z19+SUMIF(Datastore!$A:$A,$Q19&$R19&"|"&$AA19&"|"&F$14&"|"&"FY"&RIGHT(F$13,2),Datastore!$G:$G)*$AB19)/1000 -> 0 | G19: =(SUMIF(Datastore!$A:$A,$Q19&$R19&"|"&$S19&"|"&G$14&"|"&"FY"&RIGHT(G$13,2),Datastore!$G:$G)*$T19+SUMIF(Datastore!$A:$A,$Q19&$R19&"|"&$U19&"|"&G$14&"|"&"FY"&RIGHT(G$13,2),Datastore!$G:$G)*$V19+SUMIF(Datastore!$A:$A,$Q19&$R19&"|"&$W19&"|"&G$14&"|"&"FY"&RIGHT(G$13,2),Datastore!$G:$G)*$X19+SUMIF(Datastore!$A:$A,$Q19&$R19&"|"&$Y19&"|"&G$14&"|"&"FY"&RIGHT(G$13,2),Datastore!$G:$G)*$Z19+SUMIF(Datastore!$A:$A,$Q19&$R19&"|"&$AA19&"|"&G$14&"|"&"FY"&RIGHT(G$13,2),Datastore!$G:$G)*$AB19)/1000 -> 0 | H19: =(SUMIF(Datastore!$A:$A,$Q19&$R19&"|"&$S19&"|"&H$14&"|"&"FY"&RIGHT(H$13,2),Datastore!$G:$G)*$T19+SUMIF(Datastore!$A:$A,$Q19&$R19&"|"&$U19&"|"&H$14&"|"&"FY"&RIGHT(H$13,2),Datastore!$G:$G)*$V19+SUMIF(Datastore!$A:$A,$Q19&$R19&"|"&$W19&"|"&H$14&"|"&"FY"&RIGHT(H$13,2),Datastore!$G:$G)*$X19+SUMIF(Datastore!$A:$A,$Q19&$R19&"|"&$Y19&"|"&H$14&"|"&"FY"&RIGHT(H$13,2),Datastore!$G:$G)*$Z19+SUMIF(Datastore!$A:$A,$Q19&$R19&"|"&$AA19&"|"&H$14&"|"&"FY"&RIGHT(H$13,2),Datastore!$G:$G)*$AB19)/1000 -> 0 | I19: =(SUMIF(Datastore!$A:$A,$Q19&$R19&"|"&$S19&"|"&I$14&"|"&"FY"&RIGHT(I$13,2),Datastore!$G:$G)*$T19+SUMIF(Datastore!$A:$A,$Q19&$R19&"|"&$U19&"|"&I$14&"|"&"FY"&RIGHT(I$13,2),Datastore!$G:$G)*$V19+SUMIF(Datastore!$A:$A,$Q19&$R19&"|"&$W19&"|"&I$14&"|"&"FY"&RIGHT(I$13,2),Datastore!$G:$G)*$X19+SUMIF(Datastore!$A:$A,$Q19&$R19&"|"&$Y19&"|"&I$14&"|"&"FY"&RIGHT(I$13,2),Datastore!$G:$G)*$Z19+SUMIF(Datastore!$A:$A,$Q19&$R19&"|"&$AA19&"|"&I$14&"|"&"FY"&RIGHT(I$13,2),Datastore!$G:$G)*$AB19)/1000 -> 0 | J19: =(SUMIF(Datastore!$A:$A,$Q19&$R19&"|"&$S19&"|"&J$14&"|"&"FY"&RIGHT(J$13,2),Datastore!$G:$G)*$T19+SUMIF(Datastore!$A:$A,$Q19&$R19&"|"&$U19&"|"&J$14&"|"&"FY"&RIGHT(J$13,2),Datastore!$G:$G)*$V19+SUMIF(Datastore!$A:$A,$Q19&$R19&"|"&$W19&"|"&J$14&"|"&"FY"&RIGHT(J$13,2),Datastore!$G:$G)*$X19+SUMIF(Datastore!$A:$A,$Q19&$R19&"|"&$Y19&"|"&J$14&"|"&"FY"&RIGHT(J$13,2),Datastore!$G:$G)*$Z19+SUMIF(Datastore!$A:$A,$Q19&$R19&"|"&$AA19&"|"&J$14&"|"&"FY"&RIGHT(J$13,2),Datastore!$G:$G)*$AB19)/1000 -> 0 | K19: =(SUMIF(Datastore!$A:$A,$Q19&$R19&"|"&$S19&"|"&K$14&"|"&"FY"&RIGHT(K$13,2),Datastore!$G:$G)*$T19+SUMIF(Datastore!$A:$A,$Q19&$R19&"|"&$U19&"|"&K$14&"|"&"FY"&RIGHT(K$13,2),Datastore!$G:$G)*$V19+SUMIF(Datastore!$A:$A,$Q19&$R19&"|"&$W19&"|"&K$14&"|"&"FY"&RIGHT(K$13,2),Datastore!$G:$G)*$X19+SUMIF(Datastore!$A:$A,$Q19&$R19&"|"&$Y19&"|"&K$14&"|"&"FY"&RIGHT(K$13,2),Datastore!$G:$G)*$Z19+SUMIF(Datastore!$A:$A,$Q19&$R19&"|"&$AA19&"|"&K$14&"|"&"FY"&RIGHT(K$13,2),Datastore!$G:$G)*$AB19)/1000 -> 0 | L19: =(SUMIF(Datastore!$A:$A,$Q19&$R19&"|"&$S19&"|"&L$14&"|"&"FY"&RIGHT(L$13,2),Datastore!$G:$G)*$T19+SUMIF(Datastore!$A:$A,$Q19&$R19&"|"&$U19&"|"&L$14&"|"&"FY"&RIGHT(L$13,2),Datastore!$G:$G)*$V19+SUMIF(Datastore!$A:$A,$Q19&$R19&"|"&$W19&"|"&L$14&"|"&"FY"&RIGHT(L$13,2),Datastore!$G:$G)*$X19+SUMIF(Datastore!$A:$A,$Q19&$R19&"|"&$Y19&"|"&L$14&"|"&"FY"&RIGHT(L$13,2),Datastore!$G:$G)*$Z19+SUMIF(Datastore!$A:$A,$Q19&$R19&"|"&$AA19&"|"&L$14&"|"&"FY"&RIGHT(L$13,2),Datastore!$G:$G)*$AB19)/1000 -> 0 | Q19: ?? | R19: ? | S19: x | T19: 0 | U19: x | V19: 0 | W19: x | X19: 0 | Y19: x | Z19: 0 | AA19: x | AB19: 0
C20: Contributions | E20: $'000 | F20: =(SUMIF(Datastore!$A:$A,$Q20&$R20&"|"&$S20&"|"&F$14&"|"&"FY"&RIGHT(F$13,2),Datastore!$G:$G)*$T20+SUMIF(Datastore!$A:$A,$Q20&$R20&"|"&$U20&"|"&F$14&"|"&"FY"&RIGHT(F$13,2),Datastore!$G:$G)*$V20+SUMIF(Datastore!$A:$A,$Q20&$R20&"|"&$W20&"|"&F$14&"|"&"FY"&RIGHT(F$13,2),Datastore!$G:$G)*$X20+SUMIF(Datastore!$A:$A,$Q20&$R20&"|"&$Y20&"|"&F$14&"|"&"FY"&RIGHT(F$13,2),Datastore!$G:$G)*$Z20+SUMIF(Datastore!$A:$A,$Q20&$R20&"|"&$AA20&"|"&F$14&"|"&"FY"&RIGHT(F$13,2),Datastore!$G:$G)*$AB20)/1000 -> 156359.9257 | G20: =(SUMIF(Datastore!$A:$A,$Q20&$R20&"|"&$S20&"|"&G$14&"|"&"FY"&RIGHT(G$13,2),Datastore!$G:$G)*$T20+SUMIF(Datastore!$A:$A,$Q20&$R20&"|"&$U20&"|"&G$14&"|"&"FY"&RIGHT(G$13,2),Datastore!$G:$G)*$V20+SUMIF(Datastore!$A:$A,$Q20&$R20&"|"&$W20&"|"&G$14&"|"&"FY"&RIGHT(G$13,2),Datastore!$G:$G)*$X20+SUMIF(Datastore!$A:$A,$Q20&$R20&"|"&$Y20&"|"&G$14&"|"&"FY"&RIGHT(G$13,2),Datastore!$G:$G)*$Z20+SUMIF(Datastore!$A:$A,$Q20&$R20&"|"&$AA20&"|"&G$14&"|"&"FY"&RIGHT(G$13,2),Datastore!$G:$G)*$AB20)/1000 -> 187134.2084 | H20: =(SUMIF(Datastore!$A:$A,$Q20&$R20&"|"&$S20&"|"&H$14&"|"&"FY"&RIGHT(H$13,2),Datastore!$G:$G)*$T20+SUMIF(Datastore!$A:$A,$Q20&$R20&"|"&$U20&"|"&H$14&"|"&"FY"&RIGHT(H$13,2),Datastore!$G:$G)*$V20+SUMIF(Datastore!$A:$A,$Q20&$R20&"|"&$W20&"|"&H$14&"|"&"FY"&RIGHT(H$13,2),Datastore!$G:$G)*$X20+SUMIF(Datastore!$A:$A,$Q20&$R20&"|"&$Y20&"|"&H$14&"|"&"FY"&RIGHT(H$13,2),Datastore!$G:$G)*$Z20+SUMIF(Datastore!$A:$A,$Q20&$R20&"|"&$AA20&"|"&H$14&"|"&"FY"&RIGHT(H$13,2),Datastore!$G:$G)*$AB20)/1000 -> 142531.2591 | I20: =(SUMIF(Datastore!$A:$A,$Q20&$R20&"|"&$S20&"|"&I$14&"|"&"FY"&RIGHT(I$13,2),Datastore!$G:$G)*$T20+SUMIF(Datastore!$A:$A,$Q20&$R20&"|"&$U20&"|"&I$14&"|"&"FY"&RIGHT(I$13,2),Datastore!$G:$G)*$V20+SUMIF(Datastore!$A:$A,$Q20&$R20&"|"&$W20&"|"&I$14&"|"&"FY"&RIGHT(I$13,2),Datastore!$G:$G)*$X20+SUMIF(Datastore!$A:$A,$Q20&$R20&"|"&$Y20&"|"&I$14&"|"&"FY"&RIGHT(I$13,2),Datastore!$G:$G)*$Z20+SUMIF(Datastore!$A:$A,$Q20&$R20&"|"&$AA20&"|"&I$14&"|"&"FY"&RIGHT(I$13,2),Datastore!$G:$G)*$AB20)/1000 -> 125686.6415 | J20: =(SUMIF(Datastore!$A:$A,$Q20&$R20&"|"&$S20&"|"&J$14&"|"&"FY"&RIGHT(J$13,2),Datastore!$G:$G)*$T20+SUMIF(Datastore!$A:$A,$Q20&$R20&"|"&$U20&"|"&J$14&"|"&"FY"&RIGHT(J$13,2),Datastore!$G:$G)*$V20+SUMIF(Datastore!$A:$A,$Q20&$R20&"|"&$W20&"|"&J$14&"|"&"FY"&RIGHT(J$13,2),Datastore!$G:$G)*$X20+SUMIF(Datastore!$A:$A,$Q20&$R20&"|"&$Y20&"|"&J$14&"|"&"FY"&RIGHT(J$13,2),Datastore!$G:$G)*$Z20+SUMIF(Datastore!$A:$A,$Q20&$R20&"|"&$AA20&"|"&J$14&"|"&"FY"&RIGHT(J$13,2),Datastore!$G:$G)*$AB20)/1000 -> 117689.0609 | K20: =(SUMIF(Datastore!$A:$A,$Q20&$R20&"|"&$S20&"|"&K$14&"|"&"FY"&RIGHT(K$13,2),Datastore!$G:$G)*$T20+SUMIF(Datastore!$A:$A,$Q20&$R20&"|"&$U20&"|"&K$14&"|"&"FY"&RIGHT(K$13,2),Datastore!$G:$G)*$V20+SUMIF(Datastore!$A:$A,$Q20&$R20&"|"&$W20&"|"&K$14&"|"&"FY"&RIGHT(K$13,2),Datastore!$G:$G)*$X20+SUMIF(Datastore!$A:$A,$Q20&$R20&"|"&$Y20&"|"&K$14&"|"&"FY"&RIGHT(K$13,2),Datastore!$G:$G)*$Z20+SUMIF(Datastore!$A:$A,$Q20&$R20&"|"&$AA20&"|"&K$14&"|"&"FY"&RIGHT(K$13,2),Datastore!$G:$G)*$AB20)/1000 -> 143380.024 | L20: =(SUMIF(Datastore!$A:$A,$Q20&$R20&"|"&$S20&"|"&L$14&"|"&"FY"&RIGHT(L$13,2),Datastore!$G:$G)*$T20+SUMIF(Datastore!$A:$A,$Q20&$R20&"|"&$U20&"|"&L$14&"|"&"FY"&RIGHT(L$13,2),Datastore!$G:$G)*$V20+SUMIF(Datastore!$A:$A,$Q20&$R20&"|"&$W20&"|"&L$14&"|"&"FY"&RIGHT(L$13,2),Datastore!$G:$G)*$X20+SUMIF(Datastore!$A:$A,$Q20&$R20&"|"&$Y20&"|"&L$14&"|"&"FY"&RIGHT(L$13,2),Datastore!$G:$G)*$Z20+SUMIF(Datastore!$A:$A,$Q20&$R20&"|"&$AA20&"|"&L$14&"|"&"FY"&RIGHT(L$13,2),Datastore!$G:$G)*$AB20)/1000 -> 151977.5567 | Q20: ?? | R20: ? | S20: RC?? | T20: -1 | U20: x | V20: 0 | W20: x | X20: 0 | Y20: x | Z20: 0 | AA20: x | AB20: 0
C21: Non-recurrent | E21: $'000 | F21: =(SUMIF(Datastore!$A:$A,$Q21&$R21&"|"&$S21&"|"&F$14&"|"&"FY"&RIGHT(F$13,2),Datastore!$G:$G)*$T21+SUMIF(Datastore!$A:$A,$Q21&$R21&"|"&$U21&"|"&F$14&"|"&"FY"&RIGHT(F$13,2),Datastore!$G:$G)*$V21+SUMIF(Datastore!$A:$A,$Q21&$R21&"|"&$W21&"|"&F$14&"|"&"FY"&RIGHT(F$13,2),Datastore!$G:$G)*$X21+SUMIF(Datastore!$A:$A,$Q21&$R21&"|"&$Y21&"|"&F$14&"|"&"FY"&RIGHT(F$13,2),Datastore!$G:$G)*$Z21+SUMIF(Datastore!$A:$A,$Q21&$R21&"|"&$AA21&"|"&F$14&"|"&"FY"&RIGHT(F$13,2),Datastore!$G:$G)*$AB21)/1000 -> 0 | G21: =(SUMIF(Datastore!$A:$A,$Q21&$R21&"|"&$S21&"|"&G$14&"|"&"FY"&RIGHT(G$13,2),Datastore!$G:$G)*$T21+SUMIF(Datastore!$A:$A,$Q21&$R21&"|"&$U21&"|"&G$14&"|"&"FY"&RIGHT(G$13,2),Datastore!$G:$G)*$V21+SUMIF(Datastore!$A:$A,$Q21&$R21&"|"&$W21&"|"&G$14&"|"&"FY"&RIGHT(G$13,2),Datastore!$G:$G)*$X21+SUMIF(Datastore!$A:$A,$Q21&$R21&"|"&$Y21&"|"&G$14&"|"&"FY"&RIGHT(G$13,2),Datastore!$G:$G)*$Z21+SUMIF(Datastore!$A:$A,$Q21&$R21&"|"&$AA21&"|"&G$14&"|"&"FY"&RIGHT(G$13,2),Datastore!$G:$G)*$AB21)/1000 -> 0 | H21: =-24669+(SUMIF(Datastore!$A:$A,$Q21&$R21&"|"&$S21&"|"&H$14&"|"&"FY"&RIGHT(H$13,2),Datastore!$G:$G)*$T21+SUMIF(Datastore!$A:$A,$Q21&$R21&"|"&$U21&"|"&H$14&"|"&"FY"&RIGHT(H$13,2),Datastore!$G:$G)*$V21+SUMIF(Datastore!$A:$A,$Q21&$R21&"|"&$W21&"|"&H$14&"|"&"FY"&RIGHT(H$13,2),Datastore!$G:$G)*$X21+SUMIF(Datastore!$A:$A,$Q21&$R21&"|"&$Y21&"|"&H$14&"|"&"FY"&RIGHT(H$13,2),Datastore!$G:$G)*$Z21+SUMIF(Datastore!$A:$A,$Q21&$R21&"|"&$AA21&"|"&H$14&"|"&"FY"&RIGHT(H$13,2),Datastore!$G:$G)*$AB21)/1000 -> -12973.49276 | I21: =(SUMIF(Datastore!$A:$A,$Q21&$R21&"|"&$S21&"|"&I$14&"|"&"FY"&RIGHT(I$13,2),Datastore!$G:$G)*$T21+SUMIF(Datastore!$A:$A,$Q21&$R21&"|"&$U21&"|"&I$14&"|"&"FY"&RIGHT(I$13,2),Datastore!$G:$G)*$V21+SUMIF(Datastore!$A:$A,$Q21&$R21&"|"&$W21&"|"&I$14&"|"&"FY"&RIGHT(I$13,2),Datastore!$G:$G)*$X21+SUMIF(Datastore!$A:$A,$Q21&$R21&"|"&$Y21&"|"&I$14&"|"&"FY"&RIGHT(I$13,2),Datastore!$G:$G)*$Z21+SUMIF(Datastore!$A:$A,$Q21&$R21&"|"&$AA21&"|"&I$14&"|"&"FY"&RIGHT(I$13,2),Datastore!$G:$G)*$AB21)/1000 -> -511.7662 | J21: =(SUMIF(Datastore!$A:$A,$Q21&$R21&"|"&$S21&"|"&J$14&"|"&"FY"&RIGHT(J$13,2),Datastore!$G:$G)*$T21+SUMIF(Datastore!$A:$A,$Q21&$R21&"|"&$U21&"|"&J$14&"|"&"FY"&RIGHT(J$13,2),Datastore!$G:$G)*$V21+SUMIF(Datastore!$A:$A,$Q21&$R21&"|"&$W21&"|"&J$14&"|"&"FY"&RIGHT(J$13,2),Datastore!$G:$G)*$X21+SUMIF(Datastore!$A:$A,$Q21&$R21&"|"&$Y21&"|"&J$14&"|"&"FY"&RIGHT(J$13,2),Datastore!$G:$G)*$Z21+SUMIF(Datastore!$A:$A,$Q21&$R21&"|"&$AA21&"|"&J$14&"|"&"FY"&RIGHT(J$13,2),Datastore!$G:$G)*$AB21)/1000 -> 7275.091 | K21: =(SUMIF(Datastore!$A:$A,$Q21&$R21&"|"&$S21&"|"&K$14&"|"&"FY"&RIGHT(K$13,2),Datastore!$G:$G)*$T21+SUMIF(Datastore!$A:$A,$Q21&$R21&"|"&$U21&"|"&K$14&"|"&"FY"&RIGHT(K$13,2),Datastore!$G:$G)*$V21+SUMIF(Datastore!$A:$A,$Q21&$R21&"|"&$W21&"|"&K$14&"|"&"FY"&RIGHT(K$13,2),Datastore!$G:$G)*$X21+SUMIF(Datastore!$A:$A,$Q21&$R21&"|"&$Y21&"|"&K$14&"|"&"FY"&RIGHT(K$13,2),Datastore!$G:$G)*$Z21+SUMIF(Datastore!$A:$A,$Q21&$R21&"|"&$AA21&"|"&K$14&"|"&"FY"&RIGHT(K$13,2),Datastore!$G:$G)*$AB21)/1000 -> 0 | L21: =(SUMIF(Datastore!$A:$A,$Q21&$R21&"|"&$S21&"|"&L$14&"|"&"FY"&RIGHT(L$13,2),Datastore!$G:$G)*$T21+SUMIF(Datastore!$A:$A,$Q21&$R21&"|"&$U21&"|"&L$14&"|"&"FY"&RIGHT(L$13,2),Datastore!$G:$G)*$V21+SUMIF(Datastore!$A:$A,$Q21&$R21&"|"&$W21&"|"&L$14&"|"&"FY"&RIGHT(L$13,2),Datastore!$G:$G)*$X21+SUMIF(Datastore!$A:$A,$Q21&$R21&"|"&$Y21&"|"&L$14&"|"&"FY"&RIGHT(L$13,2),Datastore!$G:$G)*$Z21+SUMIF(Datastore!$A:$A,$Q21&$R21&"|"&$AA21&"|"&L$14&"|"&"FY"&RIGHT(L$13,2),Datastore!$G:$G)*$AB21)/1000 -> 0 | N21: Flood loss on disposal & Insurance Revenue | Q21: ?? | R21: ? | S21: RNOT | T21: -1 | U21: x | V21: 0 | W21: x | X21: 0 | Y21: x | Z21: 0 | AA21: x | AB21: 0
C22: Other 2 - [specify] | E22: $'000 | F22: =(SUMIF(Datastore!$A:$A,$Q22&$R22&"|"&$S22&"|"&F$14&"|"&"FY"&RIGHT(F$13,2),Datastore!$G:$G)*$T22+SUMIF(Datastore!$A:$A,$Q22&$R22&"|"&$U22&"|"&F$14&"|"&"FY"&RIGHT(F$13,2),Datastore!$G:$G)*$V22+SUMIF(Datastore!$A:$A,$Q22&$R22&"|"&$W22&"|"&F$14&"|"&"FY"&RIGHT(F$13,2),Datastore!$G:$G)*$X22+SUMIF(Datastore!$A:$A,$Q22&$R22&"|"&$Y22&"|"&F$14&"|"&"FY"&RIGHT(F$13,2),Datastore!$G:$G)*$Z22+SUMIF(Datastore!$A:$A,$Q22&$R22&"|"&$AA22&"|"&F$14&"|"&"FY"&RIGHT(F$13,2),Datastore!$G:$G)*$AB22)/1000 -> 0 | G22: =(SUMIF(Datastore!$A:$A,$Q22&$R22&"|"&$S22&"|"&G$14&"|"&"FY"&RIGHT(G$13,2),Datastore!$G:$G)*$T22+SUMIF(Datastore!$A:$A,$Q22&$R22&"|"&$U22&"|"&G$14&"|"&"FY"&RIGHT(G$13,2),Datastore!$G:$G)*$V22+SUMIF(Datastore!$A:$A,$Q22&$R22&"|"&$W22&"|"&G$14&"|"&"FY"&RIGHT(G$13,2),Datastore!$G:$G)*$X22+SUMIF(Datastore!$A:$A,$Q22&$R22&"|"&$Y22&"|"&G$14&"|"&"FY"&RIGHT(G$13,2),Datastore!$G:$G)*$Z22+SUMIF(Datastore!$A:$A,$Q22&$R22&"|"&$AA22&"|"&G$14&"|"&"FY"&RIGHT(G$13,2),Datastore!$G:$G)*$AB22)/1000 -> 0 | H22: =(SUMIF(Datastore!$A:$A,$Q22&$R22&"|"&$S22&"|"&H$14&"|"&"FY"&RIGHT(H$13,2),Datastore!$G:$G)*$T22+SUMIF(Datastore!$A:$A,$Q22&$R22&"|"&$U22&"|"&H$14&"|"&"FY"&RIGHT(H$13,2),Datastore!$G:$G)*$V22+SUMIF(Datastore!$A:$A,$Q22&$R22&"|"&$W22&"|"&H$14&"|"&"FY"&RIGHT(H$13,2),Datastore!$G:$G)*$X22+SUMIF(Datastore!$A:$A,$Q22&$R22&"|"&$Y22&"|"&H$14&"|"&"FY"&RIGHT(H$13,2),Datastore!$G:$G)*$Z22+SUMIF(Datastore!$A:$A,$Q22&$R22&"|"&$AA22&"|"&H$14&"|"&"FY"&RIGHT(H$13,2),Datastore!$G:$G)*$AB22)/1000 -> 0 | I22: =(SUMIF(Datastore!$A:$A,$Q22&$R22&"|"&$S22&"|"&I$14&"|"&"FY"&RIGHT(I$13,2),Datastore!$G:$G)*$T22+SUMIF(Datastore!$A:$A,$Q22&$R22&"|"&$U22&"|"&I$14&"|"&"FY"&RIGHT(I$13,2),Datastore!$G:$G)*$V22+SUMIF(Datastore!$A:$A,$Q22&$R22&"|"&$W22&"|"&I$14&"|"&"FY"&RIGHT(I$13,2),Datastore!$G:$G)*$X22+SUMIF(Datastore!$A:$A,$Q22&$R22&"|"&$Y22&"|"&I$14&"|"&"FY"&RIGHT(I$13,2),Datastore!$G:$G)*$Z22+SUMIF(Datastore!$A:$A,$Q22&$R22&"|"&$AA22&"|"&I$14&"|"&"FY"&RIGHT(I$13,2),Datastore!$G:$G)*$AB22)/1000 -> 0 | J22: =(SUMIF(Datastore!$A:$A,$Q22&$R22&"|"&$S22&"|"&J$14&"|"&"FY"&RIGHT(J$13,2),Datastore!$G:$G)*$T22+SUMIF(Datastore!$A:$A,$Q22&$R22&"|"&$U22&"|"&J$14&"|"&"FY"&RIGHT(J$13,2),Datastore!$G:$G)*$V22+SUMIF(Datastore!$A:$A,$Q22&$R22&"|"&$W22&"|"&J$14&"|"&"FY"&RIGHT(J$13,2),Datastore!$G:$G)*$X22+SUMIF(Datastore!$A:$A,$Q22&$R22&"|"&$Y22&"|"&J$14&"|"&"FY"&RIGHT(J$13,2),Datastore!$G:$G)*$Z22+SUMIF(Datastore!$A:$A,$Q22&$R22&"|"&$AA22&"|"&J$14&"|"&"FY"&RIGHT(J$13,2),Datastore!$G:$G)*$AB22)/1000 -> 0 | K22: =(SUMIF(Datastore!$A:$A,$Q22&$R22&"|"&$S22&"|"&K$14&"|"&"FY"&RIGHT(K$13,2),Datastore!$G:$G)*$T22+SUMIF(Datastore!$A:$A,$Q22&$R22&"|"&$U22&"|"&K$14&"|"&"FY"&RIGHT(K$13,2),Datastore!$G:$G)*$V22+SUMIF(Datastore!$A:$A,$Q22&$R22&"|"&$W22&"|"&K$14&"|"&"FY"&RIGHT(K$13,2),Datastore!$G:$G)*$X22+SUMIF(Datastore!$A:$A,$Q22&$R22&"|"&$Y22&"|"&K$14&"|"&"FY"&RIGHT(K$13,2),Datastore!$G:$G)*$Z22+SUMIF(Datastore!$A:$A,$Q22&$R22&"|"&$AA22&"|"&K$14&"|"&"FY"&RIGHT(K$13,2),Datastore!$G:$G)*$AB22)/1000 -> 0 | L22: =(SUMIF(Datastore!$A:$A,$Q22&$R22&"|"&$S22&"|"&L$14&"|"&"FY"&RIGHT(L$13,2),Datastore!$G:$G)*$T22+SUMIF(Datastore!$A:$A,$Q22&$R22&"|"&$U22&"|"&L$14&"|"&"FY"&RIGHT(L$13,2),Datastore!$G:$G)*$V22+SUMIF(Datastore!$A:$A,$Q22&$R22&"|"&$W22&"|"&L$14&"|"&"FY"&RIGHT(L$13,2),Datastore!$G:$G)*$X22+SUMIF(Datastore!$A:$A,$Q22&$R22&"|"&$Y22&"|"&L$14&"|"&"FY"&RIGHT(L$13,2),Datastore!$G:$G)*$Z22+SUMIF(Datastore!$A:$A,$Q22&$R22&"|"&$AA22&"|"&L$14&"|"&"FY"&RIGHT(L$13,2),Datastore!$G:$G)*$AB22)/1000 -> 0 | Q22: ?? | R22: ? | S22: x | T22: 0 | U22: x | V22: 0 | W22: x | X22: 0 | Y22: x | Z22: 0 | AA22: x | AB22: 0
C23: Total Revenue | E23: $'000 | F23: =SUM(F16:F22) -> 729852.1526 | G23: 830594.2403 | H23: 842700.6558 | I23: 901659.4195 | J23: 956183.8701 | K23: 1036244.957 | L23: =SUM(L16:L22) -> 1121490.83
C25: Expenses
C26: Operating expenditure | E26: $'000 | F26: =(SUMIF(Datastore!$A:$A,$Q26&$R26&"|"&$S26&"|"&F$14&"|"&"FY"&RIGHT(F$13,2),Datastore!$G:$G)*$T26+SUMIF(Datastore!$A:$A,$Q26&$R26&"|"&$U26&"|"&F$14&"|"&"FY"&RIGHT(F$13,2),Datastore!$G:$G)*$V26+SUMIF(Datastore!$A:$A,$Q26&$R26&"|"&$W26&"|"&F$14&"|"&"FY"&RIGHT(F$13,2),Datastore!$G:$G)*$X26+SUMIF(Datastore!$A:$A,$Q26&$R26&"|"&$Y26&"|"&F$14&"|"&"FY"&RIGHT(F$13,2),Datastore!$G:$G)*$Z26+SUMIF(Datastore!$A:$A,$Q26&$R26&"|"&$AA26&"|"&F$14&"|"&"FY"&RIGHT(F$13,2),Datastore!$G:$G)*$AB26)/1000 -> 283627.0032 | G26: =(SUMIF(Datastore!$A:$A,$Q26&$R26&"|"&$S26&"|"&G$14&"|"&"FY"&RIGHT(G$13,2),Datastore!$G:$G)*$T26+SUMIF(Datastore!$A:$A,$Q26&$R26&"|"&$U26&"|"&G$14&"|"&"FY"&RIGHT(G$13,2),Datastore!$G:$G)*$V26+SUMIF(Datastore!$A:$A,$Q26&$R26&"|"&$W26&"|"&G$14&"|"&"FY"&RIGHT(G$13,2),Datastore!$G:$G)*$X26+SUMIF(Datastore!$A:$A,$Q26&$R26&"|"&$Y26&"|"&G$14&"|"&"FY"&RIGHT(G$13,2),Datastore!$G:$G)*$Z26+SUMIF(Datastore!$A:$A,$Q26&$R26&"|"&$AA26&"|"&G$14&"|"&"FY"&RIGHT(G$13,2),Datastore!$G:$G)*$AB26)/1000 -> 359889.494 | H26: =(SUMIF(Datastore!$A:$A,$Q26&$R26&"|"&$S26&"|"&H$14&"|"&"FY"&RIGHT(H$13,2),Datastore!$G:$G)*$T26+SUMIF(Datastore!$A:$A,$Q26&$R26&"|"&$U26&"|"&H$14&"|"&"FY"&RIGHT(H$13,2),Datastore!$G:$G)*$V26+SUMIF(Datastore!$A:$A,$Q26&$R26&"|"&$W26&"|"&H$14&"|"&"FY"&RIGHT(H$13,2),Datastore!$G:$G)*$X26+SUMIF(Datastore!$A:$A,$Q26&$R26&"|"&$Y26&"|"&H$14&"|"&"FY"&RIGHT(H$13,2),Datastore!$G:$G)*$Z26+SUMIF(Datastore!$A:$A,$Q26&$R26&"|"&$AA26&"|"&H$14&"|"&"FY"&RIGHT(H$13,2),Datastore!$G:$G)*$AB26)/1000 -> 391228.5531 | I26: =(SUMIF(Datastore!$A:$A,$Q26&$R26&"|"&$S26&"|"&I$14&"|"&"FY"&RIGHT(I$13,2),Datastore!$G:$G)*$T26+SUMIF(Datastore!$A:$A,$Q26&$R26&"|"&$U26&"|"&I$14&"|"&"FY"&RIGHT(I$13,2),Datastore!$G:$G)*$V26+SUMIF(Datastore!$A:$A,$Q26&$R26&"|"&$W26&"|"&I$14&"|"&"FY"&RIGHT(I$13,2),Datastore!$G:$G)*$X26+SUMIF(Datastore!$A:$A,$Q26&$R26&"|"&$Y26&"|"&I$14&"|"&"FY"&RIGHT(I$13,2),Datastore!$G:$G)*$Z26+SUMIF(Datastore!$A:$A,$Q26&$R26&"|"&$AA26&"|"&I$14&"|"&"FY"&RIGHT(I$13,2),Datastore!$G:$G)*$AB26)/1000 -> 440871.377 | J26: =(SUMIF(Datastore!$A:$A,$Q26&$R26&"|"&$S26&"|"&J$14&"|"&"FY"&RIGHT(J$13,2),Datastore!$G:$G)*$T26+SUMIF(Datastore!$A:$A,$Q26&$R26&"|"&$U26&"|"&J$14&"|"&"FY"&RIGHT(J$13,2),Datastore!$G:$G)*$V26+SUMIF(Datastore!$A:$A,$Q26&$R26&"|"&$W26&"|"&J$14&"|"&"FY"&RIGHT(J$13,2),Datastore!$G:$G)*$X26+SUMIF(Datastore!$A:$A,$Q26&$R26&"|"&$Y26&"|"&J$14&"|"&"FY"&RIGHT(J$13,2),Datastore!$G:$G)*$Z26+SUMIF(Datastore!$A:$A,$Q26&$R26&"|"&$AA26&"|"&J$14&"|"&"FY"&RIGHT(J$13,2),Datastore!$G:$G)*$AB26)/1000 -> 493172.3638 | K26: =(SUMIF(Datastore!$A:$A,$Q26&$R26&"|"&$S26&"|"&K$14&"|"&"FY"&RIGHT(K$13,2),Datastore!$G:$G)*$T26+SUMIF(Datastore!$A:$A,$Q26&$R26&"|"&$U26&"|"&K$14&"|"&"FY"&RIGHT(K$13,2),Datastore!$G:$G)*$V26+SUMIF(Datastore!$A:$A,$Q26&$R26&"|"&$W26&"|"&K$14&"|"&"FY"&RIGHT(K$13,2),Datastore!$G:$G)*$X26+SUMIF(Datastore!$A:$A,$Q26&$R26&"|"&$Y26&"|"&K$14&"|"&"FY"&RIGHT(K$13,2),Datastore!$G:$G)*$Z26+SUMIF(Datastore!$A:$A,$Q26&$R26&"|"&$AA26&"|"&K$14&"|"&"FY"&RIGHT(K$13,2),Datastore!$G:$G)*$AB26)/1000 -> 570997.6349 | L26: =(SUMIF(Datastore!$A:$A,$Q26&$R26&"|"&$S26&"|"&L$14&"|"&"FY"&RIGHT(L$13,2),Datastore!$G:$G)*$T26+SUMIF(Datastore!$A:$A,$Q26&$R26&"|"&$U26&"|"&L$14&"|"&"FY"&RIGHT(L$13,2),Datastore!$G:$G)*$V26+SUMIF(Datastore!$A:$A,$Q26&$R26&"|"&$W26&"|"&L$14&"|"&"FY"&RIGHT(L$13,2),Datastore!$G:$G)*$X26+SUMIF(Datastore!$A:$A,$Q26&$R26&"|"&$Y26&"|"&L$14&"|"&"FY"&RIGHT(L$13,2),Datastore!$G:$G)*$Z26+SUMIF(Datastore!$A:$A,$Q26&$R26&"|"&$AA26&"|"&L$14&"|"&"FY"&RIGHT(L$13,2),Datastore!$G:$G)*$AB26)/1000 -> 623459.5829 | Q26: ?? | R26: ? | S26: EO?? | T26: 1 | U26: EZ?? | V26: 1 | W26: EF?? | X26: 1 | Y26: EFDD | Z26: -1 | AA26: EOSN | AB26: -1
C27: Bad debts | E27: $'000 | F27: =(SUMIF(Datastore!$A:$A,$Q27&$R27&"|"&$S27&"|"&F$14&"|"&"FY"&RIGHT(F$13,2),Datastore!$G:$G)*$T27+SUMIF(Datastore!$A:$A,$Q27&$R27&"|"&$U27&"|"&F$14&"|"&"FY"&RIGHT(F$13,2),Datastore!$G:$G)*$V27+SUMIF(Datastore!$A:$A,$Q27&$R27&"|"&$W27&"|"&F$14&"|"&"FY"&RIGHT(F$13,2),Datastore!$G:$G)*$X27+SUMIF(Datastore!$A:$A,$Q27&$R27&"|"&$Y27&"|"&F$14&"|"&"FY"&RIGHT(F$13,2),Datastore!$G:$G)*$Z27+SUMIF(Datastore!$A:$A,$Q27&$R27&"|"&$AA27&"|"&F$14&"|"&"FY"&RIGHT(F$13,2),Datastore!$G:$G)*$AB27)/1000 -> -387.48629 | G27: =(SUMIF(Datastore!$A:$A,$Q27&$R27&"|"&$S27&"|"&G$14&"|"&"FY"&RIGHT(G$13,2),Datastore!$G:$G)*$T27+SUMIF(Datastore!$A:$A,$Q27&$R27&"|"&$U27&"|"&G$14&"|"&"FY"&RIGHT(G$13,2),Datastore!$G:$G)*$V27+SUMIF(Datastore!$A:$A,$Q27&$R27&"|"&$W27&"|"&G$14&"|"&"FY"&RIGHT(G$13,2),Datastore!$G:$G)*$X27+SUMIF(Datastore!$A:$A,$Q27&$R27&"|"&$Y27&"|"&G$14&"|"&"FY"&RIGHT(G$13,2),Datastore!$G:$G)*$Z27+SUMIF(Datastore!$A:$A,$Q27&$R27&"|"&$AA27&"|"&G$14&"|"&"FY"&RIGHT(G$13,2),Datastore!$G:$G)*$AB27)/1000 -> -500.42571 | H27: =(SUMIF(Datastore!$A:$A,$Q27&$R27&"|"&$S27&"|"&H$14&"|"&"FY"&RIGHT(H$13,2),Datastore!$G:$G)*$T27+SUMIF(Datastore!$A:$A,$Q27&$R27&"|"&$U27&"|"&H$14&"|"&"FY"&RIGHT(H$13,2),Datastore!$G:$G)*$V27+SUMIF(Datastore!$A:$A,$Q27&$R27&"|"&$W27&"|"&H$14&"|"&"FY"&RIGHT(H$13,2),Datastore!$G:$G)*$X27+SUMIF(Datastore!$A:$A,$Q27&$R27&"|"&$Y27&"|"&H$14&"|"&"FY"&RIGHT(H$13,2),Datastore!$G:$G)*$Z27+SUMIF(Datastore!$A:$A,$Q27&$R27&"|"&$AA27&"|"&H$14&"|"&"FY"&RIGHT(H$13,2),Datastore!$G:$G)*$AB27)/1000 -> 3515.423 | I27: =(SUMIF(Datastore!$A:$A,$Q27&$R27&"|"&$S27&"|"&I$14&"|"&"FY"&RIGHT(I$13,2),Datastore!$G:$G)*$T27+SUMIF(Datastore!$A:$A,$Q27&$R27&"|"&$U27&"|"&I$14&"|"&"FY"&RIGHT(I$13,2),Datastore!$G:$G)*$V27+SUMIF(Datastore!$A:$A,$Q27&$R27&"|"&$W27&"|"&I$14&"|"&"FY"&RIGHT(I$13,2),Datastore!$G:$G)*$X27+SUMIF(Datastore!$A:$A,$Q27&$R27&"|"&$Y27&"|"&I$14&"|"&"FY"&RIGHT(I$13,2),Datastore!$G:$G)*$Z27+SUMIF(Datastore!$A:$A,$Q27&$R27&"|"&$AA27&"|"&I$14&"|"&"FY"&RIGHT(I$13,2),Datastore!$G:$G)*$AB27)/1000 -> 3815.948 | J27: =(SUMIF(Datastore!$A:$A,$Q27&$R27&"|"&$S27&"|"&J$14&"|"&"FY"&RIGHT(J$13,2),Datastore!$G:$G)*$T27+SUMIF(Datastore!$A:$A,$Q27&$R27&"|"&$U27&"|"&J$14&"|"&"FY"&RIGHT(J$13,2),Datastore!$G:$G)*$V27+SUMIF(Datastore!$A:$A,$Q27&$R27&"|"&$W27&"|"&J$14&"|"&"FY"&RIGHT(J$13,2),Datastore!$G:$G)*$X27+SUMIF(Datastore!$A:$A,$Q27&$R27&"|"&$Y27&"|"&J$14&"|"&"FY"&RIGHT(J$13,2),Datastore!$G:$G)*$Z27+SUMIF(Datastore!$A:$A,$Q27&$R27&"|"&$AA27&"|"&J$14&"|"&"FY"&RIGHT(J$13,2),Datastore!$G:$G)*$AB27)/1000 -> 2086.34128 | K27: =(SUMIF(Datastore!$A:$A,$Q27&$R27&"|"&$S27&"|"&K$14&"|"&"FY"&RIGHT(K$13,2),Datastore!$G:$G)*$T27+SUMIF(Datastore!$A:$A,$Q27&$R27&"|"&$U27&"|"&K$14&"|"&"FY"&RIGHT(K$13,2),Datastore!$G:$G)*$V27+SUMIF(Datastore!$A:$A,$Q27&$R27&"|"&$W27&"|"&K$14&"|"&"FY"&RIGHT(K$13,2),Datastore!$G:$G)*$X27+SUMIF(Datastore!$A:$A,$Q27&$R27&"|"&$Y27&"|"&K$14&"|"&"FY"&RIGHT(K$13,2),Datastore!$G:$G)*$Z27+SUMIF(Datastore!$A:$A,$Q27&$R27&"|"&$AA27&"|"&K$14&"|"&"FY"&RIGHT(K$13,2),Datastore!$G:$G)*$AB27)/1000 -> 2269.352832 | L27: =(SUMIF(Datastore!$A:$A,$Q27&$R27&"|"&$S27&"|"&L$14&"|"&"FY"&RIGHT(L$13,2),Datastore!$G:$G)*$T27+SUMIF(Datastore!$A:$A,$Q27&$R27&"|"&$U27&"|"&L$14&"|"&"FY"&RIGHT(L$13,2),Datastore!$G:$G)*$V27+SUMIF(Datastore!$A:$A,$Q27&$R27&"|"&$W27&"|"&L$14&"|"&"FY"&RIGHT(L$13,2),Datastore!$G:$G)*$X27+SUMIF(Datastore!$A:$A,$Q27&$R27&"|"&$Y27&"|"&L$14&"|"&"FY"&RIGHT(L$13,2),Datastore!$G:$G)*$Z27+SUMIF(Datastore!$A:$A,$Q27&$R27&"|"&$AA27&"|"&L$14&"|"&"FY"&RIGHT(L$13,2),Datastore!$G:$G)*$AB27)/1000 -> 2428.727647 | Q27: ?? | R27: ? | S27: EFDD | T27: 1 | U27: x | V27: 0 | W27: x | X27: 0 | Y27: x | Z27: 0 | AA27: x | AB27: 0
C28: Non-recurrent | E28: $'000 | F28: =(SUMIF(Datastore!$A:$A,$Q28&$R28&"|"&$S28&"|"&F$14&"|"&"FY"&RIGHT(F$13,2),Datastore!$G:$G)*$T28+SUMIF(Datastore!$A:$A,$Q28&$R28&"|"&$U28&"|"&F$14&"|"&"FY"&RIGHT(F$13,2),Datastore!$G:$G)*$V28+SUMIF(Datastore!$A:$A,$Q28&$R28&"|"&$W28&"|"&F$14&"|"&"FY"&RIGHT(F$13,2),Datastore!$G:$G)*$X28+SUMIF(Datastore!$A:$A,$Q28&$R28&"|"&$Y28&"|"&F$14&"|"&"FY"&RIGHT(F$13,2),Datastore!$G:$G)*$Z28+SUMIF(Datastore!$A:$A,$Q28&$R28&"|"&$AA28&"|"&F$14&"|"&"FY"&RIGHT(F$13,2),Datastore!$G:$G)*$AB28)/1000 -> 0 | G28: =(SUMIF(Datastore!$A:$A,$Q28&$R28&"|"&$S28&"|"&G$14&"|"&"FY"&RIGHT(G$13,2),Datastore!$G:$G)*$T28+SUMIF(Datastore!$A:$A,$Q28&$R28&"|"&$U28&"|"&G$14&"|"&"FY"&RIGHT(G$13,2),Datastore!$G:$G)*$V28+SUMIF(Datastore!$A:$A,$Q28&$R28&"|"&$W28&"|"&G$14&"|"&"FY"&RIGHT(G$13,2),Datastore!$G:$G)*$X28+SUMIF(Datastore!$A:$A,$Q28&$R28&"|"&$Y28&"|"&G$14&"|"&"FY"&RIGHT(G$13,2),Datastore!$G:$G)*$Z28+SUMIF(Datastore!$A:$A,$Q28&$R28&"|"&$AA28&"|"&G$14&"|"&"FY"&RIGHT(G$13,2),Datastore!$G:$G)*$AB28)/1000 -> 0 | H28: =(SUMIF(Datastore!$A:$A,$Q28&$R28&"|"&$S28&"|"&H$14&"|"&"FY"&RIGHT(H$13,2),Datastore!$G:$G)*$T28+SUMIF(Datastore!$A:$A,$Q28&$R28&"|"&$U28&"|"&H$14&"|"&"FY"&RIGHT(H$13,2),Datastore!$G:$G)*$V28+SUMIF(Datastore!$A:$A,$Q28&$R28&"|"&$W28&"|"&H$14&"|"&"FY"&RIGHT(H$13,2),Datastore!$G:$G)*$X28+SUMIF(Datastore!$A:$A,$Q28&$R28&"|"&$Y28&"|"&H$14&"|"&"FY"&RIGHT(H$13,2),Datastore!$G:$G)*$Z28+SUMIF(Datastore!$A:$A,$Q28&$R28&"|"&$AA28&"|"&H$14&"|"&"FY"&RIGHT(H$13,2),Datastore!$G:$G)*$AB28)/1000 -> 10773.65822 | I28: =(SUMIF(Datastore!$A:$A,$Q28&$R28&"|"&$S28&"|"&I$14&"|"&"FY"&RIGHT(I$13,2),Datastore!$G:$G)*$T28+SUMIF(Datastore!$A:$A,$Q28&$R28&"|"&$U28&"|"&I$14&"|"&"FY"&RIGHT(I$13,2),Datastore!$G:$G)*$V28+SUMIF(Datastore!$A:$A,$Q28&$R28&"|"&$W28&"|"&I$14&"|"&"FY"&RIGHT(I$13,2),Datastore!$G:$G)*$X28+SUMIF(Datastore!$A:$A,$Q28&$R28&"|"&$Y28&"|"&I$14&"|"&"FY"&RIGHT(I$13,2),Datastore!$G:$G)*$Z28+SUMIF(Datastore!$A:$A,$Q28&$R28&"|"&$AA28&"|"&I$14&"|"&"FY"&RIGHT(I$13,2),Datastore!$G:$G)*$AB28)/1000 -> 19053.03942 | J28: =(SUMIF(Datastore!$A:$A,$Q28&$R28&"|"&$S28&"|"&J$14&"|"&"FY"&RIGHT(J$13,2),Datastore!$G:$G)*$T28+SUMIF(Datastore!$A:$A,$Q28&$R28&"|"&$U28&"|"&J$14&"|"&"FY"&RIGHT(J$13,2),Datastore!$G:$G)*$V28+SUMIF(Datastore!$A:$A,$Q28&$R28&"|"&$W28&"|"&J$14&"|"&"FY"&RIGHT(J$13,2),Datastore!$G:$G)*$X28+SUMIF(Datastore!$A:$A,$Q28&$R28&"|"&$Y28&"|"&J$14&"|"&"FY"&RIGHT(J$13,2),Datastore!$G:$G)*$Z28+SUMIF(Datastore!$A:$A,$Q28&$R28&"|"&$AA28&"|"&J$14&"|"&"FY"&RIGHT(J$13,2),Datastore!$G:$G)*$AB28)/1000 -> 50398.265 | K28: =(SUMIF(Datastore!$A:$A,$Q28&$R28&"|"&$S28&"|"&K$14&"|"&"FY"&RIGHT(K$13,2),Datastore!$G:$G)*$T28+SUMIF(Datastore!$A:$A,$Q28&$R28&"|"&$U28&"|"&K$14&"|"&"FY"&RIGHT(K$13,2),Datastore!$G:$G)*$V28+SUMIF(Datastore!$A:$A,$Q28&$R28&"|"&$W28&"|"&K$14&"|"&"FY"&RIGHT(K$13,2),Datastore!$G:$G)*$X28+SUMIF(Datastore!$A:$A,$Q28&$R28&"|"&$Y28&"|"&K$14&"|"&"FY"&RIGHT(K$13,2),Datastore!$G:$G)*$Z28+SUMIF(Datastore!$A:$A,$Q28&$R28&"|"&$AA28&"|"&K$14&"|"&"FY"&RIGHT(K$13,2),Datastore!$G:$G)*$AB28)/1000 -> 2155.686725 | L28: =(SUMIF(Datastore!$A:$A,$Q28&$R28&"|"&$S28&"|"&L$14&"|"&"FY"&RIGHT(L$13,2),Datastore!$G:$G)*$T28+SUMIF(Datastore!$A:$A,$Q28&$R28&"|"&$U28&"|"&L$14&"|"&"FY"&RIGHT(L$13,2),Datastore!$G:$G)*$V28+SUMIF(Datastore!$A:$A,$Q28&$R28&"|"&$W28&"|"&L$14&"|"&"FY"&RIGHT(L$13,2),Datastore!$G:$G)*$X28+SUMIF(Datastore!$A:$A,$Q28&$R28&"|"&$Y28&"|"&L$14&"|"&"FY"&RIGHT(L$13,2),Datastore!$G:$G)*$Z28+SUMIF(Datastore!$A:$A,$Q28&$R28&"|"&$AA28&"|"&L$14&"|"&"FY"&RIGHT(L$13,2),Datastore!$G:$G)*$AB28)/1000 -> 0 | N28: Flood & ICT Separation Program | Q28: ?? | R28: ? | S28: EOSN | T28: 1 | U28: x | V28: 0 | W28: x | X28: 0 | Y28: x | Z28: 0 | AA28: x | AB28: 0
C29: Other 2 - [specify] | E29: $'000 | F29: =(SUMIF(Datastore!$A:$A,$Q29&$R29&"|"&$S29&"|"&F$14&"|"&"FY"&RIGHT(F$13,2),Datastore!$G:$G)*$T29+SUMIF(Datastore!$A:$A,$Q29&$R29&"|"&$U29&"|"&F$14&"|"&"FY"&RIGHT(F$13,2),Datastore!$G:$G)*$V29+SUMIF(Datastore!$A:$A,$Q29&$R29&"|"&$W29&"|"&F$14&"|"&"FY"&RIGHT(F$13,2),Datastore!$G:$G)*$X29+SUMIF(Datastore!$A:$A,$Q29&$R29&"|"&$Y29&"|"&F$14&"|"&"FY"&RIGHT(F$13,2),Datastore!$G:$G)*$Z29+SUMIF(Datastore!$A:$A,$Q29&$R29&"|"&$AA29&"|"&F$14&"|"&"FY"&RIGHT(F$13,2),Datastore!$G:$G)*$AB29)/1000 -> 0 | G29: =(SUMIF(Datastore!$A:$A,$Q29&$R29&"|"&$S29&"|"&G$14&"|"&"FY"&RIGHT(G$13,2),Datastore!$G:$G)*$T29+SUMIF(Datastore!$A:$A,$Q29&$R29&"|"&$U29&"|"&G$14&"|"&"FY"&RIGHT(G$13,2),Datastore!$G:$G)*$V29+SUMIF(Datastore!$A:$A,$Q29&$R29&"|"&$W29&"|"&G$14&"|"&"FY"&RIGHT(G$13,2),Datastore!$G:$G)*$X29+SUMIF(Datastore!$A:$A,$Q29&$R29&"|"&$Y29&"|"&G$14&"|"&"FY"&RIGHT(G$13,2),Datastore!$G:$G)*$Z29+SUMIF(Datastore!$A:$A,$Q29&$R29&"|"&$AA29&"|"&G$14&"|"&"FY"&RIGHT(G$13,2),Datastore!$G:$G)*$AB29)/1000 -> 0 | H29: =(SUMIF(Datastore!$A:$A,$Q29&$R29&"|"&$S29&"|"&H$14&"|"&"FY"&RIGHT(H$13,2),Datastore!$G:$G)*$T29+SUMIF(Datastore!$A:$A,$Q29&$R29&"|"&$U29&"|"&H$14&"|"&"FY"&RIGHT(H$13,2),Datastore!$G:$G)*$V29+SUMIF(Datastore!$A:$A,$Q29&$R29&"|"&$W29&"|"&H$14&"|"&"FY"&RIGHT(H$13,2),Datastore!$G:$G)*$X29+SUMIF(Datastore!$A:$A,$Q29&$R29&"|"&$Y29&"|"&H$14&"|"&"FY"&RIGHT(H$13,2),Datastore!$G:$G)*$Z29+SUMIF(Datastore!$A:$A,$Q29&$R29&"|"&$AA29&"|"&H$14&"|"&"FY"&RIGHT(H$13,2),Datastore!$G:$G)*$AB29)/1000 -> 0 | I29: =(SUMIF(Datastore!$A:$A,$Q29&$R29&"|"&$S29&"|"&I$14&"|"&"FY"&RIGHT(I$13,2),Datastore!$G:$G)*$T29+SUMIF(Datastore!$A:$A,$Q29&$R29&"|"&$U29&"|"&I$14&"|"&"FY"&RIGHT(I$13,2),Datastore!$G:$G)*$V29+SUMIF(Datastore!$A:$A,$Q29&$R29&"|"&$W29&"|"&I$14&"|"&"FY"&RIGHT(I$13,2),Datastore!$G:$G)*$X29+SUMIF(Datastore!$A:$A,$Q29&$R29&"|"&$Y29&"|"&I$14&"|"&"FY"&RIGHT(I$13,2),Datastore!$G:$G)*$Z29+SUMIF(Datastore!$A:$A,$Q29&$R29&"|"&$AA29&"|"&I$14&"|"&"FY"&RIGHT(I$13,2),Datastore!$G:$G)*$AB29)/1000 -> 0 | J29: =(SUMIF(Datastore!$A:$A,$Q29&$R29&"|"&$S29&"|"&J$14&"|"&"FY"&RIGHT(J$13,2),Datastore!$G:$G)*$T29+SUMIF(Datastore!$A:$A,$Q29&$R29&"|"&$U29&"|"&J$14&"|"&"FY"&RIGHT(J$13,2),Datastore!$G:$G)*$V29+SUMIF(Datastore!$A:$A,$Q29&$R29&"|"&$W29&"|"&J$14&"|"&"FY"&RIGHT(J$13,2),Datastore!$G:$G)*$X29+SUMIF(Datastore!$A:$A,$Q29&$R29&"|"&$Y29&"|"&J$14&"|"&"FY"&RIGHT(J$13,2),Datastore!$G:$G)*$Z29+SUMIF(Datastore!$A:$A,$Q29&$R29&"|"&$AA29&"|"&J$14&"|"&"FY"&RIGHT(J$13,2),Datastore!$G:$G)*$AB29)/1000 -> 0 | K29: =(SUMIF(Datastore!$A:$A,$Q29&$R29&"|"&$S29&"|"&K$14&"|"&"FY"&RIGHT(K$13,2),Datastore!$G:$G)*$T29+SUMIF(Datastore!$A:$A,$Q29&$R29&"|"&$U29&"|"&K$14&"|"&"FY"&RIGHT(K$13,2),Datastore!$G:$G)*$V29+SUMIF(Datastore!$A:$A,$Q29&$R29&"|"&$W29&"|"&K$14&"|"&"FY"&RIGHT(K$13,2),Datastore!$G:$G)*$X29+SUMIF(Datastore!$A:$A,$Q29&$R29&"|"&$Y29&"|"&K$14&"|"&"FY"&RIGHT(K$13,2),Datastore!$G:$G)*$Z29+SUMIF(Datastore!$A:$A,$Q29&$R29&"|"&$AA29&"|"&K$14&"|"&"FY"&RIGHT(K$13,2),Datastore!$G:$G)*$AB29)/1000 -> 0 | L29: =(SUMIF(Datastore!$A:$A,$Q29&$R29&"|"&$S29&"|"&L$14&"|"&"FY"&RIGHT(L$13,2),Datastore!$G:$G)*$T29+SUMIF(Datastore!$A:$A,$Q29&$R29&"|"&$U29&"|"&L$14&"|"&"FY"&RIGHT(L$13,2),Datastore!$G:$G)*$V29+SUMIF(Datastore!$A:$A,$Q29&$R29&"|"&$W29&"|"&L$14&"|"&"FY"&RIGHT(L$13,2),Datastore!$G:$G)*$X29+SUMIF(Datastore!$A:$A,$Q29&$R29&"|"&$Y29&"|"&L$14&"|"&"FY"&RIGHT(L$13,2),Datastore!$G:$G)*$Z29+SUMIF(Datastore!$A:$A,$Q29&$R29&"|"&$AA29&"|"&L$14&"|"&"FY"&RIGHT(L$13,2),Datastore!$G:$G)*$AB29)/1000 -> 0 | Q29: ?? | R29: ? | S29: x | T29: 0 | U29: x | V29: 0 | W29: x | X29: 0 | Y29: x | Z29: 0 | AA29: x | AB29: 0
C30: Total Expenses | E30: $'000 | F30: =SUM(F26:F29) -> 283239.5169 | G30: 359389.0683 | H30: 405517.6343 | I30: 463740.3644 | J30: 545656.9701 | K30: =SUM(K26:K29) -> 575422.6745 | L30: =SUM(L26:L29) -> 625888.3106
C32: Earnings Before Interest, Tax, Depreciation and Amortisation | E32: $'000 | F32: =F23-F30 -> 446612.6357 | G32: 471205.172 | H32: 437183.0214 | I32: 437919.0551 | J32: 410526.9001 | K32: 460822.2828 | L32: =L23-L30 -> 495602.5194
C34: Depreciation and amortization | E34: $'000 | F34: =(SUMIF(Datastore!$A:$A,$Q34&$R34&"|"&$S34&"|"&F$14&"|"&"FY"&RIGHT(F$13,2),Datastore!$G:$G)*$T34+SUMIF(Datastore!$A:$A,$Q34&$R34&"|"&$U34&"|"&F$14&"|"&"FY"&RIGHT(F$13,2),Datastore!$G:$G)*$V34+SUMIF(Datastore!$A:$A,$Q34&$R34&"|"&$W34&"|"&F$14&"|"&"FY"&RIGHT(F$13,2),Datastore!$G:$G)*$X34+SUMIF(Datastore!$A:$A,$Q34&$R34&"|"&$Y34&"|"&F$14&"|"&"FY"&RIGHT(F$13,2),Datastore!$G:$G)*$Z34+SUMIF(Datastore!$A:$A,$Q34&$R34&"|"&$AA34&"|"&F$14&"|"&"FY"&RIGHT(F$13,2),Datastore!$G:$G)*$AB34)/1000 -> 141266.8289 | G34: =(SUMIF(Datastore!$A:$A,$Q34&$R34&"|"&$S34&"|"&G$14&"|"&"FY"&RIGHT(G$13,2),Datastore!$G:$G)*$T34+SUMIF(Datastore!$A:$A,$Q34&$R34&"|"&$U34&"|"&G$14&"|"&"FY"&RIGHT(G$13,2),Datastore!$G:$G)*$V34+SUMIF(Datastore!$A:$A,$Q34&$R34&"|"&$W34&"|"&G$14&"|"&"FY"&RIGHT(G$13,2),Datastore!$G:$G)*$X34+SUMIF(Datastore!$A:$A,$Q34&$R34&"|"&$Y34&"|"&G$14&"|"&"FY"&RIGHT(G$13,2),Datastore!$G:$G)*$Z34+SUMIF(Datastore!$A:$A,$Q34&$R34&"|"&$AA34&"|"&G$14&"|"&"FY"&RIGHT(G$13,2),Datastore!$G:$G)*$AB34)/1000 -> 143032.1837 | H34: =(SUMIF(Datastore!$A:$A,$Q34&$R34&"|"&$S34&"|"&H$14&"|"&"FY"&RIGHT(H$13,2),Datastore!$G:$G)*$T34+SUMIF(Datastore!$A:$A,$Q34&$R34&"|"&$U34&"|"&H$14&"|"&"FY"&RIGHT(H$13,2),Datastore!$G:$G)*$V34+SUMIF(Datastore!$A:$A,$Q34&$R34&"|"&$W34&"|"&H$14&"|"&"FY"&RIGHT(H$13,2),Datastore!$G:$G)*$X34+SUMIF(Datastore!$A:$A,$Q34&$R34&"|"&$Y34&"|"&H$14&"|"&"FY"&RIGHT(H$13,2),Datastore!$G:$G)*$Z34+SUMIF(Datastore!$A:$A,$Q34&$R34&"|"&$AA34&"|"&H$14&"|"&"FY"&RIGHT(H$13,2),Datastore!$G:$G)*$AB34)/1000 -> 135395.8244 | I34: =(SUMIF(Datastore!$A:$A,$Q34&$R34&"|"&$S34&"|"&I$14&"|"&"FY"&RIGHT(I$13,2),Datastore!$G:$G)*$T34+SUMIF(Datastore!$A:$A,$Q34&$R34&"|"&$U34&"|"&I$14&"|"&"FY"&RIGHT(I$13,2),Datastore!$G:$G)*$V34+SUMIF(Datastore!$A:$A,$Q34&$R34&"|"&$W34&"|"&I$14&"|"&"FY"&RIGHT(I$13,2),Datastore!$G:$G)*$X34+SUMIF(Datastore!$A:$A,$Q34&$R34&"|"&$Y34&"|"&I$14&"|"&"FY"&RIGHT(I$13,2),Datastore!$G:$G)*$Z34+SUMIF(Datastore!$A:$A,$Q34&$R34&"|"&$AA34&"|"&I$14&"|"&"FY"&RIGHT(I$13,2),Datastore!$G:$G)*$AB34)/1000 -> 137701.7313 | J34: =(SUMIF(Datastore!$A:$A,$Q34&$R34&"|"&$S34&"|"&J$14&"|"&"FY"&RIGHT(J$13,2),Datastore!$G:$G)*$T34+SUMIF(Datastore!$A:$A,$Q34&$R34&"|"&$U34&"|"&J$14&"|"&"FY"&RIGHT(J$13,2),Datastore!$G:$G)*$V34+SUMIF(Datastore!$A:$A,$Q34&$R34&"|"&$W34&"|"&J$14&"|"&"FY"&RIGHT(J$13,2),Datastore!$G:$G)*$X34+SUMIF(Datastore!$A:$A,$Q34&$R34&"|"&$Y34&"|"&J$14&"|"&"FY"&RIGHT(J$13,2),Datastore!$G:$G)*$Z34+SUMIF(Datastore!$A:$A,$Q34&$R34&"|"&$AA34&"|"&J$14&"|"&"FY"&RIGHT(J$13,2),Datastore!$G:$G)*$AB34)/1000 -> 147194 | K34: =(SUMIF(Datastore!$A:$A,$Q34&$R34&"|"&$S34&"|"&K$14&"|"&"FY"&RIGHT(K$13,2),Datastore!$G:$G)*$T34+SUMIF(Datastore!$A:$A,$Q34&$R34&"|"&$U34&"|"&K$14&"|"&"FY"&RIGHT(K$13,2),Datastore!$G:$G)*$V34+SUMIF(Datastore!$A:$A,$Q34&$R34&"|"&$W34&"|"&K$14&"|"&"FY"&RIGHT(K$13,2),Datastore!$G:$G)*$X34+SUMIF(Datastore!$A:$A,$Q34&$R34&"|"&$Y34&"|"&K$14&"|"&"FY"&RIGHT(K$13,2),Datastore!$G:$G)*$Z34+SUMIF(Datastore!$A:$A,$Q34&$R34&"|"&$AA34&"|"&K$14&"|"&"FY"&RIGHT(K$13,2),Datastore!$G:$G)*$AB34)/1000 -> 164718.3576 | L34: =(SUMIF(Datastore!$A:$A,$Q34&$R34&"|"&$S34&"|"&L$14&"|"&"FY"&RIGHT(L$13,2),Datastore!$G:$G)*$T34+SUMIF(Datastore!$A:$A,$Q34&$R34&"|"&$U34&"|"&L$14&"|"&"FY"&RIGHT(L$13,2),Datastore!$G:$G)*$V34+SUMIF(Datastore!$A:$A,$Q34&$R34&"|"&$W34&"|"&L$14&"|"&"FY"&RIGHT(L$13,2),Datastore!$G:$G)*$X34+SUMIF(Datastore!$A:$A,$Q34&$R34&"|"&$Y34&"|"&L$14&"|"&"FY"&RIGHT(L$13,2),Datastore!$G:$G)*$Z34+SUMIF(Datastore!$A:$A,$Q34&$R34&"|"&$AA34&"|"&L$14&"|"&"FY"&RIGHT(L$13,2),Datastore!$G:$G)*$AB34)/1000 -> 175815.9634 | Q34: ?? | R34: ? | S34: EDEP | T34: 1 | V34: 0 | X34: 0 | Z34: 0 | AB34: 0
C35: Earnings Before Interest, and Tax | E35: $'000 | F35: =F32-F34 -> 305345.8067 | G35: 328172.9883 | H35: 301787.1971 | I35: 300217.3238 | J35: 263332.9001 | K35: 296103.9252 | L35: =L32-L34 -> 319786.556
C37: Borrowing costs | E37: $'000 | F37: =(SUMIF(Datastore!$A:$A,$Q37&$R37&"|"&$S37&"|"&F$14&"|"&"FY"&RIGHT(F$13,2),Datastore!$G:$G)*$T37+SUMIF(Datastore!$A:$A,$Q37&$R37&"|"&$U37&"|"&F$14&"|"&"FY"&RIGHT(F$13,2),Datastore!$G:$G)*$V37+SUMIF(Datastore!$A:$A,$Q37&$R37&"|"&$W37&"|"&F$14&"|"&"FY"&RIGHT(F$13,2),Datastore!$G:$G)*$X37+SUMIF(Datastore!$A:$A,$Q37&$R37&"|"&$Y37&"|"&F$14&"|"&"FY"&RIGHT(F$13,2),Datastore!$G:$G)*$Z37+SUMIF(Datastore!$A:$A,$Q37&$R37&"|"&$AA37&"|"&F$14&"|"&"FY"&RIGHT(F$13,2),Datastore!$G:$G)*$AB37)/1000 -> 139103.9472 | G37: =(SUMIF(Datastore!$A:$A,$Q37&$R37&"|"&$S37&"|"&G$14&"|"&"FY"&RIGHT(G$13,2),Datastore!$G:$G)*$T37+SUMIF(Datastore!$A:$A,$Q37&$R37&"|"&$U37&"|"&G$14&"|"&"FY"&RIGHT(G$13,2),Datastore!$G:$G)*$V37+SUMIF(Datastore!$A:$A,$Q37&$R37&"|"&$W37&"|"&G$14&"|"&"FY"&RIGHT(G$13,2),Datastore!$G:$G)*$X37+SUMIF(Datastore!$A:$A,$Q37&$R37&"|"&$Y37&"|"&G$14&"|"&"FY"&RIGHT(G$13,2),Datastore!$G:$G)*$Z37+SUMIF(Datastore!$A:$A,$Q37&$R37&"|"&$AA37&"|"&G$14&"|"&"FY"&RIGHT(G$13,2),Datastore!$G:$G)*$AB37)/1000 -> 141085.7422 | H37: =(SUMIF(Datastore!$A:$A,$Q37&$R37&"|"&$S37&"|"&H$14&"|"&"FY"&RIGHT(H$13,2),Datastore!$G:$G)*$T37+SUMIF(Datastore!$A:$A,$Q37&$R37&"|"&$U37&"|"&H$14&"|"&"FY"&RIGHT(H$13,2),Datastore!$G:$G)*$V37+SUMIF(Datastore!$A:$A,$Q37&$R37&"|"&$W37&"|"&H$14&"|"&"FY"&RIGHT(H$13,2),Datastore!$G:$G)*$X37+SUMIF(Datastore!$A:$A,$Q37&$R37&"|"&$Y37&"|"&H$14&"|"&"FY"&RIGHT(H$13,2),Datastore!$G:$G)*$Z37+SUMIF(Datastore!$A:$A,$Q37&$R37&"|"&$AA37&"|"&H$14&"|"&"FY"&RIGHT(H$13,2),Datastore!$G:$G)*$AB37)/1000 -> 111476.1726 | I37: =(SUMIF(Datastore!$A:$A,$Q37&$R37&"|"&$S37&"|"&I$14&"|"&"FY"&RIGHT(I$13,2),Datastore!$G:$G)*$T37+SUMIF(Datastore!$A:$A,$Q37&$R37&"|"&$U37&"|"&I$14&"|"&"FY"&RIGHT(I$13,2),Datastore!$G:$G)*$V37+SUMIF(Datastore!$A:$A,$Q37&$R37&"|"&$W37&"|"&I$14&"|"&"FY"&RIGHT(I$13,2),Datastore!$G:$G)*$X37+SUMIF(Datastore!$A:$A,$Q37&$R37&"|"&$Y37&"|"&I$14&"|"&"FY"&RIGHT(I$13,2),Datastore!$G:$G)*$Z37+SUMIF(Datastore!$A:$A,$Q37&$R37&"|"&$AA37&"|"&I$14&"|"&"FY"&RIGHT(I$13,2),Datastore!$G:$G)*$AB37)/1000 -> 112864.2673 | J37: =(SUMIF(Datastore!$A:$A,$Q37&$R37&"|"&$S37&"|"&J$14&"|"&"FY"&RIGHT(J$13,2),Datastore!$G:$G)*$T37+SUMIF(Datastore!$A:$A,$Q37&$R37&"|"&$U37&"|"&J$14&"|"&"FY"&RIGHT(J$13,2),Datastore!$G:$G)*$V37+SUMIF(Datastore!$A:$A,$Q37&$R37&"|"&$W37&"|"&J$14&"|"&"FY"&RIGHT(J$13,2),Datastore!$G:$G)*$X37+SUMIF(Datastore!$A:$A,$Q37&$R37&"|"&$Y37&"|"&J$14&"|"&"FY"&RIGHT(J$13,2),Datastore!$G:$G)*$Z37+SUMIF(Datastore!$A:$A,$Q37&$R37&"|"&$AA37&"|"&J$14&"|"&"FY"&RIGHT(J$13,2),Datastore!$G:$G)*$AB37)/1000 -> 115847.957 | K37: =(SUMIF(Datastore!$A:$A,$Q37&$R37&"|"&$S37&"|"&K$14&"|"&"FY"&RIGHT(K$13,2),Datastore!$G:$G)*$T37+SUMIF(Datastore!$A:$A,$Q37&$R37&"|"&$U37&"|"&K$14&"|"&"FY"&RIGHT(K$13,2),Datastore!$G:$G)*$V37+SUMIF(Datastore!$A:$A,$Q37&$R37&"|"&$W37&"|"&K$14&"|"&"FY"&RIGHT(K$13,2),Datastore!$G:$G)*$X37+SUMIF(Datastore!$A:$A,$Q37&$R37&"|"&$Y37&"|"&K$14&"|"&"FY"&RIGHT(K$13,2),Datastore!$G:$G)*$Z37+SUMIF(Datastore!$A:$A,$Q37&$R37&"|"&$AA37&"|"&K$14&"|"&"FY"&RIGHT(K$13,2),Datastore!$G:$G)*$AB37)/1000 -> 128392.8955 | L37: =(SUMIF(Datastore!$A:$A,$Q37&$R37&"|"&$S37&"|"&L$14&"|"&"FY"&RIGHT(L$13,2),Datastore!$G:$G)*$T37+SUMIF(Datastore!$A:$A,$Q37&$R37&"|"&$U37&"|"&L$14&"|"&"FY"&RIGHT(L$13,2),Datastore!$G:$G)*$V37+SUMIF(Datastore!$A:$A,$Q37&$R37&"|"&$W37&"|"&L$14&"|"&"FY"&RIGHT(L$13,2),Datastore!$G:$G)*$X37+SUMIF(Datastore!$A:$A,$Q37&$R37&"|"&$Y37&"|"&L$14&"|"&"FY"&RIGHT(L$13,2),Datastore!$G:$G)*$Z37+SUMIF(Datastore!$A:$A,$Q37&$R37&"|"&$AA37&"|"&L$14&"|"&"FY"&RIGHT(L$13,2),Datastore!$G:$G)*$AB37)/1000 -> 137695.027 | Q37: ?? | R37: ? | S37: EI?? | T37: 1 | V37: 0 | X37: 0 | Z37: 0 | AB37: 0
C38: Earnings Before Tax | E38: $'000 | F38: =F35-F37 -> 166241.8595 | G38: 187087.246 | H38: 190311.0244 | I38: 187353.0564 | J38: 147484.9431 | K38: 167711.0296 | L38: =L35-L37 -> 182091.529
C40: Tax Expense | E40: $'000 | F40: =(SUMIF(Datastore!$A:$A,$Q40&$R40&"|"&$S40&"|"&F$14&"|"&"FY"&RIGHT(F$13,2),Datastore!$G:$G)*$T40+SUMIF(Datastore!$A:$A,$Q40&$R40&"|"&$U40&"|"&F$14&"|"&"FY"&RIGHT(F$13,2),Datastore!$G:$G)*$V40+SUMIF(Datastore!$A:$A,$Q40&$R40&"|"&$W40&"|"&F$14&"|"&"FY"&RIGHT(F$13,2),Datastore!$G:$G)*$X40+SUMIF(Datastore!$A:$A,$Q40&$R40&"|"&$Y40&"|"&F$14&"|"&"FY"&RIGHT(F$13,2),Datastore!$G:$G)*$Z40+SUMIF(Datastore!$A:$A,$Q40&$R40&"|"&$AA40&"|"&F$14&"|"&"FY"&RIGHT(F$13,2),Datastore!$G:$G)*$AB40)/1000 -> 40682.518 | G40: =(SUMIF(Datastore!$A:$A,$Q40&$R40&"|"&$S40&"|"&G$14&"|"&"FY"&RIGHT(G$13,2),Datastore!$G:$G)*$T40+SUMIF(Datastore!$A:$A,$Q40&$R40&"|"&$U40&"|"&G$14&"|"&"FY"&RIGHT(G$13,2),Datastore!$G:$G)*$V40+SUMIF(Datastore!$A:$A,$Q40&$R40&"|"&$W40&"|"&G$14&"|"&"FY"&RIGHT(G$13,2),Datastore!$G:$G)*$X40+SUMIF(Datastore!$A:$A,$Q40&$R40&"|"&$Y40&"|"&G$14&"|"&"FY"&RIGHT(G$13,2),Datastore!$G:$G)*$Z40+SUMIF(Datastore!$A:$A,$Q40&$R40&"|"&$AA40&"|"&G$14&"|"&"FY"&RIGHT(G$13,2),Datastore!$G:$G)*$AB40)/1000 -> 63621.71598 | H40: =(SUMIF(Datastore!$A:$A,$Q40&$R40&"|"&$S40&"|"&H$14&"|"&"FY"&RIGHT(H$13,2),Datastore!$G:$G)*$T40+SUMIF(Datastore!$A:$A,$Q40&$R40&"|"&$U40&"|"&H$14&"|"&"FY"&RIGHT(H$13,2),Datastore!$G:$G)*$V40+SUMIF(Datastore!$A:$A,$Q40&$R40&"|"&$W40&"|"&H$14&"|"&"FY"&RIGHT(H$13,2),Datastore!$G:$G)*$X40+SUMIF(Datastore!$A:$A,$Q40&$R40&"|"&$Y40&"|"&H$14&"|"&"FY"&RIGHT(H$13,2),Datastore!$G:$G)*$Z40+SUMIF(Datastore!$A:$A,$Q40&$R40&"|"&$AA40&"|"&H$14&"|"&"FY"&RIGHT(H$13,2),Datastore!$G:$G)*$AB40)/1000 -> 58285.832 | I40: =(SUMIF(Datastore!$A:$A,$Q40&$R40&"|"&$S40&"|"&I$14&"|"&"FY"&RIGHT(I$13,2),Datastore!$G:$G)*$T40+SUMIF(Datastore!$A:$A,$Q40&$R40&"|"&$U40&"|"&I$14&"|"&"FY"&RIGHT(I$13,2),Datastore!$G:$G)*$V40+SUMIF(Datastore!$A:$A,$Q40&$R40&"|"&$W40&"|"&I$14&"|"&"FY"&RIGHT(I$13,2),Datastore!$G:$G)*$X40+SUMIF(Datastore!$A:$A,$Q40&$R40&"|"&$Y40&"|"&I$14&"|"&"FY"&RIGHT(I$13,2),Datastore!$G:$G)*$Z40+SUMIF(Datastore!$A:$A,$Q40&$R40&"|"&$AA40&"|"&I$14&"|"&"FY"&RIGHT(I$13,2),Datastore!$G:$G)*$AB40)/1000 -> 55555.739 | J40: =(SUMIF(Datastore!$A:$A,$Q40&$R40&"|"&$S40&"|"&J$14&"|"&"FY"&RIGHT(J$13,2),Datastore!$G:$G)*$T40+SUMIF(Datastore!$A:$A,$Q40&$R40&"|"&$U40&"|"&J$14&"|"&"FY"&RIGHT(J$13,2),Datastore!$G:$G)*$V40+SUMIF(Datastore!$A:$A,$Q40&$R40&"|"&$W40&"|"&J$14&"|"&"FY"&RIGHT(J$13,2),Datastore!$G:$G)*$X40+SUMIF(Datastore!$A:$A,$Q40&$R40&"|"&$Y40&"|"&J$14&"|"&"FY"&RIGHT(J$13,2),Datastore!$G:$G)*$Z40+SUMIF(Datastore!$A:$A,$Q40&$R40&"|"&$AA40&"|"&J$14&"|"&"FY"&RIGHT(J$13,2),Datastore!$G:$G)*$AB40)/1000 -> 44245.48292 | K40: =(SUMIF(Datastore!$A:$A,$Q40&$R40&"|"&$S40&"|"&K$14&"|"&"FY"&RIGHT(K$13,2),Datastore!$G:$G)*$T40+SUMIF(Datastore!$A:$A,$Q40&$R40&"|"&$U40&"|"&K$14&"|"&"FY"&RIGHT(K$13,2),Datastore!$G:$G)*$V40+SUMIF(Datastore!$A:$A,$Q40&$R40&"|"&$W40&"|"&K$14&"|"&"FY"&RIGHT(K$13,2),Datastore!$G:$G)*$X40+SUMIF(Datastore!$A:$A,$Q40&$R40&"|"&$Y40&"|"&K$14&"|"&"FY"&RIGHT(K$13,2),Datastore!$G:$G)*$Z40+SUMIF(Datastore!$A:$A,$Q40&$R40&"|"&$AA40&"|"&K$14&"|"&"FY"&RIGHT(K$13,2),Datastore!$G:$G)*$AB40)/1000 -> 50313.30889 | L40: =(SUMIF(Datastore!$A:$A,$Q40&$R40&"|"&$S40&"|"&L$14&"|"&"FY"&RIGHT(L$13,2),Datastore!$G:$G)*$T40+SUMIF(Datastore!$A:$A,$Q40&$R40&"|"&$U40&"|"&L$14&"|"&"FY"&RIGHT(L$13,2),Datastore!$G:$G)*$V40+SUMIF(Datastore!$A:$A,$Q40&$R40&"|"&$W40&"|"&L$14&"|"&"FY"&RIGHT(L$13,2),Datastore!$G:$G)*$X40+SUMIF(Datastore!$A:$A,$Q40&$R40&"|"&$Y40&"|"&L$14&"|"&"FY"&RIGHT(L$13,2),Datastore!$G:$G)*$Z40+SUMIF(Datastore!$A:$A,$Q40&$R40&"|"&$AA40&"|"&L$14&"|"&"FY"&RIGHT(L$13,2),Datastore!$G:$G)*$AB40)/1000 -> 54627.4587 | Q40: ?? | R40: ? | S40: ETAX | T40: 1 | V40: 0 | X40: 0 | Z40: 0 | AB40: 0
C42: Earnings After Tax | E42: $'000 | F42: =F38-F40 -> 125559.3415 | G42: 123465.5301 | H42: 132025.1924 | I42: 131797.3174 | J42: 103239.4601 | K42: 117397.7207 | L42: =L38-L40 -> 127464.0703
C44: Dividends paid | E44: $'000 | F44: =(SUMIF(Datastore!$A:$A,$Q44&$R44&"|"&$S44&"|"&F$14&"|"&"FY"&RIGHT(F$13,2),Datastore!$G:$G)*$T44+SUMIF(Datastore!$A:$A,$Q44&$R44&"|"&$U44&"|"&F$14&"|"&"FY"&RIGHT(F$13,2),Datastore!$G:$G)*$V44+SUMIF(Datastore!$A:$A,$Q44&$R44&"|"&$W44&"|"&F$14&"|"&"FY"&RIGHT(F$13,2),Datastore!$G:$G)*$X44+SUMIF(Datastore!$A:$A,$Q44&$R44&"|"&$Y44&"|"&F$14&"|"&"FY"&RIGHT(F$13,2),Datastore!$G:$G)*$Z44+SUMIF(Datastore!$A:$A,$Q44&$R44&"|"&$AA44&"|"&F$14&"|"&"FY"&RIGHT(F$13,2),Datastore!$G:$G)*$AB44)/1000 -> 0 | G44: =(SUMIF(Datastore!$A:$A,$Q44&$R44&"|"&$S44&"|"&G$14&"|"&"FY"&RIGHT(G$13,2),Datastore!$G:$G)*$T44+SUMIF(Datastore!$A:$A,$Q44&$R44&"|"&$U44&"|"&G$14&"|"&"FY"&RIGHT(G$13,2),Datastore!$G:$G)*$V44+SUMIF(Datastore!$A:$A,$Q44&$R44&"|"&$W44&"|"&G$14&"|"&"FY"&RIGHT(G$13,2),Datastore!$G:$G)*$X44+SUMIF(Datastore!$A:$A,$Q44&$R44&"|"&$Y44&"|"&G$14&"|"&"FY"&RIGHT(G$13,2),Datastore!$G:$G)*$Z44+SUMIF(Datastore!$A:$A,$Q44&$R44&"|"&$AA44&"|"&G$14&"|"&"FY"&RIGHT(G$13,2),Datastore!$G:$G)*$AB44)/1000 -> 0 | H44: =(SUMIF(Datastore!$A:$A,$Q44&$R44&"|"&$S44&"|"&H$14&"|"&"FY"&RIGHT(H$13,2),Datastore!$G:$G)*$T44+SUMIF(Datastore!$A:$A,$Q44&$R44&"|"&$U44&"|"&H$14&"|"&"FY"&RIGHT(H$13,2),Datastore!$G:$G)*$V44+SUMIF(Datastore!$A:$A,$Q44&$R44&"|"&$W44&"|"&H$14&"|"&"FY"&RIGHT(H$13,2),Datastore!$G:$G)*$X44+SUMIF(Datastore!$A:$A,$Q44&$R44&"|"&$Y44&"|"&H$14&"|"&"FY"&RIGHT(H$13,2),Datastore!$G:$G)*$Z44+SUMIF(Datastore!$A:$A,$Q44&$R44&"|"&$AA44&"|"&H$14&"|"&"FY"&RIGHT(H$13,2),Datastore!$G:$G)*$AB44)/1000 -> 64121.049 | I44: =(SUMIF(Datastore!$A:$A,$Q44&$R44&"|"&$S44&"|"&I$14&"|"&"FY"&RIGHT(I$13,2),Datastore!$G:$G)*$T44+SUMIF(Datastore!$A:$A,$Q44&$R44&"|"&$U44&"|"&I$14&"|"&"FY"&RIGHT(I$13,2),Datastore!$G:$G)*$V44+SUMIF(Datastore!$A:$A,$Q44&$R44&"|"&$W44&"|"&I$14&"|"&"FY"&RIGHT(I$13,2),Datastore!$G:$G)*$X44+SUMIF(Datastore!$A:$A,$Q44&$R44&"|"&$Y44&"|"&I$14&"|"&"FY"&RIGHT(I$13,2),Datastore!$G:$G)*$Z44+SUMIF(Datastore!$A:$A,$Q44&$R44&"|"&$AA44&"|"&I$14&"|"&"FY"&RIGHT(I$13,2),Datastore!$G:$G)*$AB44)/1000 -> 75161.803 | J44: =(SUMIF(Datastore!$A:$A,$Q44&$R44&"|"&$S44&"|"&J$14&"|"&"FY"&RIGHT(J$13,2),Datastore!$G:$G)*$T44+SUMIF(Datastore!$A:$A,$Q44&$R44&"|"&$U44&"|"&J$14&"|"&"FY"&RIGHT(J$13,2),Datastore!$G:$G)*$V44+SUMIF(Datastore!$A:$A,$Q44&$R44&"|"&$W44&"|"&J$14&"|"&"FY"&RIGHT(J$13,2),Datastore!$G:$G)*$X44+SUMIF(Datastore!$A:$A,$Q44&$R44&"|"&$Y44&"|"&J$14&"|"&"FY"&RIGHT(J$13,2),Datastore!$G:$G)*$Z44+SUMIF(Datastore!$A:$A,$Q44&$R44&"|"&$AA44&"|"&J$14&"|"&"FY"&RIGHT(J$13,2),Datastore!$G:$G)*$AB44)/1000 -> 40490.14112 | K44: =(SUMIF(Datastore!$A:$A,$Q44&$R44&"|"&$S44&"|"&K$14&"|"&"FY"&RIGHT(K$13,2),Datastore!$G:$G)*$T44+SUMIF(Datastore!$A:$A,$Q44&$R44&"|"&$U44&"|"&K$14&"|"&"FY"&RIGHT(K$13,2),Datastore!$G:$G)*$V44+SUMIF(Datastore!$A:$A,$Q44&$R44&"|"&$W44&"|"&K$14&"|"&"FY"&RIGHT(K$13,2),Datastore!$G:$G)*$X44+SUMIF(Datastore!$A:$A,$Q44&$R44&"|"&$Y44&"|"&K$14&"|"&"FY"&RIGHT(K$13,2),Datastore!$G:$G)*$Z44+SUMIF(Datastore!$A:$A,$Q44&$R44&"|"&$AA44&"|"&K$14&"|"&"FY"&RIGHT(K$13,2),Datastore!$G:$G)*$AB44)/1000 -> 48454.18688 | L44: =(SUMIF(Datastore!$A:$A,$Q44&$R44&"|"&$S44&"|"&L$14&"|"&"FY"&RIGHT(L$13,2),Datastore!$G:$G)*$T44+SUMIF(Datastore!$A:$A,$Q44&$R44&"|"&$U44&"|"&L$14&"|"&"FY"&RIGHT(L$13,2),Datastore!$G:$G)*$V44+SUMIF(Datastore!$A:$A,$Q44&$R44&"|"&$W44&"|"&L$14&"|"&"FY"&RIGHT(L$13,2),Datastore!$G:$G)*$X44+SUMIF(Datastore!$A:$A,$Q44&$R44&"|"&$Y44&"|"&L$14&"|"&"FY"&RIGHT(L$13,2),Datastore!$G:$G)*$Z44+SUMIF(Datastore!$A:$A,$Q44&$R44&"|"&$AA44&"|"&L$14&"|"&"FY"&RIGHT(L$13,2),Datastore!$G:$G)*$AB44)/1000 -> 53042.08244 | Q44: ?? | R44: ? | S44: EPRO | T44: 1 | V44: 0 | X44: 0 | Z44: 0 | AB44: 0
C46: Retained earnings for year | E46: $'000 | F46: =F42-F44 -> 125559.3415 | G46: 123465.5301 | H46: 67904.14344 | I46: 56635.51444 | J46: 62749.31902 | K46: 68943.53386 | L46: =L42-L44 -> 74421.98785
C47: Retained earnings brought forward | E47: $'000 | H47: =G49 -> -27236.82 | I47: =H49 -> 40667.32344 | J47: =I49 -> 97302.83788 | K47: =J49 -> 160052.1569 | L47: =K49 -> 228995.6908
C48: Movement in retained earnings | E48: $'000 | H48: =H46 -> 67904.14344 | I48: =I46 -> 56635.51444 | J48: =J46 -> 62749.31902 | K48: =K46 -> 68943.53386 | L48: =L46 -> 74421.98785
C49: Retained earnings carried forward | E49: $'000 | G49: -27236.82 | H49: =H47+H48 -> 40667.32344 | I49: =I47+I48 -> 97302.83788 | J49: =J47+J48 -> 160052.1569 | K49: =K47+K48 -> 228995.6908 | L49: =L47+L48 -> 303417.6786
Q50: ?? | R50: ? | S50: R??? | T50: -1
Q51: ?? | R51: ? | S51: E??? | T51: -1
M622: =#REF! ->  | N622: =#REF! ->  | O622: =#REF! ->  | P622: =#REF! ->  | Q622: =#REF! ->  | R622: =#REF! ->  | S622: =#REF! ->  | T622: =#REF! ->  | U622: =#REF! ->  | V622: =#REF! ->  | W622: =#REF! ->  | X622: =#REF! -> 

Sheet 5.1.2
B4: ='Business Details'!$B$4 -> SEQ INTERIM REVENUE MONITORING - INFORMATION REQUIREMENT TEMPLATE
B7: =CONCATENATE("Consolidated Statement for ",'Business Details'!$D$9) -> Consolidated Statement for Queensland Urban Utilities
B8: =CONCATENATE("Reporting year = ",AnalysisYear) -> Reporting year = 2014
F12: ='5.1.1'!F12 -> For Year Ending 30 June: | N12: ='5.1.1'!N12 -> For Year Ending 30 June 2014:
C13: ='5.1.1'!C13 -> Account heading | F13: ='5.1.1'!F13 -> 2009 | G13: ='5.1.1'!G13 -> 2010 | H13: ='5.1.1'!H13 -> 2011 | I13: ='5.1.1'!I13 -> 2012 | J13: ='5.1.1'!J13 -> 2013 | K13: ='5.1.1'!K13 -> 2014 | L13: ='5.1.1'!L13 -> 2015 | N13: Ledger Code | O13: Relevant Notes | P13: Supporting Documents
C15: Current Assets
C17: Cash | E17: $'000 | G17: 9005.647 | H17: 77529.18364 | I17: 77805.79622 | J17: 87682.95635 | K17: 86375.1545 | L17: 104364.1355
C18: Receivables | E18: $'000 | G18: 13771.94209 | H18: 25101.61792 | I18: 27252.93123 | J18: 21925.80454 | K18: 22019.91042 | L18: 23753.85101
C19: Other Current Assets | E19: $'000 | G19: 827.621 | H19: 150809.2614 | I19: 151701.3809 | J19: 136710.1384 | K19: 157301.0057 | L19: 172782.4886
C20: Total Current Assets | E20: $'000 | F20: =SUM(F17:F19) -> 0 | G20: =SUM(G17:G19) -> 23605.21009 | H20: 253440.0629 | I20: 256760.1084 | J20: 246318.8993 | K20: 265696.0706 | L20: 300900.4751
C22: Non-Current Assets
C24: Property, plant and equipment | E24: $'000 | G24: 4246878.476 | H24: 4337505.292 | I24: 4508443.373 | J24: 4835150.403 | K24: 5130562.152 | L24: 5453976.916
C25: Deferred tax assets | E25: $'000 | G25: 11602.871 | H25: 12408.146 | I25: 29530.345 | J25: 34263.1328 | K25: 41023.0387 | L25: 48510.18145
C26: Other Non Current Assests | E26: $'000 | H26: 1091 | I26: 613 | J26: 613 | K26: 613 | L26: 613
C27: Total non-current assets | E27: $'000 | F27: =SUM(F24:F26) -> 0 | G27: =SUM(G24:G26) -> 4258481.347 | H27: 4351004.438 | I27: 4538586.718 | J27: 4870026.536 | K27: 5172198.191 | L27: 5503100.097
C29: TOTAL ASSETS | E29: $'000 | F29: =F20+F27 -> 0 | G29: =G20+G27 -> 4282086.557 | H29: =H20+H27 -> 4604444.501 | I29: 4795346.827 | J29: 5116345.435 | K29: 5437894.261 | L29: 5804000.572
C31: Current Liabilities
C33: Payables | E33: $'000 | G33: 54904.23915 | H33: 118613.0431 | I33: 105399.0441 | J33: 128500 | K33: 134300 | L33: 147100
C34: Interest-bearing liabilities | E34: $'000
C35: Current tax liabilities | E35: $'000 | G35: 0 | H35: 14229.779 | I35: 23031.9173 | J35: 8074.26768 | K35: 9738.844071 | L35: 10649.02883
C36: Provisions | E36: $'000 | G36: 31423.9256 | H36: 77774.20604 | I36: 94288.79382 | J36: 74892.44709 | K36: 76424.41124 | L36: 80572.10376
C37: Other Current Liabilities | E37: $'000 | G37: 2764.82557 | H37: 16543.06766 | I37: 16484.87479 | J37: 15039.88397 | K37: 14794.28526 | L37: 14794.28526
C38: Total current Liabilities | E38: $'000 | F38: =SUM(F33:F37) -> 0 | G38: 89092.99032 | H38: 227160.0958 | I38: 239204.63 | J38: 226506.5987 | K38: 235257.5406 | L38: 253115.4179
C40: Non-Current Liabilities
C42: Payables | E42: $'000
C43: Interest-bearing liabilities | E43: $'000 | G43: 1681437.676 | H43: 1774985.055 | I43: 1874895.055 | J43: 2019895.055 | K43: 2129895.055 | L43: 2259895.055
C44: Non current tax liabilities | E44: $'000 | G44: 0 | H44: 20939.316 | I44: 42455.0937 | J44: 59136.2937 | K44: 77254.1322 | L44: 96772.61831
C45: Provisions | E45: $'000
C46: Other Non Current Liabilities | E46: $'000 | G46: 0 | H46: 1900 | I46: 2697 | J46: 2697 | K46: 2697 | L46: 2697
C47: Total Non-Current Liabilities | E47: $'000 | F47: =SUM(F42:F46) -> 0 | G47: 1681437.676 | H47: 1797824.371 | I47: 1920047.149 | J47: 2081728.349 | K47: 2209846.188 | L47: 2359364.674
C49: TOTAL LIABILITIES | E49: $'000 | F49: =F47+F38 -> 0 | G49: 1771159.366 | H49: 2024984.467 | I49: 2159251.779 | J49: 2308234.948 | K49: 2445103.728 | L49: =L47+L38 -> 2612480.092
C51: NET ASSETS/(LIABILITIES) | E51: $'000 | F51: =F29-F49 -> 0 | G51: 2511556.343 | H51: 2579460.034 | I51: 2636095.048 | J51: 2808110.487 | K51: 2992790.533 | L51: =L29-L49 -> 3191520.481
C53: Shareholders Equity
C55: Share Capital | E55: $'000 | G55: 2538793.155 | H55: 2538793.155 | I55: 2538793.155 | J55: 2538793.155 | K55: 2538793.155 | L55: 2538793.155
C56: Reserves | E56: $'000 | G56: 0 | H56: 0 | I56: 0 | J56: 109265.2797 | K56: 225001.7916 | L56: 349309.7512
C57: Retained earnings | E57: $'000 | F57: ='5.1.1'!F49 -> 0 | G57: -27236.82 | H57: 40667.32344 | I57: 97302.83788 | J57: 160052.1569 | K57: 228995.6908 | L57: 303417.6786
C59: TOTAL SHAREHOLDERS EQUITY | E59: $'000 | F59: =SUM(F55:F57) -> 0 | G59: 2511556.335 | H59: 2579460.478 | I59: 2636095.993 | J59: 2808110.592 | K59: 2992790.637 | L59: =SUM(L55:L57) -> 3191520.585
M594: =#REF! ->  | N594: =#REF! ->  | O594: =#REF! ->  | P594: =#REF! ->  | Q594: =#REF! ->  | R594: =#REF! ->  | S594: =#REF! -> 

Sheet 5.1.3
B4: ='Business Details'!$B$4 -> SEQ INTERIM REVENUE MONITORING - INFORMATION REQUIREMENT TEMPLATE
B7: =CONCATENATE("Consolidated Statement for ",'Business Details'!$D$9) -> Consolidated Statement for Queensland Urban Utilities
B8: =CONCATENATE("Reporting year = ",AnalysisYear) -> Reporting year = 2014
F11: 0 | G11: 1 | H11: 2 | I11: 3 | J11: 4
F12: ='5.1.2'!F12 -> For Year Ending 30 June: | N12: ='5.1.1'!N12 -> For Year Ending 30 June 2014:
C13: ='5.1.2'!C13 -> Account heading | F13: ='5.1.2'!F13 -> 2009 | G13: ='5.1.2'!G13 -> 2010 | H13: ='5.1.2'!H13 -> 2011 | I13: ='5.1.2'!I13 -> 2012 | J13: ='5.1.2'!J13 -> 2013 | K13: ='5.1.2'!K13 -> 2014 | L13: ='5.1.2'!L13 -> 2015 | N13: ='5.1.2'!O13 -> Relevant Notes | O13: ='5.1.2'!P13 -> Supporting Documents
C15: Cash flows from operating activities
C17: Receipts from customers | E17: $'000 | H17: 637479.7488 | I17: 760075.9 | J17: 832782.7946 | K17: 883763.5409 | L17: 957437.6921
C18: Payments to suppliers and employees | E18: $'000 | H18: -414997.8756 | I18: -485452.5555 | J18: -555342.3946 | K18: -592575.5575 | L18: -632609.454
C19: Cash flow arising from restructuring | E19: $'000
C20: Cash movement in other assets and liabilites | E20: $'000 | H20: -8663.00067 | I20: 9958.58491 | J20: 0 | K20: 0 | L20: 0
C21: Net cash inflow (outflow) from operating activities | E21: $'000 | F21: =SUM(F17:F20) -> 0 | G21: =SUM(G17:G20) -> 0 | H21: 213818.8725 | I21: =SUM(I17:I20) -> 284581.9295 | J21: =SUM(J17:J20) -> 277440.4 | K21: =SUM(K17:K20) -> 291187.9834 | L21: =SUM(L17:L20) -> 324828.238
C23: Cash flow from investing activities
E24: $'000
C25: Payments for property, plant and equipment | E25: $'000 | H25: -120228.6879 | I25: -254414.1832 | J25: -262749.1781 | K25: -265000.3802 | L25: -289060.9053
C26: Net movement in loans and advances | E26: $'000
C27: Proceeds from sale of property, plant and equipment | E27: $'000
C28: Interest received | E28: $'000 | H28: 321.07604 | I28: 680.5363 | J28: 350 | K28: 358.75 | L28: 0
C29: Cash capital revenues | E29: $'000 | H29: 28853 | I29: 86815 | J29: 90475.10337 | K29: 74626.36177 | L29: 85344.45337
C30: Net cash inflow (outflow) from investing activities | E30: $'000 | F30: =SUM(F25:F29) -> 0 | G30: =SUM(G25:G29) -> 0 | H30: -91054.61185 | I30: =SUM(I25:I29) -> -166918.6469 | J30: =SUM(J25:J29) -> -171924.0747 | K30: =SUM(K25:K29) -> -190015.2684 | L30: =SUM(L25:L29) -> -203716.4519
C32: Cash flow from financing activities
C34: Proceeds from borrowings | E34: $'000 | H34: 93547.37902 | I34: 99910 | J34: 145000 | K34: 110000 | L34: 130000
C35: Repayments of borrowings | E35: $'000
C36: Finance costs | E36: $'000 | H36: -102377.775 | I36: -116901.256 | J36: -124390.9478 | K36: -133067.4943 | L36: -142042.4846
C37: Dividends/TER | E37: $'000 | H37: -45410.328 | I37: -100395.414 | J37: -115311.2174 | K37: -79413.02263 | L37: -91080.32049
C38: Net cash inflow (outflow) from financing activities | E38: $'000 | F38: =SUM(F34:F37) -> 0 | G38: =SUM(G34:G37) -> 0 | H38: -54240.72403 | I38: =SUM(I34:I37) -> -117386.67 | J38: =SUM(J34:J37) -> -94702.16518 | K38: =SUM(K34:K37) -> -102480.5169 | L38: =SUM(L34:L37) -> -103122.8051
C40: Net increase (decrease) in cash held | E40: $'000
C42: Cash at beginning of reporting period | E42: $'000 | G42: 0 | H42: 9005.647 | I42: =H44 -> 77529.18364 | J42: =I44 -> 77805.79622 | K42: 88619.95635 | L42: 87312.1545
C44: Cash at end of reporting period | E44: $'000 | F44: =F21+F30+F38+F42 -> 0 | G44: 0 | H44: =H21+H30+H38+H42 -> 77529.18364 | I44: =I21+I30+I38+I42 -> 77805.79622 | J44: =J21+J30+J38+J42 -> 88619.95635 | K44: 87312.1545 | L44: =L21+L30+L38+L42 -> 105301.1355
M602: =#REF! ->  | N602: =#REF! ->  | O602: =#REF! ->  | P602: =#REF! -> 

Sheet 5.2.1
AA1: ="If revenues are smoothed beyond "&J12&", additional data is to be provided for the corresponding period. Additional years can be accessed by clicking on the '+' sign above" -> If revenues are smoothed beyond 2013, additional data is to be provided for the corresponding period. Additional years can be accessed by clicking on the '+' sign above
B4: ='Business Details'!$B$4 -> SEQ INTERIM REVENUE MONITORING - INFORMATION REQUIREMENT TEMPLATE
B7: =CONCATENATE("Revenue Details for ",'Business Details'!$D$9) -> Revenue Details for Queensland Urban Utilities
B8: =CONCATENATE("Reporting year = ",AnalysisYear) -> Reporting year = 2014
F10: 0 | G10: 1 | H10: 2 | I10: 3 | J10: 4
F11: ='5.1.1'!F12 -> For Year Ending 30 June: | AA11: =CONCATENATE("For Year Ending 30 June ",AnalysisYear) -> For Year Ending 30 June 2014
F12: ='5.1.1'!F13 -> 2009 | G12: ='5.1.1'!G13 -> 2010 | H12: ='5.1.1'!H13 -> 2011 | I12: ='5.1.1'!I13 -> 2012 | J12: ='5.1.1'!J13 -> 2013 | K12: ='5.1.1'!K13 -> 2014 | L12: ='5.1.1'!L13 -> 2015 | M12: ='5.1.1'!M13 -> 0 | N12: ='5.1.1'!N13 -> Ledger Code | O12: ='5.1.1'!O13 -> Relevant Notes | P12: ='5.1.1'!P13 -> Supporting Documents | Q12: ='5.1.1'!Q13 -> 0 | R12: ='5.1.1'!R13 -> 0 | S12: ='5.1.1'!S13 -> 0 | T12: ='5.1.1'!T13 -> 0 | U12: ='5.1.1'!U13 -> 0 | V12: ='5.1.1'!V13 -> 0 | W12: ='5.1.1'!W13 -> 0 | X12: ='5.1.1'!X13 -> 0 | Y12: ='5.1.1'!Y13 -> 0 | AA12: Supporting Documents | AT12: =AS12 -> 
F13: V9 | G13: V9 | H13: V9 | I13: V9 | J13: V9 | K13: V9 | L13: V9
B14: ="Geographical Area 1 - "&'Business Details'!$D$12 -> Geographical Area 1 - Brisbane
B16: REVENUE FROM SERVICES | AC16: Dist | AD16: Prod1 | AE16: Prod2 | AF16: Item1 | AG16: Item2 | AH16: Item3 | AI16: Item4 | AJ16: Item5 | AK16: Item6 | AL16: Sign1 | AM16: Sign2
C17: Revenue from water services:
C18: Drinking water | E18: $'000 | F18: =(SUMIF(Datastore!$A:$A,$AC18&$AD18&$AF18&"|"&F$13&"|"&"FY"&RIGHT(F$12,2),Datastore!$G:$G)*$AL18+SUMIF(Datastore!$A:$A,$AC18&$AD18&$AG18&"|"&F$13&"|"&"FY"&RIGHT(F$12,2),Datastore!$G:$G)*$AL18+SUMIF(Datastore!$A:$A,$AC18&$AD18&$AH18&"|"&F$13&"|"&"FY"&RIGHT(F$12,2),Datastore!$G:$G)*$AL18+SUMIF(Datastore!$A:$A,$AC18&$AD18&$AI18&"|"&F$13&"|"&"FY"&RIGHT(F$12,2),Datastore!$G:$G)*$AL18+SUMIF(Datastore!$A:$A,$AC18&$AD18&$AJ18&"|"&F$13&"|"&"FY"&RIGHT(F$12,2),Datastore!$G:$G)*$AM18+SUMIF(Datastore!$A:$A,$AC18&$AD18&$AK18&"|"&F$13&"|"&"FY"&RIGHT(F$12,2),Datastore!$G:$G)*$AM18)/1000 -> 220601.1017 | G18: =(SUMIF(Datastore!$A:$A,$AC18&$AD18&$AF18&"|"&G$13&"|"&"FY"&RIGHT(G$12,2),Datastore!$G:$G)*$AL18+SUMIF(Datastore!$A:$A,$AC18&$AD18&$AG18&"|"&G$13&"|"&"FY"&RIGHT(G$12,2),Datastore!$G:$G)*$AL18+SUMIF(Datastore!$A:$A,$AC18&$AD18&$AH18&"|"&G$13&"|"&"FY"&RIGHT(G$12,2),Datastore!$G:$G)*$AL18+SUMIF(Datastore!$A:$A,$AC18&$AD18&$AI18&"|"&G$13&"|"&"FY"&RIGHT(G$12,2),Datastore!$G:$G)*$AL18+SUMIF(Datastore!$A:$A,$AC18&$AD18&$AJ18&"|"&G$13&"|"&"FY"&RIGHT(G$12,2),Datastore!$G:$G)*$AM18+SUMIF(Datastore!$A:$A,$AC18&$AD18&$AK18&"|"&G$13&"|"&"FY"&RIGHT(G$12,2),Datastore!$G:$G)*$AM18)/1000 -> 258243.1647 | H18: =(SUMIF(Datastore!$A:$A,$AC18&$AD18&$AF18&"|"&H$13&"|"&"FY"&RIGHT(H$12,2),Datastore!$G:$G)*$AL18+SUMIF(Datastore!$A:$A,$AC18&$AD18&$AG18&"|"&H$13&"|"&"FY"&RIGHT(H$12,2),Datastore!$G:$G)*$AL18+SUMIF(Datastore!$A:$A,$AC18&$AD18&$AH18&"|"&H$13&"|"&"FY"&RIGHT(H$12,2),Datastore!$G:$G)*$AL18+SUMIF(Datastore!$A:$A,$AC18&$AD18&$AI18&"|"&H$13&"|"&"FY"&RIGHT(H$12,2),Datastore!$G:$G)*$AL18+SUMIF(Datastore!$A:$A,$AC18&$AD18&$AJ18&"|"&H$13&"|"&"FY"&RIGHT(H$12,2),Datastore!$G:$G)*$AM18+SUMIF(Datastore!$A:$A,$AC18&$AD18&$AK18&"|"&H$13&"|"&"FY"&RIGHT(H$12,2),Datastore!$G:$G)*$AM18)/1000 -> 278943.9112 | I18: =(SUMIF(Datastore!$A:$A,$AC18&$AD18&$AF18&"|"&I$13&"|"&"FY"&RIGHT(I$12,2),Datastore!$G:$G)*$AL18+SUMIF(Datastore!$A:$A,$AC18&$AD18&$AG18&"|"&I$13&"|"&"FY"&RIGHT(I$12,2),Datastore!$G:$G)*$AL18+SUMIF(Datastore!$A:$A,$AC18&$AD18&$AH18&"|"&I$13&"|"&"FY"&RIGHT(I$12,2),Datastore!$G:$G)*$AL18+SUMIF(Datastore!$A:$A,$AC18&$AD18&$AI18&"|"&I$13&"|"&"FY"&RIGHT(I$12,2),Datastore!$G:$G)*$AL18+SUMIF(Datastore!$A:$A,$AC18&$AD18&$AJ18&"|"&I$13&"|"&"FY"&RIGHT(I$12,2),Datastore!$G:$G)*$AM18+SUMIF(Datastore!$A:$A,$AC18&$AD18&$AK18&"|"&I$13&"|"&"FY"&RIGHT(I$12,2),Datastore!$G:$G)*$AM18)/1000 -> 332181.1437 | J18: =(SUMIF(Datastore!$A:$A,$AC18&$AD18&$AF18&"|"&J$13&"|"&"FY"&RIGHT(J$12,2),Datastore!$G:$G)*$AL18+SUMIF(Datastore!$A:$A,$AC18&$AD18&$AG18&"|"&J$13&"|"&"FY"&RIGHT(J$12,2),Datastore!$G:$G)*$AL18+SUMIF(Datastore!$A:$A,$AC18&$AD18&$AH18&"|"&J$13&"|"&"FY"&RIGHT(J$12,2),Datastore!$G:$G)*$AL18+SUMIF(Datastore!$A:$A,$AC18&$AD18&$AI18&"|"&J$13&"|"&"FY"&RIGHT(J$12,2),Datastore!$G:$G)*$AL18+SUMIF(Datastore!$A:$A,$AC18&$AD18&$AJ18&"|"&J$13&"|"&"FY"&RIGHT(J$12,2),Datastore!$G:$G)*$AM18+SUMIF(Datastore!$A:$A,$AC18&$AD18&$AK18&"|"&J$13&"|"&"FY"&RIGHT(J$12,2),Datastore!$G:$G)*$AM18)/1000 -> 372962.5879 | K18: =(SUMIF(Datastore!$A:$A,$AC18&$AD18&$AF18&"|"&K$13&"|"&"FY"&RIGHT(K$12,2),Datastore!$G:$G)*$AL18+SUMIF(Datastore!$A:$A,$AC18&$AD18&$AG18&"|"&K$13&"|"&"FY"&RIGHT(K$12,2),Datastore!$G:$G)*$AL18+SUMIF(Datastore!$A:$A,$AC18&$AD18&$AH18&"|"&K$13&"|"&"FY"&RIGHT(K$12,2),Datastore!$G:$G)*$AL18+SUMIF(Datastore!$A:$A,$AC18&$AD18&$AI18&"|"&K$13&"|"&"FY"&RIGHT(K$12,2),Datastore!$G:$G)*$AL18+SUMIF(Datastore!$A:$A,$AC18&$AD18&$AJ18&"|"&K$13&"|"&"FY"&RIGHT(K$12,2),Datastore!$G:$G)*$AM18+SUMIF(Datastore!$A:$A,$AC18&$AD18&$AK18&"|"&K$13&"|"&"FY"&RIGHT(K$12,2),Datastore!$G:$G)*$AM18)/1000 -> 407531.7921 | L18: =(SUMIF(Datastore!$A:$A,$AC18&$AD18&$AF18&"|"&L$13&"|"&"FY"&RIGHT(L$12,2),Datastore!$G:$G)*$AL18+SUMIF(Datastore!$A:$A,$AC18&$AD18&$AG18&"|"&L$13&"|"&"FY"&RIGHT(L$12,2),Datastore!$G:$G)*$AL18+SUMIF(Datastore!$A:$A,$AC18&$AD18&$AH18&"|"&L$13&"|"&"FY"&RIGHT(L$12,2),Datastore!$G:$G)*$AL18+SUMIF(Datastore!$A:$A,$AC18&$AD18&$AI18&"|"&L$13&"|"&"FY"&RIGHT(L$12,2),Datastore!$G:$G)*$AL18+SUMIF(Datastore!$A:$A,$AC18&$AD18&$AJ18&"|"&L$13&"|"&"FY"&RIGHT(L$12,2),Datastore!$G:$G)*$AM18+SUMIF(Datastore!$A:$A,$AC18&$AD18&$AK18&"|"&L$13&"|"&"FY"&RIGHT(L$12,2),Datastore!$G:$G)*$AM18)/1000 -> 449797.6993 | AC18: 40 | AD18: 1 | AF18: |RU?? | AG18: |RR?? | AH18: |ROOI | AI18: |x | AJ18: |x | AK18: |x | AL18: -1 | AM18: 1
C19: Other core water services | E19: $'000
C21: Revenue from wastewater services:
C22: Wastewater via sewer | E22: $'000 | F22: =(SUMIF(Datastore!$A:$A,$AC22&$AD22&$AF22&"|"&F$13&"|"&"FY"&RIGHT(F$12,2),Datastore!$G:$G)*$AL22+SUMIF(Datastore!$A:$A,$AC22&$AD22&$AG22&"|"&F$13&"|"&"FY"&RIGHT(F$12,2),Datastore!$G:$G)*$AL22+SUMIF(Datastore!$A:$A,$AC22&$AD22&$AH22&"|"&F$13&"|"&"FY"&RIGHT(F$12,2),Datastore!$G:$G)*$AL22+SUMIF(Datastore!$A:$A,$AC22&$AD22&$AI22&"|"&F$13&"|"&"FY"&RIGHT(F$12,2),Datastore!$G:$G)*$AL22+SUMIF(Datastore!$A:$A,$AC22&$AD22&$AJ22&"|"&F$13&"|"&"FY"&RIGHT(F$12,2),Datastore!$G:$G)*$AM22+SUMIF(Datastore!$A:$A,$AC22&$AD22&$AK22&"|"&F$13&"|"&"FY"&RIGHT(F$12,2),Datastore!$G:$G)*$AM22)/1000 -> 228125.1387 | G22: =(SUMIF(Datastore!$A:$A,$AC22&$AD22&$AF22&"|"&G$13&"|"&"FY"&RIGHT(G$12,2),Datastore!$G:$G)*$AL22+SUMIF(Datastore!$A:$A,$AC22&$AD22&$AG22&"|"&G$13&"|"&"FY"&RIGHT(G$12,2),Datastore!$G:$G)*$AL22+SUMIF(Datastore!$A:$A,$AC22&$AD22&$AH22&"|"&G$13&"|"&"FY"&RIGHT(G$12,2),Datastore!$G:$G)*$AL22+SUMIF(Datastore!$A:$A,$AC22&$AD22&$AI22&"|"&G$13&"|"&"FY"&RIGHT(G$12,2),Datastore!$G:$G)*$AL22+SUMIF(Datastore!$A:$A,$AC22&$AD22&$AJ22&"|"&G$13&"|"&"FY"&RIGHT(G$12,2),Datastore!$G:$G)*$AM22+SUMIF(Datastore!$A:$A,$AC22&$AD22&$AK22&"|"&G$13&"|"&"FY"&RIGHT(G$12,2),Datastore!$G:$G)*$AM22)/1000 -> 249954.7863 | H22: =(SUMIF(Datastore!$A:$A,$AC22&$AD22&$AF22&"|"&H$13&"|"&"FY"&RIGHT(H$12,2),Datastore!$G:$G)*$AL22+SUMIF(Datastore!$A:$A,$AC22&$AD22&$AG22&"|"&H$13&"|"&"FY"&RIGHT(H$12,2),Datastore!$G:$G)*$AL22+SUMIF(Datastore!$A:$A,$AC22&$AD22&$AH22&"|"&H$13&"|"&"FY"&RIGHT(H$12,2),Datastore!$G:$G)*$AL22+SUMIF(Datastore!$A:$A,$AC22&$AD22&$AI22&"|"&H$13&"|"&"FY"&RIGHT(H$12,2),Datastore!$G:$G)*$AL22+SUMIF(Datastore!$A:$A,$AC22&$AD22&$AJ22&"|"&H$13&"|"&"FY"&RIGHT(H$12,2),Datastore!$G:$G)*$AM22+SUMIF(Datastore!$A:$A,$AC22&$AD22&$AK22&"|"&H$13&"|"&"FY"&RIGHT(H$12,2),Datastore!$G:$G)*$AM22)/1000 -> 274364.8536 | I22: =(SUMIF(Datastore!$A:$A,$AC22&$AD22&$AF22&"|"&I$13&"|"&"FY"&RIGHT(I$12,2),Datastore!$G:$G)*$AL22+SUMIF(Datastore!$A:$A,$AC22&$AD22&$AG22&"|"&I$13&"|"&"FY"&RIGHT(I$12,2),Datastore!$G:$G)*$AL22+SUMIF(Datastore!$A:$A,$AC22&$AD22&$AH22&"|"&I$13&"|"&"FY"&RIGHT(I$12,2),Datastore!$G:$G)*$AL22+SUMIF(Datastore!$A:$A,$AC22&$AD22&$AI22&"|"&I$13&"|"&"FY"&RIGHT(I$12,2),Datastore!$G:$G)*$AL22+SUMIF(Datastore!$A:$A,$AC22&$AD22&$AJ22&"|"&I$13&"|"&"FY"&RIGHT(I$12,2),Datastore!$G:$G)*$AM22+SUMIF(Datastore!$A:$A,$AC22&$AD22&$AK22&"|"&I$13&"|"&"FY"&RIGHT(I$12,2),Datastore!$G:$G)*$AM22)/1000 -> 289468.3693 | J22: =(SUMIF(Datastore!$A:$A,$AC22&$AD22&$AF22&"|"&J$13&"|"&"FY"&RIGHT(J$12,2),Datastore!$G:$G)*$AL22+SUMIF(Datastore!$A:$A,$AC22&$AD22&$AG22&"|"&J$13&"|"&"FY"&RIGHT(J$12,2),Datastore!$G:$G)*$AL22+SUMIF(Datastore!$A:$A,$AC22&$AD22&$AH22&"|"&J$13&"|"&"FY"&RIGHT(J$12,2),Datastore!$G:$G)*$AL22+SUMIF(Datastore!$A:$A,$AC22&$AD22&$AI22&"|"&J$13&"|"&"FY"&RIGHT(J$12,2),Datastore!$G:$G)*$AL22+SUMIF(Datastore!$A:$A,$AC22&$AD22&$AJ22&"|"&J$13&"|"&"FY"&RIGHT(J$12,2),Datastore!$G:$G)*$AM22+SUMIF(Datastore!$A:$A,$AC22&$AD22&$AK22&"|"&J$13&"|"&"FY"&RIGHT(J$12,2),Datastore!$G:$G)*$AM22)/1000 -> 291806.3846 | K22: =(SUMIF(Datastore!$A:$A,$AC22&$AD22&$AF22&"|"&K$13&"|"&"FY"&RIGHT(K$12,2),Datastore!$G:$G)*$AL22+SUMIF(Datastore!$A:$A,$AC22&$AD22&$AG22&"|"&K$13&"|"&"FY"&RIGHT(K$12,2),Datastore!$G:$G)*$AL22+SUMIF(Datastore!$A:$A,$AC22&$AD22&$AH22&"|"&K$13&"|"&"FY"&RIGHT(K$12,2),Datastore!$G:$G)*$AL22+SUMIF(Datastore!$A:$A,$AC22&$AD22&$AI22&"|"&K$13&"|"&"FY"&RIGHT(K$12,2),Datastore!$G:$G)*$AL22+SUMIF(Datastore!$A:$A,$AC22&$AD22&$AJ22&"|"&K$13&"|"&"FY"&RIGHT(K$12,2),Datastore!$G:$G)*$AM22+SUMIF(Datastore!$A:$A,$AC22&$AD22&$AK22&"|"&K$13&"|"&"FY"&RIGHT(K$12,2),Datastore!$G:$G)*$AM22)/1000 -> 306039.6999 | L22: =(SUMIF(Datastore!$A:$A,$AC22&$AD22&$AF22&"|"&L$13&"|"&"FY"&RIGHT(L$12,2),Datastore!$G:$G)*$AL22+SUMIF(Datastore!$A:$A,$AC22&$AD22&$AG22&"|"&L$13&"|"&"FY"&RIGHT(L$12,2),Datastore!$G:$G)*$AL22+SUMIF(Datastore!$A:$A,$AC22&$AD22&$AH22&"|"&L$13&"|"&"FY"&RIGHT(L$12,2),Datastore!$G:$G)*$AL22+SUMIF(Datastore!$A:$A,$AC22&$AD22&$AI22&"|"&L$13&"|"&"FY"&RIGHT(L$12,2),Datastore!$G:$G)*$AL22+SUMIF(Datastore!$A:$A,$AC22&$AD22&$AJ22&"|"&L$13&"|"&"FY"&RIGHT(L$12,2),Datastore!$G:$G)*$AM22+SUMIF(Datastore!$A:$A,$AC22&$AD22&$AK22&"|"&L$13&"|"&"FY"&RIGHT(L$12,2),Datastore!$G:$G)*$AM22)/1000 -> 323197.7125 | AC22: 40 | AD22: 2 | AF22: |RU?? | AG22: |RR?? | AH22: |ROOI | AI22: |x | AJ22: |RUTW | AK22: |RURW | AL22: -1 | AM22: 1
C23: Trade waste | E23: $'000 | F23: =(SUMIF(Datastore!$A:$A,$AC23&$AD23&$AF23&"|"&F$13&"|"&"FY"&RIGHT(F$12,2),Datastore!$G:$G)*$AL23+SUMIF(Datastore!$A:$A,$AC23&$AD23&$AG23&"|"&F$13&"|"&"FY"&RIGHT(F$12,2),Datastore!$G:$G)*$AL23+SUMIF(Datastore!$A:$A,$AC23&$AD23&$AH23&"|"&F$13&"|"&"FY"&RIGHT(F$12,2),Datastore!$G:$G)*$AL23+SUMIF(Datastore!$A:$A,$AC23&$AD23&$AI23&"|"&F$13&"|"&"FY"&RIGHT(F$12,2),Datastore!$G:$G)*$AL23+SUMIF(Datastore!$A:$A,$AC23&$AD23&$AJ23&"|"&F$13&"|"&"FY"&RIGHT(F$12,2),Datastore!$G:$G)*$AM23+SUMIF(Datastore!$A:$A,$AC23&$AD23&$AK23&"|"&F$13&"|"&"FY"&RIGHT(F$12,2),Datastore!$G:$G)*$AM23)/1000 -> 16517.65082 | G23: =(SUMIF(Datastore!$A:$A,$AC23&$AD23&$AF23&"|"&G$13&"|"&"FY"&RIGHT(G$12,2),Datastore!$G:$G)*$AL23+SUMIF(Datastore!$A:$A,$AC23&$AD23&$AG23&"|"&G$13&"|"&"FY"&RIGHT(G$12,2),Datastore!$G:$G)*$AL23+SUMIF(Datastore!$A:$A,$AC23&$AD23&$AH23&"|"&G$13&"|"&"FY"&RIGHT(G$12,2),Datastore!$G:$G)*$AL23+SUMIF(Datastore!$A:$A,$AC23&$AD23&$AI23&"|"&G$13&"|"&"FY"&RIGHT(G$12,2),Datastore!$G:$G)*$AL23+SUMIF(Datastore!$A:$A,$AC23&$AD23&$AJ23&"|"&G$13&"|"&"FY"&RIGHT(G$12,2),Datastore!$G:$G)*$AM23+SUMIF(Datastore!$A:$A,$AC23&$AD23&$AK23&"|"&G$13&"|"&"FY"&RIGHT(G$12,2),Datastore!$G:$G)*$AM23)/1000 -> 17667.70381 | H23: =(SUMIF(Datastore!$A:$A,$AC23&$AD23&$AF23&"|"&H$13&"|"&"FY"&RIGHT(H$12,2),Datastore!$G:$G)*$AL23+SUMIF(Datastore!$A:$A,$AC23&$AD23&$AG23&"|"&H$13&"|"&"FY"&RIGHT(H$12,2),Datastore!$G:$G)*$AL23+SUMIF(Datastore!$A:$A,$AC23&$AD23&$AH23&"|"&H$13&"|"&"FY"&RIGHT(H$12,2),Datastore!$G:$G)*$AL23+SUMIF(Datastore!$A:$A,$AC23&$AD23&$AI23&"|"&H$13&"|"&"FY"&RIGHT(H$12,2),Datastore!$G:$G)*$AL23+SUMIF(Datastore!$A:$A,$AC23&$AD23&$AJ23&"|"&H$13&"|"&"FY"&RIGHT(H$12,2),Datastore!$G:$G)*$AM23+SUMIF(Datastore!$A:$A,$AC23&$AD23&$AK23&"|"&H$13&"|"&"FY"&RIGHT(H$12,2),Datastore!$G:$G)*$AM23)/1000 -> 17476.69328 | I23: =(SUMIF(Datastore!$A:$A,$AC23&$AD23&$AF23&"|"&I$13&"|"&"FY"&RIGHT(I$12,2),Datastore!$G:$G)*$AL23+SUMIF(Datastore!$A:$A,$AC23&$AD23&$AG23&"|"&I$13&"|"&"FY"&RIGHT(I$12,2),Datastore!$G:$G)*$AL23+SUMIF(Datastore!$A:$A,$AC23&$AD23&$AH23&"|"&I$13&"|"&"FY"&RIGHT(I$12,2),Datastore!$G:$G)*$AL23+SUMIF(Datastore!$A:$A,$AC23&$AD23&$AI23&"|"&I$13&"|"&"FY"&RIGHT(I$12,2),Datastore!$G:$G)*$AL23+SUMIF(Datastore!$A:$A,$AC23&$AD23&$AJ23&"|"&I$13&"|"&"FY"&RIGHT(I$12,2),Datastore!$G:$G)*$AM23+SUMIF(Datastore!$A:$A,$AC23&$AD23&$AK23&"|"&I$13&"|"&"FY"&RIGHT(I$12,2),Datastore!$G:$G)*$AM23)/1000 -> 17943.8959 | J23: =(SUMIF(Datastore!$A:$A,$AC23&$AD23&$AF23&"|"&J$13&"|"&"FY"&RIGHT(J$12,2),Datastore!$G:$G)*$AL23+SUMIF(Datastore!$A:$A,$AC23&$AD23&$AG23&"|"&J$13&"|"&"FY"&RIGHT(J$12,2),Datastore!$G:$G)*$AL23+SUMIF(Datastore!$A:$A,$AC23&$AD23&$AH23&"|"&J$13&"|"&"FY"&RIGHT(J$12,2),Datastore!$G:$G)*$AL23+SUMIF(Datastore!$A:$A,$AC23&$AD23&$AI23&"|"&J$13&"|"&"FY"&RIGHT(J$12,2),Datastore!$G:$G)*$AL23+SUMIF(Datastore!$A:$A,$AC23&$AD23&$AJ23&"|"&J$13&"|"&"FY"&RIGHT(J$12,2),Datastore!$G:$G)*$AM23+SUMIF(Datastore!$A:$A,$AC23&$AD23&$AK23&"|"&J$13&"|"&"FY"&RIGHT(J$12,2),Datastore!$G:$G)*$AM23)/1000 -> 18103.61465 | K23: =(SUMIF(Datastore!$A:$A,$AC23&$AD23&$AF23&"|"&K$13&"|"&"FY"&RIGHT(K$12,2),Datastore!$G:$G)*$AL23+SUMIF(Datastore!$A:$A,$AC23&$AD23&$AG23&"|"&K$13&"|"&"FY"&RIGHT(K$12,2),Datastore!$G:$G)*$AL23+SUMIF(Datastore!$A:$A,$AC23&$AD23&$AH23&"|"&K$13&"|"&"FY"&RIGHT(K$12,2),Datastore!$G:$G)*$AL23+SUMIF(Datastore!$A:$A,$AC23&$AD23&$AI23&"|"&K$13&"|"&"FY"&RIGHT(K$12,2),Datastore!$G:$G)*$AL23+SUMIF(Datastore!$A:$A,$AC23&$AD23&$AJ23&"|"&K$13&"|"&"FY"&RIGHT(K$12,2),Datastore!$G:$G)*$AM23+SUMIF(Datastore!$A:$A,$AC23&$AD23&$AK23&"|"&K$13&"|"&"FY"&RIGHT(K$12,2),Datastore!$G:$G)*$AM23)/1000 -> 18372 | L23: =(SUMIF(Datastore!$A:$A,$AC23&$AD23&$AF23&"|"&L$13&"|"&"FY"&RIGHT(L$12,2),Datastore!$G:$G)*$AL23+SUMIF(Datastore!$A:$A,$AC23&$AD23&$AG23&"|"&L$13&"|"&"FY"&RIGHT(L$12,2),Datastore!$G:$G)*$AL23+SUMIF(Datastore!$A:$A,$AC23&$AD23&$AH23&"|"&L$13&"|"&"FY"&RIGHT(L$12,2),Datastore!$G:$G)*$AL23+SUMIF(Datastore!$A:$A,$AC23&$AD23&$AI23&"|"&L$13&"|"&"FY"&RIGHT(L$12,2),Datastore!$G:$G)*$AL23+SUMIF(Datastore!$A:$A,$AC23&$AD23&$AJ23&"|"&L$13&"|"&"FY"&RIGHT(L$12,2),Datastore!$G:$G)*$AM23+SUMIF(Datastore!$A:$A,$AC23&$AD23&$AK23&"|"&L$13&"|"&"FY"&RIGHT(L$12,2),Datastore!$G:$G)*$AM23)/1000 -> 19301.91319 | AC23: 40 | AD23: 2 | AF23: |RUTW | AG23: |x | AH23: |x | AI23: |x | AJ23: |x | AK23: |x | AL23: -1 | AM23: 1
C24: Other core wastewater services | E24: $'000 | F24: =(SUMIF(Datastore!$A:$A,$AC24&$AD24&$AF24&"|"&F$13&"|"&"FY"&RIGHT(F$12,2),Datastore!$G:$G)*$AL24+SUMIF(Datastore!$A:$A,$AC24&$AD24&$AG24&"|"&F$13&"|"&"FY"&RIGHT(F$12,2),Datastore!$G:$G)*$AL24+SUMIF(Datastore!$A:$A,$AC24&$AD24&$AH24&"|"&F$13&"|"&"FY"&RIGHT(F$12,2),Datastore!$G:$G)*$AL24+SUMIF(Datastore!$A:$A,$AC24&$AD24&$AI24&"|"&F$13&"|"&"FY"&RIGHT(F$12,2),Datastore!$G:$G)*$AL24+SUMIF(Datastore!$A:$A,$AC24&$AD24&$AJ24&"|"&F$13&"|"&"FY"&RIGHT(F$12,2),Datastore!$G:$G)*$AM24+SUMIF(Datastore!$A:$A,$AC24&$AD24&$AK24&"|"&F$13&"|"&"FY"&RIGHT(F$12,2),Datastore!$G:$G)*$AM24)/1000 -> 359.15549 | G24: =(SUMIF(Datastore!$A:$A,$AC24&$AD24&$AF24&"|"&G$13&"|"&"FY"&RIGHT(G$12,2),Datastore!$G:$G)*$AL24+SUMIF(Datastore!$A:$A,$AC24&$AD24&$AG24&"|"&G$13&"|"&"FY"&RIGHT(G$12,2),Datastore!$G:$G)*$AL24+SUMIF(Datastore!$A:$A,$AC24&$AD24&$AH24&"|"&G$13&"|"&"FY"&RIGHT(G$12,2),Datastore!$G:$G)*$AL24+SUMIF(Datastore!$A:$A,$AC24&$AD24&$AI24&"|"&G$13&"|"&"FY"&RIGHT(G$12,2),Datastore!$G:$G)*$AL24+SUMIF(Datastore!$A:$A,$AC24&$AD24&$AJ24&"|"&G$13&"|"&"FY"&RIGHT(G$12,2),Datastore!$G:$G)*$AM24+SUMIF(Datastore!$A:$A,$AC24&$AD24&$AK24&"|"&G$13&"|"&"FY"&RIGHT(G$12,2),Datastore!$G:$G)*$AM24)/1000 -> 0 | H24: =(SUMIF(Datastore!$A:$A,$AC24&$AD24&$AF24&"|"&H$13&"|"&"FY"&RIGHT(H$12,2),Datastore!$G:$G)*$AL24+SUMIF(Datastore!$A:$A,$AC24&$AD24&$AG24&"|"&H$13&"|"&"FY"&RIGHT(H$12,2),Datastore!$G:$G)*$AL24+SUMIF(Datastore!$A:$A,$AC24&$AD24&$AH24&"|"&H$13&"|"&"FY"&RIGHT(H$12,2),Datastore!$G:$G)*$AL24+SUMIF(Datastore!$A:$A,$AC24&$AD24&$AI24&"|"&H$13&"|"&"FY"&RIGHT(H$12,2),Datastore!$G:$G)*$AL24+SUMIF(Datastore!$A:$A,$AC24&$AD24&$AJ24&"|"&H$13&"|"&"FY"&RIGHT(H$12,2),Datastore!$G:$G)*$AM24+SUMIF(Datastore!$A:$A,$AC24&$AD24&$AK24&"|"&H$13&"|"&"FY"&RIGHT(H$12,2),Datastore!$G:$G)*$AM24)/1000 -> 8205.57926 | I24: =(SUMIF(Datastore!$A:$A,$AC24&$AD24&$AF24&"|"&I$13&"|"&"FY"&RIGHT(I$12,2),Datastore!$G:$G)*$AL24+SUMIF(Datastore!$A:$A,$AC24&$AD24&$AG24&"|"&I$13&"|"&"FY"&RIGHT(I$12,2),Datastore!$G:$G)*$AL24+SUMIF(Datastore!$A:$A,$AC24&$AD24&$AH24&"|"&I$13&"|"&"FY"&RIGHT(I$12,2),Datastore!$G:$G)*$AL24+SUMIF(Datastore!$A:$A,$AC24&$AD24&$AI24&"|"&I$13&"|"&"FY"&RIGHT(I$12,2),Datastore!$G:$G)*$AL24+SUMIF(Datastore!$A:$A,$AC24&$AD24&$AJ24&"|"&I$13&"|"&"FY"&RIGHT(I$12,2),Datastore!$G:$G)*$AM24+SUMIF(Datastore!$A:$A,$AC24&$AD24&$AK24&"|"&I$13&"|"&"FY"&RIGHT(I$12,2),Datastore!$G:$G)*$AM24)/1000 -> 8585.40981 | J24: =(SUMIF(Datastore!$A:$A,$AC24&$AD24&$AF24&"|"&J$13&"|"&"FY"&RIGHT(J$12,2),Datastore!$G:$G)*$AL24+SUMIF(Datastore!$A:$A,$AC24&$AD24&$AG24&"|"&J$13&"|"&"FY"&RIGHT(J$12,2),Datastore!$G:$G)*$AL24+SUMIF(Datastore!$A:$A,$AC24&$AD24&$AH24&"|"&J$13&"|"&"FY"&RIGHT(J$12,2),Datastore!$G:$G)*$AL24+SUMIF(Datastore!$A:$A,$AC24&$AD24&$AI24&"|"&J$13&"|"&"FY"&RIGHT(J$12,2),Datastore!$G:$G)*$AL24+SUMIF(Datastore!$A:$A,$AC24&$AD24&$AJ24&"|"&J$13&"|"&"FY"&RIGHT(J$12,2),Datastore!$G:$G)*$AM24+SUMIF(Datastore!$A:$A,$AC24&$AD24&$AK24&"|"&J$13&"|"&"FY"&RIGHT(J$12,2),Datastore!$G:$G)*$AM24)/1000 -> 9566.829 | K24: =(SUMIF(Datastore!$A:$A,$AC24&$AD24&$AF24&"|"&K$13&"|"&"FY"&RIGHT(K$12,2),Datastore!$G:$G)*$AL24+SUMIF(Datastore!$A:$A,$AC24&$AD24&$AG24&"|"&K$13&"|"&"FY"&RIGHT(K$12,2),Datastore!$G:$G)*$AL24+SUMIF(Datastore!$A:$A,$AC24&$AD24&$AH24&"|"&K$13&"|"&"FY"&RIGHT(K$12,2),Datastore!$G:$G)*$AL24+SUMIF(Datastore!$A:$A,$AC24&$AD24&$AI24&"|"&K$13&"|"&"FY"&RIGHT(K$12,2),Datastore!$G:$G)*$AL24+SUMIF(Datastore!$A:$A,$AC24&$AD24&$AJ24&"|"&K$13&"|"&"FY"&RIGHT(K$12,2),Datastore!$G:$G)*$AM24+SUMIF(Datastore!$A:$A,$AC24&$AD24&$AK24&"|"&K$13&"|"&"FY"&RIGHT(K$12,2),Datastore!$G:$G)*$AM24)/1000 -> 9832.323 | L24: =(SUMIF(Datastore!$A:$A,$AC24&$AD24&$AF24&"|"&L$13&"|"&"FY"&RIGHT(L$12,2),Datastore!$G:$G)*$AL24+SUMIF(Datastore!$A:$A,$AC24&$AD24&$AG24&"|"&L$13&"|"&"FY"&RIGHT(L$12,2),Datastore!$G:$G)*$AL24+SUMIF(Datastore!$A:$A,$AC24&$AD24&$AH24&"|"&L$13&"|"&"FY"&RIGHT(L$12,2),Datastore!$G:$G)*$AL24+SUMIF(Datastore!$A:$A,$AC24&$AD24&$AI24&"|"&L$13&"|"&"FY"&RIGHT(L$12,2),Datastore!$G:$G)*$AL24+SUMIF(Datastore!$A:$A,$AC24&$AD24&$AJ24&"|"&L$13&"|"&"FY"&RIGHT(L$12,2),Datastore!$G:$G)*$AM24+SUMIF(Datastore!$A:$A,$AC24&$AD24&$AK24&"|"&L$13&"|"&"FY"&RIGHT(L$12,2),Datastore!$G:$G)*$AM24)/1000 -> 10314.48655 | AC24: 40 | AD24: 2 | AF24: |RURW | AG24: |x | AH24: |x | AI24: |x | AJ24: |x | AK24: |x | AL24: -1 | AM24: 1
C26: Non-regulated:
C27: Aggregate non-regulated services | E27: $'000 | F27: =(SUMIF(Datastore!$A:$A,$AC27&$AD27&$AF27&"|"&F$13&"|"&"FY"&RIGHT(F$12,2),Datastore!$G:$G)*$AL27+SUMIF(Datastore!$A:$A,$AC27&$AD27&$AG27&"|"&F$13&"|"&"FY"&RIGHT(F$12,2),Datastore!$G:$G)*$AL27+SUMIF(Datastore!$A:$A,$AC27&$AD27&$AH27&"|"&F$13&"|"&"FY"&RIGHT(F$12,2),Datastore!$G:$G)*$AL27+SUMIF(Datastore!$A:$A,$AC27&$AD27&$AI27&"|"&F$13&"|"&"FY"&RIGHT(F$12,2),Datastore!$G:$G)*$AL27+SUMIF(Datastore!$A:$A,$AC27&$AD27&$AJ27&"|"&F$13&"|"&"FY"&RIGHT(F$12,2),Datastore!$G:$G)*$AM27+SUMIF(Datastore!$A:$A,$AC27&$AD27&$AK27&"|"&F$13&"|"&"FY"&RIGHT(F$12,2),Datastore!$G:$G)*$AM27)/1000 -> 15725.81483 | G27: =(SUMIF(Datastore!$A:$A,$AC27&$AD27&$AF27&"|"&G$13&"|"&"FY"&RIGHT(G$12,2),Datastore!$G:$G)*$AL27+SUMIF(Datastore!$A:$A,$AC27&$AD27&$AG27&"|"&G$13&"|"&"FY"&RIGHT(G$12,2),Datastore!$G:$G)*$AL27+SUMIF(Datastore!$A:$A,$AC27&$AD27&$AH27&"|"&G$13&"|"&"FY"&RIGHT(G$12,2),Datastore!$G:$G)*$AL27+SUMIF(Datastore!$A:$A,$AC27&$AD27&$AI27&"|"&G$13&"|"&"FY"&RIGHT(G$12,2),Datastore!$G:$G)*$AL27+SUMIF(Datastore!$A:$A,$AC27&$AD27&$AJ27&"|"&G$13&"|"&"FY"&RIGHT(G$12,2),Datastore!$G:$G)*$AM27+SUMIF(Datastore!$A:$A,$AC27&$AD27&$AK27&"|"&G$13&"|"&"FY"&RIGHT(G$12,2),Datastore!$G:$G)*$AM27)/1000 -> 14558.07126 | H27: =(SUMIF(Datastore!$A:$A,$AC27&$AD27&$AF27&"|"&H$13&"|"&"FY"&RIGHT(H$12,2),Datastore!$G:$G)*$AL27+SUMIF(Datastore!$A:$A,$AC27&$AD27&$AG27&"|"&H$13&"|"&"FY"&RIGHT(H$12,2),Datastore!$G:$G)*$AL27+SUMIF(Datastore!$A:$A,$AC27&$AD27&$AH27&"|"&H$13&"|"&"FY"&RIGHT(H$12,2),Datastore!$G:$G)*$AL27+SUMIF(Datastore!$A:$A,$AC27&$AD27&$AI27&"|"&H$13&"|"&"FY"&RIGHT(H$12,2),Datastore!$G:$G)*$AL27+SUMIF(Datastore!$A:$A,$AC27&$AD27&$AJ27&"|"&H$13&"|"&"FY"&RIGHT(H$12,2),Datastore!$G:$G)*$AM27+SUMIF(Datastore!$A:$A,$AC27&$AD27&$AK27&"|"&H$13&"|"&"FY"&RIGHT(H$12,2),Datastore!$G:$G)*$AM27)/1000 -> 12610.72448 | I27: =(SUMIF(Datastore!$A:$A,$AC27&$AD27&$AF27&"|"&I$13&"|"&"FY"&RIGHT(I$12,2),Datastore!$G:$G)*$AL27+SUMIF(Datastore!$A:$A,$AC27&$AD27&$AG27&"|"&I$13&"|"&"FY"&RIGHT(I$12,2),Datastore!$G:$G)*$AL27+SUMIF(Datastore!$A:$A,$AC27&$AD27&$AH27&"|"&I$13&"|"&"FY"&RIGHT(I$12,2),Datastore!$G:$G)*$AL27+SUMIF(Datastore!$A:$A,$AC27&$AD27&$AI27&"|"&I$13&"|"&"FY"&RIGHT(I$12,2),Datastore!$G:$G)*$AL27+SUMIF(Datastore!$A:$A,$AC27&$AD27&$AJ27&"|"&I$13&"|"&"FY"&RIGHT(I$12,2),Datastore!$G:$G)*$AM27+SUMIF(Datastore!$A:$A,$AC27&$AD27&$AK27&"|"&I$13&"|"&"FY"&RIGHT(I$12,2),Datastore!$G:$G)*$AM27)/1000 -> 2028.67357 | J27: =(SUMIF(Datastore!$A:$A,$AC27&$AD27&$AF27&"|"&J$13&"|"&"FY"&RIGHT(J$12,2),Datastore!$G:$G)*$AL27+SUMIF(Datastore!$A:$A,$AC27&$AD27&$AG27&"|"&J$13&"|"&"FY"&RIGHT(J$12,2),Datastore!$G:$G)*$AL27+SUMIF(Datastore!$A:$A,$AC27&$AD27&$AH27&"|"&J$13&"|"&"FY"&RIGHT(J$12,2),Datastore!$G:$G)*$AL27+SUMIF(Datastore!$A:$A,$AC27&$AD27&$AI27&"|"&J$13&"|"&"FY"&RIGHT(J$12,2),Datastore!$G:$G)*$AL27+SUMIF(Datastore!$A:$A,$AC27&$AD27&$AJ27&"|"&J$13&"|"&"FY"&RIGHT(J$12,2),Datastore!$G:$G)*$AM27+SUMIF(Datastore!$A:$A,$AC27&$AD27&$AK27&"|"&J$13&"|"&"FY"&RIGHT(J$12,2),Datastore!$G:$G)*$AM27)/1000 -> 4037.735 | K27: =(SUMIF(Datastore!$A:$A,$AC27&$AD27&$AF27&"|"&K$13&"|"&"FY"&RIGHT(K$12,2),Datastore!$G:$G)*$AL27+SUMIF(Datastore!$A:$A,$AC27&$AD27&$AG27&"|"&K$13&"|"&"FY"&RIGHT(K$12,2),Datastore!$G:$G)*$AL27+SUMIF(Datastore!$A:$A,$AC27&$AD27&$AH27&"|"&K$13&"|"&"FY"&RIGHT(K$12,2),Datastore!$G:$G)*$AL27+SUMIF(Datastore!$A:$A,$AC27&$AD27&$AI27&"|"&K$13&"|"&"FY"&RIGHT(K$12,2),Datastore!$G:$G)*$AL27+SUMIF(Datastore!$A:$A,$AC27&$AD27&$AJ27&"|"&K$13&"|"&"FY"&RIGHT(K$12,2),Datastore!$G:$G)*$AM27+SUMIF(Datastore!$A:$A,$AC27&$AD27&$AK27&"|"&K$13&"|"&"FY"&RIGHT(K$12,2),Datastore!$G:$G)*$AM27)/1000 -> 3802.555896 | L27: =(SUMIF(Datastore!$A:$A,$AC27&$AD27&$AF27&"|"&L$13&"|"&"FY"&RIGHT(L$12,2),Datastore!$G:$G)*$AL27+SUMIF(Datastore!$A:$A,$AC27&$AD27&$AG27&"|"&L$13&"|"&"FY"&RIGHT(L$12,2),Datastore!$G:$G)*$AL27+SUMIF(Datastore!$A:$A,$AC27&$AD27&$AH27&"|"&L$13&"|"&"FY"&RIGHT(L$12,2),Datastore!$G:$G)*$AL27+SUMIF(Datastore!$A:$A,$AC27&$AD27&$AI27&"|"&L$13&"|"&"FY"&RIGHT(L$12,2),Datastore!$G:$G)*$AL27+SUMIF(Datastore!$A:$A,$AC27&$AD27&$AJ27&"|"&L$13&"|"&"FY"&RIGHT(L$12,2),Datastore!$G:$G)*$AM27+SUMIF(Datastore!$A:$A,$AC27&$AD27&$AK27&"|"&L$13&"|"&"FY"&RIGHT(L$12,2),Datastore!$G:$G)*$AM27)/1000 -> 4019.301582 | AC27: 40 | AD27: 4 | AF27: |R??? | AG27: |x | AH27: |x | AI27: |x | AJ27: |x | AK27: |x | AL27: -1 | AM27: 1
C29: Subtotal Revenue from Services | E29: $'000 | F29: =SUM(F18:F19)+SUM(F22:F24)+F27 -> 481328.8616 | G29: =SUM(G18:G19)+SUM(G22:G24)+G27 -> 540423.726 | H29: 591601.7618 | I29: 650207.4923 | J29: 696477.1512 | K29: =SUM(K18:K19)+SUM(K22:K24)+K27 -> 745578.3709 | L29: 806631.1131 | M29: 0 | N29: 0 | O29: 0 | P29: 0 | Q29: 0 | R29: 0 | S29: 0 | T29: 0 | U29: 0 | V29: 0 | W29: 0 | X29: 0 | Y29: 0
B31: OTHER REVENUE
C32: Other Revenue Offset Against Revenue Requirements:
C33: Investment Income | E33: $'000 | F33: =(SUMIF(Datastore!$A:$A,$AC33&$AD33&$AF33&"|"&F$13&"|"&"FY"&RIGHT(F$12,2),Datastore!$G:$G)+SUMIF(Datastore!$A:$A,$AC33&$AE33&$AF33&"|"&F$13&"|"&"FY"&RIGHT(F$12,2),Datastore!$G:$G))*$AL33/1000 -> 600 | G33: =(SUMIF(Datastore!$A:$A,$AC33&$AD33&$AF33&"|"&G$13&"|"&"FY"&RIGHT(G$12,2),Datastore!$G:$G)+SUMIF(Datastore!$A:$A,$AC33&$AE33&$AF33&"|"&G$13&"|"&"FY"&RIGHT(G$12,2),Datastore!$G:$G))*$AL33/1000 -> 499.88915 | H33: =(SUMIF(Datastore!$A:$A,$AC33&$AD33&$AF33&"|"&H$13&"|"&"FY"&RIGHT(H$12,2),Datastore!$G:$G)+SUMIF(Datastore!$A:$A,$AC33&$AE33&$AF33&"|"&H$13&"|"&"FY"&RIGHT(H$12,2),Datastore!$G:$G))*$AL33/1000 -> 321.07604 | I33: =(SUMIF(Datastore!$A:$A,$AC33&$AD33&$AF33&"|"&I$13&"|"&"FY"&RIGHT(I$12,2),Datastore!$G:$G)+SUMIF(Datastore!$A:$A,$AC33&$AE33&$AF33&"|"&I$13&"|"&"FY"&RIGHT(I$12,2),Datastore!$G:$G))*$AL33/1000 -> 680.5363 | J33: =(SUMIF(Datastore!$A:$A,$AC33&$AD33&$AF33&"|"&J$13&"|"&"FY"&RIGHT(J$12,2),Datastore!$G:$G)+SUMIF(Datastore!$A:$A,$AC33&$AE33&$AF33&"|"&J$13&"|"&"FY"&RIGHT(J$12,2),Datastore!$G:$G))*$AL33/1000 -> 350 | K33: =(SUMIF(Datastore!$A:$A,$AC33&$AD33&$AF33&"|"&K$13&"|"&"FY"&RIGHT(K$12,2),Datastore!$G:$G)+SUMIF(Datastore!$A:$A,$AC33&$AE33&$AF33&"|"&K$13&"|"&"FY"&RIGHT(K$12,2),Datastore!$G:$G))*$AL33/1000 -> 358.75 | L33: =(SUMIF(Datastore!$A:$A,$AC33&$AD33&$AF33&"|"&L$13&"|"&"FY"&RIGHT(L$12,2),Datastore!$G:$G)+SUMIF(Datastore!$A:$A,$AC33&$AE33&$AF33&"|"&L$13&"|"&"FY"&RIGHT(L$12,2),Datastore!$G:$G))*$AL33/1000 -> 0 | AC33: 40 | AD33: 1 | AE33: 2 | AF33: |RFIN | AL33: -1
C34: Net profit from Sale of Assets | E34: $'000 | F34: =(SUMIF(Datastore!$A:$A,$AC34&$AD34&$AF34&"|"&F$13&"|"&"FY"&RIGHT(F$12,2),Datastore!$G:$G)+SUMIF(Datastore!$A:$A,$AC34&$AE34&$AF34&"|"&F$13&"|"&"FY"&RIGHT(F$12,2),Datastore!$G:$G))*$AL34/1000 -> -10591.817 | G34: =(SUMIF(Datastore!$A:$A,$AC34&$AD34&$AF34&"|"&G$13&"|"&"FY"&RIGHT(G$12,2),Datastore!$G:$G)+SUMIF(Datastore!$A:$A,$AC34&$AE34&$AF34&"|"&G$13&"|"&"FY"&RIGHT(G$12,2),Datastore!$G:$G))*$AL34/1000 -> -16603.97171 | AA34: Not forecast for regulatory purposes | AC34: 40 | AD34: 1 | AE34: 2 | AF34: |ELOD | AL34: -1
C35: Contributions | E35: $'000 | F35: =(SUMIF(Datastore!$A:$A,$AC35&$AD35&$AF35&"|"&F$13&"|"&"FY"&RIGHT(F$12,2),Datastore!$G:$G)+SUMIF(Datastore!$A:$A,$AC35&$AE35&$AF35&"|"&F$13&"|"&"FY"&RIGHT(F$12,2),Datastore!$G:$G))*$AL35/1000 -> 107123.5165 | G35: =(SUMIF(Datastore!$A:$A,$AC35&$AD35&$AF35&"|"&G$13&"|"&"FY"&RIGHT(G$12,2),Datastore!$G:$G)+SUMIF(Datastore!$A:$A,$AC35&$AE35&$AF35&"|"&G$13&"|"&"FY"&RIGHT(G$12,2),Datastore!$G:$G))*$AL35/1000 -> 149220.7903 | H35: =(SUMIF(Datastore!$A:$A,$AC35&$AD35&$AF35&"|"&H$13&"|"&"FY"&RIGHT(H$12,2),Datastore!$G:$G)+SUMIF(Datastore!$A:$A,$AC35&$AE35&$AF35&"|"&H$13&"|"&"FY"&RIGHT(H$12,2),Datastore!$G:$G))*$AL35/1000 -> 115314.9557 | I35: =(SUMIF(Datastore!$A:$A,$AC35&$AD35&$AF35&"|"&I$13&"|"&"FY"&RIGHT(I$12,2),Datastore!$G:$G)+SUMIF(Datastore!$A:$A,$AC35&$AE35&$AF35&"|"&I$13&"|"&"FY"&RIGHT(I$12,2),Datastore!$G:$G))*$AL35/1000 -> 100940.5917 | J35: =(SUMIF(Datastore!$A:$A,$AC35&$AD35&$AF35&"|"&J$13&"|"&"FY"&RIGHT(J$12,2),Datastore!$G:$G)+SUMIF(Datastore!$A:$A,$AC35&$AE35&$AF35&"|"&J$13&"|"&"FY"&RIGHT(J$12,2),Datastore!$G:$G))*$AL35/1000 -> 90931.46302 | K35: =(SUMIF(Datastore!$A:$A,$AC35&$AD35&$AF35&"|"&K$13&"|"&"FY"&RIGHT(K$12,2),Datastore!$G:$G)+SUMIF(Datastore!$A:$A,$AC35&$AE35&$AF35&"|"&K$13&"|"&"FY"&RIGHT(K$12,2),Datastore!$G:$G))*$AL35/1000 -> 109427.512 | L35: =(SUMIF(Datastore!$A:$A,$AC35&$AD35&$AF35&"|"&L$13&"|"&"FY"&RIGHT(L$12,2),Datastore!$G:$G)+SUMIF(Datastore!$A:$A,$AC35&$AE35&$AF35&"|"&L$13&"|"&"FY"&RIGHT(L$12,2),Datastore!$G:$G))*$AL35/1000 -> 105516.2952 | AC35: 40 | AD35: 1 | AE35: 2 | AF35: |RC?? | AL35: -1
C37: Other Revenue Not Offset Against Revenue Requirements:
C38: Non-recurrent Income | E38: $'000 | F38: =(SUMIF(Datastore!$A:$A,$AC38&$AD38&$AF38&"|"&F$13&"|"&"FY"&RIGHT(F$12,2),Datastore!$G:$G)+SUMIF(Datastore!$A:$A,$AC38&$AE38&$AF38&"|"&F$13&"|"&"FY"&RIGHT(F$12,2),Datastore!$G:$G))*$AL38/1000 -> 0 | G38: =(SUMIF(Datastore!$A:$A,$AC38&$AD38&$AF38&"|"&G$13&"|"&"FY"&RIGHT(G$12,2),Datastore!$G:$G)+SUMIF(Datastore!$A:$A,$AC38&$AE38&$AF38&"|"&G$13&"|"&"FY"&RIGHT(G$12,2),Datastore!$G:$G))*$AL38/1000 -> 0 | H38: =(SUMIF(Datastore!$A:$A,$AC38&$AD38&$AF38&"|"&H$13&"|"&"FY"&RIGHT(H$12,2),Datastore!$G:$G)+SUMIF(Datastore!$A:$A,$AC38&$AE38&$AF38&"|"&H$13&"|"&"FY"&RIGHT(H$12,2),Datastore!$G:$G))*$AL38/1000 -> 11442.33274 | I38: =(SUMIF(Datastore!$A:$A,$AC38&$AD38&$AF38&"|"&I$13&"|"&"FY"&RIGHT(I$12,2),Datastore!$G:$G)+SUMIF(Datastore!$A:$A,$AC38&$AE38&$AF38&"|"&I$13&"|"&"FY"&RIGHT(I$12,2),Datastore!$G:$G))*$AL38/1000 -> -511.7662 | J38: =(SUMIF(Datastore!$A:$A,$AC38&$AD38&$AF38&"|"&J$13&"|"&"FY"&RIGHT(J$12,2),Datastore!$G:$G)+SUMIF(Datastore!$A:$A,$AC38&$AE38&$AF38&"|"&J$13&"|"&"FY"&RIGHT(J$12,2),Datastore!$G:$G))*$AL38/1000 -> 7275.091 | K38: =(SUMIF(Datastore!$A:$A,$AC38&$AD38&$AF38&"|"&K$13&"|"&"FY"&RIGHT(K$12,2),Datastore!$G:$G)+SUMIF(Datastore!$A:$A,$AC38&$AE38&$AF38&"|"&K$13&"|"&"FY"&RIGHT(K$12,2),Datastore!$G:$G))*$AL38/1000 -> 0 | L38: =(SUMIF(Datastore!$A:$A,$AC38&$AD38&$AF38&"|"&L$13&"|"&"FY"&RIGHT(L$12,2),Datastore!$G:$G)+SUMIF(Datastore!$A:$A,$AC38&$AE38&$AF38&"|"&L$13&"|"&"FY"&RIGHT(L$12,2),Datastore!$G:$G))*$AL38/1000 -> 0 | AC38: 40 | AD38: 1 | AE38: 2 | AF38: |RNOT | AG38: |x | AH38: |x | AI38: |x | AJ38: |x | AK38: |x | AL38: -1 | AM38: 1
C39: Net profit from Sale of Assets | E39: $'000 | H39: =-'5.5.2'!H19 -> -11425.008 | AA39: Non-recurrent - flood loss on disposal
C40: Contributions | E40: $'000
C42: Subtotal Other Revenue | E42: $'000 | F42: =SUM(F33:F35)+SUM(F38:F40) -> 97131.69947 | G42: 133116.7077 | H42: 115653.3565 | I42: 101109.3618 | J42: 98556.55402 | K42: =SUM(K33:K35)+SUM(K38:K40) -> 109786.262 | L42: 105516.2952 | M42: 0 | N42: 0 | O42: 0 | P42: 0 | Q42: 0 | R42: 0 | S42: 0 | T42: 0 | U42: 0 | V42: 0 | W42: 0 | X42: 0 | Y42: 0
B44: TOTAL REVENUE | E44: $'000 | F44: =F42+F29 -> 578460.561 | G44: =G42+G29 -> 673540.4337 | H44: 707255.1182 | I44: 751316.8541 | J44: 795033.7053 | K44: =K42+K29 -> 855364.6329 | L44: 912147.4084 | M44: 0 | N44: 0 | O44: 0 | P44: 0 | Q44: 0 | R44: 0 | S44: 0 | T44: 0 | U44: 0 | V44: 0 | W44: 0 | X44: 0 | Y44: 0
F47: =F11 -> For Year Ending 30 June: | AA47: =AA11 -> For Year Ending 30 June 2014
F48: =F12 -> 2009 | G48: =G12 -> 2010 | H48: =H12 -> 2011 | I48: =I12 -> 2012 | J48: =J12 -> 2013 | K48: =K12 -> 2014 | L48: 2015 | M48: 0 | N48: Ledger Code | O48: Relevant Notes | P48: Supporting Documents | Q48: 0 | R48: 0 | S48: 0 | T48: 0 | U48: 0 | V48: 0 | W48: 0 | X48: 0 | Y48: 0 | AA48: =AA12 -> Supporting Documents | AT48: =AS48 -> 
B50: ="Geographical Area 2 - "&'Business Details'!$D$13 -> Geographical Area 2 - Ipswich
B52: =B16 -> REVENUE FROM SERVICES
C53: =C17 -> Revenue from water services:
C54: =C18 -> Drinking water | E54: $'000 | F54: =(SUMIF(Datastore!$A:$A,$AC54&$AD54&$AF54&"|"&F$13&"|"&"FY"&RIGHT(F$12,2),Datastore!$G:$G)*$AL54+SUMIF(Datastore!$A:$A,$AC54&$AD54&$AG54&"|"&F$13&"|"&"FY"&RIGHT(F$12,2),Datastore!$G:$G)*$AL54+SUMIF(Datastore!$A:$A,$AC54&$AD54&$AH54&"|"&F$13&"|"&"FY"&RIGHT(F$12,2),Datastore!$G:$G)*$AL54+SUMIF(Datastore!$A:$A,$AC54&$AD54&$AI54&"|"&F$13&"|"&"FY"&RIGHT(F$12,2),Datastore!$G:$G)*$AL54+SUMIF(Datastore!$A:$A,$AC54&$AD54&$AJ54&"|"&F$13&"|"&"FY"&RIGHT(F$12,2),Datastore!$G:$G)*$AM54+SUMIF(Datastore!$A:$A,$AC54&$AD54&$AK54&"|"&F$13&"|"&"FY"&RIGHT(F$12,2),Datastore!$G:$G)*$AM54)/1000 -> 43576.479 | G54: =(SUMIF(Datastore!$A:$A,$AC54&$AD54&$AF54&"|"&G$13&"|"&"FY"&RIGHT(G$12,2),Datastore!$G:$G)*$AL54+SUMIF(Datastore!$A:$A,$AC54&$AD54&$AG54&"|"&G$13&"|"&"FY"&RIGHT(G$12,2),Datastore!$G:$G)*$AL54+SUMIF(Datastore!$A:$A,$AC54&$AD54&$AH54&"|"&G$13&"|"&"FY"&RIGHT(G$12,2),Datastore!$G:$G)*$AL54+SUMIF(Datastore!$A:$A,$AC54&$AD54&$AI54&"|"&G$13&"|"&"FY"&RIGHT(G$12,2),Datastore!$G:$G)*$AL54+SUMIF(Datastore!$A:$A,$AC54&$AD54&$AJ54&"|"&G$13&"|"&"FY"&RIGHT(G$12,2),Datastore!$G:$G)*$AM54+SUMIF(Datastore!$A:$A,$AC54&$AD54&$AK54&"|"&G$13&"|"&"FY"&RIGHT(G$12,2),Datastore!$G:$G)*$AM54)/1000 -> 53244 | H54: =(SUMIF(Datastore!$A:$A,$AC54&$AD54&$AF54&"|"&H$13&"|"&"FY"&RIGHT(H$12,2),Datastore!$G:$G)*$AL54+SUMIF(Datastore!$A:$A,$AC54&$AD54&$AG54&"|"&H$13&"|"&"FY"&RIGHT(H$12,2),Datastore!$G:$G)*$AL54+SUMIF(Datastore!$A:$A,$AC54&$AD54&$AH54&"|"&H$13&"|"&"FY"&RIGHT(H$12,2),Datastore!$G:$G)*$AL54+SUMIF(Datastore!$A:$A,$AC54&$AD54&$AI54&"|"&H$13&"|"&"FY"&RIGHT(H$12,2),Datastore!$G:$G)*$AL54+SUMIF(Datastore!$A:$A,$AC54&$AD54&$AJ54&"|"&H$13&"|"&"FY"&RIGHT(H$12,2),Datastore!$G:$G)*$AM54+SUMIF(Datastore!$A:$A,$AC54&$AD54&$AK54&"|"&H$13&"|"&"FY"&RIGHT(H$12,2),Datastore!$G:$G)*$AM54)/1000 -> 57525.17614 | I54: =(SUMIF(Datastore!$A:$A,$AC54&$AD54&$AF54&"|"&I$13&"|"&"FY"&RIGHT(I$12,2),Datastore!$G:$G)*$AL54+SUMIF(Datastore!$A:$A,$AC54&$AD54&$AG54&"|"&I$13&"|"&"FY"&RIGHT(I$12,2),Datastore!$G:$G)*$AL54+SUMIF(Datastore!$A:$A,$AC54&$AD54&$AH54&"|"&I$13&"|"&"FY"&RIGHT(I$12,2),Datastore!$G:$G)*$AL54+SUMIF(Datastore!$A:$A,$AC54&$AD54&$AI54&"|"&I$13&"|"&"FY"&RIGHT(I$12,2),Datastore!$G:$G)*$AL54+SUMIF(Datastore!$A:$A,$AC54&$AD54&$AJ54&"|"&I$13&"|"&"FY"&RIGHT(I$12,2),Datastore!$G:$G)*$AM54+SUMIF(Datastore!$A:$A,$AC54&$AD54&$AK54&"|"&I$13&"|"&"FY"&RIGHT(I$12,2),Datastore!$G:$G)*$AM54)/1000 -> 61123.05053 | J54: =(SUMIF(Datastore!$A:$A,$AC54&$AD54&$AF54&"|"&J$13&"|"&"FY"&RIGHT(J$12,2),Datastore!$G:$G)*$AL54+SUMIF(Datastore!$A:$A,$AC54&$AD54&$AG54&"|"&J$13&"|"&"FY"&RIGHT(J$12,2),Datastore!$G:$G)*$AL54+SUMIF(Datastore!$A:$A,$AC54&$AD54&$AH54&"|"&J$13&"|"&"FY"&RIGHT(J$12,2),Datastore!$G:$G)*$AL54+SUMIF(Datastore!$A:$A,$AC54&$AD54&$AI54&"|"&J$13&"|"&"FY"&RIGHT(J$12,2),Datastore!$G:$G)*$AL54+SUMIF(Datastore!$A:$A,$AC54&$AD54&$AJ54&"|"&J$13&"|"&"FY"&RIGHT(J$12,2),Datastore!$G:$G)*$AM54+SUMIF(Datastore!$A:$A,$AC54&$AD54&$AK54&"|"&J$13&"|"&"FY"&RIGHT(J$12,2),Datastore!$G:$G)*$AM54)/1000 -> 66129.43686 | K54: =(SUMIF(Datastore!$A:$A,$AC54&$AD54&$AF54&"|"&K$13&"|"&"FY"&RIGHT(K$12,2),Datastore!$G:$G)*$AL54+SUMIF(Datastore!$A:$A,$AC54&$AD54&$AG54&"|"&K$13&"|"&"FY"&RIGHT(K$12,2),Datastore!$G:$G)*$AL54+SUMIF(Datastore!$A:$A,$AC54&$AD54&$AH54&"|"&K$13&"|"&"FY"&RIGHT(K$12,2),Datastore!$G:$G)*$AL54+SUMIF(Datastore!$A:$A,$AC54&$AD54&$AI54&"|"&K$13&"|"&"FY"&RIGHT(K$12,2),Datastore!$G:$G)*$AL54+SUMIF(Datastore!$A:$A,$AC54&$AD54&$AJ54&"|"&K$13&"|"&"FY"&RIGHT(K$12,2),Datastore!$G:$G)*$AM54+SUMIF(Datastore!$A:$A,$AC54&$AD54&$AK54&"|"&K$13&"|"&"FY"&RIGHT(K$12,2),Datastore!$G:$G)*$AM54)/1000 -> 77035.10678 | L54: =(SUMIF(Datastore!$A:$A,$AC54&$AD54&$AF54&"|"&L$13&"|"&"FY"&RIGHT(L$12,2),Datastore!$G:$G)*$AL54+SUMIF(Datastore!$A:$A,$AC54&$AD54&$AG54&"|"&L$13&"|"&"FY"&RIGHT(L$12,2),Datastore!$G:$G)*$AL54+SUMIF(Datastore!$A:$A,$AC54&$AD54&$AH54&"|"&L$13&"|"&"FY"&RIGHT(L$12,2),Datastore!$G:$G)*$AL54+SUMIF(Datastore!$A:$A,$AC54&$AD54&$AI54&"|"&L$13&"|"&"FY"&RIGHT(L$12,2),Datastore!$G:$G)*$AL54+SUMIF(Datastore!$A:$A,$AC54&$AD54&$AJ54&"|"&L$13&"|"&"FY"&RIGHT(L$12,2),Datastore!$G:$G)*$AM54+SUMIF(Datastore!$A:$A,$AC54&$AD54&$AK54&"|"&L$13&"|"&"FY"&RIGHT(L$12,2),Datastore!$G:$G)*$AM54)/1000 -> 86314.13417 | AC54: 85 | AD54: 1 | AF54: |RU?? | AG54: |RR?? | AH54: |ROOI | AI54: |x | AJ54: |x | AK54: |x | AL54: -1 | AM54: 1
C55: =C19 -> Other core water services | E55: $'000
C57: =C21 -> Revenue from wastewater services:
C58: =C22 -> Wastewater via sewer | E58: $'000 | F58: =(SUMIF(Datastore!$A:$A,$AC58&$AD58&$AF58&"|"&F$13&"|"&"FY"&RIGHT(F$12,2),Datastore!$G:$G)*$AL58+SUMIF(Datastore!$A:$A,$AC58&$AD58&$AG58&"|"&F$13&"|"&"FY"&RIGHT(F$12,2),Datastore!$G:$G)*$AL58+SUMIF(Datastore!$A:$A,$AC58&$AD58&$AH58&"|"&F$13&"|"&"FY"&RIGHT(F$12,2),Datastore!$G:$G)*$AL58+SUMIF(Datastore!$A:$A,$AC58&$AD58&$AI58&"|"&F$13&"|"&"FY"&RIGHT(F$12,2),Datastore!$G:$G)*$AL58+SUMIF(Datastore!$A:$A,$AC58&$AD58&$AJ58&"|"&F$13&"|"&"FY"&RIGHT(F$12,2),Datastore!$G:$G)*$AM58+SUMIF(Datastore!$A:$A,$AC58&$AD58&$AK58&"|"&F$13&"|"&"FY"&RIGHT(F$12,2),Datastore!$G:$G)*$AM58)/1000 -> 33094.038 | G58: =(SUMIF(Datastore!$A:$A,$AC58&$AD58&$AF58&"|"&G$13&"|"&"FY"&RIGHT(G$12,2),Datastore!$G:$G)*$AL58+SUMIF(Datastore!$A:$A,$AC58&$AD58&$AG58&"|"&G$13&"|"&"FY"&RIGHT(G$12,2),Datastore!$G:$G)*$AL58+SUMIF(Datastore!$A:$A,$AC58&$AD58&$AH58&"|"&G$13&"|"&"FY"&RIGHT(G$12,2),Datastore!$G:$G)*$AL58+SUMIF(Datastore!$A:$A,$AC58&$AD58&$AI58&"|"&G$13&"|"&"FY"&RIGHT(G$12,2),Datastore!$G:$G)*$AL58+SUMIF(Datastore!$A:$A,$AC58&$AD58&$AJ58&"|"&G$13&"|"&"FY"&RIGHT(G$12,2),Datastore!$G:$G)*$AM58+SUMIF(Datastore!$A:$A,$AC58&$AD58&$AK58&"|"&G$13&"|"&"FY"&RIGHT(G$12,2),Datastore!$G:$G)*$AM58)/1000 -> 35713 | H58: =(SUMIF(Datastore!$A:$A,$AC58&$AD58&$AF58&"|"&H$13&"|"&"FY"&RIGHT(H$12,2),Datastore!$G:$G)*$AL58+SUMIF(Datastore!$A:$A,$AC58&$AD58&$AG58&"|"&H$13&"|"&"FY"&RIGHT(H$12,2),Datastore!$G:$G)*$AL58+SUMIF(Datastore!$A:$A,$AC58&$AD58&$AH58&"|"&H$13&"|"&"FY"&RIGHT(H$12,2),Datastore!$G:$G)*$AL58+SUMIF(Datastore!$A:$A,$AC58&$AD58&$AI58&"|"&H$13&"|"&"FY"&RIGHT(H$12,2),Datastore!$G:$G)*$AL58+SUMIF(Datastore!$A:$A,$AC58&$AD58&$AJ58&"|"&H$13&"|"&"FY"&RIGHT(H$12,2),Datastore!$G:$G)*$AM58+SUMIF(Datastore!$A:$A,$AC58&$AD58&$AK58&"|"&H$13&"|"&"FY"&RIGHT(H$12,2),Datastore!$G:$G)*$AM58)/1000 -> 39601.52667 | I58: =(SUMIF(Datastore!$A:$A,$AC58&$AD58&$AF58&"|"&I$13&"|"&"FY"&RIGHT(I$12,2),Datastore!$G:$G)*$AL58+SUMIF(Datastore!$A:$A,$AC58&$AD58&$AG58&"|"&I$13&"|"&"FY"&RIGHT(I$12,2),Datastore!$G:$G)*$AL58+SUMIF(Datastore!$A:$A,$AC58&$AD58&$AH58&"|"&I$13&"|"&"FY"&RIGHT(I$12,2),Datastore!$G:$G)*$AL58+SUMIF(Datastore!$A:$A,$AC58&$AD58&$AI58&"|"&I$13&"|"&"FY"&RIGHT(I$12,2),Datastore!$G:$G)*$AL58+SUMIF(Datastore!$A:$A,$AC58&$AD58&$AJ58&"|"&I$13&"|"&"FY"&RIGHT(I$12,2),Datastore!$G:$G)*$AM58+SUMIF(Datastore!$A:$A,$AC58&$AD58&$AK58&"|"&I$13&"|"&"FY"&RIGHT(I$12,2),Datastore!$G:$G)*$AM58)/1000 -> 41049.85731 | J58: =(SUMIF(Datastore!$A:$A,$AC58&$AD58&$AF58&"|"&J$13&"|"&"FY"&RIGHT(J$12,2),Datastore!$G:$G)*$AL58+SUMIF(Datastore!$A:$A,$AC58&$AD58&$AG58&"|"&J$13&"|"&"FY"&RIGHT(J$12,2),Datastore!$G:$G)*$AL58+SUMIF(Datastore!$A:$A,$AC58&$AD58&$AH58&"|"&J$13&"|"&"FY"&RIGHT(J$12,2),Datastore!$G:$G)*$AL58+SUMIF(Datastore!$A:$A,$AC58&$AD58&$AI58&"|"&J$13&"|"&"FY"&RIGHT(J$12,2),Datastore!$G:$G)*$AL58+SUMIF(Datastore!$A:$A,$AC58&$AD58&$AJ58&"|"&J$13&"|"&"FY"&RIGHT(J$12,2),Datastore!$G:$G)*$AM58+SUMIF(Datastore!$A:$A,$AC58&$AD58&$AK58&"|"&J$13&"|"&"FY"&RIGHT(J$12,2),Datastore!$G:$G)*$AM58)/1000 -> 41811.7011 | K58: =(SUMIF(Datastore!$A:$A,$AC58&$AD58&$AF58&"|"&K$13&"|"&"FY"&RIGHT(K$12,2),Datastore!$G:$G)*$AL58+SUMIF(Datastore!$A:$A,$AC58&$AD58&$AG58&"|"&K$13&"|"&"FY"&RIGHT(K$12,2),Datastore!$G:$G)*$AL58+SUMIF(Datastore!$A:$A,$AC58&$AD58&$AH58&"|"&K$13&"|"&"FY"&RIGHT(K$12,2),Datastore!$G:$G)*$AL58+SUMIF(Datastore!$A:$A,$AC58&$AD58&$AI58&"|"&K$13&"|"&"FY"&RIGHT(K$12,2),Datastore!$G:$G)*$AL58+SUMIF(Datastore!$A:$A,$AC58&$AD58&$AJ58&"|"&K$13&"|"&"FY"&RIGHT(K$12,2),Datastore!$G:$G)*$AM58+SUMIF(Datastore!$A:$A,$AC58&$AD58&$AK58&"|"&K$13&"|"&"FY"&RIGHT(K$12,2),Datastore!$G:$G)*$AM58)/1000 -> 43243.6605 | L58: =(SUMIF(Datastore!$A:$A,$AC58&$AD58&$AF58&"|"&L$13&"|"&"FY"&RIGHT(L$12,2),Datastore!$G:$G)*$AL58+SUMIF(Datastore!$A:$A,$AC58&$AD58&$AG58&"|"&L$13&"|"&"FY"&RIGHT(L$12,2),Datastore!$G:$G)*$AL58+SUMIF(Datastore!$A:$A,$AC58&$AD58&$AH58&"|"&L$13&"|"&"FY"&RIGHT(L$12,2),Datastore!$G:$G)*$AL58+SUMIF(Datastore!$A:$A,$AC58&$AD58&$AI58&"|"&L$13&"|"&"FY"&RIGHT(L$12,2),Datastore!$G:$G)*$AL58+SUMIF(Datastore!$A:$A,$AC58&$AD58&$AJ58&"|"&L$13&"|"&"FY"&RIGHT(L$12,2),Datastore!$G:$G)*$AM58+SUMIF(Datastore!$A:$A,$AC58&$AD58&$AK58&"|"&L$13&"|"&"FY"&RIGHT(L$12,2),Datastore!$G:$G)*$AM58)/1000 -> 46866.62023 | AC58: 85 | AD58: 2 | AF58: |RU?? | AG58: |RR?? | AH58: |ROOI | AI58: |x | AJ58: |RUTW | AK58: |RURW | AL58: -1 | AM58: 1
C59: =C23 -> Trade waste | E59: $'000 | F59: =(SUMIF(Datastore!$A:$A,$AC59&$AD59&$AF59&"|"&F$13&"|"&"FY"&RIGHT(F$12,2),Datastore!$G:$G)*$AL59+SUMIF(Datastore!$A:$A,$AC59&$AD59&$AG59&"|"&F$13&"|"&"FY"&RIGHT(F$12,2),Datastore!$G:$G)*$AL59+SUMIF(Datastore!$A:$A,$AC59&$AD59&$AH59&"|"&F$13&"|"&"FY"&RIGHT(F$12,2),Datastore!$G:$G)*$AL59+SUMIF(Datastore!$A:$A,$AC59&$AD59&$AI59&"|"&F$13&"|"&"FY"&RIGHT(F$12,2),Datastore!$G:$G)*$AL59+SUMIF(Datastore!$A:$A,$AC59&$AD59&$AJ59&"|"&F$13&"|"&"FY"&RIGHT(F$12,2),Datastore!$G:$G)*$AM59+SUMIF(Datastore!$A:$A,$AC59&$AD59&$AK59&"|"&F$13&"|"&"FY"&RIGHT(F$12,2),Datastore!$G:$G)*$AM59)/1000 -> 2749.834 | G59: =(SUMIF(Datastore!$A:$A,$AC59&$AD59&$AF59&"|"&G$13&"|"&"FY"&RIGHT(G$12,2),Datastore!$G:$G)*$AL59+SUMIF(Datastore!$A:$A,$AC59&$AD59&$AG59&"|"&G$13&"|"&"FY"&RIGHT(G$12,2),Datastore!$G:$G)*$AL59+SUMIF(Datastore!$A:$A,$AC59&$AD59&$AH59&"|"&G$13&"|"&"FY"&RIGHT(G$12,2),Datastore!$G:$G)*$AL59+SUMIF(Datastore!$A:$A,$AC59&$AD59&$AI59&"|"&G$13&"|"&"FY"&RIGHT(G$12,2),Datastore!$G:$G)*$AL59+SUMIF(Datastore!$A:$A,$AC59&$AD59&$AJ59&"|"&G$13&"|"&"FY"&RIGHT(G$12,2),Datastore!$G:$G)*$AM59+SUMIF(Datastore!$A:$A,$AC59&$AD59&$AK59&"|"&G$13&"|"&"FY"&RIGHT(G$12,2),Datastore!$G:$G)*$AM59)/1000 -> 2872 | H59: =(SUMIF(Datastore!$A:$A,$AC59&$AD59&$AF59&"|"&H$13&"|"&"FY"&RIGHT(H$12,2),Datastore!$G:$G)*$AL59+SUMIF(Datastore!$A:$A,$AC59&$AD59&$AG59&"|"&H$13&"|"&"FY"&RIGHT(H$12,2),Datastore!$G:$G)*$AL59+SUMIF(Datastore!$A:$A,$AC59&$AD59&$AH59&"|"&H$13&"|"&"FY"&RIGHT(H$12,2),Datastore!$G:$G)*$AL59+SUMIF(Datastore!$A:$A,$AC59&$AD59&$AI59&"|"&H$13&"|"&"FY"&RIGHT(H$12,2),Datastore!$G:$G)*$AL59+SUMIF(Datastore!$A:$A,$AC59&$AD59&$AJ59&"|"&H$13&"|"&"FY"&RIGHT(H$12,2),Datastore!$G:$G)*$AM59+SUMIF(Datastore!$A:$A,$AC59&$AD59&$AK59&"|"&H$13&"|"&"FY"&RIGHT(H$12,2),Datastore!$G:$G)*$AM59)/1000 -> 3193.88557 | I59: =(SUMIF(Datastore!$A:$A,$AC59&$AD59&$AF59&"|"&I$13&"|"&"FY"&RIGHT(I$12,2),Datastore!$G:$G)*$AL59+SUMIF(Datastore!$A:$A,$AC59&$AD59&$AG59&"|"&I$13&"|"&"FY"&RIGHT(I$12,2),Datastore!$G:$G)*$AL59+SUMIF(Datastore!$A:$A,$AC59&$AD59&$AH59&"|"&I$13&"|"&"FY"&RIGHT(I$12,2),Datastore!$G:$G)*$AL59+SUMIF(Datastore!$A:$A,$AC59&$AD59&$AI59&"|"&I$13&"|"&"FY"&RIGHT(I$12,2),Datastore!$G:$G)*$AL59+SUMIF(Datastore!$A:$A,$AC59&$AD59&$AJ59&"|"&I$13&"|"&"FY"&RIGHT(I$12,2),Datastore!$G:$G)*$AM59+SUMIF(Datastore!$A:$A,$AC59&$AD59&$AK59&"|"&I$13&"|"&"FY"&RIGHT(I$12,2),Datastore!$G:$G)*$AM59)/1000 -> 3458.43559 | J59: =(SUMIF(Datastore!$A:$A,$AC59&$AD59&$AF59&"|"&J$13&"|"&"FY"&RIGHT(J$12,2),Datastore!$G:$G)*$AL59+SUMIF(Datastore!$A:$A,$AC59&$AD59&$AG59&"|"&J$13&"|"&"FY"&RIGHT(J$12,2),Datastore!$G:$G)*$AL59+SUMIF(Datastore!$A:$A,$AC59&$AD59&$AH59&"|"&J$13&"|"&"FY"&RIGHT(J$12,2),Datastore!$G:$G)*$AL59+SUMIF(Datastore!$A:$A,$AC59&$AD59&$AI59&"|"&J$13&"|"&"FY"&RIGHT(J$12,2),Datastore!$G:$G)*$AL59+SUMIF(Datastore!$A:$A,$AC59&$AD59&$AJ59&"|"&J$13&"|"&"FY"&RIGHT(J$12,2),Datastore!$G:$G)*$AM59+SUMIF(Datastore!$A:$A,$AC59&$AD59&$AK59&"|"&J$13&"|"&"FY"&RIGHT(J$12,2),Datastore!$G:$G)*$AM59)/1000 -> 3122.856004 | K59: =(SUMIF(Datastore!$A:$A,$AC59&$AD59&$AF59&"|"&K$13&"|"&"FY"&RIGHT(K$12,2),Datastore!$G:$G)*$AL59+SUMIF(Datastore!$A:$A,$AC59&$AD59&$AG59&"|"&K$13&"|"&"FY"&RIGHT(K$12,2),Datastore!$G:$G)*$AL59+SUMIF(Datastore!$A:$A,$AC59&$AD59&$AH59&"|"&K$13&"|"&"FY"&RIGHT(K$12,2),Datastore!$G:$G)*$AL59+SUMIF(Datastore!$A:$A,$AC59&$AD59&$AI59&"|"&K$13&"|"&"FY"&RIGHT(K$12,2),Datastore!$G:$G)*$AL59+SUMIF(Datastore!$A:$A,$AC59&$AD59&$AJ59&"|"&K$13&"|"&"FY"&RIGHT(K$12,2),Datastore!$G:$G)*$AM59+SUMIF(Datastore!$A:$A,$AC59&$AD59&$AK59&"|"&K$13&"|"&"FY"&RIGHT(K$12,2),Datastore!$G:$G)*$AM59)/1000 -> 2196 | L59: =(SUMIF(Datastore!$A:$A,$AC59&$AD59&$AF59&"|"&L$13&"|"&"FY"&RIGHT(L$12,2),Datastore!$G:$G)*$AL59+SUMIF(Datastore!$A:$A,$AC59&$AD59&$AG59&"|"&L$13&"|"&"FY"&RIGHT(L$12,2),Datastore!$G:$G)*$AL59+SUMIF(Datastore!$A:$A,$AC59&$AD59&$AH59&"|"&L$13&"|"&"FY"&RIGHT(L$12,2),Datastore!$G:$G)*$AL59+SUMIF(Datastore!$A:$A,$AC59&$AD59&$AI59&"|"&L$13&"|"&"FY"&RIGHT(L$12,2),Datastore!$G:$G)*$AL59+SUMIF(Datastore!$A:$A,$AC59&$AD59&$AJ59&"|"&L$13&"|"&"FY"&RIGHT(L$12,2),Datastore!$G:$G)*$AM59+SUMIF(Datastore!$A:$A,$AC59&$AD59&$AK59&"|"&L$13&"|"&"FY"&RIGHT(L$12,2),Datastore!$G:$G)*$AM59)/1000 -> 2326.846875 | AC59: 85 | AD59: 2 | AF59: |RUTW | AG59: |x | AH59: |x | AI59: |x | AJ59: |x | AK59: |x | AL59: -1 | AM59: 1
C60: =C24 -> Other core wastewater services | E60: $'000 | F60: =(SUMIF(Datastore!$A:$A,$AC60&$AD60&$AF60&"|"&F$13&"|"&"FY"&RIGHT(F$12,2),Datastore!$G:$G)*$AL60+SUMIF(Datastore!$A:$A,$AC60&$AD60&$AG60&"|"&F$13&"|"&"FY"&RIGHT(F$12,2),Datastore!$G:$G)*$AL60+SUMIF(Datastore!$A:$A,$AC60&$AD60&$AH60&"|"&F$13&"|"&"FY"&RIGHT(F$12,2),Datastore!$G:$G)*$AL60+SUMIF(Datastore!$A:$A,$AC60&$AD60&$AI60&"|"&F$13&"|"&"FY"&RIGHT(F$12,2),Datastore!$G:$G)*$AL60+SUMIF(Datastore!$A:$A,$AC60&$AD60&$AJ60&"|"&F$13&"|"&"FY"&RIGHT(F$12,2),Datastore!$G:$G)*$AM60+SUMIF(Datastore!$A:$A,$AC60&$AD60&$AK60&"|"&F$13&"|"&"FY"&RIGHT(F$12,2),Datastore!$G:$G)*$AM60)/1000 -> 0 | G60: =(SUMIF(Datastore!$A:$A,$AC60&$AD60&$AF60&"|"&G$13&"|"&"FY"&RIGHT(G$12,2),Datastore!$G:$G)*$AL60+SUMIF(Datastore!$A:$A,$AC60&$AD60&$AG60&"|"&G$13&"|"&"FY"&RIGHT(G$12,2),Datastore!$G:$G)*$AL60+SUMIF(Datastore!$A:$A,$AC60&$AD60&$AH60&"|"&G$13&"|"&"FY"&RIGHT(G$12,2),Datastore!$G:$G)*$AL60+SUMIF(Datastore!$A:$A,$AC60&$AD60&$AI60&"|"&G$13&"|"&"FY"&RIGHT(G$12,2),Datastore!$G:$G)*$AL60+SUMIF(Datastore!$A:$A,$AC60&$AD60&$AJ60&"|"&G$13&"|"&"FY"&RIGHT(G$12,2),Datastore!$G:$G)*$AM60+SUMIF(Datastore!$A:$A,$AC60&$AD60&$AK60&"|"&G$13&"|"&"FY"&RIGHT(G$12,2),Datastore!$G:$G)*$AM60)/1000 -> 0 | H60: =(SUMIF(Datastore!$A:$A,$AC60&$AD60&$AF60&"|"&H$13&"|"&"FY"&RIGHT(H$12,2),Datastore!$G:$G)*$AL60+SUMIF(Datastore!$A:$A,$AC60&$AD60&$AG60&"|"&H$13&"|"&"FY"&RIGHT(H$12,2),Datastore!$G:$G)*$AL60+SUMIF(Datastore!$A:$A,$AC60&$AD60&$AH60&"|"&H$13&"|"&"FY"&RIGHT(H$12,2),Datastore!$G:$G)*$AL60+SUMIF(Datastore!$A:$A,$AC60&$AD60&$AI60&"|"&H$13&"|"&"FY"&RIGHT(H$12,2),Datastore!$G:$G)*$AL60+SUMIF(Datastore!$A:$A,$AC60&$AD60&$AJ60&"|"&H$13&"|"&"FY"&RIGHT(H$12,2),Datastore!$G:$G)*$AM60+SUMIF(Datastore!$A:$A,$AC60&$AD60&$AK60&"|"&H$13&"|"&"FY"&RIGHT(H$12,2),Datastore!$G:$G)*$AM60)/1000 -> 50.29603 | I60: =(SUMIF(Datastore!$A:$A,$AC60&$AD60&$AF60&"|"&I$13&"|"&"FY"&RIGHT(I$12,2),Datastore!$G:$G)*$AL60+SUMIF(Datastore!$A:$A,$AC60&$AD60&$AG60&"|"&I$13&"|"&"FY"&RIGHT(I$12,2),Datastore!$G:$G)*$AL60+SUMIF(Datastore!$A:$A,$AC60&$AD60&$AH60&"|"&I$13&"|"&"FY"&RIGHT(I$12,2),Datastore!$G:$G)*$AL60+SUMIF(Datastore!$A:$A,$AC60&$AD60&$AI60&"|"&I$13&"|"&"FY"&RIGHT(I$12,2),Datastore!$G:$G)*$AL60+SUMIF(Datastore!$A:$A,$AC60&$AD60&$AJ60&"|"&I$13&"|"&"FY"&RIGHT(I$12,2),Datastore!$G:$G)*$AM60+SUMIF(Datastore!$A:$A,$AC60&$AD60&$AK60&"|"&I$13&"|"&"FY"&RIGHT(I$12,2),Datastore!$G:$G)*$AM60)/1000 -> 0 | J60: =(SUMIF(Datastore!$A:$A,$AC60&$AD60&$AF60&"|"&J$13&"|"&"FY"&RIGHT(J$12,2),Datastore!$G:$G)*$AL60+SUMIF(Datastore!$A:$A,$AC60&$AD60&$AG60&"|"&J$13&"|"&"FY"&RIGHT(J$12,2),Datastore!$G:$G)*$AL60+SUMIF(Datastore!$A:$A,$AC60&$AD60&$AH60&"|"&J$13&"|"&"FY"&RIGHT(J$12,2),Datastore!$G:$G)*$AL60+SUMIF(Datastore!$A:$A,$AC60&$AD60&$AI60&"|"&J$13&"|"&"FY"&RIGHT(J$12,2),Datastore!$G:$G)*$AL60+SUMIF(Datastore!$A:$A,$AC60&$AD60&$AJ60&"|"&J$13&"|"&"FY"&RIGHT(J$12,2),Datastore!$G:$G)*$AM60+SUMIF(Datastore!$A:$A,$AC60&$AD60&$AK60&"|"&J$13&"|"&"FY"&RIGHT(J$12,2),Datastore!$G:$G)*$AM60)/1000 -> 120.055695 | K60: =(SUMIF(Datastore!$A:$A,$AC60&$AD60&$AF60&"|"&K$13&"|"&"FY"&RIGHT(K$12,2),Datastore!$G:$G)*$AL60+SUMIF(Datastore!$A:$A,$AC60&$AD60&$AG60&"|"&K$13&"|"&"FY"&RIGHT(K$12,2),Datastore!$G:$G)*$AL60+SUMIF(Datastore!$A:$A,$AC60&$AD60&$AH60&"|"&K$13&"|"&"FY"&RIGHT(K$12,2),Datastore!$G:$G)*$AL60+SUMIF(Datastore!$A:$A,$AC60&$AD60&$AI60&"|"&K$13&"|"&"FY"&RIGHT(K$12,2),Datastore!$G:$G)*$AL60+SUMIF(Datastore!$A:$A,$AC60&$AD60&$AJ60&"|"&K$13&"|"&"FY"&RIGHT(K$12,2),Datastore!$G:$G)*$AM60+SUMIF(Datastore!$A:$A,$AC60&$AD60&$AK60&"|"&K$13&"|"&"FY"&RIGHT(K$12,2),Datastore!$G:$G)*$AM60)/1000 -> 124.258 | L60: =(SUMIF(Datastore!$A:$A,$AC60&$AD60&$AF60&"|"&L$13&"|"&"FY"&RIGHT(L$12,2),Datastore!$G:$G)*$AL60+SUMIF(Datastore!$A:$A,$AC60&$AD60&$AG60&"|"&L$13&"|"&"FY"&RIGHT(L$12,2),Datastore!$G:$G)*$AL60+SUMIF(Datastore!$A:$A,$AC60&$AD60&$AH60&"|"&L$13&"|"&"FY"&RIGHT(L$12,2),Datastore!$G:$G)*$AL60+SUMIF(Datastore!$A:$A,$AC60&$AD60&$AI60&"|"&L$13&"|"&"FY"&RIGHT(L$12,2),Datastore!$G:$G)*$AL60+SUMIF(Datastore!$A:$A,$AC60&$AD60&$AJ60&"|"&L$13&"|"&"FY"&RIGHT(L$12,2),Datastore!$G:$G)*$AM60+SUMIF(Datastore!$A:$A,$AC60&$AD60&$AK60&"|"&L$13&"|"&"FY"&RIGHT(L$12,2),Datastore!$G:$G)*$AM60)/1000 -> 130.3510711 | AC60: 85 | AD60: 2 | AF60: |RURW | AG60: |x | AH60: |x | AI60: |x | AJ60: |x | AK60: |x | AL60: -1 | AM60: 1
C62: =C26 -> Non-regulated:
C63: =C27 -> Aggregate non-regulated services | E63: $'000 | F63: =(SUMIF(Datastore!$A:$A,$AC63&$AD63&$AF63&"|"&F$13&"|"&"FY"&RIGHT(F$12,2),Datastore!$G:$G)*$AL63+SUMIF(Datastore!$A:$A,$AC63&$AD63&$AG63&"|"&F$13&"|"&"FY"&RIGHT(F$12,2),Datastore!$G:$G)*$AL63+SUMIF(Datastore!$A:$A,$AC63&$AD63&$AH63&"|"&F$13&"|"&"FY"&RIGHT(F$12,2),Datastore!$G:$G)*$AL63+SUMIF(Datastore!$A:$A,$AC63&$AD63&$AI63&"|"&F$13&"|"&"FY"&RIGHT(F$12,2),Datastore!$G:$G)*$AL63+SUMIF(Datastore!$A:$A,$AC63&$AD63&$AJ63&"|"&F$13&"|"&"FY"&RIGHT(F$12,2),Datastore!$G:$G)*$AM63+SUMIF(Datastore!$A:$A,$AC63&$AD63&$AK63&"|"&F$13&"|"&"FY"&RIGHT(F$12,2),Datastore!$G:$G)*$AM63)/1000 -> 850.969 | G63: =(SUMIF(Datastore!$A:$A,$AC63&$AD63&$AF63&"|"&G$13&"|"&"FY"&RIGHT(G$12,2),Datastore!$G:$G)*$AL63+SUMIF(Datastore!$A:$A,$AC63&$AD63&$AG63&"|"&G$13&"|"&"FY"&RIGHT(G$12,2),Datastore!$G:$G)*$AL63+SUMIF(Datastore!$A:$A,$AC63&$AD63&$AH63&"|"&G$13&"|"&"FY"&RIGHT(G$12,2),Datastore!$G:$G)*$AL63+SUMIF(Datastore!$A:$A,$AC63&$AD63&$AI63&"|"&G$13&"|"&"FY"&RIGHT(G$12,2),Datastore!$G:$G)*$AL63+SUMIF(Datastore!$A:$A,$AC63&$AD63&$AJ63&"|"&G$13&"|"&"FY"&RIGHT(G$12,2),Datastore!$G:$G)*$AM63+SUMIF(Datastore!$A:$A,$AC63&$AD63&$AK63&"|"&G$13&"|"&"FY"&RIGHT(G$12,2),Datastore!$G:$G)*$AM63)/1000 -> 1257 | H63: =(SUMIF(Datastore!$A:$A,$AC63&$AD63&$AF63&"|"&H$13&"|"&"FY"&RIGHT(H$12,2),Datastore!$G:$G)*$AL63+SUMIF(Datastore!$A:$A,$AC63&$AD63&$AG63&"|"&H$13&"|"&"FY"&RIGHT(H$12,2),Datastore!$G:$G)*$AL63+SUMIF(Datastore!$A:$A,$AC63&$AD63&$AH63&"|"&H$13&"|"&"FY"&RIGHT(H$12,2),Datastore!$G:$G)*$AL63+SUMIF(Datastore!$A:$A,$AC63&$AD63&$AI63&"|"&H$13&"|"&"FY"&RIGHT(H$12,2),Datastore!$G:$G)*$AL63+SUMIF(Datastore!$A:$A,$AC63&$AD63&$AJ63&"|"&H$13&"|"&"FY"&RIGHT(H$12,2),Datastore!$G:$G)*$AM63+SUMIF(Datastore!$A:$A,$AC63&$AD63&$AK63&"|"&H$13&"|"&"FY"&RIGHT(H$12,2),Datastore!$G:$G)*$AM63)/1000 -> 1739.13477 | I63: =(SUMIF(Datastore!$A:$A,$AC63&$AD63&$AF63&"|"&I$13&"|"&"FY"&RIGHT(I$12,2),Datastore!$G:$G)*$AL63+SUMIF(Datastore!$A:$A,$AC63&$AD63&$AG63&"|"&I$13&"|"&"FY"&RIGHT(I$12,2),Datastore!$G:$G)*$AL63+SUMIF(Datastore!$A:$A,$AC63&$AD63&$AH63&"|"&I$13&"|"&"FY"&RIGHT(I$12,2),Datastore!$G:$G)*$AL63+SUMIF(Datastore!$A:$A,$AC63&$AD63&$AI63&"|"&I$13&"|"&"FY"&RIGHT(I$12,2),Datastore!$G:$G)*$AL63+SUMIF(Datastore!$A:$A,$AC63&$AD63&$AJ63&"|"&I$13&"|"&"FY"&RIGHT(I$12,2),Datastore!$G:$G)*$AM63+SUMIF(Datastore!$A:$A,$AC63&$AD63&$AK63&"|"&I$13&"|"&"FY"&RIGHT(I$12,2),Datastore!$G:$G)*$AM63)/1000 -> 399.8713 | J63: =(SUMIF(Datastore!$A:$A,$AC63&$AD63&$AF63&"|"&J$13&"|"&"FY"&RIGHT(J$12,2),Datastore!$G:$G)*$AL63+SUMIF(Datastore!$A:$A,$AC63&$AD63&$AG63&"|"&J$13&"|"&"FY"&RIGHT(J$12,2),Datastore!$G:$G)*$AL63+SUMIF(Datastore!$A:$A,$AC63&$AD63&$AH63&"|"&J$13&"|"&"FY"&RIGHT(J$12,2),Datastore!$G:$G)*$AL63+SUMIF(Datastore!$A:$A,$AC63&$AD63&$AI63&"|"&J$13&"|"&"FY"&RIGHT(J$12,2),Datastore!$G:$G)*$AL63+SUMIF(Datastore!$A:$A,$AC63&$AD63&$AJ63&"|"&J$13&"|"&"FY"&RIGHT(J$12,2),Datastore!$G:$G)*$AM63+SUMIF(Datastore!$A:$A,$AC63&$AD63&$AK63&"|"&J$13&"|"&"FY"&RIGHT(J$12,2),Datastore!$G:$G)*$AM63)/1000 -> 0 | K63: =(SUMIF(Datastore!$A:$A,$AC63&$AD63&$AF63&"|"&K$13&"|"&"FY"&RIGHT(K$12,2),Datastore!$G:$G)*$AL63+SUMIF(Datastore!$A:$A,$AC63&$AD63&$AG63&"|"&K$13&"|"&"FY"&RIGHT(K$12,2),Datastore!$G:$G)*$AL63+SUMIF(Datastore!$A:$A,$AC63&$AD63&$AH63&"|"&K$13&"|"&"FY"&RIGHT(K$12,2),Datastore!$G:$G)*$AL63+SUMIF(Datastore!$A:$A,$AC63&$AD63&$AI63&"|"&K$13&"|"&"FY"&RIGHT(K$12,2),Datastore!$G:$G)*$AL63+SUMIF(Datastore!$A:$A,$AC63&$AD63&$AJ63&"|"&K$13&"|"&"FY"&RIGHT(K$12,2),Datastore!$G:$G)*$AM63+SUMIF(Datastore!$A:$A,$AC63&$AD63&$AK63&"|"&K$13&"|"&"FY"&RIGHT(K$12,2),Datastore!$G:$G)*$AM63)/1000 -> 0 | L63: =(SUMIF(Datastore!$A:$A,$AC63&$AD63&$AF63&"|"&L$13&"|"&"FY"&RIGHT(L$12,2),Datastore!$G:$G)*$AL63+SUMIF(Datastore!$A:$A,$AC63&$AD63&$AG63&"|"&L$13&"|"&"FY"&RIGHT(L$12,2),Datastore!$G:$G)*$AL63+SUMIF(Datastore!$A:$A,$AC63&$AD63&$AH63&"|"&L$13&"|"&"FY"&RIGHT(L$12,2),Datastore!$G:$G)*$AL63+SUMIF(Datastore!$A:$A,$AC63&$AD63&$AI63&"|"&L$13&"|"&"FY"&RIGHT(L$12,2),Datastore!$G:$G)*$AL63+SUMIF(Datastore!$A:$A,$AC63&$AD63&$AJ63&"|"&L$13&"|"&"FY"&RIGHT(L$12,2),Datastore!$G:$G)*$AM63+SUMIF(Datastore!$A:$A,$AC63&$AD63&$AK63&"|"&L$13&"|"&"FY"&RIGHT(L$12,2),Datastore!$G:$G)*$AM63)/1000 -> 0 | AC63: 85 | AD63: 4 | AF63: |R??? | AG63: |x | AH63: |x | AI63: |x | AJ63: |x | AK63: |x | AL63: -1 | AM63: 1
C65: =C29 -> Subtotal Revenue from Services | E65: $'000 | F65: =SUM(F54:F55)+SUM(F58:F60)+F63 -> 80271.32 | G65: =SUM(G54:G55)+SUM(G58:G60)+G63 -> 93086 | H65: 102110.0192 | I65: 106031.2147 | J65: 111184.0497 | K65: =SUM(K54:K55)+SUM(K58:K60)+K63 -> 122599.0253 | L65: 135637.9523 | M65: 0 | N65: 0 | O65: 0 | P65: 0 | Q65: 0 | R65: 0 | S65: 0 | T65: 0 | U65: 0 | V65: 0 | W65: 0 | X65: 0 | Y65: 0
B67: =B31 -> OTHER REVENUE
C68: =C32 -> Other Revenue Offset Against Revenue Requirements:
C69: =C33 -> Investment Income | E69: $'000 | F69: =(SUMIF(Datastore!$A:$A,$AC69&$AD69&$AF69&"|"&F$13&"|"&"FY"&RIGHT(F$12,2),Datastore!$G:$G)+SUMIF(Datastore!$A:$A,$AC69&$AE69&$AF69&"|"&F$13&"|"&"FY"&RIGHT(F$12,2),Datastore!$G:$G))*$AL69/1000 -> 0 | G69: =(SUMIF(Datastore!$A:$A,$AC69&$AD69&$AF69&"|"&G$13&"|"&"FY"&RIGHT(G$12,2),Datastore!$G:$G)+SUMIF(Datastore!$A:$A,$AC69&$AE69&$AF69&"|"&G$13&"|"&"FY"&RIGHT(G$12,2),Datastore!$G:$G))*$AL69/1000 -> 0 | H69: =(SUMIF(Datastore!$A:$A,$AC69&$AD69&$AF69&"|"&H$13&"|"&"FY"&RIGHT(H$12,2),Datastore!$G:$G)+SUMIF(Datastore!$A:$A,$AC69&$AE69&$AF69&"|"&H$13&"|"&"FY"&RIGHT(H$12,2),Datastore!$G:$G))*$AL69/1000 -> 0 | I69: =(SUMIF(Datastore!$A:$A,$AC69&$AD69&$AF69&"|"&I$13&"|"&"FY"&RIGHT(I$12,2),Datastore!$G:$G)+SUMIF(Datastore!$A:$A,$AC69&$AE69&$AF69&"|"&I$13&"|"&"FY"&RIGHT(I$12,2),Datastore!$G:$G))*$AL69/1000 -> 0 | J69: =(SUMIF(Datastore!$A:$A,$AC69&$AD69&$AF69&"|"&J$13&"|"&"FY"&RIGHT(J$12,2),Datastore!$G:$G)+SUMIF(Datastore!$A:$A,$AC69&$AE69&$AF69&"|"&J$13&"|"&"FY"&RIGHT(J$12,2),Datastore!$G:$G))*$AL69/1000 -> 0 | K69: =(SUMIF(Datastore!$A:$A,$AC69&$AD69&$AF69&"|"&K$13&"|"&"FY"&RIGHT(K$12,2),Datastore!$G:$G)+SUMIF(Datastore!$A:$A,$AC69&$AE69&$AF69&"|"&K$13&"|"&"FY"&RIGHT(K$12,2),Datastore!$G:$G))*$AL69/1000 -> 0 | L69: =(SUMIF(Datastore!$A:$A,$AC69&$AD69&$AF69&"|"&L$13&"|"&"FY"&RIGHT(L$12,2),Datastore!$G:$G)+SUMIF(Datastore!$A:$A,$AC69&$AE69&$AF69&"|"&L$13&"|"&"FY"&RIGHT(L$12,2),Datastore!$G:$G))*$AL69/1000 -> 0 | AC69: 85 | AD69: 1 | AE69: 2 | AF69: |RFIN | AL69: -1
C70: =C34 -> Net profit from Sale of Assets | E70: $'000 | F70: =(SUMIF(Datastore!$A:$A,$AC70&$AD70&$AF70&"|"&F$13&"|"&"FY"&RIGHT(F$12,2),Datastore!$G:$G)+SUMIF(Datastore!$A:$A,$AC70&$AE70&$AF70&"|"&F$13&"|"&"FY"&RIGHT(F$12,2),Datastore!$G:$G))*$AL70/1000 -> 236.641 | G70: =(SUMIF(Datastore!$A:$A,$AC70&$AD70&$AF70&"|"&G$13&"|"&"FY"&RIGHT(G$12,2),Datastore!$G:$G)+SUMIF(Datastore!$A:$A,$AC70&$AE70&$AF70&"|"&G$13&"|"&"FY"&RIGHT(G$12,2),Datastore!$G:$G))*$AL70/1000 -> 0 | AA70: Not forecast for regulatory purposes | AC70: 85 | AD70: 1 | AE70: 2 | AF70: |ELOD | AL70: -1
C71: =C35 -> Contributions | E71: $'000 | F71: =(SUMIF(Datastore!$A:$A,$AC71&$AD71&$AF71&"|"&F$13&"|"&"FY"&RIGHT(F$12,2),Datastore!$G:$G)+SUMIF(Datastore!$A:$A,$AC71&$AE71&$AF71&"|"&F$13&"|"&"FY"&RIGHT(F$12,2),Datastore!$G:$G))*$AL71/1000 -> 21466.452 | G71: =(SUMIF(Datastore!$A:$A,$AC71&$AD71&$AF71&"|"&G$13&"|"&"FY"&RIGHT(G$12,2),Datastore!$G:$G)+SUMIF(Datastore!$A:$A,$AC71&$AE71&$AF71&"|"&G$13&"|"&"FY"&RIGHT(G$12,2),Datastore!$G:$G))*$AL71/1000 -> 30883.047 | H71: =(SUMIF(Datastore!$A:$A,$AC71&$AD71&$AF71&"|"&H$13&"|"&"FY"&RIGHT(H$12,2),Datastore!$G:$G)+SUMIF(Datastore!$A:$A,$AC71&$AE71&$AF71&"|"&H$13&"|"&"FY"&RIGHT(H$12,2),Datastore!$G:$G))*$AL71/1000 -> 23218.57613 | I71: =(SUMIF(Datastore!$A:$A,$AC71&$AD71&$AF71&"|"&I$13&"|"&"FY"&RIGHT(I$12,2),Datastore!$G:$G)+SUMIF(Datastore!$A:$A,$AC71&$AE71&$AF71&"|"&I$13&"|"&"FY"&RIGHT(I$12,2),Datastore!$G:$G))*$AL71/1000 -> 19109.68601 | J71: =(SUMIF(Datastore!$A:$A,$AC71&$AD71&$AF71&"|"&J$13&"|"&"FY"&RIGHT(J$12,2),Datastore!$G:$G)+SUMIF(Datastore!$A:$A,$AC71&$AE71&$AF71&"|"&J$13&"|"&"FY"&RIGHT(J$12,2),Datastore!$G:$G))*$AL71/1000 -> 18337.27339 | K71: =(SUMIF(Datastore!$A:$A,$AC71&$AD71&$AF71&"|"&K$13&"|"&"FY"&RIGHT(K$12,2),Datastore!$G:$G)+SUMIF(Datastore!$A:$A,$AC71&$AE71&$AF71&"|"&K$13&"|"&"FY"&RIGHT(K$12,2),Datastore!$G:$G))*$AL71/1000 -> 22113.99 | L71: =(SUMIF(Datastore!$A:$A,$AC71&$AD71&$AF71&"|"&L$13&"|"&"FY"&RIGHT(L$12,2),Datastore!$G:$G)+SUMIF(Datastore!$A:$A,$AC71&$AE71&$AF71&"|"&L$13&"|"&"FY"&RIGHT(L$12,2),Datastore!$G:$G))*$AL71/1000 -> 31303.85951 | AC71: 85 | AD71: 1 | AE71: 2 | AF71: |RC?? | AL71: -1
C73: =C37 -> Other Revenue Not Offset Against Revenue Requirements:
C74: =C38 -> Non-recurrent Income | E74: $'000 | F74: =(SUMIF(Datastore!$A:$A,$AC74&$AD74&$AF74&"|"&F$13&"|"&"FY"&RIGHT(F$12,2),Datastore!$G:$G)+SUMIF(Datastore!$A:$A,$AC74&$AE74&$AF74&"|"&F$13&"|"&"FY"&RIGHT(F$12,2),Datastore!$G:$G))*$AL74/1000 -> 0 | G74: =(SUMIF(Datastore!$A:$A,$AC74&$AD74&$AF74&"|"&G$13&"|"&"FY"&RIGHT(G$12,2),Datastore!$G:$G)+SUMIF(Datastore!$A:$A,$AC74&$AE74&$AF74&"|"&G$13&"|"&"FY"&RIGHT(G$12,2),Datastore!$G:$G))*$AL74/1000 -> 0 | H74: =(SUMIF(Datastore!$A:$A,$AC74&$AD74&$AF74&"|"&H$13&"|"&"FY"&RIGHT(H$12,2),Datastore!$G:$G)+SUMIF(Datastore!$A:$A,$AC74&$AE74&$AF74&"|"&H$13&"|"&"FY"&RIGHT(H$12,2),Datastore!$G:$G))*$AL74/1000 -> 0 | I74: =(SUMIF(Datastore!$A:$A,$AC74&$AD74&$AF74&"|"&I$13&"|"&"FY"&RIGHT(I$12,2),Datastore!$G:$G)+SUMIF(Datastore!$A:$A,$AC74&$AE74&$AF74&"|"&I$13&"|"&"FY"&RIGHT(I$12,2),Datastore!$G:$G))*$AL74/1000 -> 0 | J74: =(SUMIF(Datastore!$A:$A,$AC74&$AD74&$AF74&"|"&J$13&"|"&"FY"&RIGHT(J$12,2),Datastore!$G:$G)+SUMIF(Datastore!$A:$A,$AC74&$AE74&$AF74&"|"&J$13&"|"&"FY"&RIGHT(J$12,2),Datastore!$G:$G))*$AL74/1000 -> 0 | K74: =(SUMIF(Datastore!$A:$A,$AC74&$AD74&$AF74&"|"&K$13&"|"&"FY"&RIGHT(K$12,2),Datastore!$G:$G)+SUMIF(Datastore!$A:$A,$AC74&$AE74&$AF74&"|"&K$13&"|"&"FY"&RIGHT(K$12,2),Datastore!$G:$G))*$AL74/1000 -> 0 | L74: =(SUMIF(Datastore!$A:$A,$AC74&$AD74&$AF74&"|"&L$13&"|"&"FY"&RIGHT(L$12,2),Datastore!$G:$G)+SUMIF(Datastore!$A:$A,$AC74&$AE74&$AF74&"|"&L$13&"|"&"FY"&RIGHT(L$12,2),Datastore!$G:$G))*$AL74/1000 -> 0 | AC74: 85 | AD74: 1 | AE74: 2 | AF74: |RNOT | AG74: |x | AH74: |x | AI74: |x | AJ74: |x | AK74: |x | AL74: -1 | AM74: 1
C75: =C39 -> Net profit from Sale of Assets | E75: $'000 | H75: =-'5.5.2'!H504 -> -13187.244 | AA75: Non-recurrent - flood loss on disposal
C76: =C40 -> Contributions | E76: $'000
C78: =C42 -> Subtotal Other Revenue | E78: $'000 | F78: =SUM(F69:F71)+SUM(F74:F76) -> 21703.093 | G78: 30883.047 | H78: 10031.33213 | I78: 19109.68601 | J78: 18337.27339 | K78: =SUM(K69:K71)+SUM(K74:K76) -> 22113.99 | L78: 31303.85951 | M78: 0 | N78: 0 | O78: 0 | P78: 0 | Q78: 0 | R78: 0 | S78: 0 | T78: 0 | U78: 0 | V78: 0 | W78: 0 | X78: 0 | Y78: 0
B80: =B44 -> TOTAL REVENUE | E80: $'000 | F80: =F78+F65 -> 101974.413 | G80: =G78+G65 -> 123969.047 | H80: 112141.3513 | I80: 125140.9007 | J80: 129521.3231 | K80: =K78+K65 -> 144713.0153 | L80: 166941.8118 | M80: 0 | N80: 0 | O80: 0 | P80: 0 | Q80: 0 | R80: 0 | S80: 0 | T80: 0 | U80: 0 | V80: 0 | W80: 0 | X80: 0 | Y80: 0
F83: =F47 -> For Year Ending 30 June: | AA83: =AA47 -> For Year Ending 30 June 2014
F84: =F48 -> 2009 | G84: =G48 -> 2010 | H84: =H48 -> 2011 | I84: =I48 -> 2012 | J84: =J48 -> 2013 | K84: =K48 -> 2014 | L84: 2015 | M84: 0 | N84: Ledger Code | O84: Relevant Notes | P84: Supporting Documents | Q84: 0 | R84: 0 | S84: 0 | T84: 0 | U84: 0 | V84: 0 | W84: 0 | X84: 0 | Y84: 0 | AA84: =AA48 -> Supporting Documents | AT84: =AS84 -> 
B86: ="Geographical Area 3 - "&'Business Details'!$D$14 -> Geographical Area 3 - Lockyer Valley
B88: =B52 -> REVENUE FROM SERVICES
C89: =C53 -> Revenue from water services:
C90: =C54 -> Drinking water | E90: $'000 | F90: =(SUMIF(Datastore!$A:$A,$AC90&$AD90&$AF90&"|"&F$13&"|"&"FY"&RIGHT(F$12,2),Datastore!$G:$G)*$AL90+SUMIF(Datastore!$A:$A,$AC90&$AD90&$AG90&"|"&F$13&"|"&"FY"&RIGHT(F$12,2),Datastore!$G:$G)*$AL90+SUMIF(Datastore!$A:$A,$AC90&$AD90&$AH90&"|"&F$13&"|"&"FY"&RIGHT(F$12,2),Datastore!$G:$G)*$AL90+SUMIF(Datastore!$A:$A,$AC90&$AD90&$AI90&"|"&F$13&"|"&"FY"&RIGHT(F$12,2),Datastore!$G:$G)*$AL90+SUMIF(Datastore!$A:$A,$AC90&$AD90&$AJ90&"|"&F$13&"|"&"FY"&RIGHT(F$12,2),Datastore!$G:$G)*$AM90+SUMIF(Datastore!$A:$A,$AC90&$AD90&$AK90&"|"&F$13&"|"&"FY"&RIGHT(F$12,2),Datastore!$G:$G)*$AM90)/1000 -> 6403.4065 | G90: =(SUMIF(Datastore!$A:$A,$AC90&$AD90&$AF90&"|"&G$13&"|"&"FY"&RIGHT(G$12,2),Datastore!$G:$G)*$AL90+SUMIF(Datastore!$A:$A,$AC90&$AD90&$AG90&"|"&G$13&"|"&"FY"&RIGHT(G$12,2),Datastore!$G:$G)*$AL90+SUMIF(Datastore!$A:$A,$AC90&$AD90&$AH90&"|"&G$13&"|"&"FY"&RIGHT(G$12,2),Datastore!$G:$G)*$AL90+SUMIF(Datastore!$A:$A,$AC90&$AD90&$AI90&"|"&G$13&"|"&"FY"&RIGHT(G$12,2),Datastore!$G:$G)*$AL90+SUMIF(Datastore!$A:$A,$AC90&$AD90&$AJ90&"|"&G$13&"|"&"FY"&RIGHT(G$12,2),Datastore!$G:$G)*$AM90+SUMIF(Datastore!$A:$A,$AC90&$AD90&$AK90&"|"&G$13&"|"&"FY"&RIGHT(G$12,2),Datastore!$G:$G)*$AM90)/1000 -> 7389.23334 | H90: =(SUMIF(Datastore!$A:$A,$AC90&$AD90&$AF90&"|"&H$13&"|"&"FY"&RIGHT(H$12,2),Datastore!$G:$G)*$AL90+SUMIF(Datastore!$A:$A,$AC90&$AD90&$AG90&"|"&H$13&"|"&"FY"&RIGHT(H$12,2),Datastore!$G:$G)*$AL90+SUMIF(Datastore!$A:$A,$AC90&$AD90&$AH90&"|"&H$13&"|"&"FY"&RIGHT(H$12,2),Datastore!$G:$G)*$AL90+SUMIF(Datastore!$A:$A,$AC90&$AD90&$AI90&"|"&H$13&"|"&"FY"&RIGHT(H$12,2),Datastore!$G:$G)*$AL90+SUMIF(Datastore!$A:$A,$AC90&$AD90&$AJ90&"|"&H$13&"|"&"FY"&RIGHT(H$12,2),Datastore!$G:$G)*$AM90+SUMIF(Datastore!$A:$A,$AC90&$AD90&$AK90&"|"&H$13&"|"&"FY"&RIGHT(H$12,2),Datastore!$G:$G)*$AM90)/1000 -> 6466.39289 | I90: =(SUMIF(Datastore!$A:$A,$AC90&$AD90&$AF90&"|"&I$13&"|"&"FY"&RIGHT(I$12,2),Datastore!$G:$G)*$AL90+SUMIF(Datastore!$A:$A,$AC90&$AD90&$AG90&"|"&I$13&"|"&"FY"&RIGHT(I$12,2),Datastore!$G:$G)*$AL90+SUMIF(Datastore!$A:$A,$AC90&$AD90&$AH90&"|"&I$13&"|"&"FY"&RIGHT(I$12,2),Datastore!$G:$G)*$AL90+SUMIF(Datastore!$A:$A,$AC90&$AD90&$AI90&"|"&I$13&"|"&"FY"&RIGHT(I$12,2),Datastore!$G:$G)*$AL90+SUMIF(Datastore!$A:$A,$AC90&$AD90&$AJ90&"|"&I$13&"|"&"FY"&RIGHT(I$12,2),Datastore!$G:$G)*$AM90+SUMIF(Datastore!$A:$A,$AC90&$AD90&$AK90&"|"&I$13&"|"&"FY"&RIGHT(I$12,2),Datastore!$G:$G)*$AM90)/1000 -> 7903.00965 | J90: =(SUMIF(Datastore!$A:$A,$AC90&$AD90&$AF90&"|"&J$13&"|"&"FY"&RIGHT(J$12,2),Datastore!$G:$G)*$AL90+SUMIF(Datastore!$A:$A,$AC90&$AD90&$AG90&"|"&J$13&"|"&"FY"&RIGHT(J$12,2),Datastore!$G:$G)*$AL90+SUMIF(Datastore!$A:$A,$AC90&$AD90&$AH90&"|"&J$13&"|"&"FY"&RIGHT(J$12,2),Datastore!$G:$G)*$AL90+SUMIF(Datastore!$A:$A,$AC90&$AD90&$AI90&"|"&J$13&"|"&"FY"&RIGHT(J$12,2),Datastore!$G:$G)*$AL90+SUMIF(Datastore!$A:$A,$AC90&$AD90&$AJ90&"|"&J$13&"|"&"FY"&RIGHT(J$12,2),Datastore!$G:$G)*$AM90+SUMIF(Datastore!$A:$A,$AC90&$AD90&$AK90&"|"&J$13&"|"&"FY"&RIGHT(J$12,2),Datastore!$G:$G)*$AM90)/1000 -> 8025.053836 | K90: =(SUMIF(Datastore!$A:$A,$AC90&$AD90&$AF90&"|"&K$13&"|"&"FY"&RIGHT(K$12,2),Datastore!$G:$G)*$AL90+SUMIF(Datastore!$A:$A,$AC90&$AD90&$AG90&"|"&K$13&"|"&"FY"&RIGHT(K$12,2),Datastore!$G:$G)*$AL90+SUMIF(Datastore!$A:$A,$AC90&$AD90&$AH90&"|"&K$13&"|"&"FY"&RIGHT(K$12,2),Datastore!$G:$G)*$AL90+SUMIF(Datastore!$A:$A,$AC90&$AD90&$AI90&"|"&K$13&"|"&"FY"&RIGHT(K$12,2),Datastore!$G:$G)*$AL90+SUMIF(Datastore!$A:$A,$AC90&$AD90&$AJ90&"|"&K$13&"|"&"FY"&RIGHT(K$12,2),Datastore!$G:$G)*$AM90+SUMIF(Datastore!$A:$A,$AC90&$AD90&$AK90&"|"&K$13&"|"&"FY"&RIGHT(K$12,2),Datastore!$G:$G)*$AM90)/1000 -> 8740.131172 | L90: =(SUMIF(Datastore!$A:$A,$AC90&$AD90&$AF90&"|"&L$13&"|"&"FY"&RIGHT(L$12,2),Datastore!$G:$G)*$AL90+SUMIF(Datastore!$A:$A,$AC90&$AD90&$AG90&"|"&L$13&"|"&"FY"&RIGHT(L$12,2),Datastore!$G:$G)*$AL90+SUMIF(Datastore!$A:$A,$AC90&$AD90&$AH90&"|"&L$13&"|"&"FY"&RIGHT(L$12,2),Datastore!$G:$G)*$AL90+SUMIF(Datastore!$A:$A,$AC90&$AD90&$AI90&"|"&L$13&"|"&"FY"&RIGHT(L$12,2),Datastore!$G:$G)*$AL90+SUMIF(Datastore!$A:$A,$AC90&$AD90&$AJ90&"|"&L$13&"|"&"FY"&RIGHT(L$12,2),Datastore!$G:$G)*$AM90+SUMIF(Datastore!$A:$A,$AC90&$AD90&$AK90&"|"&L$13&"|"&"FY"&RIGHT(L$12,2),Datastore!$G:$G)*$AM90)/1000 -> 9737.769977 | AC90: 86 | AD90: 1 | AF90: |RU?? | AG90: |RR?? | AH90: |ROOI | AI90: |x | AJ90: |x | AK90: |x | AL90: -1 | AM90: 1
C91: =C55 -> Other core water services | E91: $'000
C93: =C57 -> Revenue from wastewater services:
C94: =C58 -> Wastewater via sewer | E94: $'000 | F94: =(SUMIF(Datastore!$A:$A,$AC94&$AD94&$AF94&"|"&F$13&"|"&"FY"&RIGHT(F$12,2),Datastore!$G:$G)*$AL94+SUMIF(Datastore!$A:$A,$AC94&$AD94&$AG94&"|"&F$13&"|"&"FY"&RIGHT(F$12,2),Datastore!$G:$G)*$AL94+SUMIF(Datastore!$A:$A,$AC94&$AD94&$AH94&"|"&F$13&"|"&"FY"&RIGHT(F$12,2),Datastore!$G:$G)*$AL94+SUMIF(Datastore!$A:$A,$AC94&$AD94&$AI94&"|"&F$13&"|"&"FY"&RIGHT(F$12,2),Datastore!$G:$G)*$AL94+SUMIF(Datastore!$A:$A,$AC94&$AD94&$AJ94&"|"&F$13&"|"&"FY"&RIGHT(F$12,2),Datastore!$G:$G)*$AM94+SUMIF(Datastore!$A:$A,$AC94&$AD94&$AK94&"|"&F$13&"|"&"FY"&RIGHT(F$12,2),Datastore!$G:$G)*$AM94)/1000 -> 1963.95775 | G94: =(SUMIF(Datastore!$A:$A,$AC94&$AD94&$AF94&"|"&G$13&"|"&"FY"&RIGHT(G$12,2),Datastore!$G:$G)*$AL94+SUMIF(Datastore!$A:$A,$AC94&$AD94&$AG94&"|"&G$13&"|"&"FY"&RIGHT(G$12,2),Datastore!$G:$G)*$AL94+SUMIF(Datastore!$A:$A,$AC94&$AD94&$AH94&"|"&G$13&"|"&"FY"&RIGHT(G$12,2),Datastore!$G:$G)*$AL94+SUMIF(Datastore!$A:$A,$AC94&$AD94&$AI94&"|"&G$13&"|"&"FY"&RIGHT(G$12,2),Datastore!$G:$G)*$AL94+SUMIF(Datastore!$A:$A,$AC94&$AD94&$AJ94&"|"&G$13&"|"&"FY"&RIGHT(G$12,2),Datastore!$G:$G)*$AM94+SUMIF(Datastore!$A:$A,$AC94&$AD94&$AK94&"|"&G$13&"|"&"FY"&RIGHT(G$12,2),Datastore!$G:$G)*$AM94)/1000 -> 2169.72493 | H94: =(SUMIF(Datastore!$A:$A,$AC94&$AD94&$AF94&"|"&H$13&"|"&"FY"&RIGHT(H$12,2),Datastore!$G:$G)*$AL94+SUMIF(Datastore!$A:$A,$AC94&$AD94&$AG94&"|"&H$13&"|"&"FY"&RIGHT(H$12,2),Datastore!$G:$G)*$AL94+SUMIF(Datastore!$A:$A,$AC94&$AD94&$AH94&"|"&H$13&"|"&"FY"&RIGHT(H$12,2),Datastore!$G:$G)*$AL94+SUMIF(Datastore!$A:$A,$AC94&$AD94&$AI94&"|"&H$13&"|"&"FY"&RIGHT(H$12,2),Datastore!$G:$G)*$AL94+SUMIF(Datastore!$A:$A,$AC94&$AD94&$AJ94&"|"&H$13&"|"&"FY"&RIGHT(H$12,2),Datastore!$G:$G)*$AM94+SUMIF(Datastore!$A:$A,$AC94&$AD94&$AK94&"|"&H$13&"|"&"FY"&RIGHT(H$12,2),Datastore!$G:$G)*$AM94)/1000 -> 2412.99266 | I94: =(SUMIF(Datastore!$A:$A,$AC94&$AD94&$AF94&"|"&I$13&"|"&"FY"&RIGHT(I$12,2),Datastore!$G:$G)*$AL94+SUMIF(Datastore!$A:$A,$AC94&$AD94&$AG94&"|"&I$13&"|"&"FY"&RIGHT(I$12,2),Datastore!$G:$G)*$AL94+SUMIF(Datastore!$A:$A,$AC94&$AD94&$AH94&"|"&I$13&"|"&"FY"&RIGHT(I$12,2),Datastore!$G:$G)*$AL94+SUMIF(Datastore!$A:$A,$AC94&$AD94&$AI94&"|"&I$13&"|"&"FY"&RIGHT(I$12,2),Datastore!$G:$G)*$AL94+SUMIF(Datastore!$A:$A,$AC94&$AD94&$AJ94&"|"&I$13&"|"&"FY"&RIGHT(I$12,2),Datastore!$G:$G)*$AM94+SUMIF(Datastore!$A:$A,$AC94&$AD94&$AK94&"|"&I$13&"|"&"FY"&RIGHT(I$12,2),Datastore!$G:$G)*$AM94)/1000 -> 2543.86894 | J94: =(SUMIF(Datastore!$A:$A,$AC94&$AD94&$AF94&"|"&J$13&"|"&"FY"&RIGHT(J$12,2),Datastore!$G:$G)*$AL94+SUMIF(Datastore!$A:$A,$AC94&$AD94&$AG94&"|"&J$13&"|"&"FY"&RIGHT(J$12,2),Datastore!$G:$G)*$AL94+SUMIF(Datastore!$A:$A,$AC94&$AD94&$AH94&"|"&J$13&"|"&"FY"&RIGHT(J$12,2),Datastore!$G:$G)*$AL94+SUMIF(Datastore!$A:$A,$AC94&$AD94&$AI94&"|"&J$13&"|"&"FY"&RIGHT(J$12,2),Datastore!$G:$G)*$AL94+SUMIF(Datastore!$A:$A,$AC94&$AD94&$AJ94&"|"&J$13&"|"&"FY"&RIGHT(J$12,2),Datastore!$G:$G)*$AM94+SUMIF(Datastore!$A:$A,$AC94&$AD94&$AK94&"|"&J$13&"|"&"FY"&RIGHT(J$12,2),Datastore!$G:$G)*$AM94)/1000 -> 2660.434401 | K94: =(SUMIF(Datastore!$A:$A,$AC94&$AD94&$AF94&"|"&K$13&"|"&"FY"&RIGHT(K$12,2),Datastore!$G:$G)*$AL94+SUMIF(Datastore!$A:$A,$AC94&$AD94&$AG94&"|"&K$13&"|"&"FY"&RIGHT(K$12,2),Datastore!$G:$G)*$AL94+SUMIF(Datastore!$A:$A,$AC94&$AD94&$AH94&"|"&K$13&"|"&"FY"&RIGHT(K$12,2),Datastore!$G:$G)*$AL94+SUMIF(Datastore!$A:$A,$AC94&$AD94&$AI94&"|"&K$13&"|"&"FY"&RIGHT(K$12,2),Datastore!$G:$G)*$AL94+SUMIF(Datastore!$A:$A,$AC94&$AD94&$AJ94&"|"&K$13&"|"&"FY"&RIGHT(K$12,2),Datastore!$G:$G)*$AM94+SUMIF(Datastore!$A:$A,$AC94&$AD94&$AK94&"|"&K$13&"|"&"FY"&RIGHT(K$12,2),Datastore!$G:$G)*$AM94)/1000 -> 2749.08 | L94: =(SUMIF(Datastore!$A:$A,$AC94&$AD94&$AF94&"|"&L$13&"|"&"FY"&RIGHT(L$12,2),Datastore!$G:$G)*$AL94+SUMIF(Datastore!$A:$A,$AC94&$AD94&$AG94&"|"&L$13&"|"&"FY"&RIGHT(L$12,2),Datastore!$G:$G)*$AL94+SUMIF(Datastore!$A:$A,$AC94&$AD94&$AH94&"|"&L$13&"|"&"FY"&RIGHT(L$12,2),Datastore!$G:$G)*$AL94+SUMIF(Datastore!$A:$A,$AC94&$AD94&$AI94&"|"&L$13&"|"&"FY"&RIGHT(L$12,2),Datastore!$G:$G)*$AL94+SUMIF(Datastore!$A:$A,$AC94&$AD94&$AJ94&"|"&L$13&"|"&"FY"&RIGHT(L$12,2),Datastore!$G:$G)*$AM94+SUMIF(Datastore!$A:$A,$AC94&$AD94&$AK94&"|"&L$13&"|"&"FY"&RIGHT(L$12,2),Datastore!$G:$G)*$AM94)/1000 -> 2962.280537 | AC94: 86 | AD94: 2 | AF94: |RU?? | AG94: |RR?? | AH94: |ROOI | AI94: |x | AJ94: |RUTW | AK94: |RURW | AL94: -1 | AM94: 1
C95: =C59 -> Trade waste | E95: $'000 | F95: =(SUMIF(Datastore!$A:$A,$AC95&$AD95&$AF95&"|"&F$13&"|"&"FY"&RIGHT(F$12,2),Datastore!$G:$G)*$AL95+SUMIF(Datastore!$A:$A,$AC95&$AD95&$AG95&"|"&F$13&"|"&"FY"&RIGHT(F$12,2),Datastore!$G:$G)*$AL95+SUMIF(Datastore!$A:$A,$AC95&$AD95&$AH95&"|"&F$13&"|"&"FY"&RIGHT(F$12,2),Datastore!$G:$G)*$AL95+SUMIF(Datastore!$A:$A,$AC95&$AD95&$AI95&"|"&F$13&"|"&"FY"&RIGHT(F$12,2),Datastore!$G:$G)*$AL95+SUMIF(Datastore!$A:$A,$AC95&$AD95&$AJ95&"|"&F$13&"|"&"FY"&RIGHT(F$12,2),Datastore!$G:$G)*$AM95+SUMIF(Datastore!$A:$A,$AC95&$AD95&$AK95&"|"&F$13&"|"&"FY"&RIGHT(F$12,2),Datastore!$G:$G)*$AM95)/1000 -> 0 | G95: =(SUMIF(Datastore!$A:$A,$AC95&$AD95&$AF95&"|"&G$13&"|"&"FY"&RIGHT(G$12,2),Datastore!$G:$G)*$AL95+SUMIF(Datastore!$A:$A,$AC95&$AD95&$AG95&"|"&G$13&"|"&"FY"&RIGHT(G$12,2),Datastore!$G:$G)*$AL95+SUMIF(Datastore!$A:$A,$AC95&$AD95&$AH95&"|"&G$13&"|"&"FY"&RIGHT(G$12,2),Datastore!$G:$G)*$AL95+SUMIF(Datastore!$A:$A,$AC95&$AD95&$AI95&"|"&G$13&"|"&"FY"&RIGHT(G$12,2),Datastore!$G:$G)*$AL95+SUMIF(Datastore!$A:$A,$AC95&$AD95&$AJ95&"|"&G$13&"|"&"FY"&RIGHT(G$12,2),Datastore!$G:$G)*$AM95+SUMIF(Datastore!$A:$A,$AC95&$AD95&$AK95&"|"&G$13&"|"&"FY"&RIGHT(G$12,2),Datastore!$G:$G)*$AM95)/1000 -> 0 | H95: =(SUMIF(Datastore!$A:$A,$AC95&$AD95&$AF95&"|"&H$13&"|"&"FY"&RIGHT(H$12,2),Datastore!$G:$G)*$AL95+SUMIF(Datastore!$A:$A,$AC95&$AD95&$AG95&"|"&H$13&"|"&"FY"&RIGHT(H$12,2),Datastore!$G:$G)*$AL95+SUMIF(Datastore!$A:$A,$AC95&$AD95&$AH95&"|"&H$13&"|"&"FY"&RIGHT(H$12,2),Datastore!$G:$G)*$AL95+SUMIF(Datastore!$A:$A,$AC95&$AD95&$AI95&"|"&H$13&"|"&"FY"&RIGHT(H$12,2),Datastore!$G:$G)*$AL95+SUMIF(Datastore!$A:$A,$AC95&$AD95&$AJ95&"|"&H$13&"|"&"FY"&RIGHT(H$12,2),Datastore!$G:$G)*$AM95+SUMIF(Datastore!$A:$A,$AC95&$AD95&$AK95&"|"&H$13&"|"&"FY"&RIGHT(H$12,2),Datastore!$G:$G)*$AM95)/1000 -> 0 | I95: =(SUMIF(Datastore!$A:$A,$AC95&$AD95&$AF95&"|"&I$13&"|"&"FY"&RIGHT(I$12,2),Datastore!$G:$G)*$AL95+SUMIF(Datastore!$A:$A,$AC95&$AD95&$AG95&"|"&I$13&"|"&"FY"&RIGHT(I$12,2),Datastore!$G:$G)*$AL95+SUMIF(Datastore!$A:$A,$AC95&$AD95&$AH95&"|"&I$13&"|"&"FY"&RIGHT(I$12,2),Datastore!$G:$G)*$AL95+SUMIF(Datastore!$A:$A,$AC95&$AD95&$AI95&"|"&I$13&"|"&"FY"&RIGHT(I$12,2),Datastore!$G:$G)*$AL95+SUMIF(Datastore!$A:$A,$AC95&$AD95&$AJ95&"|"&I$13&"|"&"FY"&RIGHT(I$12,2),Datastore!$G:$G)*$AM95+SUMIF(Datastore!$A:$A,$AC95&$AD95&$AK95&"|"&I$13&"|"&"FY"&RIGHT(I$12,2),Datastore!$G:$G)*$AM95)/1000 -> 0 | J95: =(SUMIF(Datastore!$A:$A,$AC95&$AD95&$AF95&"|"&J$13&"|"&"FY"&RIGHT(J$12,2),Datastore!$G:$G)*$AL95+SUMIF(Datastore!$A:$A,$AC95&$AD95&$AG95&"|"&J$13&"|"&"FY"&RIGHT(J$12,2),Datastore!$G:$G)*$AL95+SUMIF(Datastore!$A:$A,$AC95&$AD95&$AH95&"|"&J$13&"|"&"FY"&RIGHT(J$12,2),Datastore!$G:$G)*$AL95+SUMIF(Datastore!$A:$A,$AC95&$AD95&$AI95&"|"&J$13&"|"&"FY"&RIGHT(J$12,2),Datastore!$G:$G)*$AL95+SUMIF(Datastore!$A:$A,$AC95&$AD95&$AJ95&"|"&J$13&"|"&"FY"&RIGHT(J$12,2),Datastore!$G:$G)*$AM95+SUMIF(Datastore!$A:$A,$AC95&$AD95&$AK95&"|"&J$13&"|"&"FY"&RIGHT(J$12,2),Datastore!$G:$G)*$AM95)/1000 -> 0 | K95: =(SUMIF(Datastore!$A:$A,$AC95&$AD95&$AF95&"|"&K$13&"|"&"FY"&RIGHT(K$12,2),Datastore!$G:$G)*$AL95+SUMIF(Datastore!$A:$A,$AC95&$AD95&$AG95&"|"&K$13&"|"&"FY"&RIGHT(K$12,2),Datastore!$G:$G)*$AL95+SUMIF(Datastore!$A:$A,$AC95&$AD95&$AH95&"|"&K$13&"|"&"FY"&RIGHT(K$12,2),Datastore!$G:$G)*$AL95+SUMIF(Datastore!$A:$A,$AC95&$AD95&$AI95&"|"&K$13&"|"&"FY"&RIGHT(K$12,2),Datastore!$G:$G)*$AL95+SUMIF(Datastore!$A:$A,$AC95&$AD95&$AJ95&"|"&K$13&"|"&"FY"&RIGHT(K$12,2),Datastore!$G:$G)*$AM95+SUMIF(Datastore!$A:$A,$AC95&$AD95&$AK95&"|"&K$13&"|"&"FY"&RIGHT(K$12,2),Datastore!$G:$G)*$AM95)/1000 -> 0 | L95: =(SUMIF(Datastore!$A:$A,$AC95&$AD95&$AF95&"|"&L$13&"|"&"FY"&RIGHT(L$12,2),Datastore!$G:$G)*$AL95+SUMIF(Datastore!$A:$A,$AC95&$AD95&$AG95&"|"&L$13&"|"&"FY"&RIGHT(L$12,2),Datastore!$G:$G)*$AL95+SUMIF(Datastore!$A:$A,$AC95&$AD95&$AH95&"|"&L$13&"|"&"FY"&RIGHT(L$12,2),Datastore!$G:$G)*$AL95+SUMIF(Datastore!$A:$A,$AC95&$AD95&$AI95&"|"&L$13&"|"&"FY"&RIGHT(L$12,2),Datastore!$G:$G)*$AL95+SUMIF(Datastore!$A:$A,$AC95&$AD95&$AJ95&"|"&L$13&"|"&"FY"&RIGHT(L$12,2),Datastore!$G:$G)*$AM95+SUMIF(Datastore!$A:$A,$AC95&$AD95&$AK95&"|"&L$13&"|"&"FY"&RIGHT(L$12,2),Datastore!$G:$G)*$AM95)/1000 -> 0 | AC95: 86 | AD95: 2 | AF95: |RUTW | AG95: |x | AH95: |x | AI95: |x | AJ95: |x | AK95: |x | AL95: -1 | AM95: 1
C96: =C60 -> Other core wastewater services | E96: $'000 | F96: =(SUMIF(Datastore!$A:$A,$AC96&$AD96&$AF96&"|"&F$13&"|"&"FY"&RIGHT(F$12,2),Datastore!$G:$G)*$AL96+SUMIF(Datastore!$A:$A,$AC96&$AD96&$AG96&"|"&F$13&"|"&"FY"&RIGHT(F$12,2),Datastore!$G:$G)*$AL96+SUMIF(Datastore!$A:$A,$AC96&$AD96&$AH96&"|"&F$13&"|"&"FY"&RIGHT(F$12,2),Datastore!$G:$G)*$AL96+SUMIF(Datastore!$A:$A,$AC96&$AD96&$AI96&"|"&F$13&"|"&"FY"&RIGHT(F$12,2),Datastore!$G:$G)*$AL96+SUMIF(Datastore!$A:$A,$AC96&$AD96&$AJ96&"|"&F$13&"|"&"FY"&RIGHT(F$12,2),Datastore!$G:$G)*$AM96+SUMIF(Datastore!$A:$A,$AC96&$AD96&$AK96&"|"&F$13&"|"&"FY"&RIGHT(F$12,2),Datastore!$G:$G)*$AM96)/1000 -> 0 | G96: =(SUMIF(Datastore!$A:$A,$AC96&$AD96&$AF96&"|"&G$13&"|"&"FY"&RIGHT(G$12,2),Datastore!$G:$G)*$AL96+SUMIF(Datastore!$A:$A,$AC96&$AD96&$AG96&"|"&G$13&"|"&"FY"&RIGHT(G$12,2),Datastore!$G:$G)*$AL96+SUMIF(Datastore!$A:$A,$AC96&$AD96&$AH96&"|"&G$13&"|"&"FY"&RIGHT(G$12,2),Datastore!$G:$G)*$AL96+SUMIF(Datastore!$A:$A,$AC96&$AD96&$AI96&"|"&G$13&"|"&"FY"&RIGHT(G$12,2),Datastore!$G:$G)*$AL96+SUMIF(Datastore!$A:$A,$AC96&$AD96&$AJ96&"|"&G$13&"|"&"FY"&RIGHT(G$12,2),Datastore!$G:$G)*$AM96+SUMIF(Datastore!$A:$A,$AC96&$AD96&$AK96&"|"&G$13&"|"&"FY"&RIGHT(G$12,2),Datastore!$G:$G)*$AM96)/1000 -> 0 | H96: =(SUMIF(Datastore!$A:$A,$AC96&$AD96&$AF96&"|"&H$13&"|"&"FY"&RIGHT(H$12,2),Datastore!$G:$G)*$AL96+SUMIF(Datastore!$A:$A,$AC96&$AD96&$AG96&"|"&H$13&"|"&"FY"&RIGHT(H$12,2),Datastore!$G:$G)*$AL96+SUMIF(Datastore!$A:$A,$AC96&$AD96&$AH96&"|"&H$13&"|"&"FY"&RIGHT(H$12,2),Datastore!$G:$G)*$AL96+SUMIF(Datastore!$A:$A,$AC96&$AD96&$AI96&"|"&H$13&"|"&"FY"&RIGHT(H$12,2),Datastore!$G:$G)*$AL96+SUMIF(Datastore!$A:$A,$AC96&$AD96&$AJ96&"|"&H$13&"|"&"FY"&RIGHT(H$12,2),Datastore!$G:$G)*$AM96+SUMIF(Datastore!$A:$A,$AC96&$AD96&$AK96&"|"&H$13&"|"&"FY"&RIGHT(H$12,2),Datastore!$G:$G)*$AM96)/1000 -> 0 | I96: =(SUMIF(Datastore!$A:$A,$AC96&$AD96&$AF96&"|"&I$13&"|"&"FY"&RIGHT(I$12,2),Datastore!$G:$G)*$AL96+SUMIF(Datastore!$A:$A,$AC96&$AD96&$AG96&"|"&I$13&"|"&"FY"&RIGHT(I$12,2),Datastore!$G:$G)*$AL96+SUMIF(Datastore!$A:$A,$AC96&$AD96&$AH96&"|"&I$13&"|"&"FY"&RIGHT(I$12,2),Datastore!$G:$G)*$AL96+SUMIF(Datastore!$A:$A,$AC96&$AD96&$AI96&"|"&I$13&"|"&"FY"&RIGHT(I$12,2),Datastore!$G:$G)*$AL96+SUMIF(Datastore!$A:$A,$AC96&$AD96&$AJ96&"|"&I$13&"|"&"FY"&RIGHT(I$12,2),Datastore!$G:$G)*$AM96+SUMIF(Datastore!$A:$A,$AC96&$AD96&$AK96&"|"&I$13&"|"&"FY"&RIGHT(I$12,2),Datastore!$G:$G)*$AM96)/1000 -> 0 | J96: =(SUMIF(Datastore!$A:$A,$AC96&$AD96&$AF96&"|"&J$13&"|"&"FY"&RIGHT(J$12,2),Datastore!$G:$G)*$AL96+SUMIF(Datastore!$A:$A,$AC96&$AD96&$AG96&"|"&J$13&"|"&"FY"&RIGHT(J$12,2),Datastore!$G:$G)*$AL96+SUMIF(Datastore!$A:$A,$AC96&$AD96&$AH96&"|"&J$13&"|"&"FY"&RIGHT(J$12,2),Datastore!$G:$G)*$AL96+SUMIF(Datastore!$A:$A,$AC96&$AD96&$AI96&"|"&J$13&"|"&"FY"&RIGHT(J$12,2),Datastore!$G:$G)*$AL96+SUMIF(Datastore!$A:$A,$AC96&$AD96&$AJ96&"|"&J$13&"|"&"FY"&RIGHT(J$12,2),Datastore!$G:$G)*$AM96+SUMIF(Datastore!$A:$A,$AC96&$AD96&$AK96&"|"&J$13&"|"&"FY"&RIGHT(J$12,2),Datastore!$G:$G)*$AM96)/1000 -> 0 | K96: =(SUMIF(Datastore!$A:$A,$AC96&$AD96&$AF96&"|"&K$13&"|"&"FY"&RIGHT(K$12,2),Datastore!$G:$G)*$AL96+SUMIF(Datastore!$A:$A,$AC96&$AD96&$AG96&"|"&K$13&"|"&"FY"&RIGHT(K$12,2),Datastore!$G:$G)*$AL96+SUMIF(Datastore!$A:$A,$AC96&$AD96&$AH96&"|"&K$13&"|"&"FY"&RIGHT(K$12,2),Datastore!$G:$G)*$AL96+SUMIF(Datastore!$A:$A,$AC96&$AD96&$AI96&"|"&K$13&"|"&"FY"&RIGHT(K$12,2),Datastore!$G:$G)*$AL96+SUMIF(Datastore!$A:$A,$AC96&$AD96&$AJ96&"|"&K$13&"|"&"FY"&RIGHT(K$12,2),Datastore!$G:$G)*$AM96+SUMIF(Datastore!$A:$A,$AC96&$AD96&$AK96&"|"&K$13&"|"&"FY"&RIGHT(K$12,2),Datastore!$G:$G)*$AM96)/1000 -> 0 | L96: =(SUMIF(Datastore!$A:$A,$AC96&$AD96&$AF96&"|"&L$13&"|"&"FY"&RIGHT(L$12,2),Datastore!$G:$G)*$AL96+SUMIF(Datastore!$A:$A,$AC96&$AD96&$AG96&"|"&L$13&"|"&"FY"&RIGHT(L$12,2),Datastore!$G:$G)*$AL96+SUMIF(Datastore!$A:$A,$AC96&$AD96&$AH96&"|"&L$13&"|"&"FY"&RIGHT(L$12,2),Datastore!$G:$G)*$AL96+SUMIF(Datastore!$A:$A,$AC96&$AD96&$AI96&"|"&L$13&"|"&"FY"&RIGHT(L$12,2),Datastore!$G:$G)*$AL96+SUMIF(Datastore!$A:$A,$AC96&$AD96&$AJ96&"|"&L$13&"|"&"FY"&RIGHT(L$12,2),Datastore!$G:$G)*$AM96+SUMIF(Datastore!$A:$A,$AC96&$AD96&$AK96&"|"&L$13&"|"&"FY"&RIGHT(L$12,2),Datastore!$G:$G)*$AM96)/1000 -> 0 | AC96: 86 | AD96: 2 | AF96: |RURW | AG96: |x | AH96: |x | AI96: |x | AJ96: |x | AK96: |x | AL96: -1 | AM96: 1
C98: =C62 -> Non-regulated:
C99: =C63 -> Aggregate non-regulated services | E99: $'000 | F99: =(SUMIF(Datastore!$A:$A,$AC99&$AD99&$AF99&"|"&F$13&"|"&"FY"&RIGHT(F$12,2),Datastore!$G:$G)*$AL99+SUMIF(Datastore!$A:$A,$AC99&$AD99&$AG99&"|"&F$13&"|"&"FY"&RIGHT(F$12,2),Datastore!$G:$G)*$AL99+SUMIF(Datastore!$A:$A,$AC99&$AD99&$AH99&"|"&F$13&"|"&"FY"&RIGHT(F$12,2),Datastore!$G:$G)*$AL99+SUMIF(Datastore!$A:$A,$AC99&$AD99&$AI99&"|"&F$13&"|"&"FY"&RIGHT(F$12,2),Datastore!$G:$G)*$AL99+SUMIF(Datastore!$A:$A,$AC99&$AD99&$AJ99&"|"&F$13&"|"&"FY"&RIGHT(F$12,2),Datastore!$G:$G)*$AM99+SUMIF(Datastore!$A:$A,$AC99&$AD99&$AK99&"|"&F$13&"|"&"FY"&RIGHT(F$12,2),Datastore!$G:$G)*$AM99)/1000 -> 0 | G99: =(SUMIF(Datastore!$A:$A,$AC99&$AD99&$AF99&"|"&G$13&"|"&"FY"&RIGHT(G$12,2),Datastore!$G:$G)*$AL99+SUMIF(Datastore!$A:$A,$AC99&$AD99&$AG99&"|"&G$13&"|"&"FY"&RIGHT(G$12,2),Datastore!$G:$G)*$AL99+SUMIF(Datastore!$A:$A,$AC99&$AD99&$AH99&"|"&G$13&"|"&"FY"&RIGHT(G$12,2),Datastore!$G:$G)*$AL99+SUMIF(Datastore!$A:$A,$AC99&$AD99&$AI99&"|"&G$13&"|"&"FY"&RIGHT(G$12,2),Datastore!$G:$G)*$AL99+SUMIF(Datastore!$A:$A,$AC99&$AD99&$AJ99&"|"&G$13&"|"&"FY"&RIGHT(G$12,2),Datastore!$G:$G)*$AM99+SUMIF(Datastore!$A:$A,$AC99&$AD99&$AK99&"|"&G$13&"|"&"FY"&RIGHT(G$12,2),Datastore!$G:$G)*$AM99)/1000 -> 0 | H99: =(SUMIF(Datastore!$A:$A,$AC99&$AD99&$AF99&"|"&H$13&"|"&"FY"&RIGHT(H$12,2),Datastore!$G:$G)*$AL99+SUMIF(Datastore!$A:$A,$AC99&$AD99&$AG99&"|"&H$13&"|"&"FY"&RIGHT(H$12,2),Datastore!$G:$G)*$AL99+SUMIF(Datastore!$A:$A,$AC99&$AD99&$AH99&"|"&H$13&"|"&"FY"&RIGHT(H$12,2),Datastore!$G:$G)*$AL99+SUMIF(Datastore!$A:$A,$AC99&$AD99&$AI99&"|"&H$13&"|"&"FY"&RIGHT(H$12,2),Datastore!$G:$G)*$AL99+SUMIF(Datastore!$A:$A,$AC99&$AD99&$AJ99&"|"&H$13&"|"&"FY"&RIGHT(H$12,2),Datastore!$G:$G)*$AM99+SUMIF(Datastore!$A:$A,$AC99&$AD99&$AK99&"|"&H$13&"|"&"FY"&RIGHT(H$12,2),Datastore!$G:$G)*$AM99)/1000 -> 277.95918 | I99: =(SUMIF(Datastore!$A:$A,$AC99&$AD99&$AF99&"|"&I$13&"|"&"FY"&RIGHT(I$12,2),Datastore!$G:$G)*$AL99+SUMIF(Datastore!$A:$A,$AC99&$AD99&$AG99&"|"&I$13&"|"&"FY"&RIGHT(I$12,2),Datastore!$G:$G)*$AL99+SUMIF(Datastore!$A:$A,$AC99&$AD99&$AH99&"|"&I$13&"|"&"FY"&RIGHT(I$12,2),Datastore!$G:$G)*$AL99+SUMIF(Datastore!$A:$A,$AC99&$AD99&$AI99&"|"&I$13&"|"&"FY"&RIGHT(I$12,2),Datastore!$G:$G)*$AL99+SUMIF(Datastore!$A:$A,$AC99&$AD99&$AJ99&"|"&I$13&"|"&"FY"&RIGHT(I$12,2),Datastore!$G:$G)*$AM99+SUMIF(Datastore!$A:$A,$AC99&$AD99&$AK99&"|"&I$13&"|"&"FY"&RIGHT(I$12,2),Datastore!$G:$G)*$AM99)/1000 -> 8.62074 | J99: =(SUMIF(Datastore!$A:$A,$AC99&$AD99&$AF99&"|"&J$13&"|"&"FY"&RIGHT(J$12,2),Datastore!$G:$G)*$AL99+SUMIF(Datastore!$A:$A,$AC99&$AD99&$AG99&"|"&J$13&"|"&"FY"&RIGHT(J$12,2),Datastore!$G:$G)*$AL99+SUMIF(Datastore!$A:$A,$AC99&$AD99&$AH99&"|"&J$13&"|"&"FY"&RIGHT(J$12,2),Datastore!$G:$G)*$AL99+SUMIF(Datastore!$A:$A,$AC99&$AD99&$AI99&"|"&J$13&"|"&"FY"&RIGHT(J$12,2),Datastore!$G:$G)*$AL99+SUMIF(Datastore!$A:$A,$AC99&$AD99&$AJ99&"|"&J$13&"|"&"FY"&RIGHT(J$12,2),Datastore!$G:$G)*$AM99+SUMIF(Datastore!$A:$A,$AC99&$AD99&$AK99&"|"&J$13&"|"&"FY"&RIGHT(J$12,2),Datastore!$G:$G)*$AM99)/1000 -> 0 | K99: =(SUMIF(Datastore!$A:$A,$AC99&$AD99&$AF99&"|"&K$13&"|"&"FY"&RIGHT(K$12,2),Datastore!$G:$G)*$AL99+SUMIF(Datastore!$A:$A,$AC99&$AD99&$AG99&"|"&K$13&"|"&"FY"&RIGHT(K$12,2),Datastore!$G:$G)*$AL99+SUMIF(Datastore!$A:$A,$AC99&$AD99&$AH99&"|"&K$13&"|"&"FY"&RIGHT(K$12,2),Datastore!$G:$G)*$AL99+SUMIF(Datastore!$A:$A,$AC99&$AD99&$AI99&"|"&K$13&"|"&"FY"&RIGHT(K$12,2),Datastore!$G:$G)*$AL99+SUMIF(Datastore!$A:$A,$AC99&$AD99&$AJ99&"|"&K$13&"|"&"FY"&RIGHT(K$12,2),Datastore!$G:$G)*$AM99+SUMIF(Datastore!$A:$A,$AC99&$AD99&$AK99&"|"&K$13&"|"&"FY"&RIGHT(K$12,2),Datastore!$G:$G)*$AM99)/1000 -> 0 | L99: =(SUMIF(Datastore!$A:$A,$AC99&$AD99&$AF99&"|"&L$13&"|"&"FY"&RIGHT(L$12,2),Datastore!$G:$G)*$AL99+SUMIF(Datastore!$A:$A,$AC99&$AD99&$AG99&"|"&L$13&"|"&"FY"&RIGHT(L$12,2),Datastore!$G:$G)*$AL99+SUMIF(Datastore!$A:$A,$AC99&$AD99&$AH99&"|"&L$13&"|"&"FY"&RIGHT(L$12,2),Datastore!$G:$G)*$AL99+SUMIF(Datastore!$A:$A,$AC99&$AD99&$AI99&"|"&L$13&"|"&"FY"&RIGHT(L$12,2),Datastore!$G:$G)*$AL99+SUMIF(Datastore!$A:$A,$AC99&$AD99&$AJ99&"|"&L$13&"|"&"FY"&RIGHT(L$12,2),Datastore!$G:$G)*$AM99+SUMIF(Datastore!$A:$A,$AC99&$AD99&$AK99&"|"&L$13&"|"&"FY"&RIGHT(L$12,2),Datastore!$G:$G)*$AM99)/1000 -> 0 | AC99: 86 | AD99: 4 | AF99: |R??? | AG99: |x | AH99: |x | AI99: |x | AJ99: |x | AK99: |x | AL99: -1 | AM99: 1
C101: =C65 -> Subtotal Revenue from Services | E101: $'000 | F101: =SUM(F90:F91)+SUM(F94:F96)+F99 -> 8367.36425 | G101: =SUM(G90:G91)+SUM(G94:G96)+G99 -> 9558.95827 | H101: 9157.34473 | I101: 10455.49933 | J101: 10685.48824 | K101: =SUM(K90:K91)+SUM(K94:K96)+K99 -> 11489.21117 | L101: 12700.05051 | M101: 0 | N101: 0 | O101: 0 | P101: 0 | Q101: 0 | R101: 0 | S101: 0 | T101: 0 | U101: 0 | V101: 0 | W101: 0 | X101: 0 | Y101: 0
B103: =B67 -> OTHER REVENUE
C104: =C68 -> Other Revenue Offset Against Revenue Requirements:
C105: =C69 -> Investment Income | E105: $'000 | F105: =(SUMIF(Datastore!$A:$A,$AC105&$AD105&$AF105&"|"&F$13&"|"&"FY"&RIGHT(F$12,2),Datastore!$G:$G)+SUMIF(Datastore!$A:$A,$AC105&$AE105&$AF105&"|"&F$13&"|"&"FY"&RIGHT(F$12,2),Datastore!$G:$G))*$AL105/1000 -> 0 | G105: =(SUMIF(Datastore!$A:$A,$AC105&$AD105&$AF105&"|"&G$13&"|"&"FY"&RIGHT(G$12,2),Datastore!$G:$G)+SUMIF(Datastore!$A:$A,$AC105&$AE105&$AF105&"|"&G$13&"|"&"FY"&RIGHT(G$12,2),Datastore!$G:$G))*$AL105/1000 -> 0 | H105: =(SUMIF(Datastore!$A:$A,$AC105&$AD105&$AF105&"|"&H$13&"|"&"FY"&RIGHT(H$12,2),Datastore!$G:$G)+SUMIF(Datastore!$A:$A,$AC105&$AE105&$AF105&"|"&H$13&"|"&"FY"&RIGHT(H$12,2),Datastore!$G:$G))*$AL105/1000 -> 0 | I105: =(SUMIF(Datastore!$A:$A,$AC105&$AD105&$AF105&"|"&I$13&"|"&"FY"&RIGHT(I$12,2),Datastore!$G:$G)+SUMIF(Datastore!$A:$A,$AC105&$AE105&$AF105&"|"&I$13&"|"&"FY"&RIGHT(I$12,2),Datastore!$G:$G))*$AL105/1000 -> 0 | J105: =(SUMIF(Datastore!$A:$A,$AC105&$AD105&$AF105&"|"&J$13&"|"&"FY"&RIGHT(J$12,2),Datastore!$G:$G)+SUMIF(Datastore!$A:$A,$AC105&$AE105&$AF105&"|"&J$13&"|"&"FY"&RIGHT(J$12,2),Datastore!$G:$G))*$AL105/1000 -> 0 | K105: =(SUMIF(Datastore!$A:$A,$AC105&$AD105&$AF105&"|"&K$13&"|"&"FY"&RIGHT(K$12,2),Datastore!$G:$G)+SUMIF(Datastore!$A:$A,$AC105&$AE105&$AF105&"|"&K$13&"|"&"FY"&RIGHT(K$12,2),Datastore!$G:$G))*$AL105/1000 -> 0 | L105: =(SUMIF(Datastore!$A:$A,$AC105&$AD105&$AF105&"|"&L$13&"|"&"FY"&RIGHT(L$12,2),Datastore!$G:$G)+SUMIF(Datastore!$A:$A,$AC105&$AE105&$AF105&"|"&L$13&"|"&"FY"&RIGHT(L$12,2),Datastore!$G:$G))*$AL105/1000 -> 0 | AC105: 86 | AD105: 1 | AE105: 2 | AF105: |RFIN | AL105: -1
C106: =C70 -> Net profit from Sale of Assets | E106: $'000 | F106: =(SUMIF(Datastore!$A:$A,$AC106&$AD106&$AF106&"|"&F$13&"|"&"FY"&RIGHT(F$12,2),Datastore!$G:$G)+SUMIF(Datastore!$A:$A,$AC106&$AE106&$AF106&"|"&F$13&"|"&"FY"&RIGHT(F$12,2),Datastore!$G:$G))*$AL106/1000 -> 0 | G106: =(SUMIF(Datastore!$A:$A,$AC106&$AD106&$AF106&"|"&G$13&"|"&"FY"&RIGHT(G$12,2),Datastore!$G:$G)+SUMIF(Datastore!$A:$A,$AC106&$AE106&$AF106&"|"&G$13&"|"&"FY"&RIGHT(G$12,2),Datastore!$G:$G))*$AL106/1000 -> 0 | AA106: Not forecast for regulatory purposes | AC106: 86 | AD106: 1 | AE106: 2 | AF106: |ELOD | AL106: -1
C107: =C71 -> Contributions | E107: $'000 | F107: =(SUMIF(Datastore!$A:$A,$AC107&$AD107&$AF107&"|"&F$13&"|"&"FY"&RIGHT(F$12,2),Datastore!$G:$G)+SUMIF(Datastore!$A:$A,$AC107&$AE107&$AF107&"|"&F$13&"|"&"FY"&RIGHT(F$12,2),Datastore!$G:$G))*$AL107/1000 -> 3828.10058 | G107: =(SUMIF(Datastore!$A:$A,$AC107&$AD107&$AF107&"|"&G$13&"|"&"FY"&RIGHT(G$12,2),Datastore!$G:$G)+SUMIF(Datastore!$A:$A,$AC107&$AE107&$AF107&"|"&G$13&"|"&"FY"&RIGHT(G$12,2),Datastore!$G:$G))*$AL107/1000 -> 3247.74947 | H107: =(SUMIF(Datastore!$A:$A,$AC107&$AD107&$AF107&"|"&H$13&"|"&"FY"&RIGHT(H$12,2),Datastore!$G:$G)+SUMIF(Datastore!$A:$A,$AC107&$AE107&$AF107&"|"&H$13&"|"&"FY"&RIGHT(H$12,2),Datastore!$G:$G))*$AL107/1000 -> 1106.89166 | I107: =(SUMIF(Datastore!$A:$A,$AC107&$AD107&$AF107&"|"&I$13&"|"&"FY"&RIGHT(I$12,2),Datastore!$G:$G)+SUMIF(Datastore!$A:$A,$AC107&$AE107&$AF107&"|"&I$13&"|"&"FY"&RIGHT(I$12,2),Datastore!$G:$G))*$AL107/1000 -> 1826.93971 | J107: =(SUMIF(Datastore!$A:$A,$AC107&$AD107&$AF107&"|"&J$13&"|"&"FY"&RIGHT(J$12,2),Datastore!$G:$G)+SUMIF(Datastore!$A:$A,$AC107&$AE107&$AF107&"|"&J$13&"|"&"FY"&RIGHT(J$12,2),Datastore!$G:$G))*$AL107/1000 -> 3817.638349 | K107: =(SUMIF(Datastore!$A:$A,$AC107&$AD107&$AF107&"|"&K$13&"|"&"FY"&RIGHT(K$12,2),Datastore!$G:$G)+SUMIF(Datastore!$A:$A,$AC107&$AE107&$AF107&"|"&K$13&"|"&"FY"&RIGHT(K$12,2),Datastore!$G:$G))*$AL107/1000 -> 5264.72 | L107: =(SUMIF(Datastore!$A:$A,$AC107&$AD107&$AF107&"|"&L$13&"|"&"FY"&RIGHT(L$12,2),Datastore!$G:$G)+SUMIF(Datastore!$A:$A,$AC107&$AE107&$AF107&"|"&L$13&"|"&"FY"&RIGHT(L$12,2),Datastore!$G:$G))*$AL107/1000 -> 6390.42502 | AC107: 86 | AD107: 1 | AE107: 2 | AF107: |RC?? | AL107: -1
C109: =C73 -> Other Revenue Not Offset Against Revenue Requirements:
C110: =C74 -> Non-recurrent Income | E110: $'000 | F110: =(SUMIF(Datastore!$A:$A,$AC110&$AD110&$AF110&"|"&F$13&"|"&"FY"&RIGHT(F$12,2),Datastore!$G:$G)+SUMIF(Datastore!$A:$A,$AC110&$AE110&$AF110&"|"&F$13&"|"&"FY"&RIGHT(F$12,2),Datastore!$G:$G))*$AL110/1000 -> 0 | G110: =(SUMIF(Datastore!$A:$A,$AC110&$AD110&$AF110&"|"&G$13&"|"&"FY"&RIGHT(G$12,2),Datastore!$G:$G)+SUMIF(Datastore!$A:$A,$AC110&$AE110&$AF110&"|"&G$13&"|"&"FY"&RIGHT(G$12,2),Datastore!$G:$G))*$AL110/1000 -> 0 | H110: =(SUMIF(Datastore!$A:$A,$AC110&$AD110&$AF110&"|"&H$13&"|"&"FY"&RIGHT(H$12,2),Datastore!$G:$G)+SUMIF(Datastore!$A:$A,$AC110&$AE110&$AF110&"|"&H$13&"|"&"FY"&RIGHT(H$12,2),Datastore!$G:$G))*$AL110/1000 -> 162.8068 | I110: =(SUMIF(Datastore!$A:$A,$AC110&$AD110&$AF110&"|"&I$13&"|"&"FY"&RIGHT(I$12,2),Datastore!$G:$G)+SUMIF(Datastore!$A:$A,$AC110&$AE110&$AF110&"|"&I$13&"|"&"FY"&RIGHT(I$12,2),Datastore!$G:$G))*$AL110/1000 -> 0 | J110: =(SUMIF(Datastore!$A:$A,$AC110&$AD110&$AF110&"|"&J$13&"|"&"FY"&RIGHT(J$12,2),Datastore!$G:$G)+SUMIF(Datastore!$A:$A,$AC110&$AE110&$AF110&"|"&J$13&"|"&"FY"&RIGHT(J$12,2),Datastore!$G:$G))*$AL110/1000 -> 0 | K110: =(SUMIF(Datastore!$A:$A,$AC110&$AD110&$AF110&"|"&K$13&"|"&"FY"&RIGHT(K$12,2),Datastore!$G:$G)+SUMIF(Datastore!$A:$A,$AC110&$AE110&$AF110&"|"&K$13&"|"&"FY"&RIGHT(K$12,2),Datastore!$G:$G))*$AL110/1000 -> 0 | L110: =(SUMIF(Datastore!$A:$A,$AC110&$AD110&$AF110&"|"&L$13&"|"&"FY"&RIGHT(L$12,2),Datastore!$G:$G)+SUMIF(Datastore!$A:$A,$AC110&$AE110&$AF110&"|"&L$13&"|"&"FY"&RIGHT(L$12,2),Datastore!$G:$G))*$AL110/1000 -> 0 | AC110: 86 | AD110: 1 | AE110: 2 | AF110: |RNOT | AG110: |x | AH110: |x | AI110: |x | AJ110: |x | AK110: |x | AL110: -1 | AM110: 1
C111: =C75 -> Net profit from Sale of Assets | E111: $'000 | H111: =-'5.5.2'!H988 -> -56.98 | AA111: Non-recurrent - flood loss on disposal
C112: =C76 -> Contributions | E112: $'000
C114: =C78 -> Subtotal Other Revenue | E114: $'000 | F114: =SUM(F105:F107)+SUM(F110:F112) -> 3828.10058 | G114: 3247.74947 | H114: 1212.71846 | I114: 1826.93971 | J114: 3817.638349 | K114: =SUM(K105:K107)+SUM(K110:K112) -> 5264.72 | L114: 6390.42502 | M114: 0 | N114: 0 | O114: 0 | P114: 0 | Q114: 0 | R114: 0 | S114: 0 | T114: 0 | U114: 0 | V114: 0 | W114: 0 | X114: 0 | Y114: 0
B116: =B80 -> TOTAL REVENUE | E116: $'000 | F116: =F114+F101 -> 12195.46483 | G116: =G114+G101 -> 12806.70774 | H116: 10370.06319 | I116: 12282.43904 | J116: 14503.12659 | K116: =K114+K101 -> 16753.93117 | L116: 19090.47553 | M116: 0 | N116: 0 | O116: 0 | P116: 0 | Q116: 0 | R116: 0 | S116: 0 | T116: 0 | U116: 0 | V116: 0 | W116: 0 | X116: 0 | Y116: 0
F119: =F83 -> For Year Ending 30 June: | AA119: =AA83 -> For Year Ending 30 June 2014
F120: =F84 -> 2009 | G120: =G84 -> 2010 | H120: =H84 -> 2011 | I120: =I84 -> 2012 | J120: =J84 -> 2013 | K120: =K84 -> 2014 | L120: 2015 | M120: 0 | N120: Ledger Code | O120: Relevant Notes | P120: Supporting Documents | Q120: 0 | R120: 0 | S120: 0 | T120: 0 | U120: 0 | V120: 0 | W120: 0 | X120: 0 | Y120: 0 | AA120: =AA84 -> Supporting Documents | AT120: =AS120 -> 
B122: ="Geographical Area 4 - "&'Business Details'!$D$15 -> Geographical Area 4 - Scenic Rim
B124: =B88 -> REVENUE FROM SERVICES
C125: =C89 -> Revenue from water services:
C126: =C90 -> Drinking water | E126: $'000 | F126: =(SUMIF(Datastore!$A:$A,$AC126&$AD126&$AF126&"|"&F$13&"|"&"FY"&RIGHT(F$12,2),Datastore!$G:$G)*$AL126+SUMIF(Datastore!$A:$A,$AC126&$AD126&$AG126&"|"&F$13&"|"&"FY"&RIGHT(F$12,2),Datastore!$G:$G)*$AL126+SUMIF(Datastore!$A:$A,$AC126&$AD126&$AH126&"|"&F$13&"|"&"FY"&RIGHT(F$12,2),Datastore!$G:$G)*$AL126+SUMIF(Datastore!$A:$A,$AC126&$AD126&$AI126&"|"&F$13&"|"&"FY"&RIGHT(F$12,2),Datastore!$G:$G)*$AL126+SUMIF(Datastore!$A:$A,$AC126&$AD126&$AJ126&"|"&F$13&"|"&"FY"&RIGHT(F$12,2),Datastore!$G:$G)*$AM126+SUMIF(Datastore!$A:$A,$AC126&$AD126&$AK126&"|"&F$13&"|"&"FY"&RIGHT(F$12,2),Datastore!$G:$G)*$AM126)/1000 -> 5334.451329 | G126: =(SUMIF(Datastore!$A:$A,$AC126&$AD126&$AF126&"|"&G$13&"|"&"FY"&RIGHT(G$12,2),Datastore!$G:$G)*$AL126+SUMIF(Datastore!$A:$A,$AC126&$AD126&$AG126&"|"&G$13&"|"&"FY"&RIGHT(G$12,2),Datastore!$G:$G)*$AL126+SUMIF(Datastore!$A:$A,$AC126&$AD126&$AH126&"|"&G$13&"|"&"FY"&RIGHT(G$12,2),Datastore!$G:$G)*$AL126+SUMIF(Datastore!$A:$A,$AC126&$AD126&$AI126&"|"&G$13&"|"&"FY"&RIGHT(G$12,2),Datastore!$G:$G)*$AL126+SUMIF(Datastore!$A:$A,$AC126&$AD126&$AJ126&"|"&G$13&"|"&"FY"&RIGHT(G$12,2),Datastore!$G:$G)*$AM126+SUMIF(Datastore!$A:$A,$AC126&$AD126&$AK126&"|"&G$13&"|"&"FY"&RIGHT(G$12,2),Datastore!$G:$G)*$AM126)/1000 -> 6685.535854 | H126: =(SUMIF(Datastore!$A:$A,$AC126&$AD126&$AF126&"|"&H$13&"|"&"FY"&RIGHT(H$12,2),Datastore!$G:$G)*$AL126+SUMIF(Datastore!$A:$A,$AC126&$AD126&$AG126&"|"&H$13&"|"&"FY"&RIGHT(H$12,2),Datastore!$G:$G)*$AL126+SUMIF(Datastore!$A:$A,$AC126&$AD126&$AH126&"|"&H$13&"|"&"FY"&RIGHT(H$12,2),Datastore!$G:$G)*$AL126+SUMIF(Datastore!$A:$A,$AC126&$AD126&$AI126&"|"&H$13&"|"&"FY"&RIGHT(H$12,2),Datastore!$G:$G)*$AL126+SUMIF(Datastore!$A:$A,$AC126&$AD126&$AJ126&"|"&H$13&"|"&"FY"&RIGHT(H$12,2),Datastore!$G:$G)*$AM126+SUMIF(Datastore!$A:$A,$AC126&$AD126&$AK126&"|"&H$13&"|"&"FY"&RIGHT(H$12,2),Datastore!$G:$G)*$AM126)/1000 -> 5779.28817 | I126: =(SUMIF(Datastore!$A:$A,$AC126&$AD126&$AF126&"|"&I$13&"|"&"FY"&RIGHT(I$12,2),Datastore!$G:$G)*$AL126+SUMIF(Datastore!$A:$A,$AC126&$AD126&$AG126&"|"&I$13&"|"&"FY"&RIGHT(I$12,2),Datastore!$G:$G)*$AL126+SUMIF(Datastore!$A:$A,$AC126&$AD126&$AH126&"|"&I$13&"|"&"FY"&RIGHT(I$12,2),Datastore!$G:$G)*$AL126+SUMIF(Datastore!$A:$A,$AC126&$AD126&$AI126&"|"&I$13&"|"&"FY"&RIGHT(I$12,2),Datastore!$G:$G)*$AL126+SUMIF(Datastore!$A:$A,$AC126&$AD126&$AJ126&"|"&I$13&"|"&"FY"&RIGHT(I$12,2),Datastore!$G:$G)*$AM126+SUMIF(Datastore!$A:$A,$AC126&$AD126&$AK126&"|"&I$13&"|"&"FY"&RIGHT(I$12,2),Datastore!$G:$G)*$AM126)/1000 -> 5828.97876 | J126: =(SUMIF(Datastore!$A:$A,$AC126&$AD126&$AF126&"|"&J$13&"|"&"FY"&RIGHT(J$12,2),Datastore!$G:$G)*$AL126+SUMIF(Datastore!$A:$A,$AC126&$AD126&$AG126&"|"&J$13&"|"&"FY"&RIGHT(J$12,2),Datastore!$G:$G)*$AL126+SUMIF(Datastore!$A:$A,$AC126&$AD126&$AH126&"|"&J$13&"|"&"FY"&RIGHT(J$12,2),Datastore!$G:$G)*$AL126+SUMIF(Datastore!$A:$A,$AC126&$AD126&$AI126&"|"&J$13&"|"&"FY"&RIGHT(J$12,2),Datastore!$G:$G)*$AL126+SUMIF(Datastore!$A:$A,$AC126&$AD126&$AJ126&"|"&J$13&"|"&"FY"&RIGHT(J$12,2),Datastore!$G:$G)*$AM126+SUMIF(Datastore!$A:$A,$AC126&$AD126&$AK126&"|"&J$13&"|"&"FY"&RIGHT(J$12,2),Datastore!$G:$G)*$AM126)/1000 -> 6453.608589 | K126: =(SUMIF(Datastore!$A:$A,$AC126&$AD126&$AF126&"|"&K$13&"|"&"FY"&RIGHT(K$12,2),Datastore!$G:$G)*$AL126+SUMIF(Datastore!$A:$A,$AC126&$AD126&$AG126&"|"&K$13&"|"&"FY"&RIGHT(K$12,2),Datastore!$G:$G)*$AL126+SUMIF(Datastore!$A:$A,$AC126&$AD126&$AH126&"|"&K$13&"|"&"FY"&RIGHT(K$12,2),Datastore!$G:$G)*$AL126+SUMIF(Datastore!$A:$A,$AC126&$AD126&$AI126&"|"&K$13&"|"&"FY"&RIGHT(K$12,2),Datastore!$G:$G)*$AL126+SUMIF(Datastore!$A:$A,$AC126&$AD126&$AJ126&"|"&K$13&"|"&"FY"&RIGHT(K$12,2),Datastore!$G:$G)*$AM126+SUMIF(Datastore!$A:$A,$AC126&$AD126&$AK126&"|"&K$13&"|"&"FY"&RIGHT(K$12,2),Datastore!$G:$G)*$AM126)/1000 -> 7045.467796 | L126: =(SUMIF(Datastore!$A:$A,$AC126&$AD126&$AF126&"|"&L$13&"|"&"FY"&RIGHT(L$12,2),Datastore!$G:$G)*$AL126+SUMIF(Datastore!$A:$A,$AC126&$AD126&$AG126&"|"&L$13&"|"&"FY"&RIGHT(L$12,2),Datastore!$G:$G)*$AL126+SUMIF(Datastore!$A:$A,$AC126&$AD126&$AH126&"|"&L$13&"|"&"FY"&RIGHT(L$12,2),Datastore!$G:$G)*$AL126+SUMIF(Datastore!$A:$A,$AC126&$AD126&$AI126&"|"&L$13&"|"&"FY"&RIGHT(L$12,2),Datastore!$G:$G)*$AL126+SUMIF(Datastore!$A:$A,$AC126&$AD126&$AJ126&"|"&L$13&"|"&"FY"&RIGHT(L$12,2),Datastore!$G:$G)*$AM126+SUMIF(Datastore!$A:$A,$AC126&$AD126&$AK126&"|"&L$13&"|"&"FY"&RIGHT(L$12,2),Datastore!$G:$G)*$AM126)/1000 -> 7935.785781 | AC126: 87 | AD126: 1 | AF126: |RU?? | AG126: |RR?? | AH126: |ROOI | AI126: |x | AJ126: |x | AK126: |x | AL126: -1 | AM126: 1
C127: =C91 -> Other core water services | E127: $'000
C129: =C93 -> Revenue from wastewater services:
C130: =C94 -> Wastewater via sewer | E130: $'000 | F130: =(SUMIF(Datastore!$A:$A,$AC130&$AD130&$AF130&"|"&F$13&"|"&"FY"&RIGHT(F$12,2),Datastore!$G:$G)*$AL130+SUMIF(Datastore!$A:$A,$AC130&$AD130&$AG130&"|"&F$13&"|"&"FY"&RIGHT(F$12,2),Datastore!$G:$G)*$AL130+SUMIF(Datastore!$A:$A,$AC130&$AD130&$AH130&"|"&F$13&"|"&"FY"&RIGHT(F$12,2),Datastore!$G:$G)*$AL130+SUMIF(Datastore!$A:$A,$AC130&$AD130&$AI130&"|"&F$13&"|"&"FY"&RIGHT(F$12,2),Datastore!$G:$G)*$AL130+SUMIF(Datastore!$A:$A,$AC130&$AD130&$AJ130&"|"&F$13&"|"&"FY"&RIGHT(F$12,2),Datastore!$G:$G)*$AM130+SUMIF(Datastore!$A:$A,$AC130&$AD130&$AK130&"|"&F$13&"|"&"FY"&RIGHT(F$12,2),Datastore!$G:$G)*$AM130)/1000 -> 2584.696841 | G130: =(SUMIF(Datastore!$A:$A,$AC130&$AD130&$AF130&"|"&G$13&"|"&"FY"&RIGHT(G$12,2),Datastore!$G:$G)*$AL130+SUMIF(Datastore!$A:$A,$AC130&$AD130&$AG130&"|"&G$13&"|"&"FY"&RIGHT(G$12,2),Datastore!$G:$G)*$AL130+SUMIF(Datastore!$A:$A,$AC130&$AD130&$AH130&"|"&G$13&"|"&"FY"&RIGHT(G$12,2),Datastore!$G:$G)*$AL130+SUMIF(Datastore!$A:$A,$AC130&$AD130&$AI130&"|"&G$13&"|"&"FY"&RIGHT(G$12,2),Datastore!$G:$G)*$AL130+SUMIF(Datastore!$A:$A,$AC130&$AD130&$AJ130&"|"&G$13&"|"&"FY"&RIGHT(G$12,2),Datastore!$G:$G)*$AM130+SUMIF(Datastore!$A:$A,$AC130&$AD130&$AK130&"|"&G$13&"|"&"FY"&RIGHT(G$12,2),Datastore!$G:$G)*$AM130)/1000 -> 3040.411976 | H130: =(SUMIF(Datastore!$A:$A,$AC130&$AD130&$AF130&"|"&H$13&"|"&"FY"&RIGHT(H$12,2),Datastore!$G:$G)*$AL130+SUMIF(Datastore!$A:$A,$AC130&$AD130&$AG130&"|"&H$13&"|"&"FY"&RIGHT(H$12,2),Datastore!$G:$G)*$AL130+SUMIF(Datastore!$A:$A,$AC130&$AD130&$AH130&"|"&H$13&"|"&"FY"&RIGHT(H$12,2),Datastore!$G:$G)*$AL130+SUMIF(Datastore!$A:$A,$AC130&$AD130&$AI130&"|"&H$13&"|"&"FY"&RIGHT(H$12,2),Datastore!$G:$G)*$AL130+SUMIF(Datastore!$A:$A,$AC130&$AD130&$AJ130&"|"&H$13&"|"&"FY"&RIGHT(H$12,2),Datastore!$G:$G)*$AM130+SUMIF(Datastore!$A:$A,$AC130&$AD130&$AK130&"|"&H$13&"|"&"FY"&RIGHT(H$12,2),Datastore!$G:$G)*$AM130)/1000 -> 3047.68419 | I130: =(SUMIF(Datastore!$A:$A,$AC130&$AD130&$AF130&"|"&I$13&"|"&"FY"&RIGHT(I$12,2),Datastore!$G:$G)*$AL130+SUMIF(Datastore!$A:$A,$AC130&$AD130&$AG130&"|"&I$13&"|"&"FY"&RIGHT(I$12,2),Datastore!$G:$G)*$AL130+SUMIF(Datastore!$A:$A,$AC130&$AD130&$AH130&"|"&I$13&"|"&"FY"&RIGHT(I$12,2),Datastore!$G:$G)*$AL130+SUMIF(Datastore!$A:$A,$AC130&$AD130&$AI130&"|"&I$13&"|"&"FY"&RIGHT(I$12,2),Datastore!$G:$G)*$AL130+SUMIF(Datastore!$A:$A,$AC130&$AD130&$AJ130&"|"&I$13&"|"&"FY"&RIGHT(I$12,2),Datastore!$G:$G)*$AM130+SUMIF(Datastore!$A:$A,$AC130&$AD130&$AK130&"|"&I$13&"|"&"FY"&RIGHT(I$12,2),Datastore!$G:$G)*$AM130)/1000 -> 3103.05186 | J130: =(SUMIF(Datastore!$A:$A,$AC130&$AD130&$AF130&"|"&J$13&"|"&"FY"&RIGHT(J$12,2),Datastore!$G:$G)*$AL130+SUMIF(Datastore!$A:$A,$AC130&$AD130&$AG130&"|"&J$13&"|"&"FY"&RIGHT(J$12,2),Datastore!$G:$G)*$AL130+SUMIF(Datastore!$A:$A,$AC130&$AD130&$AH130&"|"&J$13&"|"&"FY"&RIGHT(J$12,2),Datastore!$G:$G)*$AL130+SUMIF(Datastore!$A:$A,$AC130&$AD130&$AI130&"|"&J$13&"|"&"FY"&RIGHT(J$12,2),Datastore!$G:$G)*$AL130+SUMIF(Datastore!$A:$A,$AC130&$AD130&$AJ130&"|"&J$13&"|"&"FY"&RIGHT(J$12,2),Datastore!$G:$G)*$AM130+SUMIF(Datastore!$A:$A,$AC130&$AD130&$AK130&"|"&J$13&"|"&"FY"&RIGHT(J$12,2),Datastore!$G:$G)*$AM130)/1000 -> 3187.922023 | K130: =(SUMIF(Datastore!$A:$A,$AC130&$AD130&$AF130&"|"&K$13&"|"&"FY"&RIGHT(K$12,2),Datastore!$G:$G)*$AL130+SUMIF(Datastore!$A:$A,$AC130&$AD130&$AG130&"|"&K$13&"|"&"FY"&RIGHT(K$12,2),Datastore!$G:$G)*$AL130+SUMIF(Datastore!$A:$A,$AC130&$AD130&$AH130&"|"&K$13&"|"&"FY"&RIGHT(K$12,2),Datastore!$G:$G)*$AL130+SUMIF(Datastore!$A:$A,$AC130&$AD130&$AI130&"|"&K$13&"|"&"FY"&RIGHT(K$12,2),Datastore!$G:$G)*$AL130+SUMIF(Datastore!$A:$A,$AC130&$AD130&$AJ130&"|"&K$13&"|"&"FY"&RIGHT(K$12,2),Datastore!$G:$G)*$AM130+SUMIF(Datastore!$A:$A,$AC130&$AD130&$AK130&"|"&K$13&"|"&"FY"&RIGHT(K$12,2),Datastore!$G:$G)*$AM130)/1000 -> 3319.2128 | L130: =(SUMIF(Datastore!$A:$A,$AC130&$AD130&$AF130&"|"&L$13&"|"&"FY"&RIGHT(L$12,2),Datastore!$G:$G)*$AL130+SUMIF(Datastore!$A:$A,$AC130&$AD130&$AG130&"|"&L$13&"|"&"FY"&RIGHT(L$12,2),Datastore!$G:$G)*$AL130+SUMIF(Datastore!$A:$A,$AC130&$AD130&$AH130&"|"&L$13&"|"&"FY"&RIGHT(L$12,2),Datastore!$G:$G)*$AL130+SUMIF(Datastore!$A:$A,$AC130&$AD130&$AI130&"|"&L$13&"|"&"FY"&RIGHT(L$12,2),Datastore!$G:$G)*$AL130+SUMIF(Datastore!$A:$A,$AC130&$AD130&$AJ130&"|"&L$13&"|"&"FY"&RIGHT(L$12,2),Datastore!$G:$G)*$AM130+SUMIF(Datastore!$A:$A,$AC130&$AD130&$AK130&"|"&L$13&"|"&"FY"&RIGHT(L$12,2),Datastore!$G:$G)*$AM130)/1000 -> 3610.198006 | AC130: 87 | AD130: 2 | AF130: |RU?? | AG130: |RR?? | AH130: |ROOI | AI130: |x | AJ130: |RUTW | AK130: |RURW | AL130: -1 | AM130: 1
C131: =C95 -> Trade waste | E131: $'000 | F131: =(SUMIF(Datastore!$A:$A,$AC131&$AD131&$AF131&"|"&F$13&"|"&"FY"&RIGHT(F$12,2),Datastore!$G:$G)*$AL131+SUMIF(Datastore!$A:$A,$AC131&$AD131&$AG131&"|"&F$13&"|"&"FY"&RIGHT(F$12,2),Datastore!$G:$G)*$AL131+SUMIF(Datastore!$A:$A,$AC131&$AD131&$AH131&"|"&F$13&"|"&"FY"&RIGHT(F$12,2),Datastore!$G:$G)*$AL131+SUMIF(Datastore!$A:$A,$AC131&$AD131&$AI131&"|"&F$13&"|"&"FY"&RIGHT(F$12,2),Datastore!$G:$G)*$AL131+SUMIF(Datastore!$A:$A,$AC131&$AD131&$AJ131&"|"&F$13&"|"&"FY"&RIGHT(F$12,2),Datastore!$G:$G)*$AM131+SUMIF(Datastore!$A:$A,$AC131&$AD131&$AK131&"|"&F$13&"|"&"FY"&RIGHT(F$12,2),Datastore!$G:$G)*$AM131)/1000 -> 0 | G131: =(SUMIF(Datastore!$A:$A,$AC131&$AD131&$AF131&"|"&G$13&"|"&"FY"&RIGHT(G$12,2),Datastore!$G:$G)*$AL131+SUMIF(Datastore!$A:$A,$AC131&$AD131&$AG131&"|"&G$13&"|"&"FY"&RIGHT(G$12,2),Datastore!$G:$G)*$AL131+SUMIF(Datastore!$A:$A,$AC131&$AD131&$AH131&"|"&G$13&"|"&"FY"&RIGHT(G$12,2),Datastore!$G:$G)*$AL131+SUMIF(Datastore!$A:$A,$AC131&$AD131&$AI131&"|"&G$13&"|"&"FY"&RIGHT(G$12,2),Datastore!$G:$G)*$AL131+SUMIF(Datastore!$A:$A,$AC131&$AD131&$AJ131&"|"&G$13&"|"&"FY"&RIGHT(G$12,2),Datastore!$G:$G)*$AM131+SUMIF(Datastore!$A:$A,$AC131&$AD131&$AK131&"|"&G$13&"|"&"FY"&RIGHT(G$12,2),Datastore!$G:$G)*$AM131)/1000 -> 0 | H131: =(SUMIF(Datastore!$A:$A,$AC131&$AD131&$AF131&"|"&H$13&"|"&"FY"&RIGHT(H$12,2),Datastore!$G:$G)*$AL131+SUMIF(Datastore!$A:$A,$AC131&$AD131&$AG131&"|"&H$13&"|"&"FY"&RIGHT(H$12,2),Datastore!$G:$G)*$AL131+SUMIF(Datastore!$A:$A,$AC131&$AD131&$AH131&"|"&H$13&"|"&"FY"&RIGHT(H$12,2),Datastore!$G:$G)*$AL131+SUMIF(Datastore!$A:$A,$AC131&$AD131&$AI131&"|"&H$13&"|"&"FY"&RIGHT(H$12,2),Datastore!$G:$G)*$AL131+SUMIF(Datastore!$A:$A,$AC131&$AD131&$AJ131&"|"&H$13&"|"&"FY"&RIGHT(H$12,2),Datastore!$G:$G)*$AM131+SUMIF(Datastore!$A:$A,$AC131&$AD131&$AK131&"|"&H$13&"|"&"FY"&RIGHT(H$12,2),Datastore!$G:$G)*$AM131)/1000 -> 0 | I131: =(SUMIF(Datastore!$A:$A,$AC131&$AD131&$AF131&"|"&I$13&"|"&"FY"&RIGHT(I$12,2),Datastore!$G:$G)*$AL131+SUMIF(Datastore!$A:$A,$AC131&$AD131&$AG131&"|"&I$13&"|"&"FY"&RIGHT(I$12,2),Datastore!$G:$G)*$AL131+SUMIF(Datastore!$A:$A,$AC131&$AD131&$AH131&"|"&I$13&"|"&"FY"&RIGHT(I$12,2),Datastore!$G:$G)*$AL131+SUMIF(Datastore!$A:$A,$AC131&$AD131&$AI131&"|"&I$13&"|"&"FY"&RIGHT(I$12,2),Datastore!$G:$G)*$AL131+SUMIF(Datastore!$A:$A,$AC131&$AD131&$AJ131&"|"&I$13&"|"&"FY"&RIGHT(I$12,2),Datastore!$G:$G)*$AM131+SUMIF(Datastore!$A:$A,$AC131&$AD131&$AK131&"|"&I$13&"|"&"FY"&RIGHT(I$12,2),Datastore!$G:$G)*$AM131)/1000 -> 0 | J131: =(SUMIF(Datastore!$A:$A,$AC131&$AD131&$AF131&"|"&J$13&"|"&"FY"&RIGHT(J$12,2),Datastore!$G:$G)*$AL131+SUMIF(Datastore!$A:$A,$AC131&$AD131&$AG131&"|"&J$13&"|"&"FY"&RIGHT(J$12,2),Datastore!$G:$G)*$AL131+SUMIF(Datastore!$A:$A,$AC131&$AD131&$AH131&"|"&J$13&"|"&"FY"&RIGHT(J$12,2),Datastore!$G:$G)*$AL131+SUMIF(Datastore!$A:$A,$AC131&$AD131&$AI131&"|"&J$13&"|"&"FY"&RIGHT(J$12,2),Datastore!$G:$G)*$AL131+SUMIF(Datastore!$A:$A,$AC131&$AD131&$AJ131&"|"&J$13&"|"&"FY"&RIGHT(J$12,2),Datastore!$G:$G)*$AM131+SUMIF(Datastore!$A:$A,$AC131&$AD131&$AK131&"|"&J$13&"|"&"FY"&RIGHT(J$12,2),Datastore!$G:$G)*$AM131)/1000 -> 0 | K131: =(SUMIF(Datastore!$A:$A,$AC131&$AD131&$AF131&"|"&K$13&"|"&"FY"&RIGHT(K$12,2),Datastore!$G:$G)*$AL131+SUMIF(Datastore!$A:$A,$AC131&$AD131&$AG131&"|"&K$13&"|"&"FY"&RIGHT(K$12,2),Datastore!$G:$G)*$AL131+SUMIF(Datastore!$A:$A,$AC131&$AD131&$AH131&"|"&K$13&"|"&"FY"&RIGHT(K$12,2),Datastore!$G:$G)*$AL131+SUMIF(Datastore!$A:$A,$AC131&$AD131&$AI131&"|"&K$13&"|"&"FY"&RIGHT(K$12,2),Datastore!$G:$G)*$AL131+SUMIF(Datastore!$A:$A,$AC131&$AD131&$AJ131&"|"&K$13&"|"&"FY"&RIGHT(K$12,2),Datastore!$G:$G)*$AM131+SUMIF(Datastore!$A:$A,$AC131&$AD131&$AK131&"|"&K$13&"|"&"FY"&RIGHT(K$12,2),Datastore!$G:$G)*$AM131)/1000 -> 0 | L131: =(SUMIF(Datastore!$A:$A,$AC131&$AD131&$AF131&"|"&L$13&"|"&"FY"&RIGHT(L$12,2),Datastore!$G:$G)*$AL131+SUMIF(Datastore!$A:$A,$AC131&$AD131&$AG131&"|"&L$13&"|"&"FY"&RIGHT(L$12,2),Datastore!$G:$G)*$AL131+SUMIF(Datastore!$A:$A,$AC131&$AD131&$AH131&"|"&L$13&"|"&"FY"&RIGHT(L$12,2),Datastore!$G:$G)*$AL131+SUMIF(Datastore!$A:$A,$AC131&$AD131&$AI131&"|"&L$13&"|"&"FY"&RIGHT(L$12,2),Datastore!$G:$G)*$AL131+SUMIF(Datastore!$A:$A,$AC131&$AD131&$AJ131&"|"&L$13&"|"&"FY"&RIGHT(L$12,2),Datastore!$G:$G)*$AM131+SUMIF(Datastore!$A:$A,$AC131&$AD131&$AK131&"|"&L$13&"|"&"FY"&RIGHT(L$12,2),Datastore!$G:$G)*$AM131)/1000 -> 0 | AC131: 87 | AD131: 2 | AF131: |RUTW | AG131: |x | AH131: |x | AI131: |x | AJ131: |x | AK131: |x | AL131: -1 | AM131: 1
C132: =C96 -> Other core wastewater services | E132: $'000 | F132: =(SUMIF(Datastore!$A:$A,$AC132&$AD132&$AF132&"|"&F$13&"|"&"FY"&RIGHT(F$12,2),Datastore!$G:$G)*$AL132+SUMIF(Datastore!$A:$A,$AC132&$AD132&$AG132&"|"&F$13&"|"&"FY"&RIGHT(F$12,2),Datastore!$G:$G)*$AL132+SUMIF(Datastore!$A:$A,$AC132&$AD132&$AH132&"|"&F$13&"|"&"FY"&RIGHT(F$12,2),Datastore!$G:$G)*$AL132+SUMIF(Datastore!$A:$A,$AC132&$AD132&$AI132&"|"&F$13&"|"&"FY"&RIGHT(F$12,2),Datastore!$G:$G)*$AL132+SUMIF(Datastore!$A:$A,$AC132&$AD132&$AJ132&"|"&F$13&"|"&"FY"&RIGHT(F$12,2),Datastore!$G:$G)*$AM132+SUMIF(Datastore!$A:$A,$AC132&$AD132&$AK132&"|"&F$13&"|"&"FY"&RIGHT(F$12,2),Datastore!$G:$G)*$AM132)/1000 -> 0 | G132: =(SUMIF(Datastore!$A:$A,$AC132&$AD132&$AF132&"|"&G$13&"|"&"FY"&RIGHT(G$12,2),Datastore!$G:$G)*$AL132+SUMIF(Datastore!$A:$A,$AC132&$AD132&$AG132&"|"&G$13&"|"&"FY"&RIGHT(G$12,2),Datastore!$G:$G)*$AL132+SUMIF(Datastore!$A:$A,$AC132&$AD132&$AH132&"|"&G$13&"|"&"FY"&RIGHT(G$12,2),Datastore!$G:$G)*$AL132+SUMIF(Datastore!$A:$A,$AC132&$AD132&$AI132&"|"&G$13&"|"&"FY"&RIGHT(G$12,2),Datastore!$G:$G)*$AL132+SUMIF(Datastore!$A:$A,$AC132&$AD132&$AJ132&"|"&G$13&"|"&"FY"&RIGHT(G$12,2),Datastore!$G:$G)*$AM132+SUMIF(Datastore!$A:$A,$AC132&$AD132&$AK132&"|"&G$13&"|"&"FY"&RIGHT(G$12,2),Datastore!$G:$G)*$AM132)/1000 -> 0 | H132: =(SUMIF(Datastore!$A:$A,$AC132&$AD132&$AF132&"|"&H$13&"|"&"FY"&RIGHT(H$12,2),Datastore!$G:$G)*$AL132+SUMIF(Datastore!$A:$A,$AC132&$AD132&$AG132&"|"&H$13&"|"&"FY"&RIGHT(H$12,2),Datastore!$G:$G)*$AL132+SUMIF(Datastore!$A:$A,$AC132&$AD132&$AH132&"|"&H$13&"|"&"FY"&RIGHT(H$12,2),Datastore!$G:$G)*$AL132+SUMIF(Datastore!$A:$A,$AC132&$AD132&$AI132&"|"&H$13&"|"&"FY"&RIGHT(H$12,2),Datastore!$G:$G)*$AL132+SUMIF(Datastore!$A:$A,$AC132&$AD132&$AJ132&"|"&H$13&"|"&"FY"&RIGHT(H$12,2),Datastore!$G:$G)*$AM132+SUMIF(Datastore!$A:$A,$AC132&$AD132&$AK132&"|"&H$13&"|"&"FY"&RIGHT(H$12,2),Datastore!$G:$G)*$AM132)/1000 -> 0 | I132: =(SUMIF(Datastore!$A:$A,$AC132&$AD132&$AF132&"|"&I$13&"|"&"FY"&RIGHT(I$12,2),Datastore!$G:$G)*$AL132+SUMIF(Datastore!$A:$A,$AC132&$AD132&$AG132&"|"&I$13&"|"&"FY"&RIGHT(I$12,2),Datastore!$G:$G)*$AL132+SUMIF(Datastore!$A:$A,$AC132&$AD132&$AH132&"|"&I$13&"|"&"FY"&RIGHT(I$12,2),Datastore!$G:$G)*$AL132+SUMIF(Datastore!$A:$A,$AC132&$AD132&$AI132&"|"&I$13&"|"&"FY"&RIGHT(I$12,2),Datastore!$G:$G)*$AL132+SUMIF(Datastore!$A:$A,$AC132&$AD132&$AJ132&"|"&I$13&"|"&"FY"&RIGHT(I$12,2),Datastore!$G:$G)*$AM132+SUMIF(Datastore!$A:$A,$AC132&$AD132&$AK132&"|"&I$13&"|"&"FY"&RIGHT(I$12,2),Datastore!$G:$G)*$AM132)/1000 -> 0 | J132: =(SUMIF(Datastore!$A:$A,$AC132&$AD132&$AF132&"|"&J$13&"|"&"FY"&RIGHT(J$12,2),Datastore!$G:$G)*$AL132+SUMIF(Datastore!$A:$A,$AC132&$AD132&$AG132&"|"&J$13&"|"&"FY"&RIGHT(J$12,2),Datastore!$G:$G)*$AL132+SUMIF(Datastore!$A:$A,$AC132&$AD132&$AH132&"|"&J$13&"|"&"FY"&RIGHT(J$12,2),Datastore!$G:$G)*$AL132+SUMIF(Datastore!$A:$A,$AC132&$AD132&$AI132&"|"&J$13&"|"&"FY"&RIGHT(J$12,2),Datastore!$G:$G)*$AL132+SUMIF(Datastore!$A:$A,$AC132&$AD132&$AJ132&"|"&J$13&"|"&"FY"&RIGHT(J$12,2),Datastore!$G:$G)*$AM132+SUMIF(Datastore!$A:$A,$AC132&$AD132&$AK132&"|"&J$13&"|"&"FY"&RIGHT(J$12,2),Datastore!$G:$G)*$AM132)/1000 -> 0 | K132: =(SUMIF(Datastore!$A:$A,$AC132&$AD132&$AF132&"|"&K$13&"|"&"FY"&RIGHT(K$12,2),Datastore!$G:$G)*$AL132+SUMIF(Datastore!$A:$A,$AC132&$AD132&$AG132&"|"&K$13&"|"&"FY"&RIGHT(K$12,2),Datastore!$G:$G)*$AL132+SUMIF(Datastore!$A:$A,$AC132&$AD132&$AH132&"|"&K$13&"|"&"FY"&RIGHT(K$12,2),Datastore!$G:$G)*$AL132+SUMIF(Datastore!$A:$A,$AC132&$AD132&$AI132&"|"&K$13&"|"&"FY"&RIGHT(K$12,2),Datastore!$G:$G)*$AL132+SUMIF(Datastore!$A:$A,$AC132&$AD132&$AJ132&"|"&K$13&"|"&"FY"&RIGHT(K$12,2),Datastore!$G:$G)*$AM132+SUMIF(Datastore!$A:$A,$AC132&$AD132&$AK132&"|"&K$13&"|"&"FY"&RIGHT(K$12,2),Datastore!$G:$G)*$AM132)/1000 -> 0 | L132: =(SUMIF(Datastore!$A:$A,$AC132&$AD132&$AF132&"|"&L$13&"|"&"FY"&RIGHT(L$12,2),Datastore!$G:$G)*$AL132+SUMIF(Datastore!$A:$A,$AC132&$AD132&$AG132&"|"&L$13&"|"&"FY"&RIGHT(L$12,2),Datastore!$G:$G)*$AL132+SUMIF(Datastore!$A:$A,$AC132&$AD132&$AH132&"|"&L$13&"|"&"FY"&RIGHT(L$12,2),Datastore!$G:$G)*$AL132+SUMIF(Datastore!$A:$A,$AC132&$AD132&$AI132&"|"&L$13&"|"&"FY"&RIGHT(L$12,2),Datastore!$G:$G)*$AL132+SUMIF(Datastore!$A:$A,$AC132&$AD132&$AJ132&"|"&L$13&"|"&"FY"&RIGHT(L$12,2),Datastore!$G:$G)*$AM132+SUMIF(Datastore!$A:$A,$AC132&$AD132&$AK132&"|"&L$13&"|"&"FY"&RIGHT(L$12,2),Datastore!$G:$G)*$AM132)/1000 -> 0 | AC132: 87 | AD132: 2 | AF132: |RURW | AG132: |x | AH132: |x | AI132: |x | AJ132: |x | AK132: |x | AL132: -1 | AM132: 1
C134: =C98 -> Non-regulated:
C135: =C99 -> Aggregate non-regulated services | E135: $'000 | F135: =(SUMIF(Datastore!$A:$A,$AC135&$AD135&$AF135&"|"&F$13&"|"&"FY"&RIGHT(F$12,2),Datastore!$G:$G)*$AL135+SUMIF(Datastore!$A:$A,$AC135&$AD135&$AG135&"|"&F$13&"|"&"FY"&RIGHT(F$12,2),Datastore!$G:$G)*$AL135+SUMIF(Datastore!$A:$A,$AC135&$AD135&$AH135&"|"&F$13&"|"&"FY"&RIGHT(F$12,2),Datastore!$G:$G)*$AL135+SUMIF(Datastore!$A:$A,$AC135&$AD135&$AI135&"|"&F$13&"|"&"FY"&RIGHT(F$12,2),Datastore!$G:$G)*$AL135+SUMIF(Datastore!$A:$A,$AC135&$AD135&$AJ135&"|"&F$13&"|"&"FY"&RIGHT(F$12,2),Datastore!$G:$G)*$AM135+SUMIF(Datastore!$A:$A,$AC135&$AD135&$AK135&"|"&F$13&"|"&"FY"&RIGHT(F$12,2),Datastore!$G:$G)*$AM135)/1000 -> 0 | G135: =(SUMIF(Datastore!$A:$A,$AC135&$AD135&$AF135&"|"&G$13&"|"&"FY"&RIGHT(G$12,2),Datastore!$G:$G)*$AL135+SUMIF(Datastore!$A:$A,$AC135&$AD135&$AG135&"|"&G$13&"|"&"FY"&RIGHT(G$12,2),Datastore!$G:$G)*$AL135+SUMIF(Datastore!$A:$A,$AC135&$AD135&$AH135&"|"&G$13&"|"&"FY"&RIGHT(G$12,2),Datastore!$G:$G)*$AL135+SUMIF(Datastore!$A:$A,$AC135&$AD135&$AI135&"|"&G$13&"|"&"FY"&RIGHT(G$12,2),Datastore!$G:$G)*$AL135+SUMIF(Datastore!$A:$A,$AC135&$AD135&$AJ135&"|"&G$13&"|"&"FY"&RIGHT(G$12,2),Datastore!$G:$G)*$AM135+SUMIF(Datastore!$A:$A,$AC135&$AD135&$AK135&"|"&G$13&"|"&"FY"&RIGHT(G$12,2),Datastore!$G:$G)*$AM135)/1000 -> 0 | H135: =(SUMIF(Datastore!$A:$A,$AC135&$AD135&$AF135&"|"&H$13&"|"&"FY"&RIGHT(H$12,2),Datastore!$G:$G)*$AL135+SUMIF(Datastore!$A:$A,$AC135&$AD135&$AG135&"|"&H$13&"|"&"FY"&RIGHT(H$12,2),Datastore!$G:$G)*$AL135+SUMIF(Datastore!$A:$A,$AC135&$AD135&$AH135&"|"&H$13&"|"&"FY"&RIGHT(H$12,2),Datastore!$G:$G)*$AL135+SUMIF(Datastore!$A:$A,$AC135&$AD135&$AI135&"|"&H$13&"|"&"FY"&RIGHT(H$12,2),Datastore!$G:$G)*$AL135+SUMIF(Datastore!$A:$A,$AC135&$AD135&$AJ135&"|"&H$13&"|"&"FY"&RIGHT(H$12,2),Datastore!$G:$G)*$AM135+SUMIF(Datastore!$A:$A,$AC135&$AD135&$AK135&"|"&H$13&"|"&"FY"&RIGHT(H$12,2),Datastore!$G:$G)*$AM135)/1000 -> 209.45406 | I135: =(SUMIF(Datastore!$A:$A,$AC135&$AD135&$AF135&"|"&I$13&"|"&"FY"&RIGHT(I$12,2),Datastore!$G:$G)*$AL135+SUMIF(Datastore!$A:$A,$AC135&$AD135&$AG135&"|"&I$13&"|"&"FY"&RIGHT(I$12,2),Datastore!$G:$G)*$AL135+SUMIF(Datastore!$A:$A,$AC135&$AD135&$AH135&"|"&I$13&"|"&"FY"&RIGHT(I$12,2),Datastore!$G:$G)*$AL135+SUMIF(Datastore!$A:$A,$AC135&$AD135&$AI135&"|"&I$13&"|"&"FY"&RIGHT(I$12,2),Datastore!$G:$G)*$AL135+SUMIF(Datastore!$A:$A,$AC135&$AD135&$AJ135&"|"&I$13&"|"&"FY"&RIGHT(I$12,2),Datastore!$G:$G)*$AM135+SUMIF(Datastore!$A:$A,$AC135&$AD135&$AK135&"|"&I$13&"|"&"FY"&RIGHT(I$12,2),Datastore!$G:$G)*$AM135)/1000 -> 0 | J135: =(SUMIF(Datastore!$A:$A,$AC135&$AD135&$AF135&"|"&J$13&"|"&"FY"&RIGHT(J$12,2),Datastore!$G:$G)*$AL135+SUMIF(Datastore!$A:$A,$AC135&$AD135&$AG135&"|"&J$13&"|"&"FY"&RIGHT(J$12,2),Datastore!$G:$G)*$AL135+SUMIF(Datastore!$A:$A,$AC135&$AD135&$AH135&"|"&J$13&"|"&"FY"&RIGHT(J$12,2),Datastore!$G:$G)*$AL135+SUMIF(Datastore!$A:$A,$AC135&$AD135&$AI135&"|"&J$13&"|"&"FY"&RIGHT(J$12,2),Datastore!$G:$G)*$AL135+SUMIF(Datastore!$A:$A,$AC135&$AD135&$AJ135&"|"&J$13&"|"&"FY"&RIGHT(J$12,2),Datastore!$G:$G)*$AM135+SUMIF(Datastore!$A:$A,$AC135&$AD135&$AK135&"|"&J$13&"|"&"FY"&RIGHT(J$12,2),Datastore!$G:$G)*$AM135)/1000 -> 0 | K135: =(SUMIF(Datastore!$A:$A,$AC135&$AD135&$AF135&"|"&K$13&"|"&"FY"&RIGHT(K$12,2),Datastore!$G:$G)*$AL135+SUMIF(Datastore!$A:$A,$AC135&$AD135&$AG135&"|"&K$13&"|"&"FY"&RIGHT(K$12,2),Datastore!$G:$G)*$AL135+SUMIF(Datastore!$A:$A,$AC135&$AD135&$AH135&"|"&K$13&"|"&"FY"&RIGHT(K$12,2),Datastore!$G:$G)*$AL135+SUMIF(Datastore!$A:$A,$AC135&$AD135&$AI135&"|"&K$13&"|"&"FY"&RIGHT(K$12,2),Datastore!$G:$G)*$AL135+SUMIF(Datastore!$A:$A,$AC135&$AD135&$AJ135&"|"&K$13&"|"&"FY"&RIGHT(K$12,2),Datastore!$G:$G)*$AM135+SUMIF(Datastore!$A:$A,$AC135&$AD135&$AK135&"|"&K$13&"|"&"FY"&RIGHT(K$12,2),Datastore!$G:$G)*$AM135)/1000 -> 0 | L135: =(SUMIF(Datastore!$A:$A,$AC135&$AD135&$AF135&"|"&L$13&"|"&"FY"&RIGHT(L$12,2),Datastore!$G:$G)*$AL135+SUMIF(Datastore!$A:$A,$AC135&$AD135&$AG135&"|"&L$13&"|"&"FY"&RIGHT(L$12,2),Datastore!$G:$G)*$AL135+SUMIF(Datastore!$A:$A,$AC135&$AD135&$AH135&"|"&L$13&"|"&"FY"&RIGHT(L$12,2),Datastore!$G:$G)*$AL135+SUMIF(Datastore!$A:$A,$AC135&$AD135&$AI135&"|"&L$13&"|"&"FY"&RIGHT(L$12,2),Datastore!$G:$G)*$AL135+SUMIF(Datastore!$A:$A,$AC135&$AD135&$AJ135&"|"&L$13&"|"&"FY"&RIGHT(L$12,2),Datastore!$G:$G)*$AM135+SUMIF(Datastore!$A:$A,$AC135&$AD135&$AK135&"|"&L$13&"|"&"FY"&RIGHT(L$12,2),Datastore!$G:$G)*$AM135)/1000 -> 0 | AC135: 87 | AD135: 4 | AF135: |R??? | AG135: |x | AH135: |x | AI135: |x | AJ135: |x | AK135: |x | AL135: -1 | AM135: 1
C137: =C101 -> Subtotal Revenue from Services | E137: $'000 | F137: =SUM(F126:F127)+SUM(F130:F132)+F135 -> 7919.14817 | G137: =SUM(G126:G127)+SUM(G130:G132)+G135 -> 9725.94783 | H137: 9036.42642 | I137: 8932.03062 | J137: 9641.530612 | K137: =SUM(K126:K127)+SUM(K130:K132)+K135 -> 10364.6806 | L137: 11545.98379 | M137: 0 | N137: 0 | O137: 0 | P137: 0 | Q137: 0 | R137: 0 | S137: 0 | T137: 0 | U137: 0 | V137: 0 | W137: 0 | X137: 0 | Y137: 0
B139: =B103 -> OTHER REVENUE
C140: =C104 -> Other Revenue Offset Against Revenue Requirements:
C141: =C105 -> Investment Income | E141: $'000 | F141: =(SUMIF(Datastore!$A:$A,$AC141&$AD141&$AF141&"|"&F$13&"|"&"FY"&RIGHT(F$12,2),Datastore!$G:$G)+SUMIF(Datastore!$A:$A,$AC141&$AE141&$AF141&"|"&F$13&"|"&"FY"&RIGHT(F$12,2),Datastore!$G:$G))*$AL141/1000 -> 0 | G141: =(SUMIF(Datastore!$A:$A,$AC141&$AD141&$AF141&"|"&G$13&"|"&"FY"&RIGHT(G$12,2),Datastore!$G:$G)+SUMIF(Datastore!$A:$A,$AC141&$AE141&$AF141&"|"&G$13&"|"&"FY"&RIGHT(G$12,2),Datastore!$G:$G))*$AL141/1000 -> 0 | H141: =(SUMIF(Datastore!$A:$A,$AC141&$AD141&$AF141&"|"&H$13&"|"&"FY"&RIGHT(H$12,2),Datastore!$G:$G)+SUMIF(Datastore!$A:$A,$AC141&$AE141&$AF141&"|"&H$13&"|"&"FY"&RIGHT(H$12,2),Datastore!$G:$G))*$AL141/1000 -> 0 | I141: =(SUMIF(Datastore!$A:$A,$AC141&$AD141&$AF141&"|"&I$13&"|"&"FY"&RIGHT(I$12,2),Datastore!$G:$G)+SUMIF(Datastore!$A:$A,$AC141&$AE141&$AF141&"|"&I$13&"|"&"FY"&RIGHT(I$12,2),Datastore!$G:$G))*$AL141/1000 -> 0 | J141: =(SUMIF(Datastore!$A:$A,$AC141&$AD141&$AF141&"|"&J$13&"|"&"FY"&RIGHT(J$12,2),Datastore!$G:$G)+SUMIF(Datastore!$A:$A,$AC141&$AE141&$AF141&"|"&J$13&"|"&"FY"&RIGHT(J$12,2),Datastore!$G:$G))*$AL141/1000 -> 0 | K141: =(SUMIF(Datastore!$A:$A,$AC141&$AD141&$AF141&"|"&K$13&"|"&"FY"&RIGHT(K$12,2),Datastore!$G:$G)+SUMIF(Datastore!$A:$A,$AC141&$AE141&$AF141&"|"&K$13&"|"&"FY"&RIGHT(K$12,2),Datastore!$G:$G))*$AL141/1000 -> 0 | L141: =(SUMIF(Datastore!$A:$A,$AC141&$AD141&$AF141&"|"&L$13&"|"&"FY"&RIGHT(L$12,2),Datastore!$G:$G)+SUMIF(Datastore!$A:$A,$AC141&$AE141&$AF141&"|"&L$13&"|"&"FY"&RIGHT(L$12,2),Datastore!$G:$G))*$AL141/1000 -> 0 | AC141: 87 | AD141: 1 | AE141: 2 | AF141: |RFIN | AL141: -1
C142: =C106 -> Net profit from Sale of Assets | E142: $'000 | F142: =(SUMIF(Datastore!$A:$A,$AC142&$AD142&$AF142&"|"&F$13&"|"&"FY"&RIGHT(F$12,2),Datastore!$G:$G)+SUMIF(Datastore!$A:$A,$AC142&$AE142&$AF142&"|"&F$13&"|"&"FY"&RIGHT(F$12,2),Datastore!$G:$G))*$AL142/1000 -> 0 | G142: =(SUMIF(Datastore!$A:$A,$AC142&$AD142&$AF142&"|"&G$13&"|"&"FY"&RIGHT(G$12,2),Datastore!$G:$G)+SUMIF(Datastore!$A:$A,$AC142&$AE142&$AF142&"|"&G$13&"|"&"FY"&RIGHT(G$12,2),Datastore!$G:$G))*$AL142/1000 -> -102.47079 | AA142: Not forecast for regulatory purposes | AC142: 87 | AD142: 1 | AE142: 2 | AF142: |ELOD | AL142: -1
C143: =C107 -> Contributions | E143: $'000 | F143: =(SUMIF(Datastore!$A:$A,$AC143&$AD143&$AF143&"|"&F$13&"|"&"FY"&RIGHT(F$12,2),Datastore!$G:$G)+SUMIF(Datastore!$A:$A,$AC143&$AE143&$AF143&"|"&F$13&"|"&"FY"&RIGHT(F$12,2),Datastore!$G:$G))*$AL143/1000 -> 4391.213 | G143: =(SUMIF(Datastore!$A:$A,$AC143&$AD143&$AF143&"|"&G$13&"|"&"FY"&RIGHT(G$12,2),Datastore!$G:$G)+SUMIF(Datastore!$A:$A,$AC143&$AE143&$AF143&"|"&G$13&"|"&"FY"&RIGHT(G$12,2),Datastore!$G:$G))*$AL143/1000 -> 2316.5625 | H143: =(SUMIF(Datastore!$A:$A,$AC143&$AD143&$AF143&"|"&H$13&"|"&"FY"&RIGHT(H$12,2),Datastore!$G:$G)+SUMIF(Datastore!$A:$A,$AC143&$AE143&$AF143&"|"&H$13&"|"&"FY"&RIGHT(H$12,2),Datastore!$G:$G))*$AL143/1000 -> 114.52654 | I143: =(SUMIF(Datastore!$A:$A,$AC143&$AD143&$AF143&"|"&I$13&"|"&"FY"&RIGHT(I$12,2),Datastore!$G:$G)+SUMIF(Datastore!$A:$A,$AC143&$AE143&$AF143&"|"&I$13&"|"&"FY"&RIGHT(I$12,2),Datastore!$G:$G))*$AL143/1000 -> 1954.01988 | J143: =(SUMIF(Datastore!$A:$A,$AC143&$AD143&$AF143&"|"&J$13&"|"&"FY"&RIGHT(J$12,2),Datastore!$G:$G)+SUMIF(Datastore!$A:$A,$AC143&$AE143&$AF143&"|"&J$13&"|"&"FY"&RIGHT(J$12,2),Datastore!$G:$G))*$AL143/1000 -> 1905.410853 | K143: =(SUMIF(Datastore!$A:$A,$AC143&$AD143&$AF143&"|"&K$13&"|"&"FY"&RIGHT(K$12,2),Datastore!$G:$G)+SUMIF(Datastore!$A:$A,$AC143&$AE143&$AF143&"|"&K$13&"|"&"FY"&RIGHT(K$12,2),Datastore!$G:$G))*$AL143/1000 -> 2476.454 | L143: =(SUMIF(Datastore!$A:$A,$AC143&$AD143&$AF143&"|"&L$13&"|"&"FY"&RIGHT(L$12,2),Datastore!$G:$G)+SUMIF(Datastore!$A:$A,$AC143&$AE143&$AF143&"|"&L$13&"|"&"FY"&RIGHT(L$12,2),Datastore!$G:$G))*$AL143/1000 -> 4418.64751 | AC143: 87 | AD143: 1 | AE143: 2 | AF143: |RC?? | AL143: -1
C145: =C109 -> Other Revenue Not Offset Against Revenue Requirements:
C146: =C110 -> Non-recurrent Income | E146: $'000 | F146: =(SUMIF(Datastore!$A:$A,$AC146&$AD146&$AF146&"|"&F$13&"|"&"FY"&RIGHT(F$12,2),Datastore!$G:$G)+SUMIF(Datastore!$A:$A,$AC146&$AE146&$AF146&"|"&F$13&"|"&"FY"&RIGHT(F$12,2),Datastore!$G:$G))*$AL146/1000 -> 0 | G146: =(SUMIF(Datastore!$A:$A,$AC146&$AD146&$AF146&"|"&G$13&"|"&"FY"&RIGHT(G$12,2),Datastore!$G:$G)+SUMIF(Datastore!$A:$A,$AC146&$AE146&$AF146&"|"&G$13&"|"&"FY"&RIGHT(G$12,2),Datastore!$G:$G))*$AL146/1000 -> 0 | H146: =(SUMIF(Datastore!$A:$A,$AC146&$AD146&$AF146&"|"&H$13&"|"&"FY"&RIGHT(H$12,2),Datastore!$G:$G)+SUMIF(Datastore!$A:$A,$AC146&$AE146&$AF146&"|"&H$13&"|"&"FY"&RIGHT(H$12,2),Datastore!$G:$G))*$AL146/1000 -> 0 | I146: =(SUMIF(Datastore!$A:$A,$AC146&$AD146&$AF146&"|"&I$13&"|"&"FY"&RIGHT(I$12,2),Datastore!$G:$G)+SUMIF(Datastore!$A:$A,$AC146&$AE146&$AF146&"|"&I$13&"|"&"FY"&RIGHT(I$12,2),Datastore!$G:$G))*$AL146/1000 -> 0 | J146: =(SUMIF(Datastore!$A:$A,$AC146&$AD146&$AF146&"|"&J$13&"|"&"FY"&RIGHT(J$12,2),Datastore!$G:$G)+SUMIF(Datastore!$A:$A,$AC146&$AE146&$AF146&"|"&J$13&"|"&"FY"&RIGHT(J$12,2),Datastore!$G:$G))*$AL146/1000 -> 0 | K146: =(SUMIF(Datastore!$A:$A,$AC146&$AD146&$AF146&"|"&K$13&"|"&"FY"&RIGHT(K$12,2),Datastore!$G:$G)+SUMIF(Datastore!$A:$A,$AC146&$AE146&$AF146&"|"&K$13&"|"&"FY"&RIGHT(K$12,2),Datastore!$G:$G))*$AL146/1000 -> 0 | L146: =(SUMIF(Datastore!$A:$A,$AC146&$AD146&$AF146&"|"&L$13&"|"&"FY"&RIGHT(L$12,2),Datastore!$G:$G)+SUMIF(Datastore!$A:$A,$AC146&$AE146&$AF146&"|"&L$13&"|"&"FY"&RIGHT(L$12,2),Datastore!$G:$G))*$AL146/1000 -> 0 | AC146: 87 | AD146: 1 | AE146: 2 | AF146: |RNOT | AG146: |x | AH146: |x | AI146: |x | AJ146: |x | AK146: |x | AL146: -1 | AM146: 1
C147: =C111 -> Net profit from Sale of Assets | E147: $'000 | H147: =-'5.5.2'!H1473 -> -10.36 | AA147: Non-recurrent - flood loss on disposal
C148: =C112 -> Contributions | E148: $'000
C150: =C114 -> Subtotal Other Revenue | E150: $'000 | F150: =SUM(F141:F143)+SUM(F146:F148) -> 4391.213 | G150: 2214.09171 | H150: 104.16654 | I150: 1954.01988 | J150: 1905.410853 | K150: =SUM(K141:K143)+SUM(K146:K148) -> 2476.454 | L150: 4418.64751 | M150: 0 | N150: 0 | O150: 0 | P150: 0 | Q150: 0 | R150: 0 | S150: 0 | T150: 0 | U150: 0 | V150: 0 | W150: 0 | X150: 0 | Y150: 0
B152: =B116 -> TOTAL REVENUE | E152: $'000 | F152: =F150+F137 -> 12310.36117 | G152: =G150+G137 -> 11940.03954 | H152: 9140.59296 | I152: 10886.0505 | J152: 11546.94146 | K152: =K150+K137 -> 12841.1346 | L152: 15964.6313 | M152: 0 | N152: 0 | O152: 0 | P152: 0 | Q152: 0 | R152: 0 | S152: 0 | T152: 0 | U152: 0 | V152: 0 | W152: 0 | X152: 0 | Y152: 0
F155: =F119 -> For Year Ending 30 June: | AA155: =AA119 -> For Year Ending 30 June 2014
F156: =F120 -> 2009 | G156: =G120 -> 2010 | H156: =H120 -> 2011 | I156: =I120 -> 2012 | J156: =J120 -> 2013 | K156: =K120 -> 2014 | L156: 2015 | M156: 0 | N156: Ledger Code | O156: Relevant Notes | P156: Supporting Documents | Q156: 0 | R156: 0 | S156: 0 | T156: 0 | U156: 0 | V156: 0 | W156: 0 | X156: 0 | Y156: 0 | AA156: =AA120 -> Supporting Documents | AT156: =AS156 -> 
B158: ="Geographical Area 5 - "&'Business Details'!$D$16 -> Geographical Area 5 - Somerset
B160: =B124 -> REVENUE FROM SERVICES | AG160: =Allocation!$K$124 -> 1
C161: =C125 -> Revenue from water services: | AG161: =Allocation!$K$124 -> 1
C162: =C126 -> Drinking water | E162: $'000 | F162: =(SUMIF(Datastore!$A:$A,$AC162&$AD162&$AF162&"|"&F$13&"|"&"FY"&RIGHT(F$12,2),Datastore!$G:$G)*$AL162+SUMIF(Datastore!$A:$A,$AC162&$AD162&$AG162&"|"&F$13&"|"&"FY"&RIGHT(F$12,2),Datastore!$G:$G)*$AL162+SUMIF(Datastore!$A:$A,$AC162&$AD162&$AH162&"|"&F$13&"|"&"FY"&RIGHT(F$12,2),Datastore!$G:$G)*$AL162+SUMIF(Datastore!$A:$A,$AC162&$AD162&$AI162&"|"&F$13&"|"&"FY"&RIGHT(F$12,2),Datastore!$G:$G)*$AL162+SUMIF(Datastore!$A:$A,$AC162&$AD162&$AJ162&"|"&F$13&"|"&"FY"&RIGHT(F$12,2),Datastore!$G:$G)*$AM162+SUMIF(Datastore!$A:$A,$AC162&$AD162&$AK162&"|"&F$13&"|"&"FY"&RIGHT(F$12,2),Datastore!$G:$G)*$AM162)/1000 -> 3652.50257 | G162: =(SUMIF(Datastore!$A:$A,$AC162&$AD162&$AF162&"|"&G$13&"|"&"FY"&RIGHT(G$12,2),Datastore!$G:$G)*$AL162+SUMIF(Datastore!$A:$A,$AC162&$AD162&$AG162&"|"&G$13&"|"&"FY"&RIGHT(G$12,2),Datastore!$G:$G)*$AL162+SUMIF(Datastore!$A:$A,$AC162&$AD162&$AH162&"|"&G$13&"|"&"FY"&RIGHT(G$12,2),Datastore!$G:$G)*$AL162+SUMIF(Datastore!$A:$A,$AC162&$AD162&$AI162&"|"&G$13&"|"&"FY"&RIGHT(G$12,2),Datastore!$G:$G)*$AL162+SUMIF(Datastore!$A:$A,$AC162&$AD162&$AJ162&"|"&G$13&"|"&"FY"&RIGHT(G$12,2),Datastore!$G:$G)*$AM162+SUMIF(Datastore!$A:$A,$AC162&$AD162&$AK162&"|"&G$13&"|"&"FY"&RIGHT(G$12,2),Datastore!$G:$G)*$AM162)/1000 -> 5037.98919 | H162: =(SUMIF(Datastore!$A:$A,$AC162&$AD162&$AF162&"|"&H$13&"|"&"FY"&RIGHT(H$12,2),Datastore!$G:$G)*$AL162+SUMIF(Datastore!$A:$A,$AC162&$AD162&$AG162&"|"&H$13&"|"&"FY"&RIGHT(H$12,2),Datastore!$G:$G)*$AL162+SUMIF(Datastore!$A:$A,$AC162&$AD162&$AH162&"|"&H$13&"|"&"FY"&RIGHT(H$12,2),Datastore!$G:$G)*$AL162+SUMIF(Datastore!$A:$A,$AC162&$AD162&$AI162&"|"&H$13&"|"&"FY"&RIGHT(H$12,2),Datastore!$G:$G)*$AL162+SUMIF(Datastore!$A:$A,$AC162&$AD162&$AJ162&"|"&H$13&"|"&"FY"&RIGHT(H$12,2),Datastore!$G:$G)*$AM162+SUMIF(Datastore!$A:$A,$AC162&$AD162&$AK162&"|"&H$13&"|"&"FY"&RIGHT(H$12,2),Datastore!$G:$G)*$AM162)/1000 -> 4242.36572 | I162: =(SUMIF(Datastore!$A:$A,$AC162&$AD162&$AF162&"|"&I$13&"|"&"FY"&RIGHT(I$12,2),Datastore!$G:$G)*$AL162+SUMIF(Datastore!$A:$A,$AC162&$AD162&$AG162&"|"&I$13&"|"&"FY"&RIGHT(I$12,2),Datastore!$G:$G)*$AL162+SUMIF(Datastore!$A:$A,$AC162&$AD162&$AH162&"|"&I$13&"|"&"FY"&RIGHT(I$12,2),Datastore!$G:$G)*$AL162+SUMIF(Datastore!$A:$A,$AC162&$AD162&$AI162&"|"&I$13&"|"&"FY"&RIGHT(I$12,2),Datastore!$G:$G)*$AL162+SUMIF(Datastore!$A:$A,$AC162&$AD162&$AJ162&"|"&I$13&"|"&"FY"&RIGHT(I$12,2),Datastore!$G:$G)*$AM162+SUMIF(Datastore!$A:$A,$AC162&$AD162&$AK162&"|"&I$13&"|"&"FY"&RIGHT(I$12,2),Datastore!$G:$G)*$AM162)/1000 -> 4910.46835 | J162: =(SUMIF(Datastore!$A:$A,$AC162&$AD162&$AF162&"|"&J$13&"|"&"FY"&RIGHT(J$12,2),Datastore!$G:$G)*$AL162+SUMIF(Datastore!$A:$A,$AC162&$AD162&$AG162&"|"&J$13&"|"&"FY"&RIGHT(J$12,2),Datastore!$G:$G)*$AL162+SUMIF(Datastore!$A:$A,$AC162&$AD162&$AH162&"|"&J$13&"|"&"FY"&RIGHT(J$12,2),Datastore!$G:$G)*$AL162+SUMIF(Datastore!$A:$A,$AC162&$AD162&$AI162&"|"&J$13&"|"&"FY"&RIGHT(J$12,2),Datastore!$G:$G)*$AL162+SUMIF(Datastore!$A:$A,$AC162&$AD162&$AJ162&"|"&J$13&"|"&"FY"&RIGHT(J$12,2),Datastore!$G:$G)*$AM162+SUMIF(Datastore!$A:$A,$AC162&$AD162&$AK162&"|"&J$13&"|"&"FY"&RIGHT(J$12,2),Datastore!$G:$G)*$AM162)/1000 -> 5546.941729 | K162: =(SUMIF(Datastore!$A:$A,$AC162&$AD162&$AF162&"|"&K$13&"|"&"FY"&RIGHT(K$12,2),Datastore!$G:$G)*$AL162+SUMIF(Datastore!$A:$A,$AC162&$AD162&$AG162&"|"&K$13&"|"&"FY"&RIGHT(K$12,2),Datastore!$G:$G)*$AL162+SUMIF(Datastore!$A:$A,$AC162&$AD162&$AH162&"|"&K$13&"|"&"FY"&RIGHT(K$12,2),Datastore!$G:$G)*$AL162+SUMIF(Datastore!$A:$A,$AC162&$AD162&$AI162&"|"&K$13&"|"&"FY"&RIGHT(K$12,2),Datastore!$G:$G)*$AL162+SUMIF(Datastore!$A:$A,$AC162&$AD162&$AJ162&"|"&K$13&"|"&"FY"&RIGHT(K$12,2),Datastore!$G:$G)*$AM162+SUMIF(Datastore!$A:$A,$AC162&$AD162&$AK162&"|"&K$13&"|"&"FY"&RIGHT(K$12,2),Datastore!$G:$G)*$AM162)/1000 -> 6073.147687 | L162: =(SUMIF(Datastore!$A:$A,$AC162&$AD162&$AF162&"|"&L$13&"|"&"FY"&RIGHT(L$12,2),Datastore!$G:$G)*$AL162+SUMIF(Datastore!$A:$A,$AC162&$AD162&$AG162&"|"&L$13&"|"&"FY"&RIGHT(L$12,2),Datastore!$G:$G)*$AL162+SUMIF(Datastore!$A:$A,$AC162&$AD162&$AH162&"|"&L$13&"|"&"FY"&RIGHT(L$12,2),Datastore!$G:$G)*$AL162+SUMIF(Datastore!$A:$A,$AC162&$AD162&$AI162&"|"&L$13&"|"&"FY"&RIGHT(L$12,2),Datastore!$G:$G)*$AL162+SUMIF(Datastore!$A:$A,$AC162&$AD162&$AJ162&"|"&L$13&"|"&"FY"&RIGHT(L$12,2),Datastore!$G:$G)*$AM162+SUMIF(Datastore!$A:$A,$AC162&$AD162&$AK162&"|"&L$13&"|"&"FY"&RIGHT(L$12,2),Datastore!$G:$G)*$AM162)/1000 -> 6560.623522 | AC162: 88 | AD162: 1 | AF162: |RU?? | AG162: =Allocation!$K$124 -> 1 | AH162: |ROOI | AI162: |x | AJ162: |x | AK162: |x | AL162: -1 | AM162: 1
C163: =C127 -> Other core water services | E163: $'000
C165: =C129 -> Revenue from wastewater services:
C166: =C130 -> Wastewater via sewer | E166: $'000 | F166: =(SUMIF(Datastore!$A:$A,$AC166&$AD166&$AF166&"|"&F$13&"|"&"FY"&RIGHT(F$12,2),Datastore!$G:$G)*$AL166+SUMIF(Datastore!$A:$A,$AC166&$AD166&$AG166&"|"&F$13&"|"&"FY"&RIGHT(F$12,2),Datastore!$G:$G)*$AL166+SUMIF(Datastore!$A:$A,$AC166&$AD166&$AH166&"|"&F$13&"|"&"FY"&RIGHT(F$12,2),Datastore!$G:$G)*$AL166+SUMIF(Datastore!$A:$A,$AC166&$AD166&$AI166&"|"&F$13&"|"&"FY"&RIGHT(F$12,2),Datastore!$G:$G)*$AL166+SUMIF(Datastore!$A:$A,$AC166&$AD166&$AJ166&"|"&F$13&"|"&"FY"&RIGHT(F$12,2),Datastore!$G:$G)*$AM166+SUMIF(Datastore!$A:$A,$AC166&$AD166&$AK166&"|"&F$13&"|"&"FY"&RIGHT(F$12,2),Datastore!$G:$G)*$AM166)/1000 -> 1579.59678 | G166: =(SUMIF(Datastore!$A:$A,$AC166&$AD166&$AF166&"|"&G$13&"|"&"FY"&RIGHT(G$12,2),Datastore!$G:$G)*$AL166+SUMIF(Datastore!$A:$A,$AC166&$AD166&$AG166&"|"&G$13&"|"&"FY"&RIGHT(G$12,2),Datastore!$G:$G)*$AL166+SUMIF(Datastore!$A:$A,$AC166&$AD166&$AH166&"|"&G$13&"|"&"FY"&RIGHT(G$12,2),Datastore!$G:$G)*$AL166+SUMIF(Datastore!$A:$A,$AC166&$AD166&$AI166&"|"&G$13&"|"&"FY"&RIGHT(G$12,2),Datastore!$G:$G)*$AL166+SUMIF(Datastore!$A:$A,$AC166&$AD166&$AJ166&"|"&G$13&"|"&"FY"&RIGHT(G$12,2),Datastore!$G:$G)*$AM166+SUMIF(Datastore!$A:$A,$AC166&$AD166&$AK166&"|"&G$13&"|"&"FY"&RIGHT(G$12,2),Datastore!$G:$G)*$AM166)/1000 -> 1825.79298 | H166: =(SUMIF(Datastore!$A:$A,$AC166&$AD166&$AF166&"|"&H$13&"|"&"FY"&RIGHT(H$12,2),Datastore!$G:$G)*$AL166+SUMIF(Datastore!$A:$A,$AC166&$AD166&$AG166&"|"&H$13&"|"&"FY"&RIGHT(H$12,2),Datastore!$G:$G)*$AL166+SUMIF(Datastore!$A:$A,$AC166&$AD166&$AH166&"|"&H$13&"|"&"FY"&RIGHT(H$12,2),Datastore!$G:$G)*$AL166+SUMIF(Datastore!$A:$A,$AC166&$AD166&$AI166&"|"&H$13&"|"&"FY"&RIGHT(H$12,2),Datastore!$G:$G)*$AL166+SUMIF(Datastore!$A:$A,$AC166&$AD166&$AJ166&"|"&H$13&"|"&"FY"&RIGHT(H$12,2),Datastore!$G:$G)*$AM166+SUMIF(Datastore!$A:$A,$AC166&$AD166&$AK166&"|"&H$13&"|"&"FY"&RIGHT(H$12,2),Datastore!$G:$G)*$AM166)/1000 -> 1945.10636 | I166: =(SUMIF(Datastore!$A:$A,$AC166&$AD166&$AF166&"|"&I$13&"|"&"FY"&RIGHT(I$12,2),Datastore!$G:$G)*$AL166+SUMIF(Datastore!$A:$A,$AC166&$AD166&$AG166&"|"&I$13&"|"&"FY"&RIGHT(I$12,2),Datastore!$G:$G)*$AL166+SUMIF(Datastore!$A:$A,$AC166&$AD166&$AH166&"|"&I$13&"|"&"FY"&RIGHT(I$12,2),Datastore!$G:$G)*$AL166+SUMIF(Datastore!$A:$A,$AC166&$AD166&$AI166&"|"&I$13&"|"&"FY"&RIGHT(I$12,2),Datastore!$G:$G)*$AL166+SUMIF(Datastore!$A:$A,$AC166&$AD166&$AJ166&"|"&I$13&"|"&"FY"&RIGHT(I$12,2),Datastore!$G:$G)*$AM166+SUMIF(Datastore!$A:$A,$AC166&$AD166&$AK166&"|"&I$13&"|"&"FY"&RIGHT(I$12,2),Datastore!$G:$G)*$AM166)/1000 -> 2054.14073 | J166: =(SUMIF(Datastore!$A:$A,$AC166&$AD166&$AF166&"|"&J$13&"|"&"FY"&RIGHT(J$12,2),Datastore!$G:$G)*$AL166+SUMIF(Datastore!$A:$A,$AC166&$AD166&$AG166&"|"&J$13&"|"&"FY"&RIGHT(J$12,2),Datastore!$G:$G)*$AL166+SUMIF(Datastore!$A:$A,$AC166&$AD166&$AH166&"|"&J$13&"|"&"FY"&RIGHT(J$12,2),Datastore!$G:$G)*$AL166+SUMIF(Datastore!$A:$A,$AC166&$AD166&$AI166&"|"&J$13&"|"&"FY"&RIGHT(J$12,2),Datastore!$G:$G)*$AL166+SUMIF(Datastore!$A:$A,$AC166&$AD166&$AJ166&"|"&J$13&"|"&"FY"&RIGHT(J$12,2),Datastore!$G:$G)*$AM166+SUMIF(Datastore!$A:$A,$AC166&$AD166&$AK166&"|"&J$13&"|"&"FY"&RIGHT(J$12,2),Datastore!$G:$G)*$AM166)/1000 -> 2130.556748 | K166: =(SUMIF(Datastore!$A:$A,$AC166&$AD166&$AF166&"|"&K$13&"|"&"FY"&RIGHT(K$12,2),Datastore!$G:$G)*$AL166+SUMIF(Datastore!$A:$A,$AC166&$AD166&$AG166&"|"&K$13&"|"&"FY"&RIGHT(K$12,2),Datastore!$G:$G)*$AL166+SUMIF(Datastore!$A:$A,$AC166&$AD166&$AH166&"|"&K$13&"|"&"FY"&RIGHT(K$12,2),Datastore!$G:$G)*$AL166+SUMIF(Datastore!$A:$A,$AC166&$AD166&$AI166&"|"&K$13&"|"&"FY"&RIGHT(K$12,2),Datastore!$G:$G)*$AL166+SUMIF(Datastore!$A:$A,$AC166&$AD166&$AJ166&"|"&K$13&"|"&"FY"&RIGHT(K$12,2),Datastore!$G:$G)*$AM166+SUMIF(Datastore!$A:$A,$AC166&$AD166&$AK166&"|"&K$13&"|"&"FY"&RIGHT(K$12,2),Datastore!$G:$G)*$AM166)/1000 -> 2252.564 | L166: =(SUMIF(Datastore!$A:$A,$AC166&$AD166&$AF166&"|"&L$13&"|"&"FY"&RIGHT(L$12,2),Datastore!$G:$G)*$AL166+SUMIF(Datastore!$A:$A,$AC166&$AD166&$AG166&"|"&L$13&"|"&"FY"&RIGHT(L$12,2),Datastore!$G:$G)*$AL166+SUMIF(Datastore!$A:$A,$AC166&$AD166&$AH166&"|"&L$13&"|"&"FY"&RIGHT(L$12,2),Datastore!$G:$G)*$AL166+SUMIF(Datastore!$A:$A,$AC166&$AD166&$AI166&"|"&L$13&"|"&"FY"&RIGHT(L$12,2),Datastore!$G:$G)*$AL166+SUMIF(Datastore!$A:$A,$AC166&$AD166&$AJ166&"|"&L$13&"|"&"FY"&RIGHT(L$12,2),Datastore!$G:$G)*$AM166+SUMIF(Datastore!$A:$A,$AC166&$AD166&$AK166&"|"&L$13&"|"&"FY"&RIGHT(L$12,2),Datastore!$G:$G)*$AM166)/1000 -> 2434.636997 | AC166: 88 | AD166: 2 | AF166: |RU?? | AG166: |RR?? | AH166: |ROOI | AI166: |x | AJ166: |RUTW | AK166: |RURW | AL166: -1 | AM166: 1
C167: =C131 -> Trade waste | E167: $'000 | F167: =(SUMIF(Datastore!$A:$A,$AC167&$AD167&$AF167&"|"&F$13&"|"&"FY"&RIGHT(F$12,2),Datastore!$G:$G)*$AL167+SUMIF(Datastore!$A:$A,$AC167&$AD167&$AG167&"|"&F$13&"|"&"FY"&RIGHT(F$12,2),Datastore!$G:$G)*$AL167+SUMIF(Datastore!$A:$A,$AC167&$AD167&$AH167&"|"&F$13&"|"&"FY"&RIGHT(F$12,2),Datastore!$G:$G)*$AL167+SUMIF(Datastore!$A:$A,$AC167&$AD167&$AI167&"|"&F$13&"|"&"FY"&RIGHT(F$12,2),Datastore!$G:$G)*$AL167+SUMIF(Datastore!$A:$A,$AC167&$AD167&$AJ167&"|"&F$13&"|"&"FY"&RIGHT(F$12,2),Datastore!$G:$G)*$AM167+SUMIF(Datastore!$A:$A,$AC167&$AD167&$AK167&"|"&F$13&"|"&"FY"&RIGHT(F$12,2),Datastore!$G:$G)*$AM167)/1000 -> 0 | G167: =(SUMIF(Datastore!$A:$A,$AC167&$AD167&$AF167&"|"&G$13&"|"&"FY"&RIGHT(G$12,2),Datastore!$G:$G)*$AL167+SUMIF(Datastore!$A:$A,$AC167&$AD167&$AG167&"|"&G$13&"|"&"FY"&RIGHT(G$12,2),Datastore!$G:$G)*$AL167+SUMIF(Datastore!$A:$A,$AC167&$AD167&$AH167&"|"&G$13&"|"&"FY"&RIGHT(G$12,2),Datastore!$G:$G)*$AL167+SUMIF(Datastore!$A:$A,$AC167&$AD167&$AI167&"|"&G$13&"|"&"FY"&RIGHT(G$12,2),Datastore!$G:$G)*$AL167+SUMIF(Datastore!$A:$A,$AC167&$AD167&$AJ167&"|"&G$13&"|"&"FY"&RIGHT(G$12,2),Datastore!$G:$G)*$AM167+SUMIF(Datastore!$A:$A,$AC167&$AD167&$AK167&"|"&G$13&"|"&"FY"&RIGHT(G$12,2),Datastore!$G:$G)*$AM167)/1000 -> 0 | H167: =(SUMIF(Datastore!$A:$A,$AC167&$AD167&$AF167&"|"&H$13&"|"&"FY"&RIGHT(H$12,2),Datastore!$G:$G)*$AL167+SUMIF(Datastore!$A:$A,$AC167&$AD167&$AG167&"|"&H$13&"|"&"FY"&RIGHT(H$12,2),Datastore!$G:$G)*$AL167+SUMIF(Datastore!$A:$A,$AC167&$AD167&$AH167&"|"&H$13&"|"&"FY"&RIGHT(H$12,2),Datastore!$G:$G)*$AL167+SUMIF(Datastore!$A:$A,$AC167&$AD167&$AI167&"|"&H$13&"|"&"FY"&RIGHT(H$12,2),Datastore!$G:$G)*$AL167+SUMIF(Datastore!$A:$A,$AC167&$AD167&$AJ167&"|"&H$13&"|"&"FY"&RIGHT(H$12,2),Datastore!$G:$G)*$AM167+SUMIF(Datastore!$A:$A,$AC167&$AD167&$AK167&"|"&H$13&"|"&"FY"&RIGHT(H$12,2),Datastore!$G:$G)*$AM167)/1000 -> 0 | I167: =(SUMIF(Datastore!$A:$A,$AC167&$AD167&$AF167&"|"&I$13&"|"&"FY"&RIGHT(I$12,2),Datastore!$G:$G)*$AL167+SUMIF(Datastore!$A:$A,$AC167&$AD167&$AG167&"|"&I$13&"|"&"FY"&RIGHT(I$12,2),Datastore!$G:$G)*$AL167+SUMIF(Datastore!$A:$A,$AC167&$AD167&$AH167&"|"&I$13&"|"&"FY"&RIGHT(I$12,2),Datastore!$G:$G)*$AL167+SUMIF(Datastore!$A:$A,$AC167&$AD167&$AI167&"|"&I$13&"|"&"FY"&RIGHT(I$12,2),Datastore!$G:$G)*$AL167+SUMIF(Datastore!$A:$A,$AC167&$AD167&$AJ167&"|"&I$13&"|"&"FY"&RIGHT(I$12,2),Datastore!$G:$G)*$AM167+SUMIF(Datastore!$A:$A,$AC167&$AD167&$AK167&"|"&I$13&"|"&"FY"&RIGHT(I$12,2),Datastore!$G:$G)*$AM167)/1000 -> 0 | J167: =(SUMIF(Datastore!$A:$A,$AC167&$AD167&$AF167&"|"&J$13&"|"&"FY"&RIGHT(J$12,2),Datastore!$G:$G)*$AL167+SUMIF(Datastore!$A:$A,$AC167&$AD167&$AG167&"|"&J$13&"|"&"FY"&RIGHT(J$12,2),Datastore!$G:$G)*$AL167+SUMIF(Datastore!$A:$A,$AC167&$AD167&$AH167&"|"&J$13&"|"&"FY"&RIGHT(J$12,2),Datastore!$G:$G)*$AL167+SUMIF(Datastore!$A:$A,$AC167&$AD167&$AI167&"|"&J$13&"|"&"FY"&RIGHT(J$12,2),Datastore!$G:$G)*$AL167+SUMIF(Datastore!$A:$A,$AC167&$AD167&$AJ167&"|"&J$13&"|"&"FY"&RIGHT(J$12,2),Datastore!$G:$G)*$AM167+SUMIF(Datastore!$A:$A,$AC167&$AD167&$AK167&"|"&J$13&"|"&"FY"&RIGHT(J$12,2),Datastore!$G:$G)*$AM167)/1000 -> 0 | K167: =(SUMIF(Datastore!$A:$A,$AC167&$AD167&$AF167&"|"&K$13&"|"&"FY"&RIGHT(K$12,2),Datastore!$G:$G)*$AL167+SUMIF(Datastore!$A:$A,$AC167&$AD167&$AG167&"|"&K$13&"|"&"FY"&RIGHT(K$12,2),Datastore!$G:$G)*$AL167+SUMIF(Datastore!$A:$A,$AC167&$AD167&$AH167&"|"&K$13&"|"&"FY"&RIGHT(K$12,2),Datastore!$G:$G)*$AL167+SUMIF(Datastore!$A:$A,$AC167&$AD167&$AI167&"|"&K$13&"|"&"FY"&RIGHT(K$12,2),Datastore!$G:$G)*$AL167+SUMIF(Datastore!$A:$A,$AC167&$AD167&$AJ167&"|"&K$13&"|"&"FY"&RIGHT(K$12,2),Datastore!$G:$G)*$AM167+SUMIF(Datastore!$A:$A,$AC167&$AD167&$AK167&"|"&K$13&"|"&"FY"&RIGHT(K$12,2),Datastore!$G:$G)*$AM167)/1000 -> 0 | L167: =(SUMIF(Datastore!$A:$A,$AC167&$AD167&$AF167&"|"&L$13&"|"&"FY"&RIGHT(L$12,2),Datastore!$G:$G)*$AL167+SUMIF(Datastore!$A:$A,$AC167&$AD167&$AG167&"|"&L$13&"|"&"FY"&RIGHT(L$12,2),Datastore!$G:$G)*$AL167+SUMIF(Datastore!$A:$A,$AC167&$AD167&$AH167&"|"&L$13&"|"&"FY"&RIGHT(L$12,2),Datastore!$G:$G)*$AL167+SUMIF(Datastore!$A:$A,$AC167&$AD167&$AI167&"|"&L$13&"|"&"FY"&RIGHT(L$12,2),Datastore!$G:$G)*$AL167+SUMIF(Datastore!$A:$A,$AC167&$AD167&$AJ167&"|"&L$13&"|"&"FY"&RIGHT(L$12,2),Datastore!$G:$G)*$AM167+SUMIF(Datastore!$A:$A,$AC167&$AD167&$AK167&"|"&L$13&"|"&"FY"&RIGHT(L$12,2),Datastore!$G:$G)*$AM167)/1000 -> 0 | AC167: 88 | AD167: 2 | AF167: |RUTW | AG167: |x | AH167: |x | AI167: |x | AJ167: |x | AK167: |x | AL167: -1 | AM167: 1
C168: =C132 -> Other core wastewater services | E168: $'000 | F168: =(SUMIF(Datastore!$A:$A,$AC168&$AD168&$AF168&"|"&F$13&"|"&"FY"&RIGHT(F$12,2),Datastore!$G:$G)*$AL168+SUMIF(Datastore!$A:$A,$AC168&$AD168&$AG168&"|"&F$13&"|"&"FY"&RIGHT(F$12,2),Datastore!$G:$G)*$AL168+SUMIF(Datastore!$A:$A,$AC168&$AD168&$AH168&"|"&F$13&"|"&"FY"&RIGHT(F$12,2),Datastore!$G:$G)*$AL168+SUMIF(Datastore!$A:$A,$AC168&$AD168&$AI168&"|"&F$13&"|"&"FY"&RIGHT(F$12,2),Datastore!$G:$G)*$AL168+SUMIF(Datastore!$A:$A,$AC168&$AD168&$AJ168&"|"&F$13&"|"&"FY"&RIGHT(F$12,2),Datastore!$G:$G)*$AM168+SUMIF(Datastore!$A:$A,$AC168&$AD168&$AK168&"|"&F$13&"|"&"FY"&RIGHT(F$12,2),Datastore!$G:$G)*$AM168)/1000 -> 128.60956 | G168: =(SUMIF(Datastore!$A:$A,$AC168&$AD168&$AF168&"|"&G$13&"|"&"FY"&RIGHT(G$12,2),Datastore!$G:$G)*$AL168+SUMIF(Datastore!$A:$A,$AC168&$AD168&$AG168&"|"&G$13&"|"&"FY"&RIGHT(G$12,2),Datastore!$G:$G)*$AL168+SUMIF(Datastore!$A:$A,$AC168&$AD168&$AH168&"|"&G$13&"|"&"FY"&RIGHT(G$12,2),Datastore!$G:$G)*$AL168+SUMIF(Datastore!$A:$A,$AC168&$AD168&$AI168&"|"&G$13&"|"&"FY"&RIGHT(G$12,2),Datastore!$G:$G)*$AL168+SUMIF(Datastore!$A:$A,$AC168&$AD168&$AJ168&"|"&G$13&"|"&"FY"&RIGHT(G$12,2),Datastore!$G:$G)*$AM168+SUMIF(Datastore!$A:$A,$AC168&$AD168&$AK168&"|"&G$13&"|"&"FY"&RIGHT(G$12,2),Datastore!$G:$G)*$AM168)/1000 -> 8.17098 | H168: =(SUMIF(Datastore!$A:$A,$AC168&$AD168&$AF168&"|"&H$13&"|"&"FY"&RIGHT(H$12,2),Datastore!$G:$G)*$AL168+SUMIF(Datastore!$A:$A,$AC168&$AD168&$AG168&"|"&H$13&"|"&"FY"&RIGHT(H$12,2),Datastore!$G:$G)*$AL168+SUMIF(Datastore!$A:$A,$AC168&$AD168&$AH168&"|"&H$13&"|"&"FY"&RIGHT(H$12,2),Datastore!$G:$G)*$AL168+SUMIF(Datastore!$A:$A,$AC168&$AD168&$AI168&"|"&H$13&"|"&"FY"&RIGHT(H$12,2),Datastore!$G:$G)*$AL168+SUMIF(Datastore!$A:$A,$AC168&$AD168&$AJ168&"|"&H$13&"|"&"FY"&RIGHT(H$12,2),Datastore!$G:$G)*$AM168+SUMIF(Datastore!$A:$A,$AC168&$AD168&$AK168&"|"&H$13&"|"&"FY"&RIGHT(H$12,2),Datastore!$G:$G)*$AM168)/1000 -> 0 | I168: =(SUMIF(Datastore!$A:$A,$AC168&$AD168&$AF168&"|"&I$13&"|"&"FY"&RIGHT(I$12,2),Datastore!$G:$G)*$AL168+SUMIF(Datastore!$A:$A,$AC168&$AD168&$AG168&"|"&I$13&"|"&"FY"&RIGHT(I$12,2),Datastore!$G:$G)*$AL168+SUMIF(Datastore!$A:$A,$AC168&$AD168&$AH168&"|"&I$13&"|"&"FY"&RIGHT(I$12,2),Datastore!$G:$G)*$AL168+SUMIF(Datastore!$A:$A,$AC168&$AD168&$AI168&"|"&I$13&"|"&"FY"&RIGHT(I$12,2),Datastore!$G:$G)*$AL168+SUMIF(Datastore!$A:$A,$AC168&$AD168&$AJ168&"|"&I$13&"|"&"FY"&RIGHT(I$12,2),Datastore!$G:$G)*$AM168+SUMIF(Datastore!$A:$A,$AC168&$AD168&$AK168&"|"&I$13&"|"&"FY"&RIGHT(I$12,2),Datastore!$G:$G)*$AM168)/1000 -> 0 | J168: =(SUMIF(Datastore!$A:$A,$AC168&$AD168&$AF168&"|"&J$13&"|"&"FY"&RIGHT(J$12,2),Datastore!$G:$G)*$AL168+SUMIF(Datastore!$A:$A,$AC168&$AD168&$AG168&"|"&J$13&"|"&"FY"&RIGHT(J$12,2),Datastore!$G:$G)*$AL168+SUMIF(Datastore!$A:$A,$AC168&$AD168&$AH168&"|"&J$13&"|"&"FY"&RIGHT(J$12,2),Datastore!$G:$G)*$AL168+SUMIF(Datastore!$A:$A,$AC168&$AD168&$AI168&"|"&J$13&"|"&"FY"&RIGHT(J$12,2),Datastore!$G:$G)*$AL168+SUMIF(Datastore!$A:$A,$AC168&$AD168&$AJ168&"|"&J$13&"|"&"FY"&RIGHT(J$12,2),Datastore!$G:$G)*$AM168+SUMIF(Datastore!$A:$A,$AC168&$AD168&$AK168&"|"&J$13&"|"&"FY"&RIGHT(J$12,2),Datastore!$G:$G)*$AM168)/1000 -> 0 | K168: =(SUMIF(Datastore!$A:$A,$AC168&$AD168&$AF168&"|"&K$13&"|"&"FY"&RIGHT(K$12,2),Datastore!$G:$G)*$AL168+SUMIF(Datastore!$A:$A,$AC168&$AD168&$AG168&"|"&K$13&"|"&"FY"&RIGHT(K$12,2),Datastore!$G:$G)*$AL168+SUMIF(Datastore!$A:$A,$AC168&$AD168&$AH168&"|"&K$13&"|"&"FY"&RIGHT(K$12,2),Datastore!$G:$G)*$AL168+SUMIF(Datastore!$A:$A,$AC168&$AD168&$AI168&"|"&K$13&"|"&"FY"&RIGHT(K$12,2),Datastore!$G:$G)*$AL168+SUMIF(Datastore!$A:$A,$AC168&$AD168&$AJ168&"|"&K$13&"|"&"FY"&RIGHT(K$12,2),Datastore!$G:$G)*$AM168+SUMIF(Datastore!$A:$A,$AC168&$AD168&$AK168&"|"&K$13&"|"&"FY"&RIGHT(K$12,2),Datastore!$G:$G)*$AM168)/1000 -> 0 | L168: =(SUMIF(Datastore!$A:$A,$AC168&$AD168&$AF168&"|"&L$13&"|"&"FY"&RIGHT(L$12,2),Datastore!$G:$G)*$AL168+SUMIF(Datastore!$A:$A,$AC168&$AD168&$AG168&"|"&L$13&"|"&"FY"&RIGHT(L$12,2),Datastore!$G:$G)*$AL168+SUMIF(Datastore!$A:$A,$AC168&$AD168&$AH168&"|"&L$13&"|"&"FY"&RIGHT(L$12,2),Datastore!$G:$G)*$AL168+SUMIF(Datastore!$A:$A,$AC168&$AD168&$AI168&"|"&L$13&"|"&"FY"&RIGHT(L$12,2),Datastore!$G:$G)*$AL168+SUMIF(Datastore!$A:$A,$AC168&$AD168&$AJ168&"|"&L$13&"|"&"FY"&RIGHT(L$12,2),Datastore!$G:$G)*$AM168+SUMIF(Datastore!$A:$A,$AC168&$AD168&$AK168&"|"&L$13&"|"&"FY"&RIGHT(L$12,2),Datastore!$G:$G)*$AM168)/1000 -> 0 | AC168: 88 | AD168: 2 | AF168: |RURW | AG168: |x | AH168: |x | AI168: |x | AJ168: |x | AK168: |x | AL168: -1 | AM168: 1
C170: =C134 -> Non-regulated:
C171: =C135 -> Aggregate non-regulated services | E171: $'000 | F171: =(SUMIF(Datastore!$A:$A,$AC171&$AD171&$AF171&"|"&F$13&"|"&"FY"&RIGHT(F$12,2),Datastore!$G:$G)*$AL171+SUMIF(Datastore!$A:$A,$AC171&$AD171&$AG171&"|"&F$13&"|"&"FY"&RIGHT(F$12,2),Datastore!$G:$G)*$AL171+SUMIF(Datastore!$A:$A,$AC171&$AD171&$AH171&"|"&F$13&"|"&"FY"&RIGHT(F$12,2),Datastore!$G:$G)*$AL171+SUMIF(Datastore!$A:$A,$AC171&$AD171&$AI171&"|"&F$13&"|"&"FY"&RIGHT(F$12,2),Datastore!$G:$G)*$AL171+SUMIF(Datastore!$A:$A,$AC171&$AD171&$AJ171&"|"&F$13&"|"&"FY"&RIGHT(F$12,2),Datastore!$G:$G)*$AM171+SUMIF(Datastore!$A:$A,$AC171&$AD171&$AK171&"|"&F$13&"|"&"FY"&RIGHT(F$12,2),Datastore!$G:$G)*$AM171)/1000 -> 0 | G171: =(SUMIF(Datastore!$A:$A,$AC171&$AD171&$AF171&"|"&G$13&"|"&"FY"&RIGHT(G$12,2),Datastore!$G:$G)*$AL171+SUMIF(Datastore!$A:$A,$AC171&$AD171&$AG171&"|"&G$13&"|"&"FY"&RIGHT(G$12,2),Datastore!$G:$G)*$AL171+SUMIF(Datastore!$A:$A,$AC171&$AD171&$AH171&"|"&G$13&"|"&"FY"&RIGHT(G$12,2),Datastore!$G:$G)*$AL171+SUMIF(Datastore!$A:$A,$AC171&$AD171&$AI171&"|"&G$13&"|"&"FY"&RIGHT(G$12,2),Datastore!$G:$G)*$AL171+SUMIF(Datastore!$A:$A,$AC171&$AD171&$AJ171&"|"&G$13&"|"&"FY"&RIGHT(G$12,2),Datastore!$G:$G)*$AM171+SUMIF(Datastore!$A:$A,$AC171&$AD171&$AK171&"|"&G$13&"|"&"FY"&RIGHT(G$12,2),Datastore!$G:$G)*$AM171)/1000 -> 0 | H171: =(SUMIF(Datastore!$A:$A,$AC171&$AD171&$AF171&"|"&H$13&"|"&"FY"&RIGHT(H$12,2),Datastore!$G:$G)*$AL171+SUMIF(Datastore!$A:$A,$AC171&$AD171&$AG171&"|"&H$13&"|"&"FY"&RIGHT(H$12,2),Datastore!$G:$G)*$AL171+SUMIF(Datastore!$A:$A,$AC171&$AD171&$AH171&"|"&H$13&"|"&"FY"&RIGHT(H$12,2),Datastore!$G:$G)*$AL171+SUMIF(Datastore!$A:$A,$AC171&$AD171&$AI171&"|"&H$13&"|"&"FY"&RIGHT(H$12,2),Datastore!$G:$G)*$AL171+SUMIF(Datastore!$A:$A,$AC171&$AD171&$AJ171&"|"&H$13&"|"&"FY"&RIGHT(H$12,2),Datastore!$G:$G)*$AM171+SUMIF(Datastore!$A:$A,$AC171&$AD171&$AK171&"|"&H$13&"|"&"FY"&RIGHT(H$12,2),Datastore!$G:$G)*$AM171)/1000 -> 184.84122 | I171: =(SUMIF(Datastore!$A:$A,$AC171&$AD171&$AF171&"|"&I$13&"|"&"FY"&RIGHT(I$12,2),Datastore!$G:$G)*$AL171+SUMIF(Datastore!$A:$A,$AC171&$AD171&$AG171&"|"&I$13&"|"&"FY"&RIGHT(I$12,2),Datastore!$G:$G)*$AL171+SUMIF(Datastore!$A:$A,$AC171&$AD171&$AH171&"|"&I$13&"|"&"FY"&RIGHT(I$12,2),Datastore!$G:$G)*$AL171+SUMIF(Datastore!$A:$A,$AC171&$AD171&$AI171&"|"&I$13&"|"&"FY"&RIGHT(I$12,2),Datastore!$G:$G)*$AL171+SUMIF(Datastore!$A:$A,$AC171&$AD171&$AJ171&"|"&I$13&"|"&"FY"&RIGHT(I$12,2),Datastore!$G:$G)*$AM171+SUMIF(Datastore!$A:$A,$AC171&$AD171&$AK171&"|"&I$13&"|"&"FY"&RIGHT(I$12,2),Datastore!$G:$G)*$AM171)/1000 -> 6.7737 | J171: =(SUMIF(Datastore!$A:$A,$AC171&$AD171&$AF171&"|"&J$13&"|"&"FY"&RIGHT(J$12,2),Datastore!$G:$G)*$AL171+SUMIF(Datastore!$A:$A,$AC171&$AD171&$AG171&"|"&J$13&"|"&"FY"&RIGHT(J$12,2),Datastore!$G:$G)*$AL171+SUMIF(Datastore!$A:$A,$AC171&$AD171&$AH171&"|"&J$13&"|"&"FY"&RIGHT(J$12,2),Datastore!$G:$G)*$AL171+SUMIF(Datastore!$A:$A,$AC171&$AD171&$AI171&"|"&J$13&"|"&"FY"&RIGHT(J$12,2),Datastore!$G:$G)*$AL171+SUMIF(Datastore!$A:$A,$AC171&$AD171&$AJ171&"|"&J$13&"|"&"FY"&RIGHT(J$12,2),Datastore!$G:$G)*$AM171+SUMIF(Datastore!$A:$A,$AC171&$AD171&$AK171&"|"&J$13&"|"&"FY"&RIGHT(J$12,2),Datastore!$G:$G)*$AM171)/1000 -> 0 | K171: =(SUMIF(Datastore!$A:$A,$AC171&$AD171&$AF171&"|"&K$13&"|"&"FY"&RIGHT(K$12,2),Datastore!$G:$G)*$AL171+SUMIF(Datastore!$A:$A,$AC171&$AD171&$AG171&"|"&K$13&"|"&"FY"&RIGHT(K$12,2),Datastore!$G:$G)*$AL171+SUMIF(Datastore!$A:$A,$AC171&$AD171&$AH171&"|"&K$13&"|"&"FY"&RIGHT(K$12,2),Datastore!$G:$G)*$AL171+SUMIF(Datastore!$A:$A,$AC171&$AD171&$AI171&"|"&K$13&"|"&"FY"&RIGHT(K$12,2),Datastore!$G:$G)*$AL171+SUMIF(Datastore!$A:$A,$AC171&$AD171&$AJ171&"|"&K$13&"|"&"FY"&RIGHT(K$12,2),Datastore!$G:$G)*$AM171+SUMIF(Datastore!$A:$A,$AC171&$AD171&$AK171&"|"&K$13&"|"&"FY"&RIGHT(K$12,2),Datastore!$G:$G)*$AM171)/1000 -> 0 | L171: =(SUMIF(Datastore!$A:$A,$AC171&$AD171&$AF171&"|"&L$13&"|"&"FY"&RIGHT(L$12,2),Datastore!$G:$G)*$AL171+SUMIF(Datastore!$A:$A,$AC171&$AD171&$AG171&"|"&L$13&"|"&"FY"&RIGHT(L$12,2),Datastore!$G:$G)*$AL171+SUMIF(Datastore!$A:$A,$AC171&$AD171&$AH171&"|"&L$13&"|"&"FY"&RIGHT(L$12,2),Datastore!$G:$G)*$AL171+SUMIF(Datastore!$A:$A,$AC171&$AD171&$AI171&"|"&L$13&"|"&"FY"&RIGHT(L$12,2),Datastore!$G:$G)*$AL171+SUMIF(Datastore!$A:$A,$AC171&$AD171&$AJ171&"|"&L$13&"|"&"FY"&RIGHT(L$12,2),Datastore!$G:$G)*$AM171+SUMIF(Datastore!$A:$A,$AC171&$AD171&$AK171&"|"&L$13&"|"&"FY"&RIGHT(L$12,2),Datastore!$G:$G)*$AM171)/1000 -> 0 | AC171: 88 | AD171: 4 | AF171: |R??? | AG171: |x | AH171: |x | AI171: |x | AJ171: |x | AK171: |x | AL171: -1 | AM171: 1
C173: =C137 -> Subtotal Revenue from Services | E173: $'000 | F173: =SUM(F162:F163)+SUM(F166:F168)+F171 -> 5360.70891 | G173: =SUM(G162:G163)+SUM(G166:G168)+G171 -> 6871.95315 | H173: 6372.3133 | I173: 6971.38278 | J173: =SUM(J162:J163)+SUM(J166:J168)+J171 -> 7677.498477 | K173: =SUM(K162:K163)+SUM(K166:K168)+K171 -> 8325.711687 | L173: 8995.260519 | M173: 0 | N173: 0 | O173: 0 | P173: 0 | Q173: 0 | R173: 0 | S173: 0 | T173: 0 | U173: 0 | V173: 0 | W173: 0 | X173: 0 | Y173: 0
B175: =B139 -> OTHER REVENUE
C176: =C140 -> Other Revenue Offset Against Revenue Requirements:
C177: =C141 -> Investment Income | E177: $'000 | F177: =(SUMIF(Datastore!$A:$A,$AC177&$AD177&$AF177&"|"&F$13&"|"&"FY"&RIGHT(F$12,2),Datastore!$G:$G)+SUMIF(Datastore!$A:$A,$AC177&$AE177&$AF177&"|"&F$13&"|"&"FY"&RIGHT(F$12,2),Datastore!$G:$G))*$AL177/1000 -> 0 | G177: =(SUMIF(Datastore!$A:$A,$AC177&$AD177&$AF177&"|"&G$13&"|"&"FY"&RIGHT(G$12,2),Datastore!$G:$G)+SUMIF(Datastore!$A:$A,$AC177&$AE177&$AF177&"|"&G$13&"|"&"FY"&RIGHT(G$12,2),Datastore!$G:$G))*$AL177/1000 -> 0 | H177: =(SUMIF(Datastore!$A:$A,$AC177&$AD177&$AF177&"|"&H$13&"|"&"FY"&RIGHT(H$12,2),Datastore!$G:$G)+SUMIF(Datastore!$A:$A,$AC177&$AE177&$AF177&"|"&H$13&"|"&"FY"&RIGHT(H$12,2),Datastore!$G:$G))*$AL177/1000 -> 0 | I177: =(SUMIF(Datastore!$A:$A,$AC177&$AD177&$AF177&"|"&I$13&"|"&"FY"&RIGHT(I$12,2),Datastore!$G:$G)+SUMIF(Datastore!$A:$A,$AC177&$AE177&$AF177&"|"&I$13&"|"&"FY"&RIGHT(I$12,2),Datastore!$G:$G))*$AL177/1000 -> 0 | J177: =(SUMIF(Datastore!$A:$A,$AC177&$AD177&$AF177&"|"&J$13&"|"&"FY"&RIGHT(J$12,2),Datastore!$G:$G)+SUMIF(Datastore!$A:$A,$AC177&$AE177&$AF177&"|"&J$13&"|"&"FY"&RIGHT(J$12,2),Datastore!$G:$G))*$AL177/1000 -> 0 | K177: =(SUMIF(Datastore!$A:$A,$AC177&$AD177&$AF177&"|"&K$13&"|"&"FY"&RIGHT(K$12,2),Datastore!$G:$G)+SUMIF(Datastore!$A:$A,$AC177&$AE177&$AF177&"|"&K$13&"|"&"FY"&RIGHT(K$12,2),Datastore!$G:$G))*$AL177/1000 -> 0 | L177: =(SUMIF(Datastore!$A:$A,$AC177&$AD177&$AF177&"|"&L$13&"|"&"FY"&RIGHT(L$12,2),Datastore!$G:$G)+SUMIF(Datastore!$A:$A,$AC177&$AE177&$AF177&"|"&L$13&"|"&"FY"&RIGHT(L$12,2),Datastore!$G:$G))*$AL177/1000 -> 0 | AC177: 88 | AD177: 1 | AE177: 2 | AF177: |RFIN | AL177: -1
C178: =C142 -> Net profit from Sale of Assets | E178: $'000 | F178: =(SUMIF(Datastore!$A:$A,$AC178&$AD178&$AF178&"|"&F$13&"|"&"FY"&RIGHT(F$12,2),Datastore!$G:$G)+SUMIF(Datastore!$A:$A,$AC178&$AE178&$AF178&"|"&F$13&"|"&"FY"&RIGHT(F$12,2),Datastore!$G:$G))*$AL178/1000 -> 0 | G178: =(SUMIF(Datastore!$A:$A,$AC178&$AD178&$AF178&"|"&G$13&"|"&"FY"&RIGHT(G$12,2),Datastore!$G:$G)+SUMIF(Datastore!$A:$A,$AC178&$AE178&$AF178&"|"&G$13&"|"&"FY"&RIGHT(G$12,2),Datastore!$G:$G))*$AL178/1000 -> 0 | AA178: Not forecast for regulatory purposes | AC178: 88 | AD178: 1 | AE178: 2 | AF178: |ELOD | AL178: -1
C179: =C143 -> Contributions | E179: $'000 | F179: =(SUMIF(Datastore!$A:$A,$AC179&$AD179&$AF179&"|"&F$13&"|"&"FY"&RIGHT(F$12,2),Datastore!$G:$G)+SUMIF(Datastore!$A:$A,$AC179&$AE179&$AF179&"|"&F$13&"|"&"FY"&RIGHT(F$12,2),Datastore!$G:$G))*$AL179/1000 -> 19550.64367 | G179: =(SUMIF(Datastore!$A:$A,$AC179&$AD179&$AF179&"|"&G$13&"|"&"FY"&RIGHT(G$12,2),Datastore!$G:$G)+SUMIF(Datastore!$A:$A,$AC179&$AE179&$AF179&"|"&G$13&"|"&"FY"&RIGHT(G$12,2),Datastore!$G:$G))*$AL179/1000 -> 1466.05915 | H179: =(SUMIF(Datastore!$A:$A,$AC179&$AD179&$AF179&"|"&H$13&"|"&"FY"&RIGHT(H$12,2),Datastore!$G:$G)+SUMIF(Datastore!$A:$A,$AC179&$AE179&$AF179&"|"&H$13&"|"&"FY"&RIGHT(H$12,2),Datastore!$G:$G))*$AL179/1000 -> 2776.30904 | I179: =(SUMIF(Datastore!$A:$A,$AC179&$AD179&$AF179&"|"&I$13&"|"&"FY"&RIGHT(I$12,2),Datastore!$G:$G)+SUMIF(Datastore!$A:$A,$AC179&$AE179&$AF179&"|"&I$13&"|"&"FY"&RIGHT(I$12,2),Datastore!$G:$G))*$AL179/1000 -> 1855.40421 | J179: =(SUMIF(Datastore!$A:$A,$AC179&$AD179&$AF179&"|"&J$13&"|"&"FY"&RIGHT(J$12,2),Datastore!$G:$G)+SUMIF(Datastore!$A:$A,$AC179&$AE179&$AF179&"|"&J$13&"|"&"FY"&RIGHT(J$12,2),Datastore!$G:$G))*$AL179/1000 -> 2697.275302 | K179: =(SUMIF(Datastore!$A:$A,$AC179&$AD179&$AF179&"|"&K$13&"|"&"FY"&RIGHT(K$12,2),Datastore!$G:$G)+SUMIF(Datastore!$A:$A,$AC179&$AE179&$AF179&"|"&K$13&"|"&"FY"&RIGHT(K$12,2),Datastore!$G:$G))*$AL179/1000 -> 4097.348 | L179: =(SUMIF(Datastore!$A:$A,$AC179&$AD179&$AF179&"|"&L$13&"|"&"FY"&RIGHT(L$12,2),Datastore!$G:$G)+SUMIF(Datastore!$A:$A,$AC179&$AE179&$AF179&"|"&L$13&"|"&"FY"&RIGHT(L$12,2),Datastore!$G:$G))*$AL179/1000 -> 4348.329393 | AC179: 88 | AD179: 1 | AE179: 2 | AF179: |RC?? | AL179: -1
C181: =C145 -> Other Revenue Not Offset Against Revenue Requirements:
C182: =C146 -> Non-recurrent Income | E182: $'000 | F182: =(SUMIF(Datastore!$A:$A,$AC182&$AD182&$AF182&"|"&F$13&"|"&"FY"&RIGHT(F$12,2),Datastore!$G:$G)+SUMIF(Datastore!$A:$A,$AC182&$AE182&$AF182&"|"&F$13&"|"&"FY"&RIGHT(F$12,2),Datastore!$G:$G))*$AL182/1000 -> 0 | G182: =(SUMIF(Datastore!$A:$A,$AC182&$AD182&$AF182&"|"&G$13&"|"&"FY"&RIGHT(G$12,2),Datastore!$G:$G)+SUMIF(Datastore!$A:$A,$AC182&$AE182&$AF182&"|"&G$13&"|"&"FY"&RIGHT(G$12,2),Datastore!$G:$G))*$AL182/1000 -> 0 | H182: =(SUMIF(Datastore!$A:$A,$AC182&$AD182&$AF182&"|"&H$13&"|"&"FY"&RIGHT(H$12,2),Datastore!$G:$G)+SUMIF(Datastore!$A:$A,$AC182&$AE182&$AF182&"|"&H$13&"|"&"FY"&RIGHT(H$12,2),Datastore!$G:$G))*$AL182/1000 -> 90.3677 | I182: =(SUMIF(Datastore!$A:$A,$AC182&$AD182&$AF182&"|"&I$13&"|"&"FY"&RIGHT(I$12,2),Datastore!$G:$G)+SUMIF(Datastore!$A:$A,$AC182&$AE182&$AF182&"|"&I$13&"|"&"FY"&RIGHT(I$12,2),Datastore!$G:$G))*$AL182/1000 -> 0 | J182: =(SUMIF(Datastore!$A:$A,$AC182&$AD182&$AF182&"|"&J$13&"|"&"FY"&RIGHT(J$12,2),Datastore!$G:$G)+SUMIF(Datastore!$A:$A,$AC182&$AE182&$AF182&"|"&J$13&"|"&"FY"&RIGHT(J$12,2),Datastore!$G:$G))*$AL182/1000 -> 0 | K182: =(SUMIF(Datastore!$A:$A,$AC182&$AD182&$AF182&"|"&K$13&"|"&"FY"&RIGHT(K$12,2),Datastore!$G:$G)+SUMIF(Datastore!$A:$A,$AC182&$AE182&$AF182&"|"&K$13&"|"&"FY"&RIGHT(K$12,2),Datastore!$G:$G))*$AL182/1000 -> 0 | L182: =(SUMIF(Datastore!$A:$A,$AC182&$AD182&$AF182&"|"&L$13&"|"&"FY"&RIGHT(L$12,2),Datastore!$G:$G)+SUMIF(Datastore!$A:$A,$AC182&$AE182&$AF182&"|"&L$13&"|"&"FY"&RIGHT(L$12,2),Datastore!$G:$G))*$AL182/1000 -> 0 | AC182: 88 | AD182: 1 | AE182: 2 | AF182: |RNOT | AG182: =Allocation!K$118 -> 0.869 | AH182: |x | AI182: |x | AJ182: |x | AK182: |x | AL182: -1 | AM182: 1
C183: =C147 -> Net profit from Sale of Assets | E183: $'000 | H183: =-'5.5.2'!H1958 -> -877.492 | AA183: Non-recurrent - flood loss on disposal
C184: =C148 -> Contributions | E184: $'000
C186: =C150 -> Subtotal Other Revenue | E186: $'000 | F186: =SUM(F177:F179)+SUM(F182:F184) -> 19550.64367 | G186: 1466.05915 | H186: 1989.18474 | I186: 1855.40421 | J186: =SUM(J177:J179)+SUM(J182:J184) -> 2697.275302 | K186: =SUM(K177:K179)+SUM(K182:K184) -> 4097.348 | L186: 4348.329393 | M186: 0 | N186: 0 | O186: 0 | P186: 0 | Q186: 0 | R186: 0 | S186: 0 | T186: 0 | U186: 0 | V186: 0 | W186: 0 | X186: 0 | Y186: 0
B188: =B152 -> TOTAL REVENUE | E188: $'000 | F188: =F186+F173 -> 24911.35258 | G188: =G186+G173 -> 8338.0123 | H188: 8361.49804 | I188: 8826.78699 | J188: =J186+J173 -> 10374.77378 | K188: =K186+K173 -> 12423.05969 | L188: 13343.58991 | M188: 0 | N188: 0 | O188: 0 | P188: 0 | Q188: 0 | R188: 0 | S188: 0 | T188: 0 | U188: 0 | V188: 0 | W188: 0 | X188: 0 | Y188: 0
F191: =F155 -> For Year Ending 30 June: | AA191: =AA155 -> For Year Ending 30 June 2014
F192: =F156 -> 2009 | G192: =G156 -> 2010 | H192: =H156 -> 2011 | I192: =I156 -> 2012 | J192: =J156 -> 2013 | K192: =K156 -> 2014 | L192: 2015 | M192: 0 | N192: Ledger Code | O192: Relevant Notes | P192: Supporting Documents | Q192: 0 | R192: 0 | S192: 0 | T192: 0 | U192: 0 | V192: 0 | W192: 0 | X192: 0 | Y192: 0 | AA192: =AA156 -> Supporting Documents
B194: Unallocated Revenue
C196: REVENUE FROM SERVICES
C197: Revenue from water services:
C198: Drinking water | E198: $'000
C199: Other core water services | E199: $'000
C201: =C165 -> Revenue from wastewater services:
C202: =C166 -> Wastewater via sewer | E202: $'000
C203: =C167 -> Trade waste | E203: $'000
C204: =C168 -> Other core wastewater services | E204: $'000
C206: =C170 -> Non-regulated:
C207: =C171 -> Aggregate non-regulated services | E207: $'000
C209: =C173 -> Subtotal Revenue from Services | E209: $'000 | F209: =SUM(F198:F199)+SUM(F202:F204)+F207 -> 0 | G209: 0 | H209: 0 | I209: 0 | J209: 0 | K209: 0 | L209: 0 | M209: 0 | N209: 0 | O209: 0 | P209: 0 | Q209: 0 | R209: 0 | S209: 0 | T209: 0 | U209: 0 | V209: 0 | W209: 0 | X209: 0 | Y209: 0
B211: =B175 -> OTHER REVENUE
C212: =C176 -> Other Revenue Offset Against Revenue Requirements:
C213: =C177 -> Investment Income | E213: $'000
C214: =C178 -> Net profit from Sale of Assets | E214: $'000
C215: =C179 -> Contributions | E215: $'000
C217: =C181 -> Other Revenue Not Offset Against Revenue Requirements:
C218: =C182 -> Non-recurrent Income | E218: $'000
C219: =C183 -> Net profit from Sale of Assets | E219: $'000
C220: =C184 -> Contributions | E220: $'000
C222: =C186 -> Subtotal Other Revenue | E222: $'000 | F222: =SUM(F213:F215)+SUM(F218:F220) -> 0 | G222: =SUM(G213:G215)+SUM(G218:G220) -> 0 | H222: =SUM(H213:H215)+SUM(H218:H220) -> 0 | I222: =SUM(I213:I215)+SUM(I218:I220) -> 0 | J222: =SUM(J213:J215)+SUM(J218:J220) -> 0 | K222: =SUM(K213:K215)+SUM(K218:K220) -> 0 | L222: 0 | M222: 0 | N222: 0 | O222: 0 | P222: 0 | Q222: 0 | R222: 0 | S222: 0 | T222: 0 | U222: 0 | V222: 0 | W222: 0 | X222: 0 | Y222: 0
B224: TOTAL UNALLOCATED REVENUE | E224: $'000 | F224: =F222+F209 -> 0 | G224: =G222+G209 -> 0 | H224: =H222+H209 -> 0 | I224: =I222+I209 -> 0 | J224: =J222+J209 -> 0 | K224: =K222+K209 -> 0 | L224: 0 | M224: 0 | N224: 0 | O224: 0 | P224: 0 | Q224: 0 | R224: 0 | S224: 0 | T224: 0 | U224: 0 | V224: 0 | W224: 0 | X224: 0 | Y224: 0
F227: =F155 -> For Year Ending 30 June: | AA227: =AA155 -> For Year Ending 30 June 2014
F228: =F156 -> 2009 | G228: =G156 -> 2010 | H228: =H156 -> 2011 | I228: =I156 -> 2012 | J228: =J156 -> 2013 | K228: =K156 -> 2014 | L228: 2015 | M228: 0 | N228: Ledger Code | O228: Relevant Notes | P228: Supporting Documents | Q228: 0 | R228: 0 | S228: 0 | T228: 0 | U228: 0 | V228: 0 | W228: 0 | X228: 0 | Y228: 0 | AA228: =AA156 -> Supporting Documents
B230: Total
B232: =B160 -> REVENUE FROM SERVICES
C233: =C161 -> Revenue from water services:
C234: =C162 -> Drinking water | E234: $'000 | F234: =F18+F54+F90+F126+F162+F198 -> 279567.9411 | G234: 330599.9231 | H234: 352957.1341 | I234: 411946.651 | J234: 459117.6289 | K234: 506425.6455 | L234: 560346.0128 | M234: 0 | N234: 0 | O234: 0 | P234: 0 | Q234: 0 | R234: 0 | S234: 0 | T234: 0 | U234: 0 | V234: 0 | W234: 0 | X234: 0 | Y234: 0
C235: =C163 -> Other core water services | E235: $'000 | F235: =F19+F55+F91+F127+F163+F199 -> 0 | G235: =G19+G55+G91+G127+G163+G199 -> 0 | H235: =H19+H55+H91+H127+H163+H199 -> 0 | I235: =I19+I55+I91+I127+I163+I199 -> 0 | J235: 0 | K235: 0 | L235: 0 | M235: 0 | N235: 0 | O235: 0 | P235: 0 | Q235: 0 | R235: 0 | S235: 0 | T235: 0 | U235: 0 | V235: 0 | W235: 0 | X235: 0 | Y235: 0
C237: =C165 -> Revenue from wastewater services:
C238: =C166 -> Wastewater via sewer | E238: $'000 | F238: =F22+F58+F94+F130+F166+F202 -> 267347.4281 | G238: 292703.7162 | H238: =H22+H58+H94+H130+H166+H202 -> 321372.1634 | I238: 338219.2881 | J238: 341596.9989 | K238: 357604.2172 | L238: 379071.4483 | M238: 0 | N238: 0 | O238: 0 | P238: 0 | Q238: 0 | R238: 0 | S238: 0 | T238: 0 | U238: 0 | V238: 0 | W238: 0 | X238: 0 | Y238: 0
C239: =C167 -> Trade waste | E239: $'000 | F239: =F23+F59+F95+F131+F167+F203 -> 19267.48482 | G239: 20539.70381 | H239: 20670.57885 | I239: 21402.33149 | J239: 21226.47066 | K239: 20568 | L239: 21628.76007 | M239: 0 | N239: 0 | O239: 0 | P239: 0 | Q239: 0 | R239: 0 | S239: 0 | T239: 0 | U239: 0 | V239: 0 | W239: 0 | X239: 0 | Y239: 0
C240: =C168 -> Other core wastewater services | E240: $'000 | F240: =F24+F60+F96+F132+F168+F204 -> 487.76505 | G240: 8.17098 | H240: 8255.87529 | I240: 8585.40981 | J240: 9686.884695 | K240: 9956.581 | L240: 10444.83762 | M240: 0 | N240: 0 | O240: 0 | P240: 0 | Q240: 0 | R240: 0 | S240: 0 | T240: 0 | U240: 0 | V240: 0 | W240: 0 | X240: 0 | Y240: 0
C242: =C170 -> Non-regulated:
C243: =C171 -> Aggregate non-regulated services | E243: $'000 | F243: =F27+F63+F99+F135+F171+F207 -> 16576.78383 | G243: 15815.07126 | H243: =H27+H63+H99+H135+H171+H207 -> 15022.11371 | I243: =I27+I63+I99+I135+I171+I207 -> 2443.93931 | J243: 4037.735 | K243: 3802.555896 | L243: 4019.301582 | M243: 0 | N243: 0 | O243: 0 | P243: 0 | Q243: 0 | R243: 0 | S243: 0 | T243: 0 | U243: 0 | V243: 0 | W243: 0 | X243: 0 | Y243: 0
C245: =C173 -> Subtotal Revenue from Services | E245: $'000 | F245: =SUM(F234:F235)+SUM(F238:F240)+F243 -> 583247.4029 | G245: 659666.5853 | H245: 718277.8654 | I245: 782597.6198 | J245: 835665.7182 | K245: 898356.9996 | L245: 975510.3603 | M245: 0 | N245: 0 | O245: 0 | P245: 0 | Q245: 0 | R245: 0 | S245: 0 | T245: 0 | U245: 0 | V245: 0 | W245: 0 | X245: 0 | Y245: 0
B247: =B175 -> OTHER REVENUE
C248: =C176 -> Other Revenue Offset Against Revenue Requirements:
C249: =C177 -> Investment Income | E249: $'000 | F249: =F33+F69+F105+F141+F177+F213 -> 600 | G249: 499.88915 | H249: 321.07604 | I249: 680.5363 | J249: 350 | K249: 358.75 | L249: 0 | M249: 0 | N249: 0 | O249: 0 | P249: 0 | Q249: 0 | R249: 0 | S249: 0 | T249: 0 | U249: 0 | V249: 0 | W249: 0 | X249: 0 | Y249: 0
C250: =C178 -> Net profit from Sale of Assets | E250: $'000 | F250: =F34+F70+F106+F142+F178+F214 -> -10355.176 | G250: -16706.4425 | H250: 0 | I250: 0 | J250: 0 | K250: 0 | L250: 0 | M250: 0 | N250: 0 | O250: 0 | P250: 0 | Q250: 0 | R250: 0 | S250: 0 | T250: 0 | U250: 0 | V250: 0 | W250: 0 | X250: 0 | Y250: 0
C251: =C179 -> Contributions | E251: $'000 | F251: =F35+F71+F107+F143+F179+F215 -> 156359.9257 | G251: 187134.2084 | H251: 142531.2591 | I251: 125686.6415 | J251: 117689.0609 | K251: 143380.024 | L251: 151977.5567 | M251: 0 | N251: 0 | O251: 0 | P251: 0 | Q251: 0 | R251: 0 | S251: 0 | T251: 0 | U251: 0 | V251: 0 | W251: 0 | X251: 0 | Y251: 0
C253: =C181 -> Other Revenue Not Offset Against Revenue Requirements:
C254: =C182 -> Non-recurrent Income | E254: $'000 | F254: =F38+F74+F110+F146+F182+F218 -> 0 | G254: 0 | H254: 11695.50724 | I254: -511.7662 | J254: 7275.091 | K254: 0 | L254: 0 | M254: 0 | N254: 0 | O254: 0 | P254: 0 | Q254: 0 | R254: 0 | S254: 0 | T254: 0 | U254: 0 | V254: 0 | W254: 0 | X254: 0 | Y254: 0
C255: =C183 -> Net profit from Sale of Assets | E255: $'000 | F255: =F39+F75+F111+F147+F183+F219 -> 0 | G255: 0 | H255: -25557.084 | I255: 0 | J255: 0 | K255: 0 | L255: 0 | M255: 0 | N255: 0 | O255: 0 | P255: 0 | Q255: 0 | R255: 0 | S255: 0 | T255: 0 | U255: 0 | V255: 0 | W255: 0 | X255: 0 | Y255: 0
C256: =C184 -> Contributions | E256: $'000 | F256: =F40+F76+F112+F148+F184+F220 -> 0 | G256: 0 | H256: 0 | I256: 0 | J256: 0 | K256: 0 | L256: 0 | M256: 0 | N256: 0 | O256: 0 | P256: 0 | Q256: 0 | R256: 0 | S256: 0 | T256: 0 | U256: 0 | V256: 0 | W256: 0 | X256: 0 | Y256: 0
C258: =C186 -> Subtotal Other Revenue | E258: $'000 | F258: =SUM(F249:F251)+SUM(F254:F256) -> 146604.7497 | G258: =SUM(G249:G251)+SUM(G254:G256) -> 170927.655 | H258: =SUM(H249:H251)+SUM(H254:H256) -> 128990.7583 | I258: =SUM(I249:I251)+SUM(I254:I256) -> 125855.4116 | J258: =SUM(J249:J251)+SUM(J254:J256) -> 125314.1519 | K258: =SUM(K249:K251)+SUM(K254:K256) -> 143738.774 | L258: 151977.5567 | M258: 0 | N258: 0 | O258: 0 | P258: 0 | Q258: 0 | R258: 0 | S258: 0 | T258: 0 | U258: 0 | V258: 0 | W258: 0 | X258: 0 | Y258: 0
B260: =B188 -> TOTAL REVENUE | E260: $'000 | F260: =F258+F245 -> 729852.1526 | G260: =G258+G245 -> 830594.2403 | H260: =H258+H245 -> 847268.6237 | I260: =I258+I245 -> 908453.0314 | J260: =J258+J245 -> 960979.8701 | K260: =K258+K245 -> 1042095.774 | L260: 1127487.917 | M260: 0 | N260: 0 | O260: 0 | P260: 0 | Q260: 0 | R260: 0 | S260: 0 | T260: 0 | U260: 0 | V260: 0 | W260: 0 | X260: 0 | Y260: 0
C265: All revenue | F265: =(SUMIF(Datastore!$A:$A,$AC265&$AD265&$AG265&"|"&F$13&"|"&"FY"&RIGHT(F$12,2),Datastore!$G:$G)+SUMIF(Datastore!$A:$A,$AC265&$AE265&$AG265&"|"&F$13&"|"&"FY"&RIGHT(F$12,2),Datastore!$G:$G)+SUMIF(Datastore!$A:$A,$AC265&$AF265&$AG265&"|"&F$13&"|"&"FY"&RIGHT(F$12,2),Datastore!$G:$G))*$AL265/1000 -> 740207.3286 | G265: =(SUMIF(Datastore!$A:$A,$AC265&$AD265&$AG265&"|"&G$13&"|"&"FY"&RIGHT(G$12,2),Datastore!$G:$G)+SUMIF(Datastore!$A:$A,$AC265&$AE265&$AG265&"|"&G$13&"|"&"FY"&RIGHT(G$12,2),Datastore!$G:$G)+SUMIF(Datastore!$A:$A,$AC265&$AF265&$AG265&"|"&G$13&"|"&"FY"&RIGHT(G$12,2),Datastore!$G:$G))*$AL265/1000 -> 847300.6828 | H265: =(SUMIF(Datastore!$A:$A,$AC265&$AD265&$AG265&"|"&H$13&"|"&"FY"&RIGHT(H$12,2),Datastore!$G:$G)+SUMIF(Datastore!$A:$A,$AC265&$AE265&$AG265&"|"&H$13&"|"&"FY"&RIGHT(H$12,2),Datastore!$G:$G)+SUMIF(Datastore!$A:$A,$AC265&$AF265&$AG265&"|"&H$13&"|"&"FY"&RIGHT(H$12,2),Datastore!$G:$G))*$AL265/1000 -> 872825.7077 | I265: =(SUMIF(Datastore!$A:$A,$AC265&$AD265&$AG265&"|"&I$13&"|"&"FY"&RIGHT(I$12,2),Datastore!$G:$G)+SUMIF(Datastore!$A:$A,$AC265&$AE265&$AG265&"|"&I$13&"|"&"FY"&RIGHT(I$12,2),Datastore!$G:$G)+SUMIF(Datastore!$A:$A,$AC265&$AF265&$AG265&"|"&I$13&"|"&"FY"&RIGHT(I$12,2),Datastore!$G:$G))*$AL265/1000 -> 908453.0314 | J265: =(SUMIF(Datastore!$A:$A,$AC265&$AD265&$AG265&"|"&J$13&"|"&"FY"&RIGHT(J$12,2),Datastore!$G:$G)+SUMIF(Datastore!$A:$A,$AC265&$AE265&$AG265&"|"&J$13&"|"&"FY"&RIGHT(J$12,2),Datastore!$G:$G)+SUMIF(Datastore!$A:$A,$AC265&$AF265&$AG265&"|"&J$13&"|"&"FY"&RIGHT(J$12,2),Datastore!$G:$G))*$AL265/1000 -> 960979.8701 | K265: =(SUMIF(Datastore!$A:$A,$AC265&$AD265&$AG265&"|"&K$13&"|"&"FY"&RIGHT(K$12,2),Datastore!$G:$G)+SUMIF(Datastore!$A:$A,$AC265&$AE265&$AG265&"|"&K$13&"|"&"FY"&RIGHT(K$12,2),Datastore!$G:$G)+SUMIF(Datastore!$A:$A,$AC265&$AF265&$AG265&"|"&K$13&"|"&"FY"&RIGHT(K$12,2),Datastore!$G:$G))*$AL265/1000 -> 1042095.774 | L265: =(SUMIF(Datastore!$A:$A,$AC265&$AD265&$AG265&"|"&L$13&"|"&"FY"&RIGHT(L$12,2),Datastore!$G:$G)+SUMIF(Datastore!$A:$A,$AC265&$AE265&$AG265&"|"&L$13&"|"&"FY"&RIGHT(L$12,2),Datastore!$G:$G)+SUMIF(Datastore!$A:$A,$AC265&$AF265&$AG265&"|"&L$13&"|"&"FY"&RIGHT(L$12,2),Datastore!$G:$G))*$AL265/1000 -> 1127487.917 | M265: =(SUMIF(Datastore!$A:$A,$AC265&$AD265&$AG265&"|"&M$13&"|"&"FY"&RIGHT(M$12,2),Datastore!$G:$G)+SUMIF(Datastore!$A:$A,$AC265&$AE265&$AG265&"|"&M$13&"|"&"FY"&RIGHT(M$12,2),Datastore!$G:$G)+SUMIF(Datastore!$A:$A,$AC265&$AF265&$AG265&"|"&M$13&"|"&"FY"&RIGHT(M$12,2),Datastore!$G:$G))*$AL265/1000 -> 0 | N265: =(SUMIF(Datastore!$A:$A,$AC265&$AD265&$AG265&"|"&N$13&"|"&"FY"&RIGHT(N$12,2),Datastore!$G:$G)+SUMIF(Datastore!$A:$A,$AC265&$AE265&$AG265&"|"&N$13&"|"&"FY"&RIGHT(N$12,2),Datastore!$G:$G)+SUMIF(Datastore!$A:$A,$AC265&$AF265&$AG265&"|"&N$13&"|"&"FY"&RIGHT(N$12,2),Datastore!$G:$G))*$AL265/1000 -> 0 | O265: =(SUMIF(Datastore!$A:$A,$AC265&$AD265&$AG265&"|"&O$13&"|"&"FY"&RIGHT(O$12,2),Datastore!$G:$G)+SUMIF(Datastore!$A:$A,$AC265&$AE265&$AG265&"|"&O$13&"|"&"FY"&RIGHT(O$12,2),Datastore!$G:$G)+SUMIF(Datastore!$A:$A,$AC265&$AF265&$AG265&"|"&O$13&"|"&"FY"&RIGHT(O$12,2),Datastore!$G:$G))*$AL265/1000 -> 0 | P265: =(SUMIF(Datastore!$A:$A,$AC265&$AD265&$AG265&"|"&P$13&"|"&"FY"&RIGHT(P$12,2),Datastore!$G:$G)+SUMIF(Datastore!$A:$A,$AC265&$AE265&$AG265&"|"&P$13&"|"&"FY"&RIGHT(P$12,2),Datastore!$G:$G)+SUMIF(Datastore!$A:$A,$AC265&$AF265&$AG265&"|"&P$13&"|"&"FY"&RIGHT(P$12,2),Datastore!$G:$G))*$AL265/1000 -> 0 | Q265: =(SUMIF(Datastore!$A:$A,$AC265&$AD265&$AG265&"|"&Q$13&"|"&"FY"&RIGHT(Q$12,2),Datastore!$G:$G)+SUMIF(Datastore!$A:$A,$AC265&$AE265&$AG265&"|"&Q$13&"|"&"FY"&RIGHT(Q$12,2),Datastore!$G:$G)+SUMIF(Datastore!$A:$A,$AC265&$AF265&$AG265&"|"&Q$13&"|"&"FY"&RIGHT(Q$12,2),Datastore!$G:$G))*$AL265/1000 -> 0 | R265: =(SUMIF(Datastore!$A:$A,$AC265&$AD265&$AG265&"|"&R$13&"|"&"FY"&RIGHT(R$12,2),Datastore!$G:$G)+SUMIF(Datastore!$A:$A,$AC265&$AE265&$AG265&"|"&R$13&"|"&"FY"&RIGHT(R$12,2),Datastore!$G:$G)+SUMIF(Datastore!$A:$A,$AC265&$AF265&$AG265&"|"&R$13&"|"&"FY"&RIGHT(R$12,2),Datastore!$G:$G))*$AL265/1000 -> 0 | S265: =(SUMIF(Datastore!$A:$A,$AC265&$AD265&$AG265&"|"&S$13&"|"&"FY"&RIGHT(S$12,2),Datastore!$G:$G)+SUMIF(Datastore!$A:$A,$AC265&$AE265&$AG265&"|"&S$13&"|"&"FY"&RIGHT(S$12,2),Datastore!$G:$G)+SUMIF(Datastore!$A:$A,$AC265&$AF265&$AG265&"|"&S$13&"|"&"FY"&RIGHT(S$12,2),Datastore!$G:$G))*$AL265/1000 -> 0 | T265: =(SUMIF(Datastore!$A:$A,$AC265&$AD265&$AG265&"|"&T$13&"|"&"FY"&RIGHT(T$12,2),Datastore!$G:$G)+SUMIF(Datastore!$A:$A,$AC265&$AE265&$AG265&"|"&T$13&"|"&"FY"&RIGHT(T$12,2),Datastore!$G:$G)+SUMIF(Datastore!$A:$A,$AC265&$AF265&$AG265&"|"&T$13&"|"&"FY"&RIGHT(T$12,2),Datastore!$G:$G))*$AL265/1000 -> 0 | U265: =(SUMIF(Datastore!$A:$A,$AC265&$AD265&$AG265&"|"&U$13&"|"&"FY"&RIGHT(U$12,2),Datastore!$G:$G)+SUMIF(Datastore!$A:$A,$AC265&$AE265&$AG265&"|"&U$13&"|"&"FY"&RIGHT(U$12,2),Datastore!$G:$G)+SUMIF(Datastore!$A:$A,$AC265&$AF265&$AG265&"|"&U$13&"|"&"FY"&RIGHT(U$12,2),Datastore!$G:$G))*$AL265/1000 -> 0 | V265: =(SUMIF(Datastore!$A:$A,$AC265&$AD265&$AG265&"|"&V$13&"|"&"FY"&RIGHT(V$12,2),Datastore!$G:$G)+SUMIF(Datastore!$A:$A,$AC265&$AE265&$AG265&"|"&V$13&"|"&"FY"&RIGHT(V$12,2),Datastore!$G:$G)+SUMIF(Datastore!$A:$A,$AC265&$AF265&$AG265&"|"&V$13&"|"&"FY"&RIGHT(V$12,2),Datastore!$G:$G))*$AL265/1000 -> 0 | W265: =(SUMIF(Datastore!$A:$A,$AC265&$AD265&$AG265&"|"&W$13&"|"&"FY"&RIGHT(W$12,2),Datastore!$G:$G)+SUMIF(Datastore!$A:$A,$AC265&$AE265&$AG265&"|"&W$13&"|"&"FY"&RIGHT(W$12,2),Datastore!$G:$G)+SUMIF(Datastore!$A:$A,$AC265&$AF265&$AG265&"|"&W$13&"|"&"FY"&RIGHT(W$12,2),Datastore!$G:$G))*$AL265/1000 -> 0 | X265: =(SUMIF(Datastore!$A:$A,$AC265&$AD265&$AG265&"|"&X$13&"|"&"FY"&RIGHT(X$12,2),Datastore!$G:$G)+SUMIF(Datastore!$A:$A,$AC265&$AE265&$AG265&"|"&X$13&"|"&"FY"&RIGHT(X$12,2),Datastore!$G:$G)+SUMIF(Datastore!$A:$A,$AC265&$AF265&$AG265&"|"&X$13&"|"&"FY"&RIGHT(X$12,2),Datastore!$G:$G))*$AL265/1000 -> 0 | Y265: =(SUMIF(Datastore!$A:$A,$AC265&$AD265&$AG265&"|"&Y$13&"|"&"FY"&RIGHT(Y$12,2),Datastore!$G:$G)+SUMIF(Datastore!$A:$A,$AC265&$AE265&$AG265&"|"&Y$13&"|"&"FY"&RIGHT(Y$12,2),Datastore!$G:$G)+SUMIF(Datastore!$A:$A,$AC265&$AF265&$AG265&"|"&Y$13&"|"&"FY"&RIGHT(Y$12,2),Datastore!$G:$G))*$AL265/1000 -> 0 | AC265: ?? | AD265: 1 | AE265: 2 | AF265: 4 | AG265: |R??? | AL265: -1
C266: Add loss on disposals | F266: =(SUMIF(Datastore!$A:$A,$AC266&$AD266&$AF266&"|"&F$13&"|"&"FY"&RIGHT(F$12,2),Datastore!$G:$G)+SUMIF(Datastore!$A:$A,$AC266&$AE266&$AF266&"|"&F$13&"|"&"FY"&RIGHT(F$12,2),Datastore!$G:$G))*$AL266/1000 -> -10355.176 | G266: =(SUMIF(Datastore!$A:$A,$AC266&$AD266&$AF266&"|"&G$13&"|"&"FY"&RIGHT(G$12,2),Datastore!$G:$G)+SUMIF(Datastore!$A:$A,$AC266&$AE266&$AF266&"|"&G$13&"|"&"FY"&RIGHT(G$12,2),Datastore!$G:$G))*$AL266/1000 -> -16706.4425 | H266: =H255 -> -25557.084 | AC266: ?? | AD266: 1 | AE266: 2 | AF266: |ELOD | AL266: -1
F267: =SUM(F265:F266) -> 729852.1526 | G267: 830594.2403 | H267: 847268.6237 | I267: 908453.0314 | J267: 960979.8701 | K267: 1042095.774 | L267: =SUM(L265:L266) -> 1127487.917
F268: =F260-F267 -> 0 | G268: =G260-G267 -> 0 | H268: 0 | I268: 0 | J268: 0 | K268: 0 | L268: 0
M663: =#REF! ->  | N663: =#REF! ->  | O663: =#REF! ->  | P663: =#REF! ->  | Q663: =#REF! ->  | R663: =#REF! ->  | S663: =#REF! ->  | T663: =#REF! ->  | U663: =#REF! ->  | V663: =#REF! ->  | W663: =#REF! ->  | X663: =#REF! -> 
AG664: =Allocation!K$121 -> 0.895
AG1148: =Allocation!K$124 -> 1
AG1633: =Allocation!K$127 -> 1
AG2118: =Allocation!K$130 -> 1

Sheet 5.2.3
B4: ='Business Details'!$B$4 -> SEQ INTERIM REVENUE MONITORING - INFORMATION REQUIREMENT TEMPLATE
B7: =CONCATENATE("Revenue Details for ",'Business Details'!$D$9," - Tariff Structures") -> Revenue Details for Queensland Urban Utilities - Tariff Structures
B8: =CONCATENATE("Reporting year = ",AnalysisYear) -> Reporting year = 2014
D13: Geographic Area | F13: Service Category | I13: Customer Category | M13: Type | Q13: For Year Ending 30 June: | Y13: Supporting
C14: Parameter | D14: (dropdown list) | F14: (dropdown list) | I14: (dropdown list) | K14: Tariff Description | M14: (dropdown list) | O14: Unit | Q14: ='5.1.1'!F13 -> 2009 | R14: ='5.1.1'!G13 -> 2010 | S14: ='5.1.1'!H13 -> 2011 | T14: ='5.1.1'!I13 -> 2012 | U14: ='5.1.1'!J13 -> 2013 | V14: ='5.1.1'!K13 -> 2014 | W14: ='5.1.1'!L13 -> 2015 | Y14: Documents | Z14: Prod&Dist | AA14: Item | AU14: =AT14 -> 
Q15: V9 | R15: V9 | S15: V9 | T15: V9 | U15: V9 | V15: V9 | W15: V9
B16: 1 | C16: Price | D16: Brisbane | F16: Drinking water | I16: Residential | K16: Access charge | M16: Fixed | O16: $ | Q16: 148.1200979 | R16: 158.7928478 | S16: 163.8796896 | T16: 167.1446649 | U16: 167.1977885 | V16: 174.4644372 | W16: 182.31 | Y16: Average tariffs
C17: Quantity | D17: Brisbane | F17: Drinking water | K17: Access charge | M17: Fixed | O17: Properties | Q17: 388483 | R17: 394565 | S17: 393432 | T17: 399987 | U17: 402264 | V17: 406287 | W17: 411162 | Y17: Actual property numbers are year end, forecast property numbers are mid year
C18: Revenue | D18: Brisbane | F18: Drinking water | K18: Access charge | M18: Fixed | O18: $'000 | Q18: 57542.14 | R18: 62654.1 | S18: 64475.51403 | T18: 66855.69308 | U18: 67257.6512 | V18: 70882.63279 | W18: 74958.94422
B19: 2 | C19: Price | D19: Brisbane | F19: Drinking water | I19: Residential | K19: Volume charge | M19: Variable | O19: $ | Q19: 1.520555471 | R19: 1.853627927 | S19: 2.191518844 | T19: 2.549152264 | U19: 2.822972416 | V19: 3.097716504 | W19: 3.378523747
C20: Quantity | D20: Brisbane | F20: Drinking water | K20: Volume charge | M20: Variable | O20: MLs | Q20: 53094.574 | R20: 58897 | S20: 54043.31 | T20: 57475.821 | U20: 62660.24669 | V20: 63622.06011 | W20: 65903.90572
C21: Revenue | D21: Brisbane | F21: Drinking water | K21: Volume charge | M21: Variable | O21: $'000 | Q21: 80733.245 | R21: 109173.124 | S21: 118436.9323 | T21: 146514.6192 | U21: 176888.148 | V21: 197083.1057 | W21: 222657.9105
B22: 3 | C22: Price | D22: Brisbane | F22: Drinking water | I22: Business | K22: Access charge | M22: Fixed | O22: $ | Q22: 148.1200979 | R22: 148.924653 | S22: 163.7070008 | T22: 170.2514009 | U22: 190.169869 | V22: 177.7793584 | W22: 185.7797304
C23: Quantity | D23: Brisbane | F23: Drinking water | K23: Access charge | M23: Fixed | O23: Properties | Q23: 31062.63137 | R23: 30406 | S23: 29961 | T23: 30551 | U23: 30466 | V23: 30962 | W23: 31327
C24: Revenue | D24: Brisbane | F24: Drinking water | K24: Access charge | M24: Fixed | O24: $'000 | Q24: 4601 | R24: 4528.203 | S24: 4904.82545 | T24: 5201.35055 | U24: 5793.71523 | V24: 5504.404496 | W24: 5819.921615
B25: 4 | C25: Price | D25: Brisbane | F25: Drinking water | I25: Business | K25: Volume charge | M25: Variable | O25: $ | Q25: 0 | R25: 2.793398722 | S25: 2.739863878 | T25: 3.001159765 | U25: 3.308784242 | V25: 3.609423764 | W25: 3.912656862
C26: Quantity | D26: Brisbane | F26: Drinking water | K26: Volume charge | M26: Variable | O26: MLs | Q26: 0 | R26: 26610 | S26: 32271.077 | T26: 34173.025 | U26: 34650.81607 | V26: 34404.91762 | W26: 34746.97687
C27: Revenue | D27: Brisbane | F27: Drinking water | K27: Volume charge | M27: Variable | O27: $'000 | Q27: 66170.742 | R27: 74332.34 | S27: 88418.35817 | T27: 102558.7077 | U27: 114652.0742 | V27: 124181.9272 | W27: 135952.9975
B28: 5 | C28: Price | D28: Brisbane | F28: Waste-water via Sewer | I28: Residential | K28: Access charge | M28: Fixed | O28: $ | Q28: 398.24 | R28: 417.36 | S28: 462.2189054 | T28: 475.5030664 | U28: 475.9287854 | V28: 494.48088 | W28: 516.73
C29: Quantity | D29: Brisbane | F29: Waste-water via Sewer | K29: Access charge | M29: Fixed | O29: Properties | Q29: 380771.6434 | R29: 385930.6115 | S29: 386463 | T29: 391657 | U29: 395055 | V29: 399006 | W29: 403794
C30: Revenue | D30: Brisbane | F30: Waste-water via Sewer | K30: Access charge | M30: Fixed | O30: $'000 | Q30: 151638.4993 | R30: 161072 | S30: 178630.5048 | T30: 186234.1045 | U30: 188018.0463 | V30: 197300.838 | W30: 208652.4736
B31: 6 | C31: Price | D31: Brisbane | F31: Waste-water via Sewer | I31: Business | K31: Access charge | M31: Fixed | O31: $ | Q31: 2759.077365 | R31: 2683.401176 | S31: 3215.743708 | T31: 3301.088436 | U31: 3342.085192 | V31: 3454.410477 | W31: 3598.237301
C32: Quantity | D32: Brisbane | F32: Waste-water via Sewer | K32: Access charge | M32: Fixed | O32: Properties | Q32: 27183 | R32: 28743 | S32: 28791 | T32: 29211 | U32: 29134 | V32: 29421 | W32: 29768
C33: Revenue | D33: Brisbane | F33: Waste-water via Sewer | K33: Access charge | M33: Fixed | O33: $'000 | Q33: 75000 | R33: 77129 | S33: 92584.4771 | T33: 96428.09431 | U33: 97368.30998 | V33: 101632.2107 | W33: 107112.328
B34: 7 | C34: Price | D34: Brisbane | F34: Trade Waste | I34: Business | K34: Trade waste charge | M34: Variable | O34: $ | Q34: 3920.243454 | R34: 4037.155716 | S34: 4140.415371 | T34: 4145.044098 | U34: 4203.893499 | V34: 4305.601125 | W34: 4470.104954
C35: Quantity | D35: Brisbane | F35: Trade Waste | K35: Trade waste charge | M35: Variable | O35: Properties | Q35: 4152 | R35: 4190 | S35: 4221 | T35: 4329 | U35: 4216 | V35: 4267 | W35: 4318
C36: Revenue | D36: Brisbane | F36: Trade Waste | K36: Trade waste charge | M36: Variable | O36: $'000 | Q36: 16276.85082 | R36: 16915.68245 | S36: 17476.69328 | T36: 17943.8959 | U36: 17723.61499 | V36: 18372 | W36: 19301.91319
B37: 8 | C37: Price | D37: Brisbane | F37: Other Core Waste-water Services | I37: Business | K37: Recycled water | M37: Variable | O37: $ | Q37: 2.022629969 | R37: 1.45760963 | S37: 1.24045034 | T37: 1.442756281 | U37: 1.461512113 | V37: 1.518511085 | W37: 1.586844084
C38: Quantity | D38: Brisbane | F38: Other Core Waste-water Services | K38: Recycled water | M38: Variable | O38: Volume | Q38: 4905 | R38: 5815 | S38: 6615 | T38: 6615 | U38: 6500 | V38: 6500 | W38: 6500
C39: Revenue | D39: Brisbane | F39: Other Core Waste-water Services | K39: Recycled water | M39: Variable | O39: $'000 | Q39: 9921 | R39: 8476 | S39: 8205.579 | T39: 9543.8328 | U39: 9499.828733 | V39: 9870.322054 | W39: 10314.48655
B40: 9 | C40: Price | D40: Brisbane | F40: Other Core Waste-water Services | I40: Business | K40: PRW ex Grid | M40: Variable | O40: $ | Q40: 0 | R40: 0 | S40: 0 | T40: 0 | U40: 0 | V40: 0 | W40: 0
C41: Quantity | D41: Brisbane | F41: Other Core Waste-water Services | K41: PRW ex Grid | M41: Variable | O41: Volume | Q41: 0 | R41: 0 | S41: 0 | T41: 0 | U41: 0 | V41: 0 | W41: 0
C42: Revenue | D42: Brisbane | F42: Other Core Waste-water Services | K42: PRW ex Grid | M42: Variable | O42: $'000 | Q42: 0 | R42: 0 | S42: 0 | T42: 0 | U42: 0 | V42: 0 | W42: 0
B43: 10 | C43: Price | D43: Ipswich | F43: Drinking water | I43: Residential | K43: Access charge | M43: Fixed | O43: $ | Q43: 0 | R43: 337.1427163 | S43: 330.7384562 | T43: 281.2453511 | U43: 282.712272 | V43: 293.9453919 | W43: 307.17
C44: Quantity | D44: Ipswich | F44: Drinking water | K44: Access charge | M44: Fixed | O44: Properties | Q44: 0 | R44: 60876 | S44: 61355 | T44: 63432 | U44: 63864 | V44: 65142 | W44: 67617
C45: Revenue | D45: Ipswich | F45: Drinking water | K45: Access charge | M45: Fixed | O45: $'000 | Q45: 17365.3 | R45: 20523.9 | S45: 20292.45798 | T45: 17839.95511 | U45: 18055.13654 | V45: 19148.19072 | W45: 20769.91389
B46: 11 | C46: Price | D46: Ipswich | F46: Drinking water | I46: Residential | K46: Volume charge | M46: Variable | O46: $ | Q46: 0 | R46: 1.807426881 | S46: 2.290312665 | T46: 2.580019474 | U46: 2.814053067 | V46: 3.091036733 | W46: 3.374423386
C47: Quantity | D47: Ipswich | F47: Drinking water | K47: Volume charge | M47: Variable | O47: MLs | Q47: 0 | R47: 9129 | S47: 8802.549 | T47: 9291.144 | U47: 9401.49857 | V47: 10825.22475 | W47: 11505.94668
C48: Revenue | D48: Ipswich | F48: Drinking water | K48: Volume charge | M48: Variable | O48: $'000 | Q48: 12772.6 | R48: 16500 | S48: 20160.58946 | T48: 23971.33246 | U48: 26456.31588 | V48: 33461.16734 | W48: 38825.93556
B49: 12 | C49: Price | D49: Ipswich | F49: Drinking water | I49: Business | K49: Access charge | M49: Fixed | O49: $ | Q49: 0 | R49: 0 | S49: 1357.937744 | T49: 1395.455995 | U49: 1266.631388 | V49: 1476.620882 | W49: 1533.473709
C50: Quantity | D50: Ipswich | F50: Drinking water | K50: Access charge | M50: Fixed | O50: Properties | Q50: 0 | R50: 0 | S50: 1950 | T50: 1965 | U50: 2183 | V50: 2033 | W50: 2109
C51: Revenue | D51: Ipswich | F51: Drinking water | K51: Access charge | M51: Fixed | O51: $'000 | Q51: 0 | R51: 0 | S51: 2647.9786 | T51: 2742.07103 | U51: 2765.056319 | V51: 3001.970253 | W51: 3234.096052
B52: 13 | C52: Price | D52: Ipswich | F52: Drinking water | I52: Business | K52: Volume charge | M52: Variable | O52: $ | Q52: 0 | R52: 0 | S52: 3.045062 | T52: 3.370687611 | U52: 3.658345486 | V52: 3.973273031 | W52: 4.296617422
C53: Quantity | D53: Ipswich | F53: Drinking water | K53: Volume charge | M53: Variable | O53: MLs | Q53: 0 | R53: 0 | S53: 4621.29 | T53: 4448.458 | U53: 4597.021388 | V53: 5004.261681 | W53: 5086.769312
C54: Revenue | D54: Ipswich | F54: Drinking water | K54: Volume charge | M54: Variable | O54: $'000 | Q54: 11368.2 | R54: 14270 | S54: 14072.11457 | T54: 14994.36227 | U54: 16817.49244 | V54: 19883.29798 | W54: 21855.90165
B55: 14 | C55: Price | D55: Ipswich | F55: Waste-water via Sewer | I55: Residential | K55: Access charge | M55: Fixed | O55: $ | Q55: 0 | R55: 600.2535478 | S55: 585.5236288 | T55: 571.6908732 | U55: 570.1759323 | V55: 571.45 | W55: 597.16
C56: Quantity | D56: Ipswich | F56: Waste-water via Sewer | K56: Access charge | M56: Fixed | O56: Properties | Q56: 0 | R56: 54822 | S56: 55238 | T56: 56989 | U56: 57755 | V56: 58911 | W56: 61150
C57: Revenue | D57: Ipswich | F57: Waste-water via Sewer | K57: Access charge | M57: Fixed | O57: $'000 | Q57: 32036.7 | R57: 32907.1 | S57: 32343.15421 | T57: 32580.09117 | U57: 32930.51097 | V57: 33664.69095 | W57: 36516.334
B58: 15 | C58: Price | D58: Ipswich | F58: Waste-water via Sewer | I58: Business | K58: Access charge | M58: Fixed | O58: $ | Q58: 0 | R58: 0 | S58: 4001.893519 | T58: 4111.358076 | U58: 4473.059264 | V58: 4723.756249 | W58: 4925.785253
C59: Quantity | D59: Ipswich | F59: Waste-water via Sewer | K59: Access charge | M59: Fixed | O59: Properties | Q59: 0 | R59: 0 | S59: 1779 | T59: 1965 | U59: 1886 | V59: 1924 | W59: 1996
C60: Revenue | D60: Ipswich | F60: Waste-water via Sewer | K60: Access charge | M60: Fixed | O60: $'000 | Q60: 0 | R60: 0 | S60: 7119.36857 | T60: 8078.81862 | U60: 8436.189773 | V60: 9088.507022 | W60: 9831.867365
B61: 16 | C61: Price | D61: Ipswich | F61: Trade Waste | I61: Business | K61: Trade waste charge | M61: Variable | O61: $ | Q61: 0 | R61: 0 | S61: 8655.51645 | T61: 9372.454173 | U61: 7946.199453 | V61: 5587.78626 | W61: 5703.056067
C62: Quantity | D62: Ipswich | F62: Trade Waste | K62: Trade waste charge | M62: Variable | O62: Properties | Q62: 0 | R62: 0 | S62: 369 | T62: 369 | U62: 393 | V62: 393 | W62: 408
C63: Revenue | D63: Ipswich | F63: Trade Waste | K63: Trade waste charge | M63: Variable | O63: $'000 | Q63: 2749.8 | R63: 2900 | S63: 3193.88557 | T63: 3458.43559 | U63: 3122.856385 | V63: 2196 | W63: 2326.846875
B64: 17 | C64: Price | D64: Ipswich | F64: Other Core Waste-water Services | I64: Business | K64: Recycled water | M64: Variable | O64: $ | Q64: 0 | R64: 0 | S64: 0.99 | T64: 1.021681034 | U64: 1.034962888 | V64: 1.075326441 | W64: 1.12371613
C65: Quantity | D65: Ipswich | F65: Other Core Waste-water Services | K65: Recycled water | M65: Variable | O65: Volume | Q65: 0 | R65: 0 | S65: 116 | T65: 116 | U65: 116 | V65: 116 | W65: 116
C66: Revenue | D66: Ipswich | F66: Other Core Waste-water Services | K66: Recycled water | M66: Variable | O66: $'000 | Q66: 0 | R66: 0 | S66: 114.84 | T66: 118.515 | U66: 120.055695 | V66: 124.7378671 | W66: 130.3510711
B67: 18 | C67: Price | D67: 0 | F67: 0 | I67: Business | K67: PRW ex Grid | M67: Variable | O67: $ | Q67: 0 | R67: 0 | S67: 0 | T67: 0 | U67: 0 | V67: 0 | W67: 0
C68: Quantity | D68: 0 | F68: 0 | K68: PRW ex Grid | M68: Variable | O68: Volume | Q68: 0 | R68: 0 | S68: 0 | T68: 0 | U68: 0 | V68: 0 | W68: 0
C69: Revenue | D69: 0 | F69: 0 | K69: PRW ex Grid | M69: Variable | O69: $'000 | Q69: 0 | R69: 0 | S69: 0 | T69: 0 | U69: 0 | V69: 0 | W69: 0
B70: 19 | C70: Price | D70: Lockyer Valley | F70: Drinking water | I70: Residential | K70: Access charge | M70: Fixed | O70: $ | Q70: 0 | R70: 371.9366377 | S70: 363.2688715 | T70: 256.3433619 | U70: 261.8703017 | V70: 272.3376566 | W70: 284.59
C71: Quantity | D71: Lockyer Valley | F71: Drinking water | K71: Access charge | M71: Fixed | O71: Properties | Q71: 0 | R71: 9785 | S71: 9765 | T71: 10280 | U71: 10192 | V71: 10396 | W71: 10739
C72: Revenue | D72: Lockyer Valley | F72: Drinking water | K72: Access charge | M72: Fixed | O72: $'000 | Q72: 4519.6 | R72: 3639.4 | S72: 3547.32053 | T72: 2635.20976 | U72: 2668.982114 | V72: 2831.222278 | W72: 3056.21201
B73: 20 | C73: Price | D73: Lockyer Valley | F73: Drinking water | I73: Residential | K73: Volume charge | M73: Variable | O73: $ | Q73: 0 | R73: 1.968130746 | S73: 1.995616638 | T73: 2.175686384 | U73: 2.532256861 | V73: 2.787808758 | W73: 3.045985152
C74: Quantity | D74: Lockyer Valley | F74: Drinking water | K74: Volume charge | M74: Variable | O74: MLs | Q74: 0 | R74: 979 | S74: 947.161 | T74: 966.674 | U74: 1097.567205 | V74: 1129.014094 | W74: 1199.23232
C75: Revenue | D75: Lockyer Valley | F75: Drinking water | K75: Volume charge | M75: Variable | O75: $'000 | Q75: 1463.5 | R75: 1926.8 | S75: 1890.17025 | T75: 2103.17946 | U75: 2779.322085 | V75: 3147.47538 | W75: 3652.84384
B76: 21 | C76: Price | D76: Lockyer Valley | F76: Drinking water | I76: Business | K76: Access charge | M76: Fixed | O76: $ | Q76: 0 | R76: 0 | S76: 569.6647388 | T76: 541.9784149 | U76: 578.7680099 | V76: 555.4581579 | W76: 580.5589596
C77: Quantity | D77: Lockyer Valley | F77: Drinking water | K77: Access charge | M77: Fixed | O77: Properties | Q77: 0 | R77: 0 | S77: 536 | T77: 511 | U77: 481 | V77: 522 | W77: 539
C78: Revenue | D78: Lockyer Valley | F78: Drinking water | K78: Access charge | M78: Fixed | O78: $'000 | Q78: 0 | R78: 0 | S78: 305.3403 | T78: 276.95097 | U78: 278.3874128 | V78: 289.9491584 | W78: 312.9212793
B79: 22 | C79: Price | D79: Lockyer Valley | F79: Drinking water | I79: Business | K79: Volume charge | M79: Variable | O79: $ | Q79: 0 | R79: 0 | S79: 2.43384573 | T79: 4.156531498 | U79: 3.073716344 | V79: 3.371782863 | W79: 3.655379943
C80: Quantity | D80: Lockyer Valley | F80: Drinking water | K80: Volume charge | M80: Variable | O80: MLs | Q80: 0 | R80: 0 | S80: 283.413 | T80: 619.276 | U80: 674.2205643 | V80: 659.3116562 | W80: 671.1212429
C81: Revenue | D81: Lockyer Valley | F81: Drinking water | K81: Volume charge | M81: Variable | O81: $'000 | Q81: 0 | R81: 0 | S81: 689.78352 | T81: 2574.0402 | U81: 2072.362768 | V81: 2223.055744 | W81: 2453.20313
B82: 23 | C82: Price | D82: Lockyer Valley | F82: Waste-water via Sewer | I82: Residential | K82: Access charge | M82: Fixed | O82: $ | Q82: 0 | R82: 494.4017835 | S82: 446.1364457 | T82: 444.0914552 | U82: 452.1897816 | V82: 463.7214108 | W82: 484.58
C83: Quantity | D83: Lockyer Valley | F83: Waste-water via Sewer | K83: Access charge | M83: Fixed | O83: Properties | Q83: 0 | R83: 4037 | S83: 3998 | T83: 4240 | U83: 4296 | V83: 4382 | W83: 4527
C84: Revenue | D84: Lockyer Valley | F84: Waste-water via Sewer | K84: Access charge | M84: Fixed | O84: $'000 | Q84: 1847.7 | R84: 1995.9 | S84: 1783.65351 | T84: 1882.94777 | U84: 1942.607302 | V84: 2032.027222 | W84: 2193.69366
B85: 24 | C85: Price | D85: Lockyer Valley | F85: Waste-water via Sewer | I85: Business | K85: Access charge | M85: Fixed | O85: $ | Q85: 0 | R85: 0 | S85: 1140.593053 | T85: 1244.578946 | U85: 1373.069021 | V85: 1287.642718 | W85: 1345.58664
C86: Quantity | D86: Lockyer Valley | F86: Waste-water via Sewer | K86: Access charge | M86: Fixed | O86: Properties | Q86: 0 | R86: 0 | S86: 380 | T86: 370 | U86: 348 | V86: 355 | W86: 367
C87: Revenue | D87: Lockyer Valley | F87: Waste-water via Sewer | K87: Access charge | M87: Fixed | O87: $'000 | Q87: 0 | R87: 0 | S87: 433.42536 | T87: 460.49421 | U87: 477.8280193 | V87: 457.1131649 | W87: 493.830297
B88: 25 | C88: Price | D88: Lockyer Valley | F88: Trade Waste | I88: Business | K88: Trade waste charge | M88: Variable | O88: $ | Q88: 0 | R88: 0 | S88: 0 | T88: 0 | U88: 0 | V88: 0 | W88: 0
C89: Quantity | D89: Lockyer Valley | F89: Trade Waste | K89: Trade waste charge | M89: Variable | O89: Properties | Q89: 0 | R89: 0 | S89: 0 | T89: 0 | U89: 0 | V89: 0 | W89: 0
C90: Revenue | D90: Lockyer Valley | F90: Trade Waste | K90: Trade waste charge | M90: Variable | O90: $'000 | Q90: 0 | R90: 0 | S90: 0 | T90: 0 | U90: 0 | V90: 0 | W90: 0
B91: 26 | C91: Price | D91: Lockyer Valley | F91: Other Core Waste-water Services | I91: Business | K91: Recycled water | M91: Variable | O91: $ | Q91: 0 | R91: 0 | S91: 0 | T91: 0 | U91: 0 | V91: 0 | W91: 0
C92: Quantity | D92: Lockyer Valley | F92: Other Core Waste-water Services | K92: Recycled water | M92: Variable | O92: Volume | Q92: 0 | R92: 0 | S92: 0 | T92: 0 | U92: 0 | V92: 0 | W92: 0
C93: Revenue | D93: Lockyer Valley | F93: Other Core Waste-water Services | K93: Recycled water | M93: Variable | O93: $'000 | Q93: 0 | R93: 0 | S93: 0 | T93: 0 | U93: 0 | V93: 0 | W93: 0
B94: 27 | C94: Price | D94: Scenic Rim | F94: Drinking water | I94: Residential | K94: Access charge | M94: Fixed | O94: $ | Q94: 0 | R94: 462.582897 | S94: 346.5133849 | T94: 280.1820084 | U94: 279.5867107 | V94: 294.365205 | W94: 307.61
C95: Quantity | D95: Scenic Rim | F95: Drinking water | K95: Access charge | M95: Fixed | O95: Properties | Q95: 0 | R95: 5730 | S95: 5755 | T95: 6209 | U95: 6274 | V95: 6400 | W95: 6669
C96: Revenue | D96: Scenic Rim | F96: Drinking water | K96: Access charge | M96: Fixed | O96: $'000 | Q96: 2359.1 | R96: 2650.6 | S96: 1994.18453 | T96: 1739.65009 | U96: 1754.127023 | V96: 1883.937312 | W96: 2051.45109
B97: 28 | C97: Price | D97: Scenic Rim | F97: Drinking water | I97: Residential | K97: Volume charge | M97: Variable | O97: $ | Q97: 0 | R97: 2.285801839 | S97: 2.630194032 | T97: 2.887539842 | U97: 3.12030346 | V97: 3.394445778 | W97: 3.675105838
C98: Quantity | D98: Scenic Rim | F98: Drinking water | K98: Volume charge | M98: Variable | O98: MLs | Q98: 0 | R98: 979 | S98: 717.715 | T98: 757.183 | U98: 832.0750345 | V98: 874.4471258 | W98: 938.77927
C99: Revenue | D99: Scenic Rim | F99: Drinking water | K99: Volume charge | M99: Variable | O99: $'000 | Q99: 2244.8 | R99: 2237.8 | S99: 1887.72971 | T99: 2186.39608 | U99: 2596.326609 | V99: 2968.263354 | W99: 3450.113176
B100: 29 | C100: Price | D100: Scenic Rim | F100: Drinking water | I100: Business | K100: Access charge | M100: Fixed | O100: $ | Q100: 0 | R100: 0 | S100: 599.9199105 | T100: 669.3901472 | U100: 714.2876423 | V100: 723.91286 | W100: 756.4889387
C101: Quantity | D101: Scenic Rim | F101: Drinking water | K101: Access charge | M101: Fixed | O101: Properties | Q101: 0 | R101: 0 | S101: 1341 | T101: 1019 | U101: 965 | V101: 988 | W101: 1029
C102: Revenue | D102: Scenic Rim | F102: Drinking water | K102: Access charge | M102: Fixed | O102: $'000 | Q102: 0 | R102: 0 | S102: 804.4926 | T102: 682.10856 | U102: 689.2875749 | V102: 715.2259057 | W102: 778.4271179
B103: 30 | C103: Price | D103: Scenic Rim | F103: Drinking water | I103: Business | K103: Volume charge | M103: Variable | O103: $ | Q103: 0 | R103: 0 | S103: 3.286622432 | T103: 3.247512276 | U103: 3.709745747 | V103: 4.006876314 | W103: 4.315095748
C104: Quantity | D104: Scenic Rim | F104: Drinking water | K104: Volume charge | M104: Variable | O104: MLs | Q104: 0 | R104: 0 | S104: 320.26 | T104: 307.912 | U104: 339.3407187 | V104: 331.7888929 | W104: 347.3200894
C105: Revenue | D105: Scenic Rim | F105: Drinking water | K105: Volume charge | M105: Variable | O105: $'000 | Q105: 0 | R105: 0 | S105: 1052.5737 | T105: 999.948 | U105: 1258.867788 | V105: 1329.437056 | W105: 1498.719441
B106: 31 | C106: Price | D106: Scenic Rim | F106: Waste-water via Sewer | I106: Residential | K106: Access charge | M106: Fixed | O106: $ | Q106: 0 | R106: 668.0346673 | S106: 489.3347546 | T106: 490.9075271 | U106: 486.7735295 | V106: 510.6790159 | W106: 533.65
C107: Quantity | D107: Scenic Rim | F107: Waste-water via Sewer | K107: Access charge | M107: Fixed | O107: Properties | Q107: 0 | R107: 3923 | S107: 3994 | T107: 4064 | U107: 4153 | V107: 4237 | W107: 4415
C108: Revenue | D108: Scenic Rim | F108: Waste-water via Sewer | K108: Access charge | M108: Fixed | O108: $'000 | Q108: 2328.2 | R108: 2620.7 | S108: 1954.40301 | T108: 1995.04819 | U108: 2021.570468 | V108: 2163.74699 | W108: 2356.06475
B109: 32 | C109: Price | D109: Scenic Rim | F109: Waste-water via Sewer | I109: Business | K109: Access charge | M109: Fixed | O109: $ | Q109: 0 | R109: 0 | S109: 1234.144512 | T109: 1324.579445 | U109: 1393.652953 | V109: 1441.488116 | W109: 1506.355081
C110: Quantity | D110: Scenic Rim | F110: Waste-water via Sewer | K110: Access charge | M110: Fixed | O110: Properties | Q110: 0 | R110: 0 | S110: 778 | T110: 739 | U110: 701 | V110: 716 | W110: 746
C111: Revenue | D111: Scenic Rim | F111: Waste-water via Sewer | K111: Access charge | M111: Fixed | O111: $'000 | Q111: 0 | R111: 0 | S111: 960.16443 | T111: 978.86421 | U111: 976.95072 | V111: 1032.105491 | W111: 1123.740891
B112: 33 | C112: Price | D112: Scenic Rim | F112: Trade Waste | I112: Business | K112: Trade waste charge | M112: Variable | O112: $ | Q112: 0 | R112: 0 | S112: 0 | T112: 0 | U112: 0 | V112: 0 | W112: 0
C113: Quantity | D113: Scenic Rim | F113: Trade Waste | K113: Trade waste charge | M113: Variable | O113: Properties | Q113: 0 | R113: 0 | S113: 0 | T113: 0 | U113: 0 | V113: 0 | W113: 0
C114: Revenue | D114: Scenic Rim | F114: Trade Waste | K114: Trade waste charge | M114: Variable | O114: $'000 | Q114: 0 | R114: 0 | S114: 0 | T114: 0 | U114: 0 | V114: 0 | W114: 0
B115: 34 | C115: Price | D115: Scenic Rim | F115: Other Core Waste-water Services | I115: Business | K115: Recycled water | M115: Variable | O115: $ | Q115: 0 | R115: 0 | S115: 0 | T115: 0 | U115: 0 | V115: 0 | W115: 0
C116: Quantity | D116: Scenic Rim | F116: Other Core Waste-water Services | K116: Recycled water | M116: Variable | O116: Volume | Q116: 0 | R116: 0 | S116: 0 | T116: 0 | U116: 0 | V116: 0 | W116: 0
C117: Revenue | D117: Scenic Rim | F117: Other Core Waste-water Services | K117: Recycled water | M117: Variable | O117: $'000 | Q117: 0 | R117: 0 | S117: 0 | T117: 0 | U117: 0 | V117: 0 | W117: 0
B118: 35 | C118: Price | D118: Somerset | F118: Drinking water | I118: Residential | K118: Access charge | M118: Fixed | O118: $ | Q118: 0 | R118: 582.1656051 | S118: 300.5459595 | T118: 283.3416156 | U118: 287.1169727 | V118: 298.5201906 | W118: 311.95
C119: Quantity | D119: Somerset | F119: Drinking water | K119: Access charge | M119: Fixed | O119: Properties | Q119: 0 | R119: 4553 | S119: 4596 | T119: 4989 | U119: 5090 | V119: 5192 | W119: 5374
C120: Revenue | D120: Somerset | F120: Drinking water | K120: Access charge | M120: Fixed | O120: $'000 | Q120: 1370.8 | R120: 2650.6 | S120: 1381.30923 | T120: 1413.59132 | U120: 1461.425391 | V120: 1549.91683 | W120: 1676.4193
B121: 36 | C121: Price | D121: Somerset | F121: Drinking water | I121: Residential | K121: Volume charge | M121: Variable | O121: $ | Q121: 0 | R121: 6.666245487 | S121: 2.342068324 | T121: 2.753166188 | U121: 2.824890808 | V121: 3.078062592 | W121: 3.203335409
C122: Quantity | D122: Somerset | F122: Drinking water | K122: Volume charge | M122: Variable | O122: MLs | Q122: 0 | R122: 554 | S122: 513.493 | T122: 518.39 | U122: 613.700266 | V122: 671.4300195 | W122: 712.4476975
C123: Revenue | D123: Somerset | F123: Drinking water | K123: Volume charge | M123: Variable | O123: $'000 | Q123: 1842.4 | R123: 3693.1 | S123: 1202.63569 | T123: 1427.21382 | U123: 1733.63624 | V123: 2066.703626 | W123: 2282.208936
B124: 37 | C124: Price | D124: Somerset | F124: Drinking water | I124: Business | K124: Access charge | M124: Fixed | O124: $ | Q124: 0 | R124: 0 | S124: 168.2215138 | T124: 208.0585476 | U124: 388.6007755 | V124: 401.5356644 | W124: 419.6090349
C125: Quantity | D125: Somerset | F125: Drinking water | K125: Access charge | M125: Fixed | O125: Properties | Q125: 0 | R125: 0 | S125: 1341 | T125: 1019 | U125: 534 | V125: 544 | W125: 563
C126: Revenue | D126: Somerset | F126: Drinking water | K126: Access charge | M126: Fixed | O126: $'000 | Q126: 0 | R126: 0 | S126: 225.58505 | T126: 212.01166 | U126: 207.5128141 | V126: 218.4354014 | W126: 236.2398867
B127: 38 | C127: Price | D127: Somerset | F127: Drinking water | I127: Business | K127: Volume charge | M127: Variable | O127: $ | Q127: 0 | R127: 0 | S127: 2.596465714 | T127: 2.759746946 | U127: 3.149911852 | V127: 3.417860057 | W127: 3.557727756
C128: Quantity | D128: Somerset | F128: Drinking water | K128: Volume charge | M128: Variable | O128: MLs | Q128: 0 | R128: 0 | S128: 548.105 | T128: 584.776 | U128: 626.4833198 | V128: 593.3470798 | W128: 602.5374215
C129: Revenue | D129: Somerset | F129: Drinking water | K129: Volume charge | M129: Variable | O129: $'000 | Q129: 0 | R129: 0 | S129: 1423.13584 | T129: 1613.83378 | U129: 1973.367234 | V129: 2027.977284 | W129: 2143.664109
B130: 39 | C130: Price | D130: Somerset | F130: Waste-water via Sewer | I130: Residential | K130: Access charge | M130: Fixed | O130: $ | Q130: 0 | R130: 0 | S130: 514.7598801 | T130: 472.3967564 | U130: 476.2960427 | V130: 495.0740677 | W130: 517.35
C131: Quantity | D131: Somerset | F131: Waste-water via Sewer | K131: Access charge | M131: Fixed | O131: Properties | Q131: 0 | R131: 0 | S131: 2753 | T131: 3083 | U131: 3251 | V131: 3317 | W131: 3433
C132: Revenue | D132: Somerset | F132: Waste-water via Sewer | K132: Access charge | M132: Fixed | O132: $'000 | Q132: 1531.6 | R132: 1599.2 | S132: 1417.13395 | T132: 1456.3992 | U132: 1548.438435 | V132: 1642.160683 | W132: 1776.06255
B133: 40 | C133: Price | D133: Somerset | F133: Waste-water via Sewer | I133: Business | K133: Access charge | M133: Fixed | O133: $ | Q133: 0 | R133: 0 | S133: 1047.63184 | T133: 1269.051064 | U133: 1295.468003 | V133: 1362.699549 | W133: 1424.021029
C134: Quantity | D134: Somerset | F134: Waste-water via Sewer | K134: Access charge | M134: Fixed | O134: Properties | Q134: 0 | R134: 0 | S134: 489 | T134: 423 | U134: 393 | V134: 401 | W134: 415
C135: Revenue | D135: Somerset | F135: Waste-water via Sewer | K135: Access charge | M135: Fixed | O135: $'000 | Q135: 0 | R135: 0 | S135: 512.29197 | T135: 536.8086 | U135: 509.1189252 | V135: 546.4425193 | W135: 590.968727
B136: 41 | C136: Price | D136: Somerset | F136: Trade Waste | I136: Business | K136: Trade waste charge | M136: Variable | O136: $ | Q136: 0 | R136: 0 | S136: 0 | T136: 0 | U136: 0 | V136: 0 | W136: 0
C137: Quantity | D137: Somerset | F137: Trade Waste | K137: Trade waste charge | M137: Variable | O137: Properties | Q137: 0 | R137: 0 | S137: 0 | T137: 0 | U137: 0 | V137: 0 | W137: 0
C138: Revenue | D138: Somerset | F138: Trade Waste | K138: Trade waste charge | M138: Variable | O138: $'000 | Q138: 0 | R138: 0 | S138: 0 | T138: 0 | U138: 0 | V138: 0 | W138: 0
B139: 42 | C139: Price | D139: Somerset | F139: Other Core Waste-water Services | I139: Business | K139: Recycled water | M139: Variable | O139: $ | Q139: 0 | R139: 0 | S139: 0 | T139: 0 | U139: 0 | V139: 0 | W139: 0
C140: Quantity | D140: Somerset | F140: Other Core Waste-water Services | K140: Recycled water | M140: Variable | O140: Volume | Q140: 0 | R140: 0 | S140: 0 | T140: 0 | U140: 0 | V140: 0 | W140: 0
C141: Revenue | D141: Somerset | F141: Other Core Waste-water Services | K141: Recycled water | M141: Variable | O141: $'000 | Q141: 0 | R141: 0 | S141: 0 | T141: 0 | U141: 0 | V141: 0 | W141: 0
B142: 33 | C142: Price | D142: Brisbane | F142: Drinking water | I142: Other | K142: Sundry charges | M142: Various
C143: Quantity | D143: Brisbane | F143: Drinking water | K143: Sundry charges | M143: Various
C144: Revenue | D144: Brisbane | F144: Drinking water | K144: Sundry charges | M144: Various | O144: $'000 | Q144: =SUMIF(Datastore!$A:$A,'5.2.3'!$Z144&"|"&'5.2.3'!$AA144&"|"&'5.2.3'!Q$15&"|"&"FY"&RIGHT('5.2.3'!Q$14,2),Datastore!$G:$G)*$AB144/1000 -> 11553.60818 | R144: =SUMIF(Datastore!$A:$A,'5.2.3'!$Z144&"|"&'5.2.3'!$AA144&"|"&'5.2.3'!R$15&"|"&"FY"&RIGHT('5.2.3'!R$14,2),Datastore!$G:$G)*$AB144/1000 -> 6565.378961 | S144: =SUMIF(Datastore!$A:$A,'5.2.3'!$Z144&"|"&'5.2.3'!$AA144&"|"&'5.2.3'!S$15&"|"&"FY"&RIGHT('5.2.3'!S$14,2),Datastore!$G:$G)*$AB144/1000 -> 2708.28124 | T144: =SUMIF(Datastore!$A:$A,'5.2.3'!$Z144&"|"&'5.2.3'!$AA144&"|"&'5.2.3'!T$15&"|"&"FY"&RIGHT('5.2.3'!T$14,2),Datastore!$G:$G)*$AB144/1000 -> 11007.46511 | U144: =SUMIF(Datastore!$A:$A,'5.2.3'!$Z144&"|"&'5.2.3'!$AA144&"|"&'5.2.3'!U$15&"|"&"FY"&RIGHT('5.2.3'!U$14,2),Datastore!$G:$G)*$AB144/1000 -> 8370.99984 | V144: =SUMIF(Datastore!$A:$A,'5.2.3'!$Z144&"|"&'5.2.3'!$AA144&"|"&'5.2.3'!V$15&"|"&"FY"&RIGHT('5.2.3'!V$14,2),Datastore!$G:$G)*$AB144/1000 -> 9846.665575 | W144: =SUMIF(Datastore!$A:$A,'5.2.3'!$Z144&"|"&'5.2.3'!$AA144&"|"&'5.2.3'!W$15&"|"&"FY"&RIGHT('5.2.3'!W$14,2),Datastore!$G:$G)*$AB144/1000 -> 10407.92551 | Z144: 401 | AA144: ROOI | AB144: -1
B145: 34 | C145: Price | D145: Brisbane | F145: Waste-water via Sewer | I145: Other | K145: Sundry charges | M145: Various
C146: Quantity | D146: Brisbane | F146: Waste-water via Sewer | K146: Sundry charges | M146: Various
C147: Revenue | D147: Brisbane | F147: Waste-water via Sewer | K147: Sundry charges | M147: Various | O147: $'000 | Q147: =SUMIF(Datastore!$A:$A,'5.2.3'!$Z147&"|"&'5.2.3'!$AA147&"|"&'5.2.3'!Q$15&"|"&"FY"&RIGHT('5.2.3'!Q$14,2),Datastore!$G:$G)*$AB147/1000 -> 1486.19602 | R147: =SUMIF(Datastore!$A:$A,'5.2.3'!$Z147&"|"&'5.2.3'!$AA147&"|"&'5.2.3'!R$15&"|"&"FY"&RIGHT('5.2.3'!R$14,2),Datastore!$G:$G)*$AB147/1000 -> 5582.750979 | S147: =SUMIF(Datastore!$A:$A,'5.2.3'!$Z147&"|"&'5.2.3'!$AA147&"|"&'5.2.3'!S$15&"|"&"FY"&RIGHT('5.2.3'!S$14,2),Datastore!$G:$G)*$AB147/1000 -> 3066.25025 | T147: =SUMIF(Datastore!$A:$A,'5.2.3'!$Z147&"|"&'5.2.3'!$AA147&"|"&'5.2.3'!T$15&"|"&"FY"&RIGHT('5.2.3'!T$14,2),Datastore!$G:$G)*$AB147/1000 -> 6718.54221 | U147: =SUMIF(Datastore!$A:$A,'5.2.3'!$Z147&"|"&'5.2.3'!$AA147&"|"&'5.2.3'!U$15&"|"&"FY"&RIGHT('5.2.3'!U$14,2),Datastore!$G:$G)*$AB147/1000 -> 6384.829 | V147: =SUMIF(Datastore!$A:$A,'5.2.3'!$Z147&"|"&'5.2.3'!$AA147&"|"&'5.2.3'!V$15&"|"&"FY"&RIGHT('5.2.3'!V$14,2),Datastore!$G:$G)*$AB147/1000 -> 7032.0822 | W147: =SUMIF(Datastore!$A:$A,'5.2.3'!$Z147&"|"&'5.2.3'!$AA147&"|"&'5.2.3'!W$15&"|"&"FY"&RIGHT('5.2.3'!W$14,2),Datastore!$G:$G)*$AB147/1000 -> 7432.910885 | Z147: 402 | AA147: ROOI | AB147: -1
B148: 35 | C148: Price | D148: Ipswich | F148: Drinking water | I148: Other | K148: Sundry charges | M148: Various
C149: Quantity | D149: Ipswich | F149: Drinking water | K149: Sundry charges | M149: Various
C150: Revenue | D150: Ipswich | F150: Drinking water | K150: Sundry charges | M150: Various | O150: $'000 | Q150: =SUMIF(Datastore!$A:$A,'5.2.3'!$Z150&"|"&'5.2.3'!$AA150&"|"&'5.2.3'!Q$15&"|"&"FY"&RIGHT('5.2.3'!Q$14,2),Datastore!$G:$G)*$AB150/1000 -> 2070.356 | R150: =SUMIF(Datastore!$A:$A,'5.2.3'!$Z150&"|"&'5.2.3'!$AA150&"|"&'5.2.3'!R$15&"|"&"FY"&RIGHT('5.2.3'!R$14,2),Datastore!$G:$G)*$AB150/1000 -> 1908 | S150: =SUMIF(Datastore!$A:$A,'5.2.3'!$Z150&"|"&'5.2.3'!$AA150&"|"&'5.2.3'!S$15&"|"&"FY"&RIGHT('5.2.3'!S$14,2),Datastore!$G:$G)*$AB150/1000 -> 352.03553 | T150: =SUMIF(Datastore!$A:$A,'5.2.3'!$Z150&"|"&'5.2.3'!$AA150&"|"&'5.2.3'!T$15&"|"&"FY"&RIGHT('5.2.3'!T$14,2),Datastore!$G:$G)*$AB150/1000 -> 1625.62569 | U150: =SUMIF(Datastore!$A:$A,'5.2.3'!$Z150&"|"&'5.2.3'!$AA150&"|"&'5.2.3'!U$15&"|"&"FY"&RIGHT('5.2.3'!U$14,2),Datastore!$G:$G)*$AB150/1000 -> 2035.436 | V150: =SUMIF(Datastore!$A:$A,'5.2.3'!$Z150&"|"&'5.2.3'!$AA150&"|"&'5.2.3'!V$15&"|"&"FY"&RIGHT('5.2.3'!V$14,2),Datastore!$G:$G)*$AB150/1000 -> 1540.479675 | W150: =SUMIF(Datastore!$A:$A,'5.2.3'!$Z150&"|"&'5.2.3'!$AA150&"|"&'5.2.3'!W$15&"|"&"FY"&RIGHT('5.2.3'!W$14,2),Datastore!$G:$G)*$AB150/1000 -> 1628.287016 | Z150: 851 | AA150: ROOI | AB150: -1
B151: 36 | C151: Price | D151: Ipswich | F151: Waste-water via Sewer | I151: Other | K151: Sundry charges | M151: Various
C152: Quantity | D152: Ipswich | F152: Waste-water via Sewer | K152: Sundry charges | M152: Various
C153: Revenue | D153: Ipswich | F153: Waste-water via Sewer | K153: Sundry charges | M153: Various | O153: $'000 | Q153: =SUMIF(Datastore!$A:$A,'5.2.3'!$Z153&"|"&'5.2.3'!$AA153&"|"&'5.2.3'!Q$15&"|"&"FY"&RIGHT('5.2.3'!Q$14,2),Datastore!$G:$G)*$AB153/1000 -> 1057.361 | R153: =SUMIF(Datastore!$A:$A,'5.2.3'!$Z153&"|"&'5.2.3'!$AA153&"|"&'5.2.3'!R$15&"|"&"FY"&RIGHT('5.2.3'!R$14,2),Datastore!$G:$G)*$AB153/1000 -> 980 | S153: =SUMIF(Datastore!$A:$A,'5.2.3'!$Z153&"|"&'5.2.3'!$AA153&"|"&'5.2.3'!S$15&"|"&"FY"&RIGHT('5.2.3'!S$14,2),Datastore!$G:$G)*$AB153/1000 -> 139.00389 | T153: =SUMIF(Datastore!$A:$A,'5.2.3'!$Z153&"|"&'5.2.3'!$AA153&"|"&'5.2.3'!T$15&"|"&"FY"&RIGHT('5.2.3'!T$14,2),Datastore!$G:$G)*$AB153/1000 -> 390.94752 | U153: =SUMIF(Datastore!$A:$A,'5.2.3'!$Z153&"|"&'5.2.3'!$AA153&"|"&'5.2.3'!U$15&"|"&"FY"&RIGHT('5.2.3'!U$14,2),Datastore!$G:$G)*$AB153/1000 -> 445 | V153: =SUMIF(Datastore!$A:$A,'5.2.3'!$Z153&"|"&'5.2.3'!$AA153&"|"&'5.2.3'!V$15&"|"&"FY"&RIGHT('5.2.3'!V$14,2),Datastore!$G:$G)*$AB153/1000 -> 490.4625 | W153: =SUMIF(Datastore!$A:$A,'5.2.3'!$Z153&"|"&'5.2.3'!$AA153&"|"&'5.2.3'!W$15&"|"&"FY"&RIGHT('5.2.3'!W$14,2),Datastore!$G:$G)*$AB153/1000 -> 518.4188625 | Z153: 852 | AA153: ROOI | AB153: -1
B154: 37 | C154: Price | D154: Lockyer Valley | F154: Drinking water | I154: Other | K154: Sundry charges | M154: Various
C155: Quantity | D155: Lockyer Valley | F155: Drinking water | K155: Sundry charges | M155: Various
C156: Revenue | D156: Lockyer Valley | F156: Drinking water | K156: Sundry charges | M156: Various | O156: $'000 | Q156: =SUMIF(Datastore!$A:$A,'5.2.3'!$Z156&"|"&'5.2.3'!$AA156&"|"&'5.2.3'!Q$15&"|"&"FY"&RIGHT('5.2.3'!Q$14,2),Datastore!$G:$G)*$AB156/1000 -> 420.25539 | R156: =SUMIF(Datastore!$A:$A,'5.2.3'!$Z156&"|"&'5.2.3'!$AA156&"|"&'5.2.3'!R$15&"|"&"FY"&RIGHT('5.2.3'!R$14,2),Datastore!$G:$G)*$AB156/1000 -> 514.46543 | S156: =SUMIF(Datastore!$A:$A,'5.2.3'!$Z156&"|"&'5.2.3'!$AA156&"|"&'5.2.3'!S$15&"|"&"FY"&RIGHT('5.2.3'!S$14,2),Datastore!$G:$G)*$AB156/1000 -> 33.77829 | T156: =SUMIF(Datastore!$A:$A,'5.2.3'!$Z156&"|"&'5.2.3'!$AA156&"|"&'5.2.3'!T$15&"|"&"FY"&RIGHT('5.2.3'!T$14,2),Datastore!$G:$G)*$AB156/1000 -> 313.62926 | U156: =SUMIF(Datastore!$A:$A,'5.2.3'!$Z156&"|"&'5.2.3'!$AA156&"|"&'5.2.3'!U$15&"|"&"FY"&RIGHT('5.2.3'!U$14,2),Datastore!$G:$G)*$AB156/1000 -> 226 | V156: =SUMIF(Datastore!$A:$A,'5.2.3'!$Z156&"|"&'5.2.3'!$AA156&"|"&'5.2.3'!V$15&"|"&"FY"&RIGHT('5.2.3'!V$14,2),Datastore!$G:$G)*$AB156/1000 -> 248.42925 | W156: =SUMIF(Datastore!$A:$A,'5.2.3'!$Z156&"|"&'5.2.3'!$AA156&"|"&'5.2.3'!W$15&"|"&"FY"&RIGHT('5.2.3'!W$14,2),Datastore!$G:$G)*$AB156/1000 -> 262.5897172 | Z156: 861 | AA156: ROOI | AB156: -1
B157: 38 | C157: Price | D157: Lockyer Valley | F157: Waste-water via Sewer | I157: Other | K157: Sundry charges | M157: Various
C158: Quantity | D158: Lockyer Valley | F158: Waste-water via Sewer | K158: Sundry charges | M158: Various
C159: Revenue | D159: Lockyer Valley | F159: Waste-water via Sewer | K159: Sundry charges | M159: Various | O159: $'000 | Q159: =SUMIF(Datastore!$A:$A,'5.2.3'!$Z159&"|"&'5.2.3'!$AA159&"|"&'5.2.3'!Q$15&"|"&"FY"&RIGHT('5.2.3'!Q$14,2),Datastore!$G:$G)*$AB159/1000 -> 116.28412 | R159: =SUMIF(Datastore!$A:$A,'5.2.3'!$Z159&"|"&'5.2.3'!$AA159&"|"&'5.2.3'!R$15&"|"&"FY"&RIGHT('5.2.3'!R$14,2),Datastore!$G:$G)*$AB159/1000 -> 171.49817 | S159: =SUMIF(Datastore!$A:$A,'5.2.3'!$Z159&"|"&'5.2.3'!$AA159&"|"&'5.2.3'!S$15&"|"&"FY"&RIGHT('5.2.3'!S$14,2),Datastore!$G:$G)*$AB159/1000 -> 195.91379 | T159: =SUMIF(Datastore!$A:$A,'5.2.3'!$Z159&"|"&'5.2.3'!$AA159&"|"&'5.2.3'!T$15&"|"&"FY"&RIGHT('5.2.3'!T$14,2),Datastore!$G:$G)*$AB159/1000 -> 200.42696 | U159: =SUMIF(Datastore!$A:$A,'5.2.3'!$Z159&"|"&'5.2.3'!$AA159&"|"&'5.2.3'!U$15&"|"&"FY"&RIGHT('5.2.3'!U$14,2),Datastore!$G:$G)*$AB159/1000 -> 240 | V159: =SUMIF(Datastore!$A:$A,'5.2.3'!$Z159&"|"&'5.2.3'!$AA159&"|"&'5.2.3'!V$15&"|"&"FY"&RIGHT('5.2.3'!V$14,2),Datastore!$G:$G)*$AB159/1000 -> 259.94 | W159: =SUMIF(Datastore!$A:$A,'5.2.3'!$Z159&"|"&'5.2.3'!$AA159&"|"&'5.2.3'!W$15&"|"&"FY"&RIGHT('5.2.3'!W$14,2),Datastore!$G:$G)*$AB159/1000 -> 274.75658 | Z159: 862 | AA159: ROOI | AB159: -1
B160: 39 | C160: Price | D160: Scenic Rim | F160: Drinking water | I160: Other | K160: Sundry charges | M160: Various
C161: Quantity | D161: Scenic Rim | F161: Drinking water | K161: Sundry charges | M161: Various
C162: Revenue | D162: Scenic Rim | F162: Drinking water | K162: Sundry charges | M162: Various | O162: $'000 | Q162: =SUMIF(Datastore!$A:$A,'5.2.3'!$Z162&"|"&'5.2.3'!$AA162&"|"&'5.2.3'!Q$15&"|"&"FY"&RIGHT('5.2.3'!Q$14,2),Datastore!$G:$G)*$AB162/1000 -> 730.591969 | R162: =SUMIF(Datastore!$A:$A,'5.2.3'!$Z162&"|"&'5.2.3'!$AA162&"|"&'5.2.3'!R$15&"|"&"FY"&RIGHT('5.2.3'!R$14,2),Datastore!$G:$G)*$AB162/1000 -> 1145.725084 | S162: =SUMIF(Datastore!$A:$A,'5.2.3'!$Z162&"|"&'5.2.3'!$AA162&"|"&'5.2.3'!S$15&"|"&"FY"&RIGHT('5.2.3'!S$14,2),Datastore!$G:$G)*$AB162/1000 -> 40.30763 | T162: =SUMIF(Datastore!$A:$A,'5.2.3'!$Z162&"|"&'5.2.3'!$AA162&"|"&'5.2.3'!T$15&"|"&"FY"&RIGHT('5.2.3'!T$14,2),Datastore!$G:$G)*$AB162/1000 -> 220.87603 | U162: =SUMIF(Datastore!$A:$A,'5.2.3'!$Z162&"|"&'5.2.3'!$AA162&"|"&'5.2.3'!U$15&"|"&"FY"&RIGHT('5.2.3'!U$14,2),Datastore!$G:$G)*$AB162/1000 -> 155 | V162: =SUMIF(Datastore!$A:$A,'5.2.3'!$Z162&"|"&'5.2.3'!$AA162&"|"&'5.2.3'!V$15&"|"&"FY"&RIGHT('5.2.3'!V$14,2),Datastore!$G:$G)*$AB162/1000 -> 148.6045 | W162: =SUMIF(Datastore!$A:$A,'5.2.3'!$Z162&"|"&'5.2.3'!$AA162&"|"&'5.2.3'!W$15&"|"&"FY"&RIGHT('5.2.3'!W$14,2),Datastore!$G:$G)*$AB162/1000 -> 157.0749565 | Z162: 871 | AA162: ROOI | AB162: -1
B163: 40 | C163: Price | D163: Scenic Rim | F163: Waste-water via Sewer | I163: Other | K163: Sundry charges | M163: Various
C164: Quantity | D164: Scenic Rim | F164: Waste-water via Sewer | K164: Sundry charges | M164: Various
C165: Revenue | D165: Scenic Rim | F165: Waste-water via Sewer | K165: Sundry charges | M165: Various | O165: $'000 | Q165: =SUMIF(Datastore!$A:$A,'5.2.3'!$Z165&"|"&'5.2.3'!$AA165&"|"&'5.2.3'!Q$15&"|"&"FY"&RIGHT('5.2.3'!Q$14,2),Datastore!$G:$G)*$AB165/1000 -> 256.473081 | R165: =SUMIF(Datastore!$A:$A,'5.2.3'!$Z165&"|"&'5.2.3'!$AA165&"|"&'5.2.3'!R$15&"|"&"FY"&RIGHT('5.2.3'!R$14,2),Datastore!$G:$G)*$AB165/1000 -> 402.6391259 | S165: =SUMIF(Datastore!$A:$A,'5.2.3'!$Z165&"|"&'5.2.3'!$AA165&"|"&'5.2.3'!S$15&"|"&"FY"&RIGHT('5.2.3'!S$14,2),Datastore!$G:$G)*$AB165/1000 -> 133.11675 | T165: =SUMIF(Datastore!$A:$A,'5.2.3'!$Z165&"|"&'5.2.3'!$AA165&"|"&'5.2.3'!T$15&"|"&"FY"&RIGHT('5.2.3'!T$14,2),Datastore!$G:$G)*$AB165/1000 -> 129.13946 | U165: =SUMIF(Datastore!$A:$A,'5.2.3'!$Z165&"|"&'5.2.3'!$AA165&"|"&'5.2.3'!U$15&"|"&"FY"&RIGHT('5.2.3'!U$14,2),Datastore!$G:$G)*$AB165/1000 -> 189.4 | V165: =SUMIF(Datastore!$A:$A,'5.2.3'!$Z165&"|"&'5.2.3'!$AA165&"|"&'5.2.3'!V$15&"|"&"FY"&RIGHT('5.2.3'!V$14,2),Datastore!$G:$G)*$AB165/1000 -> 123.3608 | W165: =SUMIF(Datastore!$A:$A,'5.2.3'!$Z165&"|"&'5.2.3'!$AA165&"|"&'5.2.3'!W$15&"|"&"FY"&RIGHT('5.2.3'!W$14,2),Datastore!$G:$G)*$AB165/1000 -> 130.3923656 | Z165: 872 | AA165: ROOI | AB165: -1
B166: 41 | C166: Price | D166: Somerset | F166: Drinking water | I166: Other | K166: Sundry charges | M166: Various
C167: Quantity | D167: Somerset | F167: Drinking water | K167: Sundry charges | M167: Various
C168: Revenue | D168: Somerset | F168: Drinking water | K168: Sundry charges | M168: Various | O168: $'000 | Q168: =SUMIF(Datastore!$A:$A,'5.2.3'!$Z168&"|"&'5.2.3'!$AA168&"|"&'5.2.3'!Q$15&"|"&"FY"&RIGHT('5.2.3'!Q$14,2),Datastore!$G:$G)*$AB168/1000 -> 367.97126 | R168: =SUMIF(Datastore!$A:$A,'5.2.3'!$Z168&"|"&'5.2.3'!$AA168&"|"&'5.2.3'!R$15&"|"&"FY"&RIGHT('5.2.3'!R$14,2),Datastore!$G:$G)*$AB168/1000 -> 1039.24602 | S168: =SUMIF(Datastore!$A:$A,'5.2.3'!$Z168&"|"&'5.2.3'!$AA168&"|"&'5.2.3'!S$15&"|"&"FY"&RIGHT('5.2.3'!S$14,2),Datastore!$G:$G)*$AB168/1000 -> 9.69991 | T168: =SUMIF(Datastore!$A:$A,'5.2.3'!$Z168&"|"&'5.2.3'!$AA168&"|"&'5.2.3'!T$15&"|"&"FY"&RIGHT('5.2.3'!T$14,2),Datastore!$G:$G)*$AB168/1000 -> 243.81777 | U168: =SUMIF(Datastore!$A:$A,'5.2.3'!$Z168&"|"&'5.2.3'!$AA168&"|"&'5.2.3'!U$15&"|"&"FY"&RIGHT('5.2.3'!U$14,2),Datastore!$G:$G)*$AB168/1000 -> 171 | V168: =SUMIF(Datastore!$A:$A,'5.2.3'!$Z168&"|"&'5.2.3'!$AA168&"|"&'5.2.3'!V$15&"|"&"FY"&RIGHT('5.2.3'!V$14,2),Datastore!$G:$G)*$AB168/1000 -> 210.11475 | W168: =SUMIF(Datastore!$A:$A,'5.2.3'!$Z168&"|"&'5.2.3'!$AA168&"|"&'5.2.3'!W$15&"|"&"FY"&RIGHT('5.2.3'!W$14,2),Datastore!$G:$G)*$AB168/1000 -> 222.0912908 | Z168: 881 | AA168: ROOI | AB168: -1
B169: 42 | C169: Price | D169: Somerset | F169: Waste-water via Sewer | I169: Other | K169: Sundry charges | M169: Various
C170: Quantity | D170: Somerset | F170: Waste-water via Sewer | K170: Sundry charges | M170: Various
C171: Revenue | D171: Somerset | F171: Waste-water via Sewer | K171: Sundry charges | M171: Various | O171: $'000 | Q171: =SUMIF(Datastore!$A:$A,'5.2.3'!$Z171&"|"&'5.2.3'!$AA171&"|"&'5.2.3'!Q$15&"|"&"FY"&RIGHT('5.2.3'!Q$14,2),Datastore!$G:$G)*$AB171/1000 -> 48.04016 | R171: =SUMIF(Datastore!$A:$A,'5.2.3'!$Z171&"|"&'5.2.3'!$AA171&"|"&'5.2.3'!R$15&"|"&"FY"&RIGHT('5.2.3'!R$14,2),Datastore!$G:$G)*$AB171/1000 -> 51.45045 | S171: =SUMIF(Datastore!$A:$A,'5.2.3'!$Z171&"|"&'5.2.3'!$AA171&"|"&'5.2.3'!S$15&"|"&"FY"&RIGHT('5.2.3'!S$14,2),Datastore!$G:$G)*$AB171/1000 -> 15.68044 | T171: =SUMIF(Datastore!$A:$A,'5.2.3'!$Z171&"|"&'5.2.3'!$AA171&"|"&'5.2.3'!T$15&"|"&"FY"&RIGHT('5.2.3'!T$14,2),Datastore!$G:$G)*$AB171/1000 -> 60.93293 | U171: =SUMIF(Datastore!$A:$A,'5.2.3'!$Z171&"|"&'5.2.3'!$AA171&"|"&'5.2.3'!U$15&"|"&"FY"&RIGHT('5.2.3'!U$14,2),Datastore!$G:$G)*$AB171/1000 -> 73 | V171: =SUMIF(Datastore!$A:$A,'5.2.3'!$Z171&"|"&'5.2.3'!$AA171&"|"&'5.2.3'!V$15&"|"&"FY"&RIGHT('5.2.3'!V$14,2),Datastore!$G:$G)*$AB171/1000 -> 63.96 | W171: =SUMIF(Datastore!$A:$A,'5.2.3'!$Z171&"|"&'5.2.3'!$AA171&"|"&'5.2.3'!W$15&"|"&"FY"&RIGHT('5.2.3'!W$14,2),Datastore!$G:$G)*$AB171/1000 -> 67.60572 | Z171: 882 | AA171: ROOI | AB171: -1
B174: Total Revenue | O174: $'000 | Q174: =SUMIF($C:$C,"=Revenue",Q:Q) -> 575790.9143 | R174: 642756.7037 | S174: 703236.674 | T174: 781149.9781 | U174: 831145.7864 | V174: 894485.2977 | W174: 971491.0587
Q176: Revenue from services as per 5.2.1 | V176: ='5.2.1'!K245 -> 898356.9996
Q177: less non-regulated revenue | V177: =-'5.2.1'!K243 -> -3802.555896
Q178: less operating subsidies | V178: =SUMIF(Datastore!$A:$A,'5.2.3'!$Z178&"|"&'5.2.3'!$AA178&"|"&'5.2.3'!V$15&"|"&"FY"&RIGHT('5.2.3'!V$14,2),Datastore!$G:$G)*$AB178/1000 -> -107.625 | Z178: ??? | AA178: RR?? | AB178: 1
Q179: Total regulated revenue | V179: =SUM(V176:V178) -> 894446.8188
Q180: Balancing item | V180: =+V179-V174 -> -38.47892527
A182: List for Geographic Areas
A183: ='Business Details'!D12 -> Brisbane
A184: ='Business Details'!D13 -> Ipswich
A185: ='Business Details'!D14 -> Lockyer Valley
A186: ='Business Details'!D15 -> Scenic Rim
A187: ='Business Details'!D16 -> Somerset
A189: List for Services
A190: Drinking water
A191: Other Core Water Services
A192: Waste-water via Sewer
A193: Trade Waste
A194: Other Core Waste-water Services
A195: Aggregate Non-regulated Services
A198: List for Type of Tariff:
A199: Fixed
A200: Variable
A202: Customer type
A203: Residential
A204: Business
A205: Commercially negotiated agreements
A206: Other
A208: Capped//Uncapped
A209: Capped
A210: Uncapped
L659: =#REF! ->  | M659: =#REF! ->  | N659: =#REF! ->  | O659: =#REF! ->  | P659: =#REF! ->  | Q659: =#REF! ->  | R659: =#REF! ->  | S659: =#REF! ->  | T659: =#REF! ->  | U659: =#REF! ->  | V659: =#REF! ->  | W659: =#REF! -> 

Sheet 5.3.1
B4: ='Business Details'!$B$4 -> SEQ INTERIM REVENUE MONITORING - INFORMATION REQUIREMENT TEMPLATE
B7: =CONCATENATE("Service Standards for ",'Business Details'!$D$9) -> Service Standards for Queensland Urban Utilities
B8: =CONCATENATE("Reporting year = ",AnalysisYear) -> Reporting year = 2014
K10: 0
F11: Unit of Measurement | G11: For Year Ending 30 June: | N11: Approving Agency | O11: Changes expected in service standard | P11: Date of expected changes | Q11: Supporting Documents
D12: Service (Dropdown list) | E12: Region (Dropdown list) | G12: ='5.1.1'!F13 -> 2009 | H12: ='5.1.1'!G13 -> 2010 | I12: ='5.1.1'!H13 -> 2011 | J12: ='5.1.1'!I13 -> 2012 | K12: ='5.1.1'!J13 -> 2013 | L12: ='5.1.1'!K13 -> 2014 | M12: ='5.1.1'!L13 -> 2015
B13: # | C13: Description | AH13: =AG13 -> 
B16: 1 | C16: Compliance with Australian Drinking Water Guidelines | D16: Drinking water | E16: Brisbane | F16: % | G16: 100 | H16: 100 | N16: Performance indicator required in SAMP
B17: 2 | C17: Compliance with Australian Drinking Water Guidelines | D17: Drinking water | E17: Ipswich | F17: % | H17: 100 | N17: Performance indicator required in SAMP
B18: 3 | C18: Compliance with Australian Drinking Water Guidelines | D18: Drinking water | E18: Scenic Rim | F18: % | H18: 98 | N18: Performance indicator required in SAMP
B19: 4 | C19: Compliance with Australian Drinking Water Guidelines | D19: Drinking water | E19: Somerset | F19: % | H19: 90 | N19: Performance indicator required in SAMP
B20: 5 | C20: Compliance with Australian Drinking Water Guidelines | D20: Drinking water | E20: Lockyer Valley | F20: % | H20: 90 | N20: Performance indicator required in SAMP
B21: 6 | C21: Water quality complaints per 1000 properties each year | D21: Drinking water | E21: Brisbane | F21: Number | G21: 9.8 | H21: 5.5 | N21: Performance indicator required in SAMP
B22: 7 | C22: Water quality incidents per 1000 properties each year | D22: Drinking water | E22: Brisbane | F22: Number | G22: 0.5 | H22: 0.4 | N22: Performance indicator required in SAMP
B23: 8 | C23: Water quality incidents per 1000 properties each year | D23: Drinking water | E23: Ipswich | F23: Number | H23: <9 | N23: Performance indicator required in SAMP
B24: 9 | C24: Water quality incidents per 1000 properties each year | D24: Drinking water | E24: Scenic Rim | F24: Number | H24: <150 | N24: Performance indicator required in SAMP
B25: 10 | C25: Water quality incidents per 1000 properties each year | D25: Drinking water | E25: Somerset | F25: Number | H25: <150 | N25: Performance indicator required in SAMP
B26: 11 | C26: Water quality incidents per 1000 properties each year | D26: Drinking water | E26: Lockyer Valley | F26: Number | H26: <10 | N26: Performance indicator required in SAMP
B27: 12 | C27: Water pressure | D27: Drinking water | E27: Brisbane | F27: KPa Range | G27: All investigated and corrected | H27: 120-210 | N27: Performance indicator required in SAMP
B28: 13 | C28: Water pressure | D28: Drinking water | E28: Ipswich | F28: Kpa | H28: 220 | N28: Performance indicator required in SAMP
B29: 14 | C29: Water pressure | D29: Drinking water | E29: Scenic Rim | F29: Kpa | H29: 220 urban 100 rural | N29: Performance indicator required in SAMP
B30: 15 | C30: Water pressure | D30: Drinking water | E30: Somerset | F30: Kpa | H30: 220 | N30: Performance indicator required in SAMP
B31: 16 | C31: Water pressure | D31: Drinking water | E31: Lockyer Valley | F31: Kpa | H31: 220 | N31: Performance indicator required in SAMP
B32: 17 | C32: Water volume | D32: Drinking water | E32: Brisbane | F32: Litres per minute | G32: All investigated and corrected | H32: >30
B33: 18 | C33: Water volume | D33: Drinking water | E33: Scenic Rim | F33: Litres per minute | H33: >20 urban >8 rural | N33: Performance indicator required in SAMP
B34: 19 | C34: Number of unplanned water interuptions per 1,000 connections per year | D34: Drinking water | E34: Brisbane | F34: Number | G34: 76.9 | H34: 89.7 | N34: Performance indicator required in SAMP
B35: 20 | C35: Number of unplanned water interuptions per 1,000 connections per year | D35: Drinking water | E35: Ipswich | F35: Number | H35: <120 | N35: Performance indicator required in SAMP
B36: 21 | C36: Number of unplanned water interuptions per 1,000 connections per year | D36: Drinking water | E36: Scenic Rim | F36: Number | H36: <100 | N36: Performance indicator required in SAMP
B37: 22 | C37: Number of unplanned water interuptions per 1,000 connections per year | D37: Drinking water | E37: Somerset | F37: Number | H37: <250 | N37: Performance indicator required in SAMP
B38: 23 | C38: Number of unplanned water interuptions per 1,000 connections per year | D38: Drinking water | E38: Lockyer Valley | F38: Number | H38: <100 | N38: Performance indicator required in SAMP
B39: 24 | C39: Percentage of unplanned interruptions to a customer's water supply restored in less than 5 hours | D39: Drinking water | E39: Brisbane | F39: % | G39: 91.7 | H39: 90 | N39: Performance indicator required in SAMP
B40: 25 | C40: Percentage of unplanned interruptions to a customer's water supply restored in less than 5 hours | D40: Drinking water | E40: Ipswich | F40: % | H40: 90 | N40: Performance indicator required in SAMP
B41: 26 | C41: Percentage of unplanned interruptions to a customer's water supply restored in less than 5 hours | D41: Drinking water | E41: Scenic Rim | F41: % | H41: 95 | N41: Performance indicator required in SAMP
B42: 27 | C42: Percentage of unplanned interruptions to a customer's water supply restored in less than 5 hours | D42: Drinking water | E42: Somerset | F42: % | H42: 80 | N42: Performance indicator required in SAMP
B43: 28 | C43: Percentage of unplanned interruptions to a customer's water supply restored in less than 5 hours | D43: Drinking water | E43: Lockyer Valley | F43: % | H43: 80 | N43: Performance indicator required in SAMP
B44: 29 | C44: Response to urgent incidents | D44: Water & Sewerage | E44: Brisbane | F44: (%); Hours / % | G44: 0.7 | H44: 0.7 | N44: Performance indicator required in SAMP
B45: 30 | C45: Response to urgent incidents | D45: Drinking water | E45: Ipswich | F45: Hours / % | H45: <3 / 80 | N45: Performance indicator required in SAMP
B46: 31 | C46: Response to urgent incidents | D46: Drinking water | E46: Scenic Rim | F46: Hours / % | H46: <1 / 95 | N46: Performance indicator required in SAMP
B47: 32 | C47: Response to urgent incidents | D47: Drinking water | E47: Somerset | F47: Hours / % | H47: <2 / 120 | N47: Performance indicator required in SAMP
B48: 33 | C48: Response to urgent incidents | D48: Drinking water | E48: Lockyer Valley | F48: Hours / % | H48: <2 / 120 | N48: Performance indicator required in SAMP
B49: 34 | C49: Response to non-urgent incidents | D49: Water & Sewerage | E49: Brisbane | F49: (%); Hours / % | G49: 0.95 | H49: 0.99 | N49: Performance indicator required in SAMP
B50: 35 | C50: Response to non-urgent incidents | D50: Drinking water | E50: Ipswich | F50: Days / % | H50: <1 / 100 | N50: Performance indicator required in SAMP
B51: 36 | C51: Response to non-urgent incidents | D51: Drinking water | E51: Scenic Rim | F51: Days / % | H51: <5 / 95 | N51: Performance indicator required in SAMP
B52: 37 | C52: Response to non-urgent incidents | D52: Drinking water | E52: Somerset | F52: Days / % | H52: <2 / 80 | N52: Performance indicator required in SAMP
B53: 38 | C53: Response to non-urgent incidents | D53: Drinking water | E53: Lockyer Valley | F53: Days / % | H53: <2 / 80 | N53: Performance indicator required in SAMP
B54: 39 | C54: Notification of planned interruptions | D54: Drinking water | E54: Brisbane | F54: Hours / % | H54: >48 / 100 | N54: Performance indicator required in SAMP
B55: 40 | C55: Notification of planned interruptions | D55: Drinking water | E55: Ipswich | F55: Hours / % | H55: >48 / 100 | N55: Performance indicator required in SAMP
C56: Notification of planned interruptions | D56: Drinking water | E56: Scenic Rim | F56: Hours / % | H56: >48 / 100 | N56: Performance indicator required in SAMP
C57: Notification of planned interruptions | D57: Drinking water | E57: Somerset | F57: Hours / % | H57: >24 / 100 | N57: Performance indicator required in SAMP
C58: Notification of planned interruptions | D58: Drinking water | E58: Lockyer Valley | F58: Hours / % | H58: >24 / 95 | N58: Performance indicator required in SAMP
C59: Total sewage overflows per 100km of mains per year | D59: Waste-water via Sewer | E59: Brisbane | F59: Number | G59: 9.8 | H59: <36 | N59: Performance indicator required in SAMP
C60: Total sewage overflows per 100km of mains per year | D60: Waste-water via Sewer | E60: Ipswich | F60: Number | H60: <50 | N60: Performance indicator required in SAMP
C61: Total sewage overflows per 100km of mains per year | D61: Waste-water via Sewer | E61: Scenic Rim | F61: Number | H61: <20 | N61: Performance indicator required in SAMP
C62: Total sewage overflows per 100km of mains per year | D62: Waste-water via Sewer | E62: Somerset | F62: Number | H62: <60 | N62: Performance indicator required in SAMP
C63: Total sewage overflows per 100km of mains per year | D63: Waste-water via Sewer | E63: Lockyer Valley | F63: Number | H63: <60 | N63: Performance indicator required in SAMP
C64: Number of overflows onto a customer's property per 1000 properties per year | D64: Waste-water via Sewer | E64: Brisbane | F64: Number | G64: 0.5 | H64: <1.5 | N64: Performance indicator required in SAMP
C65: Number of overflows onto a customer's property per 1000 properties per year | D65: Waste-water via Sewer | E65: Ipswich | F65: Number | H65: <6 | N65: Performance indicator required in SAMP
C66: Number of overflows onto a customer's property per 1000 properties per year | D66: Waste-water via Sewer | E66: Scenic Rim | F66: Number | H66: <10 | N66: Performance indicator required in SAMP
C67: Number of overflows onto a customer's property per 1000 properties per year | D67: Waste-water via Sewer | E67: Somerset | F67: Number | H67: <100 | N67: Performance indicator required in SAMP
C68: Number of overflows onto a customer's property per 1000 properties per year | D68: Waste-water via Sewer | E68: Lockyer Valley | F68: Number | H68: <250 | N68: Performance indicator required in SAMP
C69: Number of odour complaints per 1000 properties per year | D69: Waste-water via Sewer | E69: Brisbane | F69: Number | G69: 0.4 | H69: <1 | N69: Performance indicator required in SAMP
C70: Number of odour complaints per 1000 properties per year | D70: Waste-water via Sewer | E70: Ipswich | F70: Number | H70: <3 | N70: Performance indicator required in SAMP
C71: Number of odour complaints per 1000 properties per year | D71: Waste-water via Sewer | E71: Scenic Rim | F71: Number | H71: <10 | N71: Performance indicator required in SAMP
C72: Number of odour complaints per 1000 properties per year | D72: Waste-water via Sewer | E72: Somerset | F72: Number | H72: <100 | N72: Performance indicator required in SAMP
C73: Number of odour complaints per 1000 properties per year | D73: Waste-water via Sewer | E73: Lockyer Valley | F73: Number | H73: <250 | N73: Performance indicator required in SAMP
C74: Time to commence connection work following approval and payment | D74: Other Core Water Services | E74: Brisbane | F74: Working Days / % | H74: <15 / 100 | N74: Performance indicator required in SAMP
C75: Time to commence connection work following approval and payment | D75: Other Core Water Services | E75: Ipswich | F75: Working Days / % | H75: <20 / 100 | N75: Performance indicator required in SAMP
C76: Time to commence connection work following approval and payment | D76: Other Core Water Services | E76: Scenic Rim | F76: Working Days / % | H76: <10 / 100 | N76: Performance indicator required in SAMP
C77: Time to commence connection work following approval and payment | D77: Other Core Water Services | E77: Somerset | F77: Working Days / % | H77: <15 / 90 | N77: Performance indicator required in SAMP
C78: Compliance with Australian Drinking Water Guidelines | D78: Drinking water | E78: All Schemes | F78: % | I78: 100 | J78: 100 | K78: 100 | L78: 100 | M78: 100 | N78: Performance indicator required in SAMP | O78: No
C79: Water quality complaints per 1000 properties each year | D79: Drinking water | E79: All Schemes | F79: Number | I79: ≤ 8 | J79: ≤ 8 | K79: ≤ 8 | L79: ≤ 8 | M79: ≤ 8 | N79: Performance indicator required in SAMP | O79: Yes | P79: No date set - always open to review
C80: Water quality incidents per 1000 properties each year | D80: Drinking water | E80: All Schemes | F80: Number | I80: ≤10 | J80: ≤10 | K80: ≤10 | L80: ≤10 | M80: ≤10 | N80: Performance indicator required in SAMP | O80: Yes | P80: No date set - always open to review
C81: Water pressure (urban) | D81: Drinking water | E81: All Schemes | F81: KPa Min | I81: 210 | J81: 210 | K81: 210 | L81: 210 | M81: 210 | N81: Performance indicator required in SAMP | O81: Yes | P81: No date set - always open to review
C82: Water pressure - trickle feed and private booster areas | D82: Drinking water | E82: All Schemes | F82: KPa Min | I82: 100 | J82: 100 | K82: 100 | L82: 100 | M82: 100 | N82: Performance indicator required in SAMP | O82: Yes | P82: No date set - always open to review
C83: Water volume (urban) | D83: Drinking water | E83: All Schemes | F83: Litres per minute | I83: 25 | J83: 25 | K83: 25 | L83: 25 | M83: 25 | N83: Performance indicator required in SAMP | O83: Yes | P83: No date set - always open to review
C84: Water volume (rural) trickle feed areas | D84: Drinking water | E84: All Schemes | F84: Litres per minute | I84: 3.2 | J84: 3.2 | K84: 3.2 | L84: 3.2 | M84: 3.2 | N84: Performance indicator required in SAMP | O84: Yes | P84: No date set - always open to review
C85: Number of unplanned water interuptions per 1,000 connections per year | D85: Drinking water | E85: All Schemes | F85: Number | I85: <100 | J85: <100 | K85: <100 | L85: <100 | M85: <100 | N85: Performance indicator required in SAMP | O85: Yes | P85: No date set - always open to review
C86: Percentage of unplanned interruptions to a customer's water supply restored in less than 5 hours | D86: Drinking water | E86: All Schemes | F86: % | I86: >90 | J86: >90 | K86: >90 | L86: >90 | M86: >90 | N86: Performance indicator required in SAMP | O86: Yes | P86: No date set - always open to review
